Workbook

Sheet Sheet1 (hidden)
S2: oui | T2: économique
S3: non | T3: technique
B11: prix d’achat global du véhicule concerné
B13: valeur résiduelle estimée du véhicule à la fin de sa durée de vie dans l'entreprise (en % du prix d'achat global)
B14: Choisissez « économique » si le véhicule sera remplacé après un certain nombre d’années. Choisissez «technique» si le véhicule sera remplacé après un certain nombre de kilomètres
B19: nombre d'années durant laquelle le véhicule restera normalement dans l'entreprise
B21: nombre de kilomètres que le véhicule devra parcourir avant son remplacement
B23: nombre de jours d'utilisation du véhicule
B27: taux d'emprunt, si d'application
B29: pourcentage de la valeur d’achat du véhicule financé par du capital propre
B31: Introduisez ici le taux d’intérêt que vous recevriez si vous souscriviez à un placement sans risque (comme un emprunt d’Etat, un bon de caisse ou un carnet d'épargne) pour le calcul de coût d'opportunité
B35: en litres par 100 km
B37: en litres par 100 km
B39: en litres par 100 km
B47: en km
B49: en km
B73: Coût du contrôle technique
B75: Nombre de fois par an (en moyenne)
B77: si d'application
B79: forfait véhicule + tous les emplacements
B85: autres coûts fixes liés au véhicule qui n’ont pas été introduits sous une rubrique précédente
B103: Introduisez ici les données si vous employez une remorque pour le trajet
B118: Consommation supplémentaire de gasoil, d'huile et d'Adblue dû au transport de la remorque
B119: Introduisez ici les données si vous employez un bac à skis pour le trajet
B130: Introduisez ici les données si vous employez un élévateur pour le trajet

Sheet Liste (hidden)
A6: Mercedes

Sheet Navigation
B2: ICB Calculateur de Prix 5.0
C4: Navigation
D6: 1. Imputation des données du véhicule
D7: 2. Imputation des données de l'entreprise
D8: 3. Imputation des données du chauffeur et du salaire
D9: 4. Imputation des données liées aux destinations et aux véhicules
D10: 5. Imputation des données du voyage
D11: 6. Calcul du coût salarial
D12: 7. Calcul du prix de revient total
D13: 8. Recapitulatif des prix de revient

Sheet Nombre de véhicules
G1: 2 | I1: 2 | M1: 2
C2: Paramétrer la liste des véhicules
C4: Nombre de véhicules supplémentaires à référencer | E4: 1
C6: Liste des véhicules ne devant plus être référencés
A12: Mercedes | C12: =1 -> 1 | E12: =A12 -> Mercedes
C13: =C12+1 -> 2 | E13: =A13 -> 0
C14: =C13+1 -> 3 | E14: 0
C15: 4 | E15: 0
C16: 5 | E16: 0
C17: 6 | E17: 0
C18: 7 | E18: 0
C19: 8 | E19: 0
C20: 9 | E20: 0
C21: 10 | E21: 0
C22: 11 | E22: 0
C23: 12 | E23: 0
C24: 13 | E24: 0
C25: 14 | E25: 0 | Y25: Van Hool | AA25: a | AB25: b | AC25: c | AD25: d | AE25: b
C26: 15 | E26: 0
C27: 16 | E27: 0
C28: 17 | E28: 0
C29: 18 | E29: 0
C30: 19 | E30: 0
C31: 20 | E31: 0
C32: 21 | E32: 0
C33: 22 | E33: 0
C34: 23 | E34: 0
C35: 24 | E35: 0
C36: 25 | E36: 0
C37: 26 | E37: 0
C38: 27 | E38: 0
C39: 28 | E39: 0
C40: 29 | E40: 0
C41: 30 | E41: 0
C42: 31 | E42: 0
C43: 32 | E43: 0
C44: 33 | E44: 0
C45: 34 | E45: 0
C46: 35 | E46: 0
C47: 36 | E47: 0
C48: 37 | E48: 0
C49: 38 | E49: 0
C50: 39 | E50: 0
C51: 40 | E51: 0
C52: 41 | E52: 0
C53: 42 | E53: 0
C54: 43 | E54: 0
C55: 44 | E55: 0
C56: 45 | E56: 0
C57: 46 | E57: 0
C58: 47 | E58: 0
C59: 48 | E59: 0
C60: 49 | E60: 0
C61: 50 | E61: 0
C62: 51 | E62: 0
C63: 52 | E63: 0
C64: 53 | E64: 0
C65: 54 | E65: 0
C66: 55 | E66: 0
C67: 56 | E67: 0
C68: 57 | E68: 0
C69: 58 | E69: 0
C70: 59 | E70: 0
C71: 60 | E71: 0
C72: 61 | E72: 0
C73: 62 | E73: 0
C74: 63 | E74: 0
C75: 64 | E75: 0
C76: 65 | E76: 0
C77: 66 | E77: =A77 -> 0
C78: =C77+1 -> 67 | E78: 0
C79: 68 | E79: 0
C80: 69 | E80: 0
C81: 70 | E81: 0
C82: 71 | E82: 0
C83: 72 | E83: 0
C84: 73 | E84: 0
C85: 74 | E85: 0
C86: 75 | E86: 0
C87: 76 | E87: 0
C88: 77 | E88: 0
C89: 78 | E89: 0
C90: 79 | E90: 0
C91: 80 | E91: 0
C92: 81 | E92: 0
C93: 82 | E93: 0
C94: 83 | E94: 0
C95: 84 | E95: 0
C96: 85 | E96: 0
C97: 86 | E97: 0
C98: 87 | E98: 0
C99: 88 | E99: 0
C100: 89 | E100: 0
C101: 90 | E101: 0
C102: 91 | E102: 0
C103: 92 | E103: 0
C104: 93 | E104: 0
C105: 94 | E105: 0
C106: 95 | E106: 0
C107: 96 | E107: 0
C108: 97 | E108: 0
C109: 98 | E109: 0
C110: 99 | E110: 0
C111: 100 | E111: 0
C112: 101 | E112: 0
C113: 102 | E113: 0
C114: 103 | E114: 0
C115: 104 | E115: 0
C116: 105 | E116: 0
C117: 106 | E117: 0
C118: 107 | E118: 0
C119: 108 | E119: 0
C120: 109 | E120: 0
C121: 110 | E121: 0
C122: 111 | E122: 0
C123: 112 | E123: 0
C124: 113 | E124: 0
C125: 114 | E125: 0
C126: 115 | E126: 0
C127: 116 | E127: 0
C128: 117 | E128: 0
C129: 118 | E129: 0
C130: 119 | E130: 0
C131: 120 | E131: 0
C132: 121 | E132: 0
C133: 122 | E133: 0
C134: 123 | E134: 0
C135: 124 | E135: 0
C136: 125 | E136: 0
C137: 126 | E137: 0
C138: 127 | E138: 0
C139: 128 | E139: 0
C140: 129 | E140: 0
C141: 130 | E141: =A141 -> 0
C142: =C141+1 -> 131 | E142: 0
C143: 132 | E143: 0
C144: 133 | E144: 0
C145: 134 | E145: 0
C146: 135 | E146: 0
C147: 136 | E147: 0
C148: 137 | E148: 0
C149: 138 | E149: 0
C150: 139 | E150: 0
C151: 140 | E151: 0
C152: 141 | E152: 0
C153: 142 | E153: 0
C154: 143 | E154: 0
C155: 144 | E155: 0
C156: 145 | E156: 0
C157: 146 | E157: 0
C158: 147 | E158: 0
C159: 148 | E159: 0
C160: 149 | E160: 0
C161: 150 | E161: 0
C162: 151 | E162: 0
C163: 152 | E163: 0
C164: 153 | E164: 0
C165: 154 | E165: 0
C166: 155 | E166: 0
C167: 156 | E167: 0
C168: 157 | E168: 0
C169: 158 | E169: 0
C170: 159 | E170: 0
C171: 160 | E171: 0
C172: 161 | E172: 0
C173: 162 | E173: 0
C174: 163 | E174: 0
C175: 164 | E175: 0
C176: 165 | E176: 0
C177: 166 | E177: 0
C178: 167 | E178: 0
C179: 168 | E179: 0
C180: 169 | E180: 0
C181: 170 | E181: 0
C182: 171 | E182: 0
C183: 172 | E183: 0
C184: 173 | E184: 0
C185: 174 | E185: 0
C186: 175 | E186: 0
C187: 176 | E187: 0
C188: 177 | E188: 0
C189: 178 | E189: 0
C190: 179 | E190: 0
C191: 180 | E191: 0
C192: 181 | E192: 0
C193: 182 | E193: 0
C194: 183 | E194: 0
C195: 184 | E195: 0
C196: 185 | E196: 0
C197: 186 | E197: 0
C198: 187 | E198: 0
C199: 188 | E199: 0
C200: 189 | E200: 0
C201: 190 | E201: 0
C202: 191 | E202: 0
C203: 192 | E203: 0
C204: 193 | E204: 0
C205: 194 | E205: =A205 -> 0
C206: =C205+1 -> 195 | E206: 0
C207: 196 | E207: 0
... 2015 more rows

Sheet Véhicule
G1: 1
B2: Données du véhicule
C4: Date d'introduction des données: | E4: 17/02/2022
G6: Mercedes
C9: 1. AMORTISSEMENT1 2
E11: Prix d'achat: | I11: prix d’achat global du véhicule concerné
A12: Mercedes
E13: Valeur résiduelle: | I13: valeur résiduelle estimée du véhicule à la fin de sa durée de vie dans l'entreprise (en % du prix d'achat global)
I14: Choisissez « économique » si le véhicule sera remplacé après un certain nombre d’années. Choisissez «technique» si le véhicule sera remplacé après un certain nombre de kilomètres
E15: Type d'amortissement:
G16: ,
E17: Keuze type afschrijving: | G17: 0
E19: Durée de vie en années: | I19: nombre d'années durant laquelle le véhicule restera normalement dans l'entreprise
E21: Durée de vie en kilomètres: | I21: nombre de kilomètres que le véhicule devra parcourir avant son remplacement
E23: Nombre de jours d'utilisation par an: | I23: nombre de jours d'utilisation du véhicule
C25: 2. FINANCEMENT
E27: Taux d'intérêt emprunt véhicule: | I27: taux d'emprunt, si d'application
E29: Pourcentage autofinancement véhicule: | I29: pourcentage de la valeur d’achat du véhicule financé par du capital propre
E31: Taux d'intérêt sans risque: | I31: Introduisez ici le taux d’intérêt que vous recevriez si vous souscriviez à un placement sans risque (comme un emprunt d’Etat, un bon de caisse ou un carnet d'épargne) pour le calcul de coût d'opportunité
C33: 3. CONSOMMATION
E35: Consommation gasoil: | I35: en litres par 100 km
E37: Consommation huile: | I37: en litres par 100 km
E39: Consommation adblue: | I39: en litres par 100 km
C41: 4. PNEUS
E43: Nombre de pneus à l'avant:
E45: Nombre de pneus à l'arrière:
E47: Durée de vie des pneus à l'avant: | I47: en km
E49: Durée de vie des pneus à l'arrière: | I49: en km
E51: Prix unitaire d'un pneu:
C53: 5. ASSURANCES
E55: Prime responsabilité civile véhicule:
E57: Prime assurance incendie véhicule:
E59: Dégâts matériels:
E61: Vol:
E63: Assistance juridique
E65: Assistance véhicule:
E67: Bris de glace:
E69: Autres primes
C71: 6. AUTRES COÛTS FIXES LIÉS AU VÉHICULE
E73: Contrôle technique | I73: Coût du contrôle technique
E75: Nombre de contrôles par an: | I75: Nombre de fois par an (en moyenne)
E77: Contrôle étoile: | I77: si d'application
E79: Sabam véhicule: | I79: forfait véhicule + tous les emplacements
E81: Taxe de circulation:
E83: Cotisation véhicule affiliation FBAA
E85: Autres coûts fixes annuels liés au véhicule: | I85: autres coûts fixes liés au véhicule qui n’ont pas été introduits sous une rubrique précédente
C87: 7. OPTIONS DISPONIBLES
E89: Votre véhicule a-t-il une remorque? | G89: non
E94: Votre véhicule a-t-il un bac à skis? | G94: non
E98: Votre véhicule a-t-il un élévateur? | G98: non
C101: OPTION 1: REMORQUE
E103: Nombre de jours d'utilisation par an de la remorque: | I103: Introduisez ici les données si vous employez une remorque pour le trajet
E105: Prix d'achat:
E107: Durée de vie en années:
E109: Prime responsabilité civile remorque:
E111: Taxe de circulation:
E113: Entretien annuel:
E115: Contrôle technique:
E118: Consommation supplémentaire | I118: Consommation supplémentaire de gasoil, d'huile et d'Adblue dû au transport de la remorque
C119: OPTION 2: BAC A SKIS | I119: Introduisez ici les données si vous employez un bac à skis pour le trajet
E121: Nombre de jours d'utilisation par an du bac a skis:
E123: Prix d'achat:
E125: Durée de vie en années:
E127: coût montage/démontage:
C130: OPTION 3: ÉLÉVATEUR | I130: Introduisez ici les données si vous employez un élévateur pour le trajet
E132: Nombre de jours d'utilisation par an de l'élévateur
E134: Prix d'achat:
E136: Durée de vie en années:
E138: coût montage/démontage:
C140: 1 Si vous utilisez votre véhicule pour des services réguliers et des services réguliers spécialisés, vous devez introduire les données pour les deux activités conjointement
C141: 2 Nous référons à la durée réelle pendant laquelle le véhicule restera dans l'entreprise, non à l'amortissement pour des raisons fiscales
E146: Optie 1 | G146: =IF(G121=0,1,G121) -> 1
E147: Optie 2 | G147: =IF(G103=0,1,G103) -> 1
E148: Optie 3 | G148: =IF(G132=0,1,G132) -> 1

Sheet Entreprise
B1: 2,03
B2: Données de l'entreprise*
C3: * Si votre entreprise ne fait pas uniquement des activités autocar: essayez d'estimer la partie des coûts attribuables aux activités autocar
B5: Date d'introduction des données: | G5: Remplissez les données ici:
C7: 1. FLOTTE
E9: Nombre de véhicules | I9: Nombre total de véhicules au sein de l'entreprise
E11: Kilométrage annuel (tous les véhicules):
C13: 2. ENTRETIEN
E15: Entretien par des tiers | I15: Coût annuel de l'entretien hors de l'entreprise (tous les véhicules)
E17: Pièces de rechange | I17: Coût annuel des pièces de rechange (tous les véhicules)
E19: Personnel de garage | I19: Coût salarial annuel du personnel de garage (tous les véhicules)
C21: 3. CONSOMMATION
E23: Prix diesel | I23: prix par litre
E25: Prix huile | I25: prix par litre
E27: Prix adblue | I27: prix par litre
C29: 4. AUTRES FRAIS FIXES LIÉS Á L'ENTREPRISE
E31: Dépôt et batiments | I31: Coût annuel du dépôt et des batiments (amortissements, loyer, financement, …)
E33: Assurances de l'entreprise | I33: Coût annuel des assurances non-liées à un véhicule spécifique
E35: Frais informatiques | I35: Coût annuel
E37: Frais de publicité | I37: Coût annuel
E39: Autres frais de bureau | I39: Coût annuel de papier, cartouches d'encre,...
E41: Véhicules d'entreprise | I41: Coût annuel de véhicules d'entreprise (camionnette d'entreprise, tracteur, …)
E43: Eau, énergie et télécommunication | I43: Coût annuel
E45: Lavage de voitures | I45: Coût annuel
E47: Employés | I47: Coût annuel
E49: Chef d'entreprise | I49: Coût salarial annuel
E51: Sécrétariat social | I51: Coût total annuel
E53: Affiliation FBAA | I53: Cotisation fixe annuel
E55: Autres cotisations | I55: Coût total annuel
E57: Autres frais fixes annuels | I57: Coût total annuel

Sheet Vehicule utilise
B2: Véhicules et destinations
A3: $A$3 | B3: Véhicules et destinations
B4: Véhicules et destinations
C6: Trajet | E6: Ecrivez ci-dessous les villes de départ | G6: Sélectionnez le pays de départ | I6: Ecrivez ci-dessous les villes d'arrivée | K6: Sélectionnez le pays d'arrivée | M6: Kilomètres | O6: Sélectionnez le véhicule utilisé
C8: Trajet 1 | G8: Belgique | K8: Luxembourg | M8: 41 km | O8: a | Q8: 1 | S8: =IFERROR(VLOOKUP('Vehicule utilise'!Q8,'Nombre de véhicules'!$C$12:$E$2222,3,FALSE),"") -> Mercedes | W8: =TRIM(I8) -> 
U9: 1 | FR9: 1
C10: Trajet 2 | G10: Belgique | K10: Belgique | M10: 41 km | O10: c | Q10: 1 | S10: =IFERROR(VLOOKUP('Vehicule utilise'!Q10,'Nombre de véhicules'!$C$12:$E$2222,3,FALSE),"") -> Mercedes | W10: =TRIM(I10) -> 
U11: 1
C12: Trajet 3 | G12: Belgique | K12: Belgique | M12: 41 km | O12: b | Q12: 1 | S12: =IFERROR(VLOOKUP('Vehicule utilise'!Q12,'Nombre de véhicules'!$C$12:$E$2222,3,FALSE),"") -> Mercedes | W12: =TRIM(I12) -> 
U13: 5
C14: Trajet 4 | G14: Allemagne | K14: Belgique | M14: 41 km | O14: a | Q14: 1 | S14: =IFERROR(VLOOKUP('Vehicule utilise'!Q14,'Nombre de véhicules'!$C$12:$E$2222,3,FALSE),"") -> Mercedes | W14: =TRIM(I14) -> 
U15: 2
C16: Trajet 5 | G16: Belgique | K16: Ukraine | M16: 41 km | O16: d | Q16: 1 | S16: =IFERROR(VLOOKUP('Vehicule utilise'!Q16,'Nombre de véhicules'!$C$12:$E$2222,3,FALSE),"") -> Mercedes | W16: =TRIM(I16) -> 
U17: 4
E39: =IF(E8<>"",E8,"") ->  | I39: =IF(I8<>"",I8,"") ->  | M39: 911 km
E40: =IF(E10<>"",E10,"") ->  | I40: =IF(I10<>"",I10,"") ->  | M40: 1,330 km
E41: =IF(E12<>"",E12,"") ->  | I41: =IF(I12<>"",I12,"") ->  | M41: 209 km
E42: =IF(E14<>"",E14,"") ->  | I42: =IF(I14<>"",I14,"") ->  | M42: 2,142 km
E43: =IF(E16<>"",E16,"") ->  | I43: =IF(I16<>"",I16,"") ->  | M43: 772 km

Sheet Personnel Roulant
B2: Données sur le personnel roulant
C4: Date d'introduction des données: | G4: Remplissez les données ici:
C6: 1. SALAIRES BRUTS SELON LE TEMPS DE SERVICE
C8: Pour un seul chauffeur:
E9: <= 6 h: | G9: 78.79
E11: > 6 h en <= 12 h: | G11: 129.76
E13: par h > 12 h: | G13: 14.36
C15: Pour plusieurs chauffeurs:
E16: 11 h: | G16: 105.58
E18: 12 h: | G18: 116.43
E20: 13 h: | G20: 127.42
E22: 14 h: | G22: 138.31
E24: 15 h: | G24: 149.26
E26: 16 h: | G26: 160.24
E28: 17 h: | G28: 171.02
E30: 18 h: | G30: 182.05
E32: 19 h: | G32: 192.87
E34: 20 h: | G34: 203.88
E36: 21 h: | G36: 214.84
C38: 2. AUTRES ELEMENTS SALARIAUX (pour les chauffeurs d'autocars)
E40: Indemnité RGPT: | G40: 2.11 | I40: Montant par heure
E42: Supplément d’ancienneté: | G42: 2.53 | I42: Montant par prestation
E44: Eco-cheques | G44: 125 | I44: Coût annuel pour 1 chauffeur temps plein
E46: Prime de fin d'année | G46: 2494.44 | I46: Coût annuel pour 1 chauffeur temps plein
E48: jours de compensation travail dimanche: | G48: 124.77
E50: jour(s) d’inactivité à l'étranger: | G50: 106.83
E52: ONSS: | I52: Pourcentage employeur
E54: Assurance domicile - lieu de travail: | I54: Coût annuel pour 1 chauffeur temps plein
E56: Assurance loi (Accident(s) sur le lieu de travail): | I56: Coût annuel pour 1 chauffeur temps plein
E58: Assurance assistance chauffeur: | I58: Coût annuel pour 1 chauffeur temps plein
E60: Contrôle médicale: | I60: Coût annuel pour 1 chauffeur temps plein
E62: Maladie: | I62: Coût annuel pour 1 chauffeur temps plein
E64: Formation continue: | I64: Coût annuel pour 1 chauffeur temps plein
E66: Autres: | I66: Montant annuel pour un ETP (vêtements, permis, chômage économique, …)
E68: Nombre de jours effectivement facturables: | I68: Nombre de jours effectivement facturables au client par chauffeur par an

Sheet VOYAGE (hidden)
B2: Données du voyage
C4: Date d'introduction des données: | F4: --/--/--
H6: Introduisez ici les données pour les différents jours du voyage. En plaçant la flèche de la souris sur le petit triangle rouge, vous recevrez de plus amples informations sur un poste spécifique
D7: nombre de jours | E7: 1
D9: hide | F9: 0 | G9: 1 | H9: 2 | I9: 3 | J9: 4 | K9: 5 | L9: 6 | M9: 7 | N9: 8 | O9: 9 | P9: 10 | Q9: 11 | R9: 12 | S9: 13 | T9: 14
D10: hide | F10: =IF($E$7>F9,1,0) -> 1 | G10: =IF($E$7>G9,1,0) -> 0 | H10: 0 | I10: 0 | J10: 0 | K10: 0 | L10: 0 | M10: 0 | N10: 0 | O10: 0 | P10: 0 | Q10: 0 | R10: 0 | S10: 0 | T10: 0
Y11: 0
F12: jour | G12: jour | H12: jour | I12: jour | J12: jour | K12: jour | L12: jour | M12: jour | N12: jour | O12: jour | P12: jour | Q12: jour | R12: jour | S12: jour | T12: jour | Y12: 1
F13: 1 | G13: 2 | H13: 3 | I13: 4 | J13: 5 | K13: 6 | L13: 7 | M13: 8 | N13: 9 | O13: 10 | P13: 11 | Q13: 12 | R13: 13 | S13: 14 | T13: 15 | Y13: 2 | Z13: Belgique
D14: nombre de kilomètres: | F14: 100 | G14: 100 | H14: 100 | Y14: 3 | Z14: Autre
D15: nombre de chauffeurs: | F15: 2 | G15: 1
D16: pays (principal) d'exécution: | F16: Belgique
D17: temps de service CH SIMPLE (h:min): | F17: 05:00:00 | X17: =IF(F15>0,1,0) -> 1 | Y17: =IF(G15>0,1,0) -> 1 | Z17: 0 | AA17: 0 | AB17: 0 | AC17: 0 | AD17: 0 | AE17: 0 | AF17: 0 | AG17: 0 | AH17: 0 | AI17: 0 | AJ17: 0 | AK17: 0 | AL17: 0
D18: temps de service CH1 DOUBLE (h:min): | F18: 04:00:00 | X18: =IF(F15>1,1,0) -> 1 | Y18: =IF(G15>1,1,0) -> 0 | Z18: 0 | AA18: 0 | AB18: 0 | AC18: 0 | AD18: 0 | AE18: 0 | AF18: 0 | AG18: 0 | AH18: 0 | AI18: 0 | AJ18: 0 | AK18: 0 | AL18: 0
D19: temps de service CH2 DOUBLE (h:min): | F19: 02:00:00 | X19: =IF(F15=3,1,0) -> 0 | Y19: =IF(G15=3,1,0) -> 0 | Z19: 0 | AA19: 0 | AB19: 0 | AC19: 0 | AD19: 0 | AE19: 0 | AF19: 0 | AG19: 0 | AH19: 0 | AI19: 0 | AJ19: 0 | AK19: 0 | AL19: 0
D20: jour(s) de compensation travail dimanche: | F20: 1 | X20: =IF(F20="ja",'Personnel Roulant'!$G$48,0) -> 0 | Y20: =IF(G20="ja",'Personnel Roulant'!$G$48,0) -> 0 | Z20: =IF(H20="ja",'Personnel Roulant'!$G$48,0) -> 0 | AA20: =IF(I20="ja",'Personnel Roulant'!$G$48,0) -> 0 | AB20: =IF(J20="ja",'Personnel Roulant'!$G$48,0) -> 0 | AC20: =IF(K20="ja",'Personnel Roulant'!$G$48,0) -> 0 | AD20: =IF(L20="ja",'Personnel Roulant'!$G$48,0) -> 0 | AE20: =IF(M20="ja",'Personnel Roulant'!$G$48,0) -> 0 | AF20: =IF(N20="ja",'Personnel Roulant'!$G$48,0) -> 0 | AG20: =IF(O20="ja",'Personnel Roulant'!$G$48,0) -> 0 | AH20: =IF(P20="ja",'Personnel Roulant'!$G$48,0) -> 0 | AI20: =IF(Q20="ja",'Personnel Roulant'!$G$48,0) -> 0 | AJ20: =IF(R20="ja",'Personnel Roulant'!$G$48,0) -> 0 | AK20: =IF(S20="ja",'Personnel Roulant'!$G$48,0) -> 0 | AL20: =IF(T20="ja",'Personnel Roulant'!$G$48,0) -> 0
D21: jour d’inactivité à l'étranger: | F21: 1 | X21: =IF(F21="ja",'Personnel Roulant'!$G$50,0) -> 0 | Y21: =IF(G21="ja",'Personnel Roulant'!$G$50,0) -> 0 | Z21: =IF(H21="ja",'Personnel Roulant'!$G$50,0) -> 0 | AA21: =IF(I21="ja",'Personnel Roulant'!$G$50,0) -> 0 | AB21: =IF(J21="ja",'Personnel Roulant'!$G$50,0) -> 0 | AC21: =IF(K21="ja",'Personnel Roulant'!$G$50,0) -> 0 | AD21: =IF(L21="ja",'Personnel Roulant'!$G$50,0) -> 0 | AE21: =IF(M21="ja",'Personnel Roulant'!$G$50,0) -> 0 | AF21: =IF(N21="ja",'Personnel Roulant'!$G$50,0) -> 0 | AG21: =IF(O21="ja",'Personnel Roulant'!$G$50,0) -> 0 | AH21: =IF(P21="ja",'Personnel Roulant'!$G$50,0) -> 0 | AI21: =IF(Q21="ja",'Personnel Roulant'!$G$50,0) -> 0 | AJ21: =IF(R21="ja",'Personnel Roulant'!$G$50,0) -> 0 | AK21: =IF(S21="ja",'Personnel Roulant'!$G$50,0) -> 0 | AL21: =IF(T21="ja",'Personnel Roulant'!$G$50,0) -> 0
D22: % gasoil acheté à l'étranger: | F22: 0.6
D23: coût gasoil à l'étranger: | F23: 40
D24: % gasoil acheté à l'entreprise: | F24: =IF(F10=0,0,IF((1-F22)=0,"0%",1-F22)) -> 0.4 | G24: =IF(G10=0,0,IF((1-G22)=0,"0%",1-G22)) -> 0 | H24: 0 | I24: 0 | J24: 0 | K24: 0 | L24: 0 | M24: 0 | N24: 0 | O24: 0 | P24: 0 | Q24: 0 | R24: 0 | S24: 0 | T24: 0
D25: coût gasoil à l'entreprise: | F25: =IF(F10>0,Entreprise!$G$23,"") -> 0 | G25: =IF(G10>0,Entreprise!$G$23,"") ->  | H25: =IF(H10>0,Entreprise!$G$23,"") ->  | I25: =IF(I10>0,Entreprise!$G$23,"") ->  | J25: =IF(J10>0,Entreprise!$G$23,"") ->  | K25: =IF(K10>0,Entreprise!$G$23,"") ->  | L25: =IF(L10>0,Entreprise!$G$23,"") ->  | M25: =IF(M10>0,Entreprise!$G$23,"") ->  | N25: =IF(N10>0,Entreprise!$G$23,"") ->  | O25: =IF(O10>0,Entreprise!$G$23,"") ->  | P25: =IF(P10>0,Entreprise!$G$23,"") ->  | Q25: =IF(Q10>0,Entreprise!$G$23,"") ->  | R25: =IF(R10>0,Entreprise!$G$23,"") ->  | S25: =IF(S10>0,Entreprise!$G$23,"") ->  | T25: =IF(T10>0,Entreprise!$G$23,"") -> 
D26: coûts spécifique du voyage: | F26: 123
D27: le véhicule est-il aussi employé pour un autre voyage ce jour?
F28: non | X28: oui
D29: % du coût fixe pour ce voyage-ci | F29: 0.4 | X29: non
F31: =IF(F28="oui",F29,1) -> 1 | G31: =IF(G28="oui",G29,1) -> 1 | H31: =IF(H28="oui",H29,1) -> 1 | I31: 1 | J31: 1 | K31: 1 | L31: 1 | M31: 1 | N31: 1 | O31: 1 | P31: 1 | Q31: 1 | R31: 1 | S31: 1 | T31: 1

Sheet Trajet
B2: Données du voyage | Y2: =IF(Trajet!F24>0,"",IF(AND(Trajet!AC14=0,Trajet!AD14=1,Trajet!F21*24>=3,Trajet!F21*24+Trajet!E19*24>6),50,IF(AND(Trajet!AC14=0,Trajet!AD14=1,Trajet!F21*24>=3,Trajet!F21*24+Trajet!E19*24<=6),30,IF(AND(Trajet!AC14=0,Trajet!AD14=1,Trajet!F22*24>=3,Trajet!F22*24+Trajet!E20*24>6),50,IF(AND(Trajet!AC14=0,Trajet!AD14=1,Trajet!F22*24>=3,Trajet!F22*24+Trajet!E20*24<=6),30,IF(AND(Trajet!AC14=0,Trajet!AD14=1,Trajet!F23*24>=3,Trajet!F23*24+Trajet!E21*24>6),50,IF(AND(Trajet!AC14=0,Trajet!AD14=1,Trajet!F23*24>=3,Trajet!F23*24+Trajet!E21*24<=6),30,IF(AND(Trajet!AD14=1,Trajet!F21*24<=6,Trajet!F21*24>0),30,IF(AND(Trajet!AD14=1,Trajet!F21*24>6,Trajet!F21*24>0),50,IF(AND(Trajet!AD14=1,Trajet!F22*24<=6,Trajet!F22*24>0),30,IF(AND(Trajet!AD14=1,Trajet!F22*24>6,Trajet!F22*24>0),50,IF(AND(Trajet!AD14=1,Trajet!F23*24<=6,Trajet!F23*24>0),30,IF(AND(Trajet!AD14=1,Trajet!F23*24>6,Trajet!F23*24>0),50,""))))))))))))) -> 
D7: ='Vehicule utilise'!W8 ->  | E7: ='Vehicule utilise'!S8 -> Mercedes
H10: Introduisez ici les données pour les différents jours du voyage. En plaçant la flèche de la souris sur le petit triangle rouge, vous recevrez de plus amples informations sur un poste spécifique | Y10: =IF(Trajet!F24>0,"",IF(AND(Trajet!AC14=0,Trajet!AD14=1,Trajet!F21*24>=3,Trajet!F21*24+Trajet!E21*24>6),50,IF(AND(Trajet!AC14=0,Trajet!AD14=1,Trajet!F21*24>=3,Trajet!F21*24+Trajet!E21*24<=6),30,IF(AND(Trajet!AC14=0,Trajet!AD14=1,Trajet!F22*24>=3,Trajet!F22*24+Trajet!E22*24>6),50,IF(AND(Trajet!AC14=0,Trajet!AD14=1,Trajet!F22*24>=3,Trajet!F22*24+Trajet!E22*24<=6),30,IF(AND(Trajet!AC14=0,Trajet!AD14=1,Trajet!F23*24>=3,Trajet!F23*24+Trajet!E23*24>6),50,IF(AND(Trajet!AC14=0,Trajet!AD14=1,Trajet!F23*24>=3,Trajet!F23*24+Trajet!E23*24<=6),30,IF(AND(Trajet!AD14=1,Trajet!F21*24<=6,Trajet!F21*24>0),30,IF(AND(Trajet!AD14=1,Trajet!F21*24>6,Trajet!F21*24>0),50,IF(AND(Trajet!AD14=1,Trajet!F22*24<=6,Trajet!F22*24>0),30,IF(AND(Trajet!AD14=1,Trajet!F22*24>6,Trajet!F22*24>0),50,IF(AND(Trajet!AD14=1,Trajet!F23*24<=6,Trajet!F23*24>0),30,IF(AND(Trajet!AD14=1,Trajet!F23*24>6,Trajet!F23*24>0),50,""))))))))))))) -> 
D11: nombre de jours | E11: 6 | AD11: Jour 1 | AE11: Jour 2 | AF11: Jour 3 | AG11: Jour 4 | AH11: Jour 5 | AI11: Jour 6 | AJ11: Jour 7 | AK11: Jour 8 | AL11: Jour 9 | AM11: Jour 10 | AN11: Jour 11 | AO11: Jour 12 | AP11: Jour 13 | AQ11: Jour 14 | AR11: Jour 15
D12: hide | F12: 0 | G12: 1 | H12: 2 | I12: 3 | J12: 4 | K12: 5 | L12: 6 | M12: 7 | N12: 8 | O12: 9 | P12: 10 | Q12: 11 | R12: 12 | S12: 13 | T12: 14
D13: hide | F13: =IF(E11>F12,1,0) -> 1 | G13: =IF($E$11>G12,1,0) -> 1 | H13: 1 | I13: 1 | J13: 1 | K13: 1 | L13: 0 | M13: 0 | N13: 0 | O13: 0 | P13: 0 | Q13: 0 | R13: 0 | S13: 0 | T13: 0
Y14: 0 | AD14: TRUE | AE14: TRUE | AF14: TRUE | AG14: TRUE | AH14: TRUE | AI14: TRUE | AJ14: TRUE | AK14: TRUE | AL14: TRUE | AM14: TRUE | AN14: TRUE | AO14: TRUE | AP14: TRUE | AQ14: TRUE | AR14: TRUE
F15: jour | G15: jour | H15: jour | I15: jour | J15: jour | K15: jour | L15: jour | M15: jour | N15: jour | O15: jour | P15: jour | Q15: jour | R15: jour | S15: jour | T15: jour | AD15: =IF(AD14=TRUE,1,0) -> 1 | AE15: =IF(AE14=TRUE,1,0) -> 1 | AF15: 1 | AG15: 1 | AH15: 1 | AI15: 1 | AJ15: 1 | AK15: 1 | AL15: 1 | AM15: 1 | AN15: 1 | AO15: 1 | AP15: 1 | AQ15: 1 | AR15: 1
F16: =1 -> 1 | G16: 2 | H16: 3 | I16: 4 | J16: 5 | K16: 6 | L16: 7 | M16: 8 | N16: 9 | O16: 10 | P16: 11 | Q16: 12 | R16: 13 | S16: 14 | T16: 15 | Y16: 1 | AC16: Montant prime | AD16: jour 1 | AE16: jour 2 | AF16: jour 3 | AG16: jour 4 | AH16: jour 5 | AI16: jour 6 | AJ16: jour 7 | AK16: jour 8 | AL16: jour 9 | AM16: jour 10 | AN16: jour 11 | AO16: jour 12 | AP16: jour 13 | AQ16: jour 14 | AR16: jour 15
F17: Dimanche/Jour Férié? | G17: Dimanche/Jour Férié? | H17: Dimanche/Jour Férié? | I17: Dimanche/Jour Férié? | J17: Dimanche/Jour Férié? | K17: Dimanche/Jour Férié? | L17: Dimanche/Jour Férié? | M17: Dimanche/Jour Férié? | N17: Dimanche/Jour Férié? | O17: Dimanche/Jour Férié? | P17: Dimanche/Jour Férié? | Q17: Dimanche/Jour Férié? | R17: Dimanche/Jour Férié? | S17: Dimanche/Jour Férié? | T17: Dimanche/Jour Férié? | Y17: 2 | Z17: Belgique | AC17: 1 seul chauffeur | AD17: =IF(F24>0,"",IF(AND(F19=1,AC15=0,AD15=1,F21*24>=3,F21*24+E21*24>6),50,IF(AND(F19=1,AC15=0,AD15=1,F21*24>=3,F21*24+E21*24<=6),30,IF(AND(F19=1,AD15=1,F21*24<=6,F21*24>0),30,IF(AND(F19=1,AD15=1,F21*24>6,F21*24>0),50,IF(AND(F19=3,AC15=0,AD15=1,F21*24>=3,F21*24+E21*24>6),50,IF(AND(F19=3,AC15=0,AD15=1,F21*24>=3,F21*24+E21*24<=6),30,IF(AND(F19=3,AD15=1,F21*24<=6,F21*24>0),30,IF(AND(F19=3,AD15=1,F21*24>6,F21*24>0),50,0))))))))) -> 30 | AE17: =IF(G24>0,"",IF(AND(G19=1,AD15=0,AE15=1,G21*24>=3,G21*24+F21*24>6),50,IF(AND(G19=1,AD15=0,AE15=1,G21*24>=3,G21*24+F21*24<=6),30,IF(AND(G19=1,AE15=1,G21*24<=6,G21*24>0),30,IF(AND(G19=1,AE15=1,G21*24>6,G21*24>0),50,IF(AND(G19=3,AD15=0,AE15=1,G21*24>=3,G21*24+F21*24>6),50,IF(AND(G19=3,AD15=0,AE15=1,G21*24>=3,G21*24+F21*24<=6),30,IF(AND(G19=3,AE15=1,G21*24<=6,G21*24>0),30,IF(AND(G19=3,AE15=1,G21*24>6,G21*24>0),50,0))))))))) -> 0 | AF17: 0 | AG17: 0 | AH17: 0 | AI17: 0 | AJ17: 0 | AK17: 0 | AL17: 0 | AM17: 0 | AN17: 0 | AO17: 0 | AP17: 0 | AQ17: 0 | AR17: 0
D18: nombre de kilomètres: | F18: 134 | Y18: 3 | Z18: Autre | AC18: 2 chauffeur: ch1 | AD18: =IF(F24>0,"",IF(AND(F19>1,AC15=0,AD15=1,F22*24>=3,F22*24+E22*24>6),50,IF(AND(F19>1,AC15=0,AD15=1,F22*24>=3,F22*24+E22*24<=6),30,IF(AND(F19>1,AD15=1,F22*24<=6,F22*24>0),30,IF(AND(F19>1,AD15=1,F22*24>6,F22*24>0),50,0))))) -> 50 | AE18: =IF(G24>0,"",IF(AND(G19>1,AD15=0,AE15=1,G22*24>=3,G22*24+F22*24>6),50,IF(AND(G19>1,AD15=0,AE15=1,G22*24>=3,G22*24+F22*24<=6),30,IF(AND(G19>1,AD15=0,AE15=1,G22*24<3),0,IF(AND(G19>1,AE15=1,G22*24<=6,G22*24>0),30,IF(AND(G19>1,AE15=1,G22*24>6,G22*24>0),50,0)))))) -> 0 | AF18: =IF(H24>0,"",IF(AND(H19>1,AE15=0,AF15=1,H22*24>=3,H22*24+G22*24>6),50,IF(AND(H19>1,AE15=0,AF15=1,H22*24>=3,H22*24+G22*24<=6),30,IF(AND(H19>1,AE15=0,AF15=1,H22*24<3),0,IF(AND(H19>1,AF15=1,H22*24<=6,H22*24>0),30,IF(AND(H19>1,AF15=1,H22*24>6,H22*24>0),50,0)))))) -> 0 | AG18: 0 | AH18: 0 | AI18: 0 | AJ18: 0 | AK18: 0 | AL18: 0 | AM18: 0 | AN18: 0 | AO18: 0 | AP18: 0 | AQ18: 0 | AR18: 0
D19: nombre de chauffeurs: | F19: 3 | AC19: 2 chauffeur: ch2 | AD19: =IF(F24>0,"",IF(AND(F19>1,AC15=0,AD15=1,F23*24>=3,F23*24+E23*24>6),50,IF(AND(F19>1,AC15=0,AD15=1,F23*24>=3,F23*24+E23*24<=6),30,IF(AND(F19>1,AD15=1,F23*24<=6,F23*24>0),30,IF(AND(F19>1,AD15=1,F23*24>6,F23*24>0),50,0))))) -> 50 | AE19: =IF(G24>0,"",IF(AND(G19>1,AD15=0,AE15=1,G23*24>=3,G23*24+F23*24>6),50,IF(AND(G19>1,AD15=0,AE15=1,G23*24>=3,G23*24+F23*24<=6),30,IF(AND(G19>1,AD15=0,AE15=1,G23*24<3),0,IF(AND(G19>1,AE15=1,G23*24<=6,G23*24>0),30,IF(AND(G19>1,AE15=1,G23*24>6,G23*24>0),50,0)))))) -> 0 | AF19: =IF(H24>0,"",IF(AND(H19>1,AE15=0,AF15=1,H23*24>=3,H23*24+G23*24>6),50,IF(AND(H19>1,AE15=0,AF15=1,H23*24>=3,H23*24+G23*24<=6),30,IF(AND(H19>1,AE15=0,AF15=1,H23*24<3),0,IF(AND(H19>1,AF15=1,H23*24<=6,H23*24>0),30,IF(AND(H19>1,AF15=1,H23*24>6,H23*24>0),50,0)))))) -> 0 | AG19: 0 | AH19: 0 | AI19: 0 | AJ19: 0 | AK19: 0 | AL19: 0 | AM19: 0 | AN19: 0 | AO19: 0 | AP19: 0 | AQ19: 0 | AR19: 0
D20: pays (principal) d'exécution: | F20: Belgique | G20: Belgique | H20: Autre
D21: temps de service CH SIMPLE (h:min): | F21: 05:00:00 | X21: =IF(F19>0,1,0) -> 1 | Y21: =IF(G19>0,1,0) -> 0 | Z21: 0 | AA21: 0 | AB21: 0 | AC21: 0 | AD21: 0 | AE21: 0 | AF21: 0 | AG21: 0 | AH21: 0 | AI21: 0 | AJ21: 0 | AK21: 0 | AL21: 0
D22: temps de service CH1 DOUBLE (h:min): | F22: 12:00:00 | X22: =IF(F19>1,1,0) -> 1 | Y22: =IF(G19>1,1,0) -> 0 | Z22: 0 | AA22: 0 | AB22: 0 | AC22: 0 | AD22: 0 | AE22: 0 | AF22: 0 | AG22: 0 | AH22: 0 | AI22: 0 | AJ22: 0 | AK22: 0 | AL22: 0
D23: temps de service CH2 DOUBLE (h:min): | F23: 14:00:00 | X23: =IF(F19=3,1,0) -> 1 | Y23: =IF(G19=3,1,0) -> 0 | Z23: 0 | AA23: 0 | AB23: 0 | AC23: 0 | AD23: 0 | AE23: 0 | AF23: 0 | AG23: 0 | AH23: 0 | AI23: 0 | AJ23: 0 | AK23: 0 | AL23: 0
D24: jour(s) de compensation travail dimanche: | X24: =IF(F24="ja",'Personnel Roulant'!$G$48,0) -> 0 | Y24: =IF(G24="ja",'Personnel Roulant'!$G$48,0) -> 0 | Z24: =IF(H24="ja",'Personnel Roulant'!$G$48,0) -> 0 | AA24: =IF(I24="ja",'Personnel Roulant'!$G$48,0) -> 0 | AB24: =IF(J24="ja",'Personnel Roulant'!$G$48,0) -> 0 | AC24: =IF(K24="ja",'Personnel Roulant'!$G$48,0) -> 0 | AD24: =IF(L24="ja",'Personnel Roulant'!$G$48,0) -> 0 | AE24: =IF(M24="ja",'Personnel Roulant'!$G$48,0) -> 0 | AF24: =IF(N24="ja",'Personnel Roulant'!$G$48,0) -> 0 | AG24: =IF(O24="ja",'Personnel Roulant'!$G$48,0) -> 0 | AH24: =IF(P24="ja",'Personnel Roulant'!$G$48,0) -> 0 | AI24: =IF(Q24="ja",'Personnel Roulant'!$G$48,0) -> 0 | AJ24: =IF(R24="ja",'Personnel Roulant'!$G$48,0) -> 0 | AK24: =IF(S24="ja",'Personnel Roulant'!$G$48,0) -> 0 | AL24: =IF(T24="ja",'Personnel Roulant'!$G$48,0) -> 0
D25: jour d’inactivité à l'étranger: | F25: 0 | X25: =IF(F25="ja",'Personnel Roulant'!$G$50,0) -> 0 | Y25: =IF(G25="ja",'Personnel Roulant'!$G$50,0) -> 0 | Z25: =IF(H25="ja",'Personnel Roulant'!$G$50,0) -> 0 | AA25: =IF(I25="ja",'Personnel Roulant'!$G$50,0) -> 0 | AB25: =IF(J25="ja",'Personnel Roulant'!$G$50,0) -> 0 | AC25: =IF(K25="ja",'Personnel Roulant'!$G$50,0) -> 0 | AD25: =IF(L25="ja",'Personnel Roulant'!$G$50,0) -> 0 | AE25: =IF(M25="ja",'Personnel Roulant'!$G$50,0) -> 0 | AF25: =IF(N25="ja",'Personnel Roulant'!$G$50,0) -> 0 | AG25: =IF(O25="ja",'Personnel Roulant'!$G$50,0) -> 0 | AH25: =IF(P25="ja",'Personnel Roulant'!$G$50,0) -> 0 | AI25: =IF(Q25="ja",'Personnel Roulant'!$G$50,0) -> 0 | AJ25: =IF(R25="ja",'Personnel Roulant'!$G$50,0) -> 0 | AK25: =IF(S25="ja",'Personnel Roulant'!$G$50,0) -> 0 | AL25: =IF(T25="ja",'Personnel Roulant'!$G$50,0) -> 0
D26: % gasoil acheté à l'étranger: | F26: 0
D27: coût gasoil à l'étranger: | F27: 0
D28: % gasoil acheté à l'entreprise: | F28: =IF(F13=0,0,IF((1-F26)=0,"0%",1-F26)) -> 1 | G28: =IF(G13=0,0,IF((1-G26)=0,"0%",1-G26)) -> 1 | H28: 1 | I28: 1 | J28: 1 | K28: 1 | L28: 0 | M28: 0 | N28: 0 | O28: 0 | P28: 0 | Q28: 0 | R28: 0 | S28: 0 | T28: 0
D29: coût gasoil à l'entreprise:
D30: coûts spécifique du voyage:
D31: le véhicule est-il aussi employé pour un autre voyage ce jour?
F32: non | G32: non | L32: oui | S32: oui | X32: oui
D33: % du coût fixe pour ce voyage-ci | F33: 0.4 | X33: non
F35: =IF(F32="oui",F33,1) -> 1 | G35: =IF(G32="oui",G33,1) -> 1 | H35: 1 | I35: 1 | J35: 1 | K35: 1 | L35: 0 | M35: 1 | N35: 1 | O35: 1 | P35: 1 | Q35: 1 | R35: 1 | S35: 0 | T35: 1
D39: ='Vehicule utilise'!W10 ->  | E39: ='Vehicule utilise'!S10 -> Mercedes
H42: Introduisez ici les données pour les différents jours du voyage. En plaçant la flèche de la souris sur le petit triangle rouge, vous recevrez de plus amples informations sur un poste spécifique
D43: nombre de jours | E43: 6
D45: hide | F45: 0 | G45: 1 | H45: 2 | I45: 3 | J45: 4 | K45: 5 | L45: 6 | M45: 7 | N45: 8 | O45: 9 | P45: 10 | Q45: 11 | R45: 12 | S45: 13 | T45: 14
D46: hide | F46: =IF($E$43>F45,1,0) -> 1 | G46: =IF($E$43>G45,1,0) -> 1 | H46: =IF($E$43>H45,1,0) -> 1 | I46: =IF($E$43>I45,1,0) -> 1 | J46: 1 | K46: 1 | L46: 0 | M46: 0 | N46: 0 | O46: 0 | P46: 0 | Q46: 0 | R46: 0 | S46: 0 | T46: 0
Y47: 0 | AD47: Jour 1 | AE47: Jour 2 | AF47: Jour 3 | AG47: Jour 4 | AH47: Jour 5 | AI47: Jour 6 | AJ47: Jour 7 | AK47: Jour 8 | AL47: Jour 9 | AM47: Jour 10 | AN47: Jour 11 | AO47: Jour 12 | AP47: Jour 13 | AQ47: Jour 14 | AR47: Jour 15
F48: jour | G48: jour | H48: jour | I48: jour | J48: jour | K48: jour | L48: jour | M48: jour | N48: jour | O48: jour | P48: jour | Q48: jour | R48: jour | S48: jour | T48: jour | AD48: TRUE | AE48: TRUE | AF48: TRUE | AH48: TRUE | AI48: TRUE | AJ48: TRUE | AK48: TRUE | AL48: TRUE | AN48: TRUE | AP48: TRUE | AQ48: TRUE
F49: =1 -> 1 | G49: 2 | H49: 3 | I49: 4 | J49: 5 | K49: 6 | L49: 7 | M49: 8 | N49: 9 | O49: 10 | P49: 11 | Q49: 12 | R49: 13 | S49: 14 | T49: 15 | Y49: 1 | AD49: =IF(AD48=TRUE,1,0) -> 1 | AE49: =IF(AE48=TRUE,1,0) -> 1 | AF49: 1 | AG49: 0 | AH49: 1 | AI49: 1 | AJ49: 1 | AK49: 1 | AL49: 1 | AM49: 0 | AN49: 1 | AO49: 0 | AP49: 1 | AQ49: 1 | AR49: 0
F50: Dimanche/Jour Férié? | G50: Dimanche/Jour Férié? | H50: Dimanche/Jour Férié? | I50: Dimanche/Jour Férié? | J50: Dimanche/Jour Férié? | K50: Dimanche/Jour Férié? | L50: Dimanche/Jour Férié? | M50: Dimanche/Jour Férié? | N50: Dimanche/Jour Férié? | O50: Dimanche/Jour Férié? | P50: Dimanche/Jour Férié? | Q50: Dimanche/Jour Férié? | R50: Dimanche/Jour Férié? | S50: Dimanche/Jour Férié? | T50: Dimanche/Jour Férié? | Y50: 2 | Z50: Belgique | AD50: =IF(F57>0,"",IF(AND(F52=1,AC49=0,AD49=1,F54*24>=3,F54*24+E54*24>6),50,IF(AND(F52=1,AC49=0,AD49=1,F54*24>=3,F54*24+E54*24<=6),30,IF(AND(F52=1,AD49=1,F54*24<=6,F54*24>0),30,IF(AND(F52=1,AD49=1,F54*24>6,F54*24>0),50,IF(AND(F52=3,AC49=0,AD49=1,F54*24>=3,F54*24+E54*24>6),50,IF(AND(F52=3,AC49=0,AD49=1,F54*24>=3,F54*24+E54*24<=6),30,IF(AND(F52=3,AD49=1,F54*24<=6,F54*24>0),30,IF(AND(F52=3,AD49=1,F54*24>6,F54*24>0),50,0))))))))) -> 50 | AE50: =IF(G57>0,"",IF(AND(G52=1,AD49=0,AE49=1,G54*24>=3,G54*24+F54*24>6),50,IF(AND(G52=1,AD49=0,AE49=1,G54*24>=3,G54*24+F54*24<=6),30,IF(AND(G52=1,AE49=1,G54*24<=6,G54*24>0),30,IF(AND(G52=1,AE49=1,G54*24>6,G54*24>0),50,IF(AND(G52=3,AD49=0,AE49=1,G54*24>=3,G54*24+F54*24>6),50,IF(AND(G52=3,AD49=0,AE49=1,G54*24>=3,G54*24+F54*24<=6),30,IF(AND(G52=3,AE49=1,G54*24<=6,G54*24>0),30,IF(AND(G52=3,AE49=1,G54*24>6,G54*24>0),50,0))))))))) -> 0 | AF50: 0 | AG50: 0 | AH50: 0 | AI50: 0 | AJ50: 0 | AK50: 0 | AL50: 0 | AM50: 0 | AN50: 0 | AO50: 0 | AP50: 0 | AQ50: 0 | AR50: 0
D51: nombre de kilomètres: | F51: 134 | Y51: 3 | Z51: Autre | AD51: =IF(F57>0,"",IF(AND(F52>1,AC49=0,AD49=1,F55*24>=3,F55*24+E55*24>6),50,IF(AND(F52>1,AC49=0,AD49=1,F55*24>=3,F55*24+E55*24<=6),30,IF(AND(F52>1,AD49=1,F55*24<=6,F55*24>0),30,IF(AND(F52>1,AD49=1,F55*24>6,F55*24>0),50,0))))) -> 30 | AE51: =IF(G57>0,"",IF(AND(G52>1,AD49=0,AE49=1,G55*24>=3,G55*24+F55*24>6),50,IF(AND(G52>1,AD49=0,AE49=1,G55*24>=3,G55*24+F55*24<=6),30,IF(AND(G52>1,AD49=0,AE49=1,G55*24<3),0,IF(AND(G52>1,AE49=1,G55*24<=6,G55*24>0),30,IF(AND(G52>1,AE49=1,G55*24>6,G55*24>0),50,0)))))) -> 0 | AF51: =IF(H57>0,"",IF(AND(H52>1,AE49=0,AF49=1,H55*24>=3,H55*24+G55*24>6),50,IF(AND(H52>1,AE49=0,AF49=1,H55*24>=3,H55*24+G55*24<=6),30,IF(AND(H52>1,AE49=0,AF49=1,H55*24<3),0,IF(AND(H52>1,AF49=1,H55*24<=6,H55*24>0),30,IF(AND(H52>1,AF49=1,H55*24>6,H55*24>0),50,0)))))) -> 0 | AG51: 0 | AH51: 0 | AI51: 0 | AJ51: 0 | AK51: 0 | AL51: 0 | AM51: 0 | AN51: 0 | AO51: 0 | AP51: 0 | AQ51: 0 | AR51: 0
D52: nombre de chauffeurs: | F52: 3 | AD52: =IF(F57>0,"",IF(AND(F52>1,AC49=0,AD49=1,F56*24>=3,F56*24+E56*24>6),50,IF(AND(F52>1,AC49=0,AD49=1,F56*24>=3,F56*24+E56*24<=6),30,IF(AND(F52>1,AD49=1,F56*24<=6,F56*24>0),30,IF(AND(F52>1,AD49=1,F56*24>6,F56*24>0),50,0))))) -> 30 | AE52: =IF(G57>0,"",IF(AND(G52>1,AD49=0,AE49=1,G56*24>=3,G56*24+F56*24>6),50,IF(AND(G52>1,AD49=0,AE49=1,G56*24>=3,G56*24+F56*24<=6),30,IF(AND(G52>1,AD49=0,AE49=1,G56*24<3),0,IF(AND(G52>1,AE49=1,G56*24<=6,G56*24>0),30,IF(AND(G52>1,AE49=1,G56*24>6,G56*24>0),50,0)))))) -> 0 | AF52: =IF(H57>0,"",IF(AND(H52>1,AE49=0,AF49=1,H56*24>=3,H56*24+G56*24>6),50,IF(AND(H52>1,AE49=0,AF49=1,H56*24>=3,H56*24+G56*24<=6),30,IF(AND(H52>1,AE49=0,AF49=1,H56*24<3),0,IF(AND(H52>1,AF49=1,H56*24<=6,H56*24>0),30,IF(AND(H52>1,AF49=1,H56*24>6,H56*24>0),50,0)))))) -> 0 | AG52: 0 | AH52: 0 | AI52: 0 | AJ52: 0 | AK52: 0 | AL52: 0 | AM52: 0 | AN52: 0 | AO52: 0 | AP52: 0 | AQ52: 0 | AR52: 0
D53: pays (principal) d'exécution: | F53: Belgique | G53: Autre
D54: temps de service CH SIMPLE (h:min): | F54: 11:00:00 | X54: =IF(F52>0,1,0) -> 1 | Y54: 0 | Z54: 0 | AA54: 0 | AB54: 0 | AC54: 0 | AD54: 0 | AE54: 0 | AF54: 0 | AG54: 0 | AH54: 0 | AI54: 0 | AJ54: 0 | AK54: 0 | AL54: 0
D55: temps de service CH1 DOUBLE (h:min): | F55: 06:00:00 | X55: =IF(F52>1,1,0) -> 1 | Y55: 0 | Z55: 0 | AA55: 0 | AB55: 0 | AC55: 0 | AD55: 0 | AE55: 0 | AF55: 0 | AG55: 0 | AH55: 0 | AI55: 0 | AJ55: 0 | AK55: 0 | AL55: 0
D56: temps de service CH2 DOUBLE (h:min): | F56: 05:00:00 | X56: =IF(F52=3,1,0) -> 1 | Y56: 0 | Z56: 0 | AA56: 0 | AB56: 0 | AC56: 0 | AD56: 0 | AE56: 0 | AF56: 0 | AG56: 0 | AH56: 0 | AI56: 0 | AJ56: 0 | AK56: 0 | AL56: 0
D57: jour(s) de compensation travail dimanche: | X57: =IF(F57="ja",'Personnel Roulant'!$G$48,0) -> 0 | Y57: =IF(G57="ja",'Personnel Roulant'!$G$48,0) -> 0 | Z57: =IF(H57="ja",'Personnel Roulant'!$G$48,0) -> 0 | AA57: =IF(I57="ja",'Personnel Roulant'!$G$48,0) -> 0 | AB57: =IF(J57="ja",'Personnel Roulant'!$G$48,0) -> 0 | AC57: =IF(K57="ja",'Personnel Roulant'!$G$48,0) -> 0 | AD57: =IF(L57="ja",'Personnel Roulant'!$G$48,0) -> 0 | AE57: =IF(M57="ja",'Personnel Roulant'!$G$48,0) -> 0 | AF57: =IF(N57="ja",'Personnel Roulant'!$G$48,0) -> 0 | AG57: =IF(O57="ja",'Personnel Roulant'!$G$48,0) -> 0 | AH57: =IF(P57="ja",'Personnel Roulant'!$G$48,0) -> 0 | AI57: =IF(Q57="ja",'Personnel Roulant'!$G$48,0) -> 0 | AJ57: =IF(R57="ja",'Personnel Roulant'!$G$48,0) -> 0 | AK57: =IF(S57="ja",'Personnel Roulant'!$G$48,0) -> 0 | AL57: =IF(T57="ja",'Personnel Roulant'!$G$48,0) -> 0
D58: jour d’inactivité à l'étranger: | X58: =IF(F58="ja",'Personnel Roulant'!$G$50,0) -> 0 | Y58: =IF(G58="ja",'Personnel Roulant'!$G$50,0) -> 0 | Z58: =IF(H58="ja",'Personnel Roulant'!$G$50,0) -> 0 | AA58: =IF(I58="ja",'Personnel Roulant'!$G$50,0) -> 0 | AB58: =IF(J58="ja",'Personnel Roulant'!$G$50,0) -> 0 | AC58: =IF(K58="ja",'Personnel Roulant'!$G$50,0) -> 0 | AD58: =IF(L58="ja",'Personnel Roulant'!$G$50,0) -> 0 | AE58: =IF(M58="ja",'Personnel Roulant'!$G$50,0) -> 0 | AF58: =IF(N58="ja",'Personnel Roulant'!$G$50,0) -> 0 | AG58: =IF(O58="ja",'Personnel Roulant'!$G$50,0) -> 0 | AH58: =IF(P58="ja",'Personnel Roulant'!$G$50,0) -> 0 | AI58: =IF(Q58="ja",'Personnel Roulant'!$G$50,0) -> 0 | AJ58: =IF(R58="ja",'Personnel Roulant'!$G$50,0) -> 0 | AK58: =IF(S58="ja",'Personnel Roulant'!$G$50,0) -> 0 | AL58: =IF(T58="ja",'Personnel Roulant'!$G$50,0) -> 0
D59: % gasoil acheté à l'étranger:
D60: coût gasoil à l'étranger:
D61: % gasoil acheté à l'entreprise: | F61: =IF(F46=0,0,IF((1-F59)=0,"0%",1-F59)) -> 1 | G61: =IF(G46=0,0,IF((1-G59)=0,"0%",1-G59)) -> 1 | H61: 1 | I61: 1 | J61: 1 | K61: 1 | L61: 0 | M61: 0 | N61: 0 | O61: 0 | P61: 0 | Q61: 0 | R61: 0 | S61: 0 | T61: 0
D62: coût gasoil à l'entreprise:
D63: coûts spécifique du voyage:
D64: le véhicule est-il aussi employé pour un autre voyage ce jour?
F65: non | G65: non | K65: oui | P65: oui | X65: oui
D66: % du coût fixe pour ce voyage-ci | X66: non
F68: =IF(F65="oui",F66,1) -> 1 | G68: =IF(G65="oui",G66,1) -> 1 | H68: 1 | I68: 1 | J68: 1 | K68: 0 | L68: 1 | M68: 1 | N68: 1 | O68: 1 | P68: 0 | Q68: 1 | R68: 1 | S68: 1 | T68: 1
D70: ='Vehicule utilise'!W12 ->  | E70: ='Vehicule utilise'!S12 -> Mercedes
H73: Introduisez ici les données pour les différents jours du voyage. En plaçant la flèche de la souris sur le petit triangle rouge, vous recevrez de plus amples informations sur un poste spécifique
D74: nombre de jours | E74: 3
D76: hide | F76: 0 | G76: 1 | H76: 2 | I76: 3 | J76: 4 | K76: 5 | L76: 6 | M76: 7 | N76: 8 | O76: 9 | P76: 10 | Q76: 11 | R76: 12 | S76: 13 | T76: 14
D77: hide | F77: =IF($E$74>F76,1,0) -> 1 | G77: =IF($E$74>G76,1,0) -> 1 | H77: 1 | I77: 0 | J77: 0 | K77: 0 | L77: 0 | M77: 0 | N77: 0 | O77: 0 | P77: 0 | Q77: 0 | R77: 0 | S77: 0 | T77: 0
Y78: 0 | AD78: Jour 1 | AE78: Jour 2 | AF78: Jour 3 | AG78: Jour 4 | AH78: Jour 5 | AI78: Jour 6 | AJ78: Jour 7 | AK78: Jour 8 | AL78: Jour 9 | AM78: Jour 10 | AN78: Jour 11 | AO78: Jour 12 | AP78: Jour 13 | AQ78: Jour 14 | AR78: Jour 15
F79: jour | G79: jour | H79: jour | I79: jour | J79: jour | K79: jour | L79: jour | M79: jour | N79: jour | O79: jour | P79: jour | Q79: jour | R79: jour | S79: jour | T79: jour | AD79: TRUE | AE79: FALSE | AF79: TRUE | AG79: TRUE | AH79: TRUE | AI79: TRUE | AJ79: TRUE | AK79: TRUE | AL79: TRUE | AN79: TRUE | AQ79: TRUE
F80: =1 -> 1 | G80: 2 | H80: 3 | I80: 4 | J80: 5 | K80: 6 | L80: 7 | M80: 8 | N80: 9 | O80: 10 | P80: 11 | Q80: 12 | R80: 13 | S80: 14 | T80: 15 | Y80: 1 | AD80: =IF(AD79=TRUE,1,0) -> 1 | AE80: 0 | AF80: 1 | AG80: 1 | AH80: 1 | AI80: 1 | AJ80: 1 | AK80: 1 | AL80: 1 | AM80: 0 | AN80: 1 | AO80: 0 | AP80: 0 | AQ80: 1 | AR80: 0
F81: Dimanche/Jour Férié? | G81: Dimanche/Jour Férié? | H81: Dimanche/Jour Férié? | I81: Dimanche/Jour Férié? | J81: Dimanche/Jour Férié? | K81: Dimanche/Jour Férié? | L81: Dimanche/Jour Férié? | M81: Dimanche/Jour Férié? | N81: Dimanche/Jour Férié? | O81: Dimanche/Jour Férié? | P81: Dimanche/Jour Férié? | Q81: Dimanche/Jour Férié? | R81: Dimanche/Jour Férié? | S81: Dimanche/Jour Férié? | T81: Dimanche/Jour Férié? | Y81: 2 | Z81: Belgique | AD81: =IF(F88>0,"",IF(AND(F83=1,AC80=0,AD80=1,F85*24>=3,F85*24+E85*24>6),50,IF(AND(F83=1,AC80=0,AD80=1,F85*24>=3,F85*24+E85*24<=6),30,IF(AND(F83=1,AD80=1,F85*24<=6,F85*24>0),30,IF(AND(F83=1,AD80=1,F85*24>6,F85*24>0),50,IF(AND(F83=3,AC80=0,AD80=1,F85*24>=3,F85*24+E85*24>6),50,IF(AND(F83=3,AC80=0,AD80=1,F85*24>=3,F85*24+E85*24<=6),30,IF(AND(F83=3,AD80=1,F85*24<=6,F85*24>0),30,IF(AND(F83=3,AD80=1,F85*24>6,F85*24>0),50,0))))))))) -> 30 | AE81: =IF(G88>0,"",IF(AND(G83=1,AD80=0,AE80=1,G85*24>=3,G85*24+F85*24>6),50,IF(AND(G83=1,AD80=0,AE80=1,G85*24>=3,G85*24+F85*24<=6),30,IF(AND(G83=1,AE80=1,G85*24<=6,G85*24>0),30,IF(AND(G83=1,AE80=1,G85*24>6,G85*24>0),50,IF(AND(G83=3,AD80=0,AE80=1,G85*24>=3,G85*24+F85*24>6),50,IF(AND(G83=3,AD80=0,AE80=1,G85*24>=3,G85*24+F85*24<=6),30,IF(AND(G83=3,AE80=1,G85*24<=6,G85*24>0),30,IF(AND(G83=3,AE80=1,G85*24>6,G85*24>0),50,0))))))))) -> 0 | AF81: 0 | AG81: 0 | AH81: 0 | AI81: 0 | AJ81: 0 | AK81: 0 | AL81: 0 | AM81: 0 | AN81: 0 | AO81: 0 | AP81: 0 | AQ81: 0 | AR81: 0
D82: nombre de kilomètres: | F82: 100 | G82: 100 | Y82: 3 | Z82: Autre | AD82: =IF(F88>0,"",IF(AND(F83>1,AC80=0,AD80=1,F86*24>=3,F86*24+E86*24>6),50,IF(AND(F83>1,AC80=0,AD80=1,F86*24>=3,F86*24+E86*24<=6),30,IF(AND(F83>1,AD80=1,F86*24<=6,F86*24>0),30,IF(AND(F83>1,AD80=1,F86*24>6,F86*24>0),50,0))))) -> 50 | AE82: =IF(G88>0,"",IF(AND(G83>1,AD80=0,AE80=1,G86*24>=3,G86*24+F86*24>6),50,IF(AND(G83>1,AD80=0,AE80=1,G86*24>=3,G86*24+F86*24<=6),30,IF(AND(G83>1,AD80=0,AE80=1,G86*24<3),0,IF(AND(G83>1,AE80=1,G86*24<=6,G8*24>0),30,IF(AND(G83>1,AE80=1,G86*24>6,G86*24>0),50,0)))))) -> 0 | AF82: =IF(H88>0,"",IF(AND(H83>1,AE80=0,AF80=1,H86*24>=3,H86*24+G86*24>6),50,IF(AND(H83>1,AE80=0,AF80=1,H86*24>=3,H86*24+G86*24<=6),30,IF(AND(H83>1,AE80=0,AF80=1,H86*24<3),0,IF(AND(H83>1,AF80=1,H86*24<=6,H8*24>0),30,IF(AND(H83>1,AF80=1,H86*24>6,H86*24>0),50,0)))))) -> 0 | AG82: 0 | AH82: 0 | AI82: 0 | AJ82: 0 | AK82: 0 | AL82: 0 | AM82: 0 | AN82: 0 | AO82: 0 | AP82: 0 | AQ82: 0 | AR82: 0
D83: nombre de chauffeurs: | F83: 3 | G83: 2 | AD83: =IF(F88>0,"",IF(AND(F83>1,AC80=0,AD80=1,F87*24>=3,F87*24+E87*24>6),50,IF(AND(F83>1,AC80=0,AD80=1,F87*24>=3,F87*24+E87*24<=6),30,IF(AND(F83>1,AD80=1,F87*24<=6,F87*24>0),30,IF(AND(F83>1,AD80=1,F87*24>6,F87*24>0),50,0))))) -> 50 | AE83: =IF(G88>0,"",IF(AND(G83>1,AD80=0,AE80=1,G87*24>=3,G87*24+F87*24>6),50,IF(AND(G83>1,AD80=0,AE80=1,G87*24>=3,G87*24+F87*24<=6),30,IF(AND(G83>1,AD80=0,AE80=1,G87*24<3),0,IF(AND(G83>1,AE80=1,G87*24<=6,G87*24>0),30,IF(AND(G83>1,AE80=1,G87*24>6,G87*24>0),50,0)))))) -> 0 | AF83: =IF(H88>0,"",IF(AND(H83>1,AE80=0,AF80=1,H87*24>=3,H87*24+G87*24>6),50,IF(AND(H83>1,AE80=0,AF80=1,H87*24>=3,H87*24+G87*24<=6),30,IF(AND(H83>1,AE80=0,AF80=1,H87*24<3),0,IF(AND(H83>1,AF80=1,H87*24<=6,H87*24>0),30,IF(AND(H83>1,AF80=1,H87*24>6,H87*24>0),50,0)))))) -> 0 | AG83: 0 | AH83: 0 | AI83: 0 | AJ83: 0 | AK83: 0 | AL83: 0 | AM83: 0 | AN83: 0 | AO83: 0 | AP83: 0 | AQ83: 0 | AR83: 0
D84: pays (principal) d'exécution: | F84: Autre | G84: Autre
D85: temps de service CH SIMPLE (h:min): | F85: 06:00:00 | X85: =IF(F83>0,1,0) -> 1 | Y85: =IF(G83>0,1,0) -> 1 | Z85: 0 | AA85: 0 | AB85: 0 | AC85: 0 | AD85: 0 | AE85: 0 | AF85: 0 | AG85: 0 | AH85: 0 | AI85: 0 | AJ85: 0 | AK85: 0 | AL85: 0
D86: temps de service CH1 DOUBLE (h:min): | F86: 18:00:00 | G86: 07:49:00 | X86: =IF(F83>1,1,0) -> 1 | Y86: 1 | Z86: 0 | AA86: 0 | AB86: 0 | AC86: 0 | AD86: 0 | AE86: 0 | AF86: 0 | AG86: 0 | AH86: 0 | AI86: 0 | AJ86: 0 | AK86: 0 | AL86: 0
D87: temps de service CH2 DOUBLE (h:min): | F87: 18:00:00 | G87: 07:49:00 | X87: =IF(F83=3,1,0) -> 1 | Y87: =IF(G83=3,1,0) -> 0 | Z87: 0 | AA87: 0 | AB87: 0 | AC87: 0 | AD87: 0 | AE87: 0 | AF87: 0 | AG87: 0 | AH87: 0 | AI87: 0 | AJ87: 0 | AK87: 0 | AL87: 0
D88: jour(s) de compensation travail dimanche: | X88: =IF(F88="ja",'Personnel Roulant'!$G$48,0) -> 0 | Y88: =IF(G88="ja",'Personnel Roulant'!$G$48,0) -> 0 | Z88: =IF(H88="ja",'Personnel Roulant'!$G$48,0) -> 0 | AA88: =IF(I88="ja",'Personnel Roulant'!$G$48,0) -> 0 | AB88: =IF(J88="ja",'Personnel Roulant'!$G$48,0) -> 0 | AC88: =IF(K88="ja",'Personnel Roulant'!$G$48,0) -> 0 | AD88: =IF(L88="ja",'Personnel Roulant'!$G$48,0) -> 0 | AE88: =IF(M88="ja",'Personnel Roulant'!$G$48,0) -> 0 | AF88: =IF(N88="ja",'Personnel Roulant'!$G$48,0) -> 0 | AG88: =IF(O88="ja",'Personnel Roulant'!$G$48,0) -> 0 | AH88: =IF(P88="ja",'Personnel Roulant'!$G$48,0) -> 0 | AI88: =IF(Q88="ja",'Personnel Roulant'!$G$48,0) -> 0 | AJ88: =IF(R88="ja",'Personnel Roulant'!$G$48,0) -> 0 | AK88: =IF(S88="ja",'Personnel Roulant'!$G$48,0) -> 0 | AL88: =IF(T88="ja",'Personnel Roulant'!$G$48,0) -> 0
D89: jour d’inactivité à l'étranger: | X89: =IF(F89="ja",'Personnel Roulant'!$G$50,0) -> 0 | Y89: =IF(G89="ja",'Personnel Roulant'!$G$50,0) -> 0 | Z89: =IF(H89="ja",'Personnel Roulant'!$G$50,0) -> 0 | AA89: =IF(I89="ja",'Personnel Roulant'!$G$50,0) -> 0 | AB89: =IF(J89="ja",'Personnel Roulant'!$G$50,0) -> 0 | AC89: =IF(K89="ja",'Personnel Roulant'!$G$50,0) -> 0 | AD89: =IF(L89="ja",'Personnel Roulant'!$G$50,0) -> 0 | AE89: =IF(M89="ja",'Personnel Roulant'!$G$50,0) -> 0 | AF89: =IF(N89="ja",'Personnel Roulant'!$G$50,0) -> 0 | AG89: =IF(O89="ja",'Personnel Roulant'!$G$50,0) -> 0 | AH89: =IF(P89="ja",'Personnel Roulant'!$G$50,0) -> 0 | AI89: =IF(Q89="ja",'Personnel Roulant'!$G$50,0) -> 0 | AJ89: =IF(R89="ja",'Personnel Roulant'!$G$50,0) -> 0 | AK89: =IF(S89="ja",'Personnel Roulant'!$G$50,0) -> 0 | AL89: =IF(T89="ja",'Personnel Roulant'!$G$50,0) -> 0
D90: % gasoil acheté à l'étranger: | F90: 0.2
D91: coût gasoil à l'étranger: | F91: 2.05
D92: % gasoil acheté à l'entreprise: | F92: =IF(F77=0,0,IF((1-F90)=0,"0%",1-F90)) -> 0.8 | G92: =IF(G77=0,0,IF((1-G90)=0,"0%",1-G90)) -> 1 | H92: 1 | I92: 0 | J92: 0 | K92: 0 | L92: 0 | M92: 0 | N92: 0 | O92: 0 | P92: 0 | Q92: 0 | R92: 0 | S92: 0 | T92: 0
D93: coût gasoil à l'entreprise:
D94: coûts spécifique du voyage: | F94: 200 | G94: 187
D95: le véhicule est-il aussi employé pour un autre voyage ce jour?
F96: non | G96: non | K96: oui | M96: oui | P96: oui | X96: oui
D97: % du coût fixe pour ce voyage-ci | F97: 0.004 | X97: non
F99: =IF(F96="oui",F97,1) -> 1 | G99: =IF(G96="oui",G97,1) -> 1 | H99: 1 | I99: 1 | J99: 1 | K99: 0 | L99: 1 | M99: 0 | N99: 1 | O99: 1 | P99: 0 | Q99: 1 | R99: 1 | S99: 1 | T99: 1
D101: ='Vehicule utilise'!W14 ->  | E101: ='Vehicule utilise'!S14 -> Mercedes
H104: Introduisez ici les données pour les différents jours du voyage. En plaçant la flèche de la souris sur le petit triangle rouge, vous recevrez de plus amples informations sur un poste spécifique
D105: nombre de jours | E105: 2
AD106: Jour 1 | AE106: Jour 2 | AF106: Jour 3 | AG106: Jour 4 | AH106: Jour 5 | AI106: Jour 6 | AJ106: Jour 7 | AK106: Jour 8 | AL106: Jour 9 | AM106: Jour 10 | AN106: Jour 11 | AO106: Jour 12 | AP106: Jour 13 | AQ106: Jour 14 | AR106: Jour 15
D107: hide | F107: 0 | G107: 1 | H107: 2 | I107: 3 | J107: 4 | K107: 5 | L107: 6 | M107: 7 | N107: 8 | O107: 9 | P107: 10 | Q107: 11 | R107: 12 | S107: 13 | T107: 14
D108: hide | F108: =IF($E$105>F107,1,0) -> 1 | G108: =IF($E$105>G107,1,0) -> 1 | H108: 0 | I108: 0 | J108: 0 | K108: 0 | L108: 0 | M108: 0 | N108: 0 | O108: 0 | P108: 0 | Q108: 0 | R108: 0 | S108: 0 | T108: 0
Y109: 0 | AD109: FALSE | AE109: FALSE | AF109: TRUE | AG109: TRUE | AH109: TRUE | AI109: TRUE | AJ109: TRUE | AK109: TRUE | AL109: TRUE | AN109: TRUE | AP109: TRUE | AQ109: TRUE
F110: jour | G110: jour | H110: jour | I110: jour | J110: jour | K110: jour | L110: jour | M110: jour | N110: jour | O110: jour | P110: jour | Q110: jour | R110: jour | S110: jour | T110: jour | AD110: =IF(AD109=TRUE,1,0) -> 0 | AE110: 0 | AF110: 1 | AG110: 1 | AH110: 1 | AI110: 1 | AJ110: 1 | AK110: 1 | AL110: 1 | AM110: 0 | AN110: 1 | AO110: 0 | AP110: 1 | AQ110: 1 | AR110: 0
F111: =1 -> 1 | G111: 2 | H111: 3 | I111: 4 | J111: 5 | K111: 6 | L111: 7 | M111: 8 | N111: 9 | O111: 10 | P111: 11 | Q111: 12 | R111: 13 | S111: 14 | T111: 15 | Y111: 1 | AD111: =IF(F119>0,"",IF(AND(F114=1,AC110=0,AD110=1,F116*24>=3,F116*24+E116*24>6),50,IF(AND(F114=1,AC110=0,AD110=1,F116*24>=3,F116*24+E116*24<=6),30,IF(AND(F114=1,AD110=1,F116*24<=6,F116*24>0),30,IF(AND(F114=1,AD110=1,F116*24>6,F116*24>0),50,IF(AND(F114=3,AC110=0,AD110=1,F116*24>=3,F116*24+E116*24>6),50,IF(AND(F114=3,AC110=0,AD110=1,F116*24>=3,F116*24+E116*24<=6),30,IF(AND(F114=3,AD110=1,F116*24<=6,F116*24>0),30,IF(AND(F114=3,AD110=1,F116*24>6,F116*24>0),50,0))))))))) -> 0 | AE111: =IF(G119>0,"",IF(AND(G114=1,AD110=0,AE110=1,G116*24>=3,G116*24+F116*24>6),50,IF(AND(G114=1,AD110=0,AE110=1,G116*24>=3,G116*24+F116*24<=6),30,IF(AND(G114=1,AE110=1,G116*24<=6,G116*24>0),30,IF(AND(G114=1,AE110=1,G116*24>6,G116*24>0),50,IF(AND(G114=3,AD110=0,AE110=1,G116*24>=3,G116*24+F116*24>6),50,IF(AND(G114=3,AD110=0,AE110=1,G116*24>=3,G116*24+F116*24<=6),30,IF(AND(G114=3,AE110=1,G116*24<=6,G116*24>0),30,IF(AND(G114=3,AE110=1,G116*24>6,G116*24>0),50,0))))))))) -> 0 | AF111: 0 | AG111: 0 | AH111: 0 | AI111: 0 | AJ111: 0 | AK111: 0 | AL111: 0 | AM111: 0 | AN111: 0 | AO111: 0 | AP111: 0 | AQ111: 0 | AR111: 0
F112: Dimanche/Jour Férié? | G112: Dimanche/Jour Férié? | H112: Dimanche/Jour Férié? | I112: Dimanche/Jour Férié? | J112: Dimanche/Jour Férié? | K112: Dimanche/Jour Férié? | L112: Dimanche/Jour Férié? | M112: Dimanche/Jour Férié? | N112: Dimanche/Jour Férié? | O112: Dimanche/Jour Férié? | P112: Dimanche/Jour Férié? | Q112: Dimanche/Jour Férié? | R112: Dimanche/Jour Férié? | S112: Dimanche/Jour Férié? | T112: Dimanche/Jour Férié? | Y112: 2 | Z112: Belgique | AD112: =IF(F119>0,"",IF(AND(F114>1,AC110=0,AD110=1,F117*24>=3,F117*24+E117*24>6),50,IF(AND(F114>1,AC110=0,AD110=1,F117*24>=3,F117*24+E117*24<=6),30,IF(AND(F114>1,AD110=1,F117*24<=6,F117*24>0),30,IF(AND(F114>1,AD110=1,F117*24>6,F117*24>0),50,0))))) -> 0 | AE112: =IF(G119>0,"",IF(AND(G114>1,AD110=0,AE110=1,G117*24>=3,G117*24+F117*24>6),50,IF(AND(G114>1,AD110=0,AE110=1,G117*24>=3,G117*24+F117*24<=6),30,IF(AND(G114>1,AD110=0,AE110=1,G117*24<3),0,IF(AND(G114>1,AE110=1,G117*24<=6,G117*24>0),30,IF(AND(G114>1,AE110=1,G117*24>6,G117*24>0),50,0)))))) -> 0 | AF112: =IF(H119>0,"",IF(AND(H114>1,AE110=0,AF110=1,H117*24>=3,H117*24+G117*24>6),50,IF(AND(H114>1,AE110=0,AF110=1,H117*24>=3,H117*24+G117*24<=6),30,IF(AND(H114>1,AE110=0,AF110=1,H117*24<3),0,IF(AND(H114>1,AF110=1,H117*24<=6,H117*24>0),30,IF(AND(H114>1,AF110=1,H117*24>6,H117*24>0),50,0)))))) -> 0 | AG112: 0 | AH112: 0 | AI112: 0 | AJ112: 0 | AK112: 0 | AL112: 0 | AM112: 0 | AN112: 0 | AO112: 0 | AP112: 0 | AQ112: 0 | AR112: 0
D113: nombre de kilomètres: | F113: 100 | Y113: 3 | Z113: Autre | AD113: =IF(F119>0,"",IF(AND(F114>1,AC110=0,AD110=1,F118*24>=3,F118*24+E118*24>6),50,IF(AND(F114>1,AC110=0,AD110=1,F118*24>=3,F118*24+E118*24<=6),30,IF(AND(F114>1,AD110=1,F118*24<=6,F118*24>0),30,IF(AND(F114>1,AD110=1,F118*24>6,F118*24>0),50,0))))) -> 0 | AE113: =IF(G119>0,"",IF(AND(G114>1,AD110=0,AE110=1,G118*24>=3,G118*24+F118*24>6),50,IF(AND(G114>1,AD110=0,AE110=1,G118*24>=3,G118*24+F118*24<=6),30,IF(AND(G114>1,AD110=0,AE110=1,G118*24<3),0,IF(AND(G114>1,AE110=1,G118*24<=6,G118*24>0),30,IF(AND(G114>1,AE110=1,G118*24>6,G118*24>0),50,0)))))) -> 0 | AF113: =IF(H119>0,"",IF(AND(H114>1,AE110=0,AF110=1,H118*24>=3,H118*24+G118*24>6),50,IF(AND(H114>1,AE110=0,AF110=1,H118*24>=3,H118*24+G118*24<=6),30,IF(AND(H114>1,AE110=0,AF110=1,H118*24<3),0,IF(AND(H114>1,AF110=1,H118*24<=6,H118*24>0),30,IF(AND(H114>1,AF110=1,H118*24>6,H118*24>0),50,0)))))) -> 0 | AG113: 0 | AH113: 0 | AI113: 0 | AJ113: 0 | AK113: 0 | AL113: 0 | AM113: 0 | AN113: 0 | AO113: 0 | AP113: 0 | AQ113: 0 | AR113: 0
D114: nombre de chauffeurs:
D115: pays (principal) d'exécution:
D116: temps de service CH SIMPLE (h:min): | F116: 06:00:00 | X116: =IF(F114>0,1,0) -> 0 | Y116: 0 | Z116: 0 | AA116: 0 | AB116: 0 | AC116: 0 | AD116: 0 | AE116: 0 | AF116: 0 | AG116: 0 | AH116: 0 | AI116: 0 | AJ116: 0 | AK116: 0 | AL116: 0
D117: temps de service CH1 DOUBLE (h:min): | X117: =IF(F114>1,1,0) -> 0 | Y117: 0 | Z117: 0 | AA117: 0 | AB117: 0 | AC117: 0 | AD117: 0 | AE117: 0 | AF117: 0 | AG117: 0 | AH117: 0 | AI117: 0 | AJ117: 0 | AK117: 0 | AL117: 0
D118: temps de service CH2 DOUBLE (h:min): | X118: =IF(F114=3,1,0) -> 0 | Y118: 0 | Z118: 0 | AA118: 0 | AB118: 0 | AC118: 0 | AD118: 0 | AE118: 0 | AF118: 0 | AG118: 0 | AH118: 0 | AI118: 0 | AJ118: 0 | AK118: 0 | AL118: 0
D119: jour(s) de compensation travail dimanche: | X119: =IF(F119="ja",'Personnel Roulant'!$G$48,0) -> 0 | Y119: =IF(G119="ja",'Personnel Roulant'!$G$48,0) -> 0 | Z119: =IF(H119="ja",'Personnel Roulant'!$G$48,0) -> 0 | AA119: =IF(I119="ja",'Personnel Roulant'!$G$48,0) -> 0 | AB119: =IF(J119="ja",'Personnel Roulant'!$G$48,0) -> 0 | AC119: =IF(K119="ja",'Personnel Roulant'!$G$48,0) -> 0 | AD119: =IF(L119="ja",'Personnel Roulant'!$G$48,0) -> 0 | AE119: =IF(M119="ja",'Personnel Roulant'!$G$48,0) -> 0 | AF119: =IF(N119="ja",'Personnel Roulant'!$G$48,0) -> 0 | AG119: =IF(O119="ja",'Personnel Roulant'!$G$48,0) -> 0 | AH119: =IF(P119="ja",'Personnel Roulant'!$G$48,0) -> 0 | AI119: =IF(Q119="ja",'Personnel Roulant'!$G$48,0) -> 0 | AJ119: =IF(R119="ja",'Personnel Roulant'!$G$48,0) -> 0 | AK119: =IF(S119="ja",'Personnel Roulant'!$G$48,0) -> 0 | AL119: =IF(T119="ja",'Personnel Roulant'!$G$48,0) -> 0
D120: jour d’inactivité à l'étranger: | X120: =IF(F120="ja",'Personnel Roulant'!$G$50,0) -> 0 | Y120: =IF(G120="ja",'Personnel Roulant'!$G$50,0) -> 0 | Z120: =IF(H120="ja",'Personnel Roulant'!$G$50,0) -> 0 | AA120: =IF(I120="ja",'Personnel Roulant'!$G$50,0) -> 0 | AB120: =IF(J120="ja",'Personnel Roulant'!$G$50,0) -> 0 | AC120: =IF(K120="ja",'Personnel Roulant'!$G$50,0) -> 0 | AD120: =IF(L120="ja",'Personnel Roulant'!$G$50,0) -> 0 | AE120: =IF(M120="ja",'Personnel Roulant'!$G$50,0) -> 0 | AF120: =IF(N120="ja",'Personnel Roulant'!$G$50,0) -> 0 | AG120: =IF(O120="ja",'Personnel Roulant'!$G$50,0) -> 0 | AH120: =IF(P120="ja",'Personnel Roulant'!$G$50,0) -> 0 | AI120: =IF(Q120="ja",'Personnel Roulant'!$G$50,0) -> 0 | AJ120: =IF(R120="ja",'Personnel Roulant'!$G$50,0) -> 0 | AK120: =IF(S120="ja",'Personnel Roulant'!$G$50,0) -> 0 | AL120: =IF(T120="ja",'Personnel Roulant'!$G$50,0) -> 0
D121: % gasoil acheté à l'étranger:
D122: coût gasoil à l'étranger:
D123: % gasoil acheté à l'entreprise: | F123: =IF(F108=0,0,IF((1-F121)=0,"0%",1-F121)) -> 1 | G123: =IF(G108=0,0,IF((1-G121)=0,"0%",1-G121)) -> 1 | H123: 0 | I123: 0 | J123: 0 | K123: 0 | L123: 0 | M123: 0 | N123: 0 | O123: 0 | P123: 0 | Q123: 0 | R123: 0 | S123: 0 | T123: 0
D124: coût gasoil à l'entreprise:
D125: coûts spécifique du voyage:
D126: le véhicule est-il aussi employé pour un autre voyage ce jour?
F127: non | K127: non | L127: oui | O127: oui | P127: oui | X127: oui
D128: % du coût fixe pour ce voyage-ci | F128: 0.3 | X128: non
F130: =IF(F127="oui",F128,1) -> 1 | G130: =IF(G127="oui",G128,1) -> 1 | H130: 1 | I130: 1 | J130: 1 | K130: 1 | L130: 0 | M130: 1 | N130: 1 | O130: 0 | P130: 0 | Q130: 1 | R130: 1 | S130: 1 | T130: 1
D132: ='Vehicule utilise'!W16 ->  | E132: ='Vehicule utilise'!S16 -> Mercedes
H135: Introduisez ici les données pour les différents jours du voyage. En plaçant la flèche de la souris sur le petit triangle rouge, vous recevrez de plus amples informations sur un poste spécifique
D136: nombre de jours | E136: 1
AD137: Jour 1 | AE137: Jour 2 | AF137: Jour 3 | AG137: Jour 4 | AH137: Jour 5 | AI137: Jour 6 | AJ137: Jour 7 | AK137: Jour 8 | AL137: Jour 9 | AM137: Jour 10 | AN137: Jour 11 | AO137: Jour 12 | AP137: Jour 13 | AQ137: Jour 14 | AR137: Jour 15
D138: hide | F138: 0 | G138: 1 | H138: 2 | I138: 3 | J138: 4 | K138: 5 | L138: 6 | M138: 7 | N138: 8 | O138: 9 | P138: 10 | Q138: 11 | R138: 12 | S138: 13 | T138: 14
D139: hide | F139: =IF($E$136>F138,1,0) -> 1 | G139: =IF($E$136>G138,1,0) -> 0 | H139: 0 | I139: 0 | J139: 0 | K139: 0 | L139: 0 | M139: 0 | N139: 0 | O139: 0 | P139: 0 | Q139: 0 | R139: 0 | S139: 0 | T139: 0
Y140: 0 | AD140: FALSE | AE140: TRUE | AF140: TRUE | AG140: TRUE | AH140: TRUE | AI140: TRUE | AJ140: TRUE | AK140: TRUE | AL140: TRUE | AN140: TRUE | AP140: TRUE | AQ140: TRUE | AR140: TRUE
F141: jour | G141: jour | H141: jour | I141: jour | J141: jour | K141: jour | L141: jour | M141: jour | N141: jour | O141: jour | P141: jour | Q141: jour | R141: jour | S141: jour | T141: jour | AD141: =IF(AD140=TRUE,1,0) -> 0 | AE141: 1 | AF141: 1 | AG141: 1 | AH141: 1 | AI141: 1 | AJ141: 1 | AK141: 1 | AL141: 1 | AM141: 0 | AN141: 1 | AO141: 0 | AP141: 1 | AQ141: 1 | AR141: 1
F142: =1 -> 1 | G142: 2 | H142: 3 | I142: 4 | J142: 5 | K142: 6 | L142: 7 | M142: 8 | N142: 9 | O142: 10 | P142: 11 | Q142: 12 | R142: 13 | S142: 14 | T142: 15 | Y142: 1 | AD142: =IF(F150>0,"",IF(AND(F145=1,AC141=0,AD141=1,F147*24>=3,F147*24+E147*24>6),50,IF(AND(F145=1,AC141=0,AD141=1,F147*24>=3,F147*24+E147*24<=6),30,IF(AND(F145=1,AD141=1,F147*24<=6,F147*24>0),30,IF(AND(F145=1,AD141=1,F147*24>6,F147*24>0),50,IF(AND(F145=3,AC141=0,AD141=1,F147*24>=3,F147*24+E147*24>6),50,IF(AND(F145=3,AC141=0,AD141=1,F147*24>=3,F147*24+E147*24<=6),30,IF(AND(F145=3,AD141=1,F147*24<=6,F147*24>0),30,IF(AND(F145=3,AD141=1,F147*24>6,F147*24>0),50,0))))))))) -> 0 | AE142: =IF(G150>0,"",IF(AND(G145=1,AD141=0,AE141=1,G147*24>=3,G147*24+F147*24>6),50,IF(AND(G145=1,AD141=0,AE141=1,G147*24>=3,G147*24+F147*24<=6),30,IF(AND(G145=1,AE141=1,G147*24<=6,G147*24>0),30,IF(AND(G145=1,AE141=1,G147*24>6,G147*24>0),50,IF(AND(G145=3,AD141=0,AE141=1,G147*24>=3,G147*24+F147*24>6),50,IF(AND(G145=3,AD141=0,AE141=1,G147*24>=3,G147*24+F147*24<=6),30,IF(AND(G145=3,AE141=1,G147*24<=6,G147*24>0),30,IF(AND(G145=3,AE141=1,G147*24>6,G147*24>0),50,0))))))))) -> 0 | AF142: 0 | AG142: 0 | AH142: 0 | AI142: 0 | AJ142: 0 | AK142: 0 | AL142: 0 | AM142: 0 | AN142: 0 | AO142: 0 | AP142: 0 | AQ142: 0 | AR142: 0
F143: Dimanche/Jour Férié? | G143: Dimanche/Jour Férié? | H143: Dimanche/Jour Férié? | I143: Dimanche/Jour Férié? | J143: Dimanche/Jour Férié? | K143: Dimanche/Jour Férié? | L143: Dimanche/Jour Férié? | M143: Dimanche/Jour Férié? | N143: Dimanche/Jour Férié? | O143: Dimanche/Jour Férié? | P143: Dimanche/Jour Férié? | Q143: Dimanche/Jour Férié? | R143: Dimanche/Jour Férié? | S143: Dimanche/Jour Férié? | T143: Dimanche/Jour Férié? | Y143: 2 | Z143: Belgique | AD143: =IF(F150>0,"",IF(AND(F145>1,AC141=0,AD141=1,F148*24>=3,F148*24+E148*24>6),50,IF(AND(F145>1,AC141=0,AD141=1,F148*24>=3,F148*24+E148*24<=6),30,IF(AND(F145>1,AD141=1,F148*24<=6,F148*24>0),30,IF(AND(F145>1,AD141=1,F148*24>6,F148*24>0),50,0))))) -> 0 | AE143: =IF(G150>0,"",IF(AND(G145>1,AD141=0,AE141=1,G148*24>=3,G148*24+F148*24>6),50,IF(AND(G145>1,AD141=0,AE141=1,G148*24>=3,G148*24+F148*24<=6),30,IF(AND(G145>1,AD141=0,AE141=1,G148*24<3),0,IF(AND(G145>1,AE141=1,G148*24<=6,G148*24>0),30,IF(AND(G145>1,AE141=1,G148*24>6,G148*24>0),50,0)))))) -> 0 | AF143: =IF(H150>0,"",IF(AND(H145>1,AE141=0,AF141=1,H148*24>=3,H148*24+G148*24>6),50,IF(AND(H145>1,AE141=0,AF141=1,H148*24>=3,H148*24+G148*24<=6),30,IF(AND(H145>1,AE141=0,AF141=1,H148*24<3),0,IF(AND(H145>1,AF141=1,H148*24<=6,H148*24>0),30,IF(AND(H145>1,AF141=1,H148*24>6,H148*24>0),50,0)))))) -> 0 | AG143: 0 | AH143: 0 | AI143: 0 | AJ143: 0 | AK143: 0 | AL143: 0 | AM143: 0 | AN143: 0 | AO143: 0 | AP143: 0 | AQ143: 0 | AR143: 0
D144: nombre de kilomètres: | F144: 134 | Y144: 3 | Z144: Autre | AD144: =IF(F150>0,"",IF(AND(F145>1,AC141=0,AD141=1,F149*24>=3,F149*24+E149*24>6),50,IF(AND(F145>1,AC141=0,AD141=1,F149*24>=3,F149*24+E149*24<=6),30,IF(AND(F145>1,AD141=1,F149*24<=6,F149*24>0),30,IF(AND(F145>1,AD141=1,F149*24>6,F149*24>0),50,0))))) -> 0 | AE144: =IF(G150>0,"",IF(AND(G145>1,AD141=0,AE141=1,G149*24>=3,G149*24+F149*24>6),50,IF(AND(G145>1,AD141=0,AE141=1,G149*24>=3,G149*24+F149*24<=6),30,IF(AND(G145>1,AD141=0,AE141=1,G149*24<3),0,IF(AND(G145>1,AE141=1,G149*24<=6,G149*24>0),30,IF(AND(G145>1,AE141=1,G149*24>6,G149*24>0),50,0)))))) -> 0 | AF144: =IF(H150>0,"",IF(AND(H145>1,AE141=0,AF141=1,H149*24>=3,H149*24+G149*24>6),50,IF(AND(H145>1,AE141=0,AF141=1,H149*24>=3,H149*24+G149*24<=6),30,IF(AND(H145>1,AE141=0,AF141=1,H149*24<3),0,IF(AND(H145>1,AF141=1,H149*24<=6,H149*24>0),30,IF(AND(H145>1,AF141=1,H149*24>6,H149*24>0),50,0)))))) -> 0 | AG144: 0 | AH144: 0 | AI144: 0 | AJ144: 0 | AK144: 0 | AL144: 0 | AM144: 0 | AN144: 0 | AO144: 0 | AP144: 0 | AQ144: 0 | AR144: 0
D145: nombre de chauffeurs: | F145: 1
D146: pays (principal) d'exécution: | F146: Belgique
D147: temps de service CH SIMPLE (h:min): | F147: 11:00:00 | X147: =IF(F145>0,1,0) -> 1 | Y147: 0 | Z147: 0 | AA147: 0 | AB147: 0 | AC147: 0 | AD147: 0 | AE147: 0 | AF147: 0 | AG147: 0 | AH147: 0 | AI147: 0 | AJ147: 0 | AK147: 0 | AL147: 0
D148: temps de service CH1 DOUBLE (h:min): | X148: =IF(F145>1,1,0) -> 0 | Y148: 0 | Z148: 0 | AA148: 0 | AB148: 0 | AC148: 0 | AD148: 0 | AE148: 0 | AF148: 0 | AG148: 0 | AH148: 0 | AI148: 0 | AJ148: 0 | AK148: 0 | AL148: 0
D149: temps de service CH2 DOUBLE (h:min): | X149: =IF(F145=3,1,0) -> 0 | Y149: 0 | Z149: 0 | AA149: 0 | AB149: 0 | AC149: 0 | AD149: 0 | AE149: 0 | AF149: 0 | AG149: 0 | AH149: 0 | AI149: 0 | AJ149: 0 | AK149: 0 | AL149: 0
D150: jour(s) de compensation travail dimanche: | X150: =IF(F150="ja",'Personnel Roulant'!$G$48,0) -> 0 | Y150: =IF(G150="ja",'Personnel Roulant'!$G$48,0) -> 0 | Z150: =IF(H150="ja",'Personnel Roulant'!$G$48,0) -> 0 | AA150: =IF(I150="ja",'Personnel Roulant'!$G$48,0) -> 0 | AB150: =IF(J150="ja",'Personnel Roulant'!$G$48,0) -> 0 | AC150: =IF(K150="ja",'Personnel Roulant'!$G$48,0) -> 0 | AD150: =IF(L150="ja",'Personnel Roulant'!$G$48,0) -> 0 | AE150: =IF(M150="ja",'Personnel Roulant'!$G$48,0) -> 0 | AF150: =IF(N150="ja",'Personnel Roulant'!$G$48,0) -> 0 | AG150: =IF(O150="ja",'Personnel Roulant'!$G$48,0) -> 0 | AH150: =IF(P150="ja",'Personnel Roulant'!$G$48,0) -> 0 | AI150: =IF(Q150="ja",'Personnel Roulant'!$G$48,0) -> 0 | AJ150: =IF(R150="ja",'Personnel Roulant'!$G$48,0) -> 0 | AK150: =IF(S150="ja",'Personnel Roulant'!$G$48,0) -> 0 | AL150: =IF(T150="ja",'Personnel Roulant'!$G$48,0) -> 0
D151: jour d’inactivité à l'étranger: | X151: =IF(F151="ja",'Personnel Roulant'!$G$50,0) -> 0 | Y151: =IF(G151="ja",'Personnel Roulant'!$G$50,0) -> 0 | Z151: =IF(H151="ja",'Personnel Roulant'!$G$50,0) -> 0 | AA151: =IF(I151="ja",'Personnel Roulant'!$G$50,0) -> 0 | AB151: =IF(J151="ja",'Personnel Roulant'!$G$50,0) -> 0 | AC151: =IF(K151="ja",'Personnel Roulant'!$G$50,0) -> 0 | AD151: =IF(L151="ja",'Personnel Roulant'!$G$50,0) -> 0 | AE151: =IF(M151="ja",'Personnel Roulant'!$G$50,0) -> 0 | AF151: =IF(N151="ja",'Personnel Roulant'!$G$50,0) -> 0 | AG151: =IF(O151="ja",'Personnel Roulant'!$G$50,0) -> 0 | AH151: =IF(P151="ja",'Personnel Roulant'!$G$50,0) -> 0 | AI151: =IF(Q151="ja",'Personnel Roulant'!$G$50,0) -> 0 | AJ151: =IF(R151="ja",'Personnel Roulant'!$G$50,0) -> 0 | AK151: =IF(S151="ja",'Personnel Roulant'!$G$50,0) -> 0 | AL151: =IF(T151="ja",'Personnel Roulant'!$G$50,0) -> 0
D152: % gasoil acheté à l'étranger:
D153: coût gasoil à l'étranger:
D154: % gasoil acheté à l'entreprise: | F154: =IF(F139=0,0,IF((1-F152)=0,"0%",1-F152)) -> 1 | G154: =IF(G139=0,0,IF((1-G152)=0,"0%",1-G152)) -> 0 | H154: 0 | I154: 0 | J154: 0 | K154: 0 | L154: 0 | M154: 0 | N154: 0 | O154: 0 | P154: 0 | Q154: 0 | R154: 0 | S154: 0 | T154: 0
D155: coût gasoil à l'entreprise:
D156: coûts spécifique du voyage:
D157: le véhicule est-il aussi employé pour un autre voyage ce jour?
F158: non | K158: oui | M158: oui | P158: oui | X158: oui
D159: % du coût fixe pour ce voyage-ci | X159: non
F161: =IF(F158="oui",F159,1) -> 1 | G161: =IF(G158="oui",G159,1) -> 1 | H161: =IF(H158="oui",H159,1) -> 1 | I161: 1 | J161: 1 | K161: 0 | L161: 1 | M161: 0 | N161: 1 | O161: 1 | P161: 0 | Q161: 1 | R161: 1 | S161: 1 | T161: 1

Sheet Coût Personnel
B2: CALCUL COÛT PERSONNEL ROULANT
G5: Coût personnel roulant | J5: ='Vehicule utilise'!W8 ->  | L5: ='Vehicule utilise'!S8 -> Mercedes
E10: jour | F10: jour | G10: jour | H10: jour | I10: jour | J10: jour | K10: jour | L10: jour | M10: jour | N10: jour | O10: jour | P10: jour | Q10: jour | R10: jour | S10: jour
E11: 1 | F11: 2 | G11: 3 | H11: 4 | I11: 5 | J11: 6 | K11: 7 | L11: 8 | M11: 9 | N11: 10 | O11: 11 | P11: 12 | Q11: 13 | R11: 14 | S11: 15
C12: Temps de service CH SIMPLE | E12: =Trajet!F21*24 -> 5 | F12: =Trajet!G21*24 -> 0 | G12: =Trajet!H21*24 -> 0 | H12: =Trajet!I21*24 -> 0 | I12: =Trajet!J21*24 -> 0 | J12: =Trajet!K21*24 -> 0 | K12: =Trajet!L21*24 -> 0 | L12: =Trajet!M21*24 -> 0 | M12: =Trajet!N21*24 -> 0 | N12: =Trajet!O21*24 -> 0 | O12: =Trajet!P21*24 -> 0 | P12: =Trajet!Q21*24 -> 0 | Q12: =Trajet!R21*24 -> 0 | R12: =Trajet!S21*24 -> 0 | S12: =Trajet!T21*24 -> 0
C13: Temps de service CH1 DOUBLE | E13: =Trajet!F22*24 -> 12 | F13: =Trajet!G22*24 -> 0 | G13: =Trajet!H22*24 -> 0 | H13: =Trajet!I22*24 -> 0 | I13: =Trajet!J22*24 -> 0 | J13: =Trajet!K22*24 -> 0 | K13: =Trajet!L22*24 -> 0 | L13: =Trajet!M22*24 -> 0 | M13: =Trajet!N22*24 -> 0 | N13: =Trajet!O22*24 -> 0 | O13: =Trajet!P22*24 -> 0 | P13: =Trajet!Q22*24 -> 0 | Q13: =Trajet!R22*24 -> 0 | R13: =Trajet!S22*24 -> 0 | S13: =Trajet!T22*24 -> 0
C14: Temps de service CH2 DOUBLE | E14: =Trajet!F23*24 -> 14 | F14: =Trajet!G23*24 -> 0 | G14: =Trajet!H23*24 -> 0 | H14: =Trajet!I23*24 -> 0 | I14: =Trajet!J23*24 -> 0 | J14: =Trajet!K23*24 -> 0 | K14: =Trajet!L23*24 -> 0 | L14: =Trajet!M23*24 -> 0 | M14: =Trajet!N23*24 -> 0 | N14: =Trajet!O23*24 -> 0 | O14: =Trajet!P23*24 -> 0 | P14: =Trajet!Q23*24 -> 0 | Q14: =Trajet!R23*24 -> 0 | R14: =Trajet!S23*24 -> 0 | S14: =Trajet!T23*24 -> 0
C15: Bruto Sal CH SIMPLE | E15: =IF(AND(E12>0,E12<=6,Trajet!F20="Autre"),('Personnel Roulant'!$G$50+'Personnel Roulant'!$G$42),IF(AND(E12>0,E12<=6),('Personnel Roulant'!$G$9+'Personnel Roulant'!$G$42),IF(AND(E12>6,E12<=12),'Personnel Roulant'!$G$11+'Personnel Roulant'!$G$42,IF(E12>0,'Personnel Roulant'!$G$11+(ROUNDUP(E12,0)-12)*'Personnel Roulant'!$G$13+'Personnel Roulant'!$G$42,0)))) -> 81.32 | F15: =IF(AND(F12>0,F12<=6,Trajet!G20="Autre"),('Personnel Roulant'!$G$50+'Personnel Roulant'!$G$42),IF(AND(F12>0,F12<=6),('Personnel Roulant'!$G$9+'Personnel Roulant'!$G$42),IF(AND(F12>6,F12<=12),'Personnel Roulant'!$G$11+'Personnel Roulant'!$G$42,IF(F12>0,'Personnel Roulant'!$G$11+(ROUNDUP(F12,0)-12)*'Personnel Roulant'!$G$13+'Personnel Roulant'!$G$42,0)))) -> 0 | G15: =IF(AND(G12>0,G12<=6,Trajet!H20="Autre"),('Personnel Roulant'!$G$50+'Personnel Roulant'!$G$42),IF(AND(G12>0,G12<=6),('Personnel Roulant'!$G$9+'Personnel Roulant'!$G$42),IF(AND(G12>6,G12<=12),'Personnel Roulant'!$G$11+'Personnel Roulant'!$G$42,IF(G12>0,'Personnel Roulant'!$G$11+(ROUNDUP(G12,0)-12)*'Personnel Roulant'!$G$13+'Personnel Roulant'!$G$42,0)))) -> 0 | H15: =IF(AND(H12>0,H12<=6,Trajet!I20="Autre"),('Personnel Roulant'!$G$50+'Personnel Roulant'!$G$42),IF(AND(H12>0,H12<=6),('Personnel Roulant'!$G$9+'Personnel Roulant'!$G$42),IF(AND(H12>6,H12<=12),'Personnel Roulant'!$G$11+'Personnel Roulant'!$G$42,IF(H12>0,'Personnel Roulant'!$G$11+(ROUNDUP(H12,0)-12)*'Personnel Roulant'!$G$13+'Personnel Roulant'!$G$42,0)))) -> 0 | I15: =IF(AND(I12>0,I12<=6,Trajet!J20="Autre"),('Personnel Roulant'!$G$50+'Personnel Roulant'!$G$42),IF(AND(I12>0,I12<=6),('Personnel Roulant'!$G$9+'Personnel Roulant'!$G$42),IF(AND(I12>6,I12<=12),'Personnel Roulant'!$G$11+'Personnel Roulant'!$G$42,IF(I12>0,'Personnel Roulant'!$G$11+(ROUNDUP(I12,0)-12)*'Personnel Roulant'!$G$13+'Personnel Roulant'!$G$42,0)))) -> 0 | J15: =IF(AND(J12>0,J12<=6,Trajet!K20="Autre"),('Personnel Roulant'!$G$50+'Personnel Roulant'!$G$42),IF(AND(J12>0,J12<=6),('Personnel Roulant'!$G$9+'Personnel Roulant'!$G$42),IF(AND(J12>6,J12<=12),'Personnel Roulant'!$G$11+'Personnel Roulant'!$G$42,IF(J12>0,'Personnel Roulant'!$G$11+(ROUNDUP(J12,0)-12)*'Personnel Roulant'!$G$13+'Personnel Roulant'!$G$42,0)))) -> 0 | K15: =IF(AND(K12>0,K12<=6,Trajet!L20="Autre"),('Personnel Roulant'!$G$50+'Personnel Roulant'!$G$42),IF(AND(K12>0,K12<=6),('Personnel Roulant'!$G$9+'Personnel Roulant'!$G$42),IF(AND(K12>6,K12<=12),'Personnel Roulant'!$G$11+'Personnel Roulant'!$G$42,IF(K12>0,'Personnel Roulant'!$G$11+(ROUNDUP(K12,0)-12)*'Personnel Roulant'!$G$13+'Personnel Roulant'!$G$42,0)))) -> 0 | L15: =IF(AND(L12>0,L12<=6,Trajet!M20="Autre"),('Personnel Roulant'!$G$50+'Personnel Roulant'!$G$42),IF(AND(L12>0,L12<=6),('Personnel Roulant'!$G$9+'Personnel Roulant'!$G$42),IF(AND(L12>6,L12<=12),'Personnel Roulant'!$G$11+'Personnel Roulant'!$G$42,IF(L12>0,'Personnel Roulant'!$G$11+(ROUNDUP(L12,0)-12)*'Personnel Roulant'!$G$13+'Personnel Roulant'!$G$42,0)))) -> 0 | M15: =IF(AND(M12>0,M12<=6,Trajet!N20="Autre"),('Personnel Roulant'!$G$50+'Personnel Roulant'!$G$42),IF(AND(M12>0,M12<=6),('Personnel Roulant'!$G$9+'Personnel Roulant'!$G$42),IF(AND(M12>6,M12<=12),'Personnel Roulant'!$G$11+'Personnel Roulant'!$G$42,IF(M12>0,'Personnel Roulant'!$G$11+(ROUNDUP(M12,0)-12)*'Personnel Roulant'!$G$13+'Personnel Roulant'!$G$42,0)))) -> 0 | N15: =IF(AND(N12>0,N12<=6,Trajet!O20="Autre"),('Personnel Roulant'!$G$50+'Personnel Roulant'!$G$42),IF(AND(N12>0,N12<=6),('Personnel Roulant'!$G$9+'Personnel Roulant'!$G$42),IF(AND(N12>6,N12<=12),'Personnel Roulant'!$G$11+'Personnel Roulant'!$G$42,IF(N12>0,'Personnel Roulant'!$G$11+(ROUNDUP(N12,0)-12)*'Personnel Roulant'!$G$13+'Personnel Roulant'!$G$42,0)))) -> 0 | O15: =IF(AND(O12>0,O12<=6,Trajet!P20="Autre"),('Personnel Roulant'!$G$50+'Personnel Roulant'!$G$42),IF(AND(O12>0,O12<=6),('Personnel Roulant'!$G$9+'Personnel Roulant'!$G$42),IF(AND(O12>6,O12<=12),'Personnel Roulant'!$G$11+'Personnel Roulant'!$G$42,IF(O12>0,'Personnel Roulant'!$G$11+(ROUNDUP(O12,0)-12)*'Personnel Roulant'!$G$13+'Personnel Roulant'!$G$42,0)))) -> 0 | P15: =IF(AND(P12>0,P12<=6,Trajet!Q20="Autre"),('Personnel Roulant'!$G$50+'Personnel Roulant'!$G$42),IF(AND(P12>0,P12<=6),('Personnel Roulant'!$G$9+'Personnel Roulant'!$G$42),IF(AND(P12>6,P12<=12),'Personnel Roulant'!$G$11+'Personnel Roulant'!$G$42,IF(P12>0,'Personnel Roulant'!$G$11+(ROUNDUP(P12,0)-12)*'Personnel Roulant'!$G$13+'Personnel Roulant'!$G$42,0)))) -> 0 | Q15: =IF(AND(Q12>0,Q12<=6,Trajet!R20="Autre"),('Personnel Roulant'!$G$50+'Personnel Roulant'!$G$42),IF(AND(Q12>0,Q12<=6),('Personnel Roulant'!$G$9+'Personnel Roulant'!$G$42),IF(AND(Q12>6,Q12<=12),'Personnel Roulant'!$G$11+'Personnel Roulant'!$G$42,IF(Q12>0,'Personnel Roulant'!$G$11+(ROUNDUP(Q12,0)-12)*'Personnel Roulant'!$G$13+'Personnel Roulant'!$G$42,0)))) -> 0 | R15: =IF(AND(R12>0,R12<=6,Trajet!S20="Autre"),('Personnel Roulant'!$G$50+'Personnel Roulant'!$G$42),IF(AND(R12>0,R12<=6),('Personnel Roulant'!$G$9+'Personnel Roulant'!$G$42),IF(AND(R12>6,R12<=12),'Personnel Roulant'!$G$11+'Personnel Roulant'!$G$42,IF(R12>0,'Personnel Roulant'!$G$11+(ROUNDUP(R12,0)-12)*'Personnel Roulant'!$G$13+'Personnel Roulant'!$G$42,0)))) -> 0 | S15: =IF(AND(S12>0,S12<=6,Trajet!T20="Autre"),('Personnel Roulant'!$G$50+'Personnel Roulant'!$G$42),IF(AND(S12>0,S12<=6),('Personnel Roulant'!$G$9+'Personnel Roulant'!$G$42),IF(AND(S12>6,S12<=12),'Personnel Roulant'!$G$11+'Personnel Roulant'!$G$42,IF(S12>0,'Personnel Roulant'!$G$11+(ROUNDUP(S12,0)-12)*'Personnel Roulant'!$G$13+'Personnel Roulant'!$G$42,0)))) -> 0
C16: Salaire brut CH1 DOUBLE | E16: =IF(E13=0,0,IF(E13<12,'Personnel Roulant'!$G$16+'Personnel Roulant'!$G$42,IF(E13<13,'Personnel Roulant'!$G$18+'Personnel Roulant'!$G$42,IF(E13<14,'Personnel Roulant'!$G$20+'Personnel Roulant'!$G$42,IF(E13<15,'Personnel Roulant'!$G$22+'Personnel Roulant'!$G$42,IF(E13<16,'Personnel Roulant'!$G$24+'Personnel Roulant'!$G$42,IF(E13<17,'Personnel Roulant'!$G$26+'Personnel Roulant'!$G$42,IF(E13<18,'Personnel Roulant'!$G$28+'Personnel Roulant'!$G$42,IF(E13<19,'Personnel Roulant'!$G$30+'Personnel Roulant'!$G$42,IF(E13<20,'Personnel Roulant'!$G$32+'Personnel Roulant'!$G$42,IF(E13<21,'Personnel Roulant'!$G$34+'Personnel Roulant'!$G$42,IF(E13<22,'Personnel Roulant'!$G$36+'Personnel Roulant'!$G$42)))))))))))) -> 118.96 | F16: =IF(F13=0,0,IF(F13<12,'Personnel Roulant'!$G$16+'Personnel Roulant'!$G$42,IF(F13<13,'Personnel Roulant'!$G$18+'Personnel Roulant'!$G$42,IF(F13<14,'Personnel Roulant'!$G$20+'Personnel Roulant'!$G$42,IF(F13<15,'Personnel Roulant'!$G$22+'Personnel Roulant'!$G$42,IF(F13<16,'Personnel Roulant'!$G$24+'Personnel Roulant'!$G$42,IF(F13<17,'Personnel Roulant'!$G$26+'Personnel Roulant'!$G$42,IF(F13<18,'Personnel Roulant'!$G$28+'Personnel Roulant'!$G$42,IF(F13<19,'Personnel Roulant'!$G$30+'Personnel Roulant'!$G$42,IF(F13<20,'Personnel Roulant'!$G$32+'Personnel Roulant'!$G$42,IF(F13<21,'Personnel Roulant'!$G$34+'Personnel Roulant'!$G$42,IF(F13<22,'Personnel Roulant'!$G$36+'Personnel Roulant'!$G$42)))))))))))) -> 0 | G16: =IF(G13=0,0,IF(G13<12,'Personnel Roulant'!$G$16+'Personnel Roulant'!$G$42,IF(G13<13,'Personnel Roulant'!$G$18+'Personnel Roulant'!$G$42,IF(G13<14,'Personnel Roulant'!$G$20+'Personnel Roulant'!$G$42,IF(G13<15,'Personnel Roulant'!$G$22+'Personnel Roulant'!$G$42,IF(G13<16,'Personnel Roulant'!$G$24+'Personnel Roulant'!$G$42,IF(G13<17,'Personnel Roulant'!$G$26+'Personnel Roulant'!$G$42,IF(G13<18,'Personnel Roulant'!$G$28+'Personnel Roulant'!$G$42,IF(G13<19,'Personnel Roulant'!$G$30+'Personnel Roulant'!$G$42,IF(G13<20,'Personnel Roulant'!$G$32+'Personnel Roulant'!$G$42,IF(G13<21,'Personnel Roulant'!$G$34+'Personnel Roulant'!$G$42,IF(G13<22,'Personnel Roulant'!$G$36+'Personnel Roulant'!$G$42)))))))))))) -> 0 | H16: =IF(H13=0,0,IF(H13<12,'Personnel Roulant'!$G$16+'Personnel Roulant'!$G$42,IF(H13<13,'Personnel Roulant'!$G$18+'Personnel Roulant'!$G$42,IF(H13<14,'Personnel Roulant'!$G$20+'Personnel Roulant'!$G$42,IF(H13<15,'Personnel Roulant'!$G$22+'Personnel Roulant'!$G$42,IF(H13<16,'Personnel Roulant'!$G$24+'Personnel Roulant'!$G$42,IF(H13<17,'Personnel Roulant'!$G$26+'Personnel Roulant'!$G$42,IF(H13<18,'Personnel Roulant'!$G$28+'Personnel Roulant'!$G$42,IF(H13<19,'Personnel Roulant'!$G$30+'Personnel Roulant'!$G$42,IF(H13<20,'Personnel Roulant'!$G$32+'Personnel Roulant'!$G$42,IF(H13<21,'Personnel Roulant'!$G$34+'Personnel Roulant'!$G$42,IF(H13<22,'Personnel Roulant'!$G$36+'Personnel Roulant'!$G$42)))))))))))) -> 0 | I16: =IF(I13=0,0,IF(I13<12,'Personnel Roulant'!$G$16+'Personnel Roulant'!$G$42,IF(I13<13,'Personnel Roulant'!$G$18+'Personnel Roulant'!$G$42,IF(I13<14,'Personnel Roulant'!$G$20+'Personnel Roulant'!$G$42,IF(I13<15,'Personnel Roulant'!$G$22+'Personnel Roulant'!$G$42,IF(I13<16,'Personnel Roulant'!$G$24+'Personnel Roulant'!$G$42,IF(I13<17,'Personnel Roulant'!$G$26+'Personnel Roulant'!$G$42,IF(I13<18,'Personnel Roulant'!$G$28+'Personnel Roulant'!$G$42,IF(I13<19,'Personnel Roulant'!$G$30+'Personnel Roulant'!$G$42,IF(I13<20,'Personnel Roulant'!$G$32+'Personnel Roulant'!$G$42,IF(I13<21,'Personnel Roulant'!$G$34+'Personnel Roulant'!$G$42,IF(I13<22,'Personnel Roulant'!$G$36+'Personnel Roulant'!$G$42)))))))))))) -> 0 | J16: =IF(J13=0,0,IF(J13<12,'Personnel Roulant'!$G$16+'Personnel Roulant'!$G$42,IF(J13<13,'Personnel Roulant'!$G$18+'Personnel Roulant'!$G$42,IF(J13<14,'Personnel Roulant'!$G$20+'Personnel Roulant'!$G$42,IF(J13<15,'Personnel Roulant'!$G$22+'Personnel Roulant'!$G$42,IF(J13<16,'Personnel Roulant'!$G$24+'Personnel Roulant'!$G$42,IF(J13<17,'Personnel Roulant'!$G$26+'Personnel Roulant'!$G$42,IF(J13<18,'Personnel Roulant'!$G$28+'Personnel Roulant'!$G$42,IF(J13<19,'Personnel Roulant'!$G$30+'Personnel Roulant'!$G$42,IF(J13<20,'Personnel Roulant'!$G$32+'Personnel Roulant'!$G$42,IF(J13<21,'Personnel Roulant'!$G$34+'Personnel Roulant'!$G$42,IF(J13<22,'Personnel Roulant'!$G$36+'Personnel Roulant'!$G$42)))))))))))) -> 0 | K16: =IF(K13=0,0,IF(K13<12,'Personnel Roulant'!$G$16+'Personnel Roulant'!$G$42,IF(K13<13,'Personnel Roulant'!$G$18+'Personnel Roulant'!$G$42,IF(K13<14,'Personnel Roulant'!$G$20+'Personnel Roulant'!$G$42,IF(K13<15,'Personnel Roulant'!$G$22+'Personnel Roulant'!$G$42,IF(K13<16,'Personnel Roulant'!$G$24+'Personnel Roulant'!$G$42,IF(K13<17,'Personnel Roulant'!$G$26+'Personnel Roulant'!$G$42,IF(K13<18,'Personnel Roulant'!$G$28+'Personnel Roulant'!$G$42,IF(K13<19,'Personnel Roulant'!$G$30+'Personnel Roulant'!$G$42,IF(K13<20,'Personnel Roulant'!$G$32+'Personnel Roulant'!$G$42,IF(K13<21,'Personnel Roulant'!$G$34+'Personnel Roulant'!$G$42,IF(K13<22,'Personnel Roulant'!$G$36+'Personnel Roulant'!$G$42)))))))))))) -> 0 | L16: =IF(L13=0,0,IF(L13<12,'Personnel Roulant'!$G$16+'Personnel Roulant'!$G$42,IF(L13<13,'Personnel Roulant'!$G$18+'Personnel Roulant'!$G$42,IF(L13<14,'Personnel Roulant'!$G$20+'Personnel Roulant'!$G$42,IF(L13<15,'Personnel Roulant'!$G$22+'Personnel Roulant'!$G$42,IF(L13<16,'Personnel Roulant'!$G$24+'Personnel Roulant'!$G$42,IF(L13<17,'Personnel Roulant'!$G$26+'Personnel Roulant'!$G$42,IF(L13<18,'Personnel Roulant'!$G$28+'Personnel Roulant'!$G$42,IF(L13<19,'Personnel Roulant'!$G$30+'Personnel Roulant'!$G$42,IF(L13<20,'Personnel Roulant'!$G$32+'Personnel Roulant'!$G$42,IF(L13<21,'Personnel Roulant'!$G$34+'Personnel Roulant'!$G$42,IF(L13<22,'Personnel Roulant'!$G$36+'Personnel Roulant'!$G$42)))))))))))) -> 0 | M16: =IF(M13=0,0,IF(M13<12,'Personnel Roulant'!$G$16+'Personnel Roulant'!$G$42,IF(M13<13,'Personnel Roulant'!$G$18+'Personnel Roulant'!$G$42,IF(M13<14,'Personnel Roulant'!$G$20+'Personnel Roulant'!$G$42,IF(M13<15,'Personnel Roulant'!$G$22+'Personnel Roulant'!$G$42,IF(M13<16,'Personnel Roulant'!$G$24+'Personnel Roulant'!$G$42,IF(M13<17,'Personnel Roulant'!$G$26+'Personnel Roulant'!$G$42,IF(M13<18,'Personnel Roulant'!$G$28+'Personnel Roulant'!$G$42,IF(M13<19,'Personnel Roulant'!$G$30+'Personnel Roulant'!$G$42,IF(M13<20,'Personnel Roulant'!$G$32+'Personnel Roulant'!$G$42,IF(M13<21,'Personnel Roulant'!$G$34+'Personnel Roulant'!$G$42,IF(M13<22,'Personnel Roulant'!$G$36+'Personnel Roulant'!$G$42)))))))))))) -> 0 | N16: =IF(N13=0,0,IF(N13<12,'Personnel Roulant'!$G$16+'Personnel Roulant'!$G$42,IF(N13<13,'Personnel Roulant'!$G$18+'Personnel Roulant'!$G$42,IF(N13<14,'Personnel Roulant'!$G$20+'Personnel Roulant'!$G$42,IF(N13<15,'Personnel Roulant'!$G$22+'Personnel Roulant'!$G$42,IF(N13<16,'Personnel Roulant'!$G$24+'Personnel Roulant'!$G$42,IF(N13<17,'Personnel Roulant'!$G$26+'Personnel Roulant'!$G$42,IF(N13<18,'Personnel Roulant'!$G$28+'Personnel Roulant'!$G$42,IF(N13<19,'Personnel Roulant'!$G$30+'Personnel Roulant'!$G$42,IF(N13<20,'Personnel Roulant'!$G$32+'Personnel Roulant'!$G$42,IF(N13<21,'Personnel Roulant'!$G$34+'Personnel Roulant'!$G$42,IF(N13<22,'Personnel Roulant'!$G$36+'Personnel Roulant'!$G$42)))))))))))) -> 0 | O16: =IF(O13=0,0,IF(O13<12,'Personnel Roulant'!$G$16+'Personnel Roulant'!$G$42,IF(O13<13,'Personnel Roulant'!$G$18+'Personnel Roulant'!$G$42,IF(O13<14,'Personnel Roulant'!$G$20+'Personnel Roulant'!$G$42,IF(O13<15,'Personnel Roulant'!$G$22+'Personnel Roulant'!$G$42,IF(O13<16,'Personnel Roulant'!$G$24+'Personnel Roulant'!$G$42,IF(O13<17,'Personnel Roulant'!$G$26+'Personnel Roulant'!$G$42,IF(O13<18,'Personnel Roulant'!$G$28+'Personnel Roulant'!$G$42,IF(O13<19,'Personnel Roulant'!$G$30+'Personnel Roulant'!$G$42,IF(O13<20,'Personnel Roulant'!$G$32+'Personnel Roulant'!$G$42,IF(O13<21,'Personnel Roulant'!$G$34+'Personnel Roulant'!$G$42,IF(O13<22,'Personnel Roulant'!$G$36+'Personnel Roulant'!$G$42)))))))))))) -> 0 | P16: =IF(P13=0,0,IF(P13<12,'Personnel Roulant'!$G$16+'Personnel Roulant'!$G$42,IF(P13<13,'Personnel Roulant'!$G$18+'Personnel Roulant'!$G$42,IF(P13<14,'Personnel Roulant'!$G$20+'Personnel Roulant'!$G$42,IF(P13<15,'Personnel Roulant'!$G$22+'Personnel Roulant'!$G$42,IF(P13<16,'Personnel Roulant'!$G$24+'Personnel Roulant'!$G$42,IF(P13<17,'Personnel Roulant'!$G$26+'Personnel Roulant'!$G$42,IF(P13<18,'Personnel Roulant'!$G$28+'Personnel Roulant'!$G$42,IF(P13<19,'Personnel Roulant'!$G$30+'Personnel Roulant'!$G$42,IF(P13<20,'Personnel Roulant'!$G$32+'Personnel Roulant'!$G$42,IF(P13<21,'Personnel Roulant'!$G$34+'Personnel Roulant'!$G$42,IF(P13<22,'Personnel Roulant'!$G$36+'Personnel Roulant'!$G$42)))))))))))) -> 0 | Q16: =IF(Q13=0,0,IF(Q13<12,'Personnel Roulant'!$G$16+'Personnel Roulant'!$G$42,IF(Q13<13,'Personnel Roulant'!$G$18+'Personnel Roulant'!$G$42,IF(Q13<14,'Personnel Roulant'!$G$20+'Personnel Roulant'!$G$42,IF(Q13<15,'Personnel Roulant'!$G$22+'Personnel Roulant'!$G$42,IF(Q13<16,'Personnel Roulant'!$G$24+'Personnel Roulant'!$G$42,IF(Q13<17,'Personnel Roulant'!$G$26+'Personnel Roulant'!$G$42,IF(Q13<18,'Personnel Roulant'!$G$28+'Personnel Roulant'!$G$42,IF(Q13<19,'Personnel Roulant'!$G$30+'Personnel Roulant'!$G$42,IF(Q13<20,'Personnel Roulant'!$G$32+'Personnel Roulant'!$G$42,IF(Q13<21,'Personnel Roulant'!$G$34+'Personnel Roulant'!$G$42,IF(Q13<22,'Personnel Roulant'!$G$36+'Personnel Roulant'!$G$42)))))))))))) -> 0 | R16: =IF(R13=0,0,IF(R13<12,'Personnel Roulant'!$G$16+'Personnel Roulant'!$G$42,IF(R13<13,'Personnel Roulant'!$G$18+'Personnel Roulant'!$G$42,IF(R13<14,'Personnel Roulant'!$G$20+'Personnel Roulant'!$G$42,IF(R13<15,'Personnel Roulant'!$G$22+'Personnel Roulant'!$G$42,IF(R13<16,'Personnel Roulant'!$G$24+'Personnel Roulant'!$G$42,IF(R13<17,'Personnel Roulant'!$G$26+'Personnel Roulant'!$G$42,IF(R13<18,'Personnel Roulant'!$G$28+'Personnel Roulant'!$G$42,IF(R13<19,'Personnel Roulant'!$G$30+'Personnel Roulant'!$G$42,IF(R13<20,'Personnel Roulant'!$G$32+'Personnel Roulant'!$G$42,IF(R13<21,'Personnel Roulant'!$G$34+'Personnel Roulant'!$G$42,IF(R13<22,'Personnel Roulant'!$G$36+'Personnel Roulant'!$G$42)))))))))))) -> 0 | S16: =IF(S13=0,0,IF(S13<12,'Personnel Roulant'!$G$16+'Personnel Roulant'!$G$42,IF(S13<13,'Personnel Roulant'!$G$18+'Personnel Roulant'!$G$42,IF(S13<14,'Personnel Roulant'!$G$20+'Personnel Roulant'!$G$42,IF(S13<15,'Personnel Roulant'!$G$22+'Personnel Roulant'!$G$42,IF(S13<16,'Personnel Roulant'!$G$24+'Personnel Roulant'!$G$42,IF(S13<17,'Personnel Roulant'!$G$26+'Personnel Roulant'!$G$42,IF(S13<18,'Personnel Roulant'!$G$28+'Personnel Roulant'!$G$42,IF(S13<19,'Personnel Roulant'!$G$30+'Personnel Roulant'!$G$42,IF(S13<20,'Personnel Roulant'!$G$32+'Personnel Roulant'!$G$42,IF(S13<21,'Personnel Roulant'!$G$34+'Personnel Roulant'!$G$42,IF(S13<22,'Personnel Roulant'!$G$36+'Personnel Roulant'!$G$42)))))))))))) -> 0
C17: Salaire brut CH2 DOUBLE | E17: =IF(E14=0,0,IF(E14<12,'Personnel Roulant'!$G$16+'Personnel Roulant'!$G$42,IF(E14<13,'Personnel Roulant'!$G$18+'Personnel Roulant'!$G$42,IF(E14<14,'Personnel Roulant'!$G$20+'Personnel Roulant'!$G$42,IF(E14<15,'Personnel Roulant'!$G$22+'Personnel Roulant'!$G$42,IF(E14<16,'Personnel Roulant'!$G$24+'Personnel Roulant'!$G$42,IF(E14<17,'Personnel Roulant'!$G$26+'Personnel Roulant'!$G$42,IF(E14<18,'Personnel Roulant'!$G$28+'Personnel Roulant'!$G$42,IF(E14<19,'Personnel Roulant'!$G$30+'Personnel Roulant'!$G$42,IF(E14<20,'Personnel Roulant'!$G$32+'Personnel Roulant'!$G$42,IF(E14<21,'Personnel Roulant'!$G$34+'Personnel Roulant'!$G$42,IF(E14<22,'Personnel Roulant'!$G$36+'Personnel Roulant'!$G$42)))))))))))) -> 140.84 | F17: =IF(F14=0,0,IF(F14<12,'Personnel Roulant'!$G$16+'Personnel Roulant'!$G$42,IF(F14<13,'Personnel Roulant'!$G$18+'Personnel Roulant'!$G$42,IF(F14<14,'Personnel Roulant'!$G$20+'Personnel Roulant'!$G$42,IF(F14<15,'Personnel Roulant'!$G$22+'Personnel Roulant'!$G$42,IF(F14<16,'Personnel Roulant'!$G$24+'Personnel Roulant'!$G$42,IF(F14<17,'Personnel Roulant'!$G$26+'Personnel Roulant'!$G$42,IF(F14<18,'Personnel Roulant'!$G$28+'Personnel Roulant'!$G$42,IF(F14<19,'Personnel Roulant'!$G$30+'Personnel Roulant'!$G$42,IF(F14<20,'Personnel Roulant'!$G$32+'Personnel Roulant'!$G$42,IF(F14<21,'Personnel Roulant'!$G$34+'Personnel Roulant'!$G$42,IF(F14<22,'Personnel Roulant'!$G$36+'Personnel Roulant'!$G$42)))))))))))) -> 0 | G17: =IF(G14=0,0,IF(G14<12,'Personnel Roulant'!$G$16+'Personnel Roulant'!$G$42,IF(G14<13,'Personnel Roulant'!$G$18+'Personnel Roulant'!$G$42,IF(G14<14,'Personnel Roulant'!$G$20+'Personnel Roulant'!$G$42,IF(G14<15,'Personnel Roulant'!$G$22+'Personnel Roulant'!$G$42,IF(G14<16,'Personnel Roulant'!$G$24+'Personnel Roulant'!$G$42,IF(G14<17,'Personnel Roulant'!$G$26+'Personnel Roulant'!$G$42,IF(G14<18,'Personnel Roulant'!$G$28+'Personnel Roulant'!$G$42,IF(G14<19,'Personnel Roulant'!$G$30+'Personnel Roulant'!$G$42,IF(G14<20,'Personnel Roulant'!$G$32+'Personnel Roulant'!$G$42,IF(G14<21,'Personnel Roulant'!$G$34+'Personnel Roulant'!$G$42,IF(G14<22,'Personnel Roulant'!$G$36+'Personnel Roulant'!$G$42)))))))))))) -> 0 | H17: =IF(H14=0,0,IF(H14<12,'Personnel Roulant'!$G$16+'Personnel Roulant'!$G$42,IF(H14<13,'Personnel Roulant'!$G$18+'Personnel Roulant'!$G$42,IF(H14<14,'Personnel Roulant'!$G$20+'Personnel Roulant'!$G$42,IF(H14<15,'Personnel Roulant'!$G$22+'Personnel Roulant'!$G$42,IF(H14<16,'Personnel Roulant'!$G$24+'Personnel Roulant'!$G$42,IF(H14<17,'Personnel Roulant'!$G$26+'Personnel Roulant'!$G$42,IF(H14<18,'Personnel Roulant'!$G$28+'Personnel Roulant'!$G$42,IF(H14<19,'Personnel Roulant'!$G$30+'Personnel Roulant'!$G$42,IF(H14<20,'Personnel Roulant'!$G$32+'Personnel Roulant'!$G$42,IF(H14<21,'Personnel Roulant'!$G$34+'Personnel Roulant'!$G$42,IF(H14<22,'Personnel Roulant'!$G$36+'Personnel Roulant'!$G$42)))))))))))) -> 0 | I17: =IF(I14=0,0,IF(I14<12,'Personnel Roulant'!$G$16+'Personnel Roulant'!$G$42,IF(I14<13,'Personnel Roulant'!$G$18+'Personnel Roulant'!$G$42,IF(I14<14,'Personnel Roulant'!$G$20+'Personnel Roulant'!$G$42,IF(I14<15,'Personnel Roulant'!$G$22+'Personnel Roulant'!$G$42,IF(I14<16,'Personnel Roulant'!$G$24+'Personnel Roulant'!$G$42,IF(I14<17,'Personnel Roulant'!$G$26+'Personnel Roulant'!$G$42,IF(I14<18,'Personnel Roulant'!$G$28+'Personnel Roulant'!$G$42,IF(I14<19,'Personnel Roulant'!$G$30+'Personnel Roulant'!$G$42,IF(I14<20,'Personnel Roulant'!$G$32+'Personnel Roulant'!$G$42,IF(I14<21,'Personnel Roulant'!$G$34+'Personnel Roulant'!$G$42,IF(I14<22,'Personnel Roulant'!$G$36+'Personnel Roulant'!$G$42)))))))))))) -> 0 | J17: =IF(J14=0,0,IF(J14<12,'Personnel Roulant'!$G$16+'Personnel Roulant'!$G$42,IF(J14<13,'Personnel Roulant'!$G$18+'Personnel Roulant'!$G$42,IF(J14<14,'Personnel Roulant'!$G$20+'Personnel Roulant'!$G$42,IF(J14<15,'Personnel Roulant'!$G$22+'Personnel Roulant'!$G$42,IF(J14<16,'Personnel Roulant'!$G$24+'Personnel Roulant'!$G$42,IF(J14<17,'Personnel Roulant'!$G$26+'Personnel Roulant'!$G$42,IF(J14<18,'Personnel Roulant'!$G$28+'Personnel Roulant'!$G$42,IF(J14<19,'Personnel Roulant'!$G$30+'Personnel Roulant'!$G$42,IF(J14<20,'Personnel Roulant'!$G$32+'Personnel Roulant'!$G$42,IF(J14<21,'Personnel Roulant'!$G$34+'Personnel Roulant'!$G$42,IF(J14<22,'Personnel Roulant'!$G$36+'Personnel Roulant'!$G$42)))))))))))) -> 0 | K17: =IF(K14=0,0,IF(K14<12,'Personnel Roulant'!$G$16+'Personnel Roulant'!$G$42,IF(K14<13,'Personnel Roulant'!$G$18+'Personnel Roulant'!$G$42,IF(K14<14,'Personnel Roulant'!$G$20+'Personnel Roulant'!$G$42,IF(K14<15,'Personnel Roulant'!$G$22+'Personnel Roulant'!$G$42,IF(K14<16,'Personnel Roulant'!$G$24+'Personnel Roulant'!$G$42,IF(K14<17,'Personnel Roulant'!$G$26+'Personnel Roulant'!$G$42,IF(K14<18,'Personnel Roulant'!$G$28+'Personnel Roulant'!$G$42,IF(K14<19,'Personnel Roulant'!$G$30+'Personnel Roulant'!$G$42,IF(K14<20,'Personnel Roulant'!$G$32+'Personnel Roulant'!$G$42,IF(K14<21,'Personnel Roulant'!$G$34+'Personnel Roulant'!$G$42,IF(K14<22,'Personnel Roulant'!$G$36+'Personnel Roulant'!$G$42)))))))))))) -> 0 | L17: =IF(L14=0,0,IF(L14<12,'Personnel Roulant'!$G$16+'Personnel Roulant'!$G$42,IF(L14<13,'Personnel Roulant'!$G$18+'Personnel Roulant'!$G$42,IF(L14<14,'Personnel Roulant'!$G$20+'Personnel Roulant'!$G$42,IF(L14<15,'Personnel Roulant'!$G$22+'Personnel Roulant'!$G$42,IF(L14<16,'Personnel Roulant'!$G$24+'Personnel Roulant'!$G$42,IF(L14<17,'Personnel Roulant'!$G$26+'Personnel Roulant'!$G$42,IF(L14<18,'Personnel Roulant'!$G$28+'Personnel Roulant'!$G$42,IF(L14<19,'Personnel Roulant'!$G$30+'Personnel Roulant'!$G$42,IF(L14<20,'Personnel Roulant'!$G$32+'Personnel Roulant'!$G$42,IF(L14<21,'Personnel Roulant'!$G$34+'Personnel Roulant'!$G$42,IF(L14<22,'Personnel Roulant'!$G$36+'Personnel Roulant'!$G$42)))))))))))) -> 0 | M17: =IF(M14=0,0,IF(M14<12,'Personnel Roulant'!$G$16+'Personnel Roulant'!$G$42,IF(M14<13,'Personnel Roulant'!$G$18+'Personnel Roulant'!$G$42,IF(M14<14,'Personnel Roulant'!$G$20+'Personnel Roulant'!$G$42,IF(M14<15,'Personnel Roulant'!$G$22+'Personnel Roulant'!$G$42,IF(M14<16,'Personnel Roulant'!$G$24+'Personnel Roulant'!$G$42,IF(M14<17,'Personnel Roulant'!$G$26+'Personnel Roulant'!$G$42,IF(M14<18,'Personnel Roulant'!$G$28+'Personnel Roulant'!$G$42,IF(M14<19,'Personnel Roulant'!$G$30+'Personnel Roulant'!$G$42,IF(M14<20,'Personnel Roulant'!$G$32+'Personnel Roulant'!$G$42,IF(M14<21,'Personnel Roulant'!$G$34+'Personnel Roulant'!$G$42,IF(M14<22,'Personnel Roulant'!$G$36+'Personnel Roulant'!$G$42)))))))))))) -> 0 | N17: =IF(N14=0,0,IF(N14<12,'Personnel Roulant'!$G$16+'Personnel Roulant'!$G$42,IF(N14<13,'Personnel Roulant'!$G$18+'Personnel Roulant'!$G$42,IF(N14<14,'Personnel Roulant'!$G$20+'Personnel Roulant'!$G$42,IF(N14<15,'Personnel Roulant'!$G$22+'Personnel Roulant'!$G$42,IF(N14<16,'Personnel Roulant'!$G$24+'Personnel Roulant'!$G$42,IF(N14<17,'Personnel Roulant'!$G$26+'Personnel Roulant'!$G$42,IF(N14<18,'Personnel Roulant'!$G$28+'Personnel Roulant'!$G$42,IF(N14<19,'Personnel Roulant'!$G$30+'Personnel Roulant'!$G$42,IF(N14<20,'Personnel Roulant'!$G$32+'Personnel Roulant'!$G$42,IF(N14<21,'Personnel Roulant'!$G$34+'Personnel Roulant'!$G$42,IF(N14<22,'Personnel Roulant'!$G$36+'Personnel Roulant'!$G$42)))))))))))) -> 0 | O17: =IF(O14=0,0,IF(O14<12,'Personnel Roulant'!$G$16+'Personnel Roulant'!$G$42,IF(O14<13,'Personnel Roulant'!$G$18+'Personnel Roulant'!$G$42,IF(O14<14,'Personnel Roulant'!$G$20+'Personnel Roulant'!$G$42,IF(O14<15,'Personnel Roulant'!$G$22+'Personnel Roulant'!$G$42,IF(O14<16,'Personnel Roulant'!$G$24+'Personnel Roulant'!$G$42,IF(O14<17,'Personnel Roulant'!$G$26+'Personnel Roulant'!$G$42,IF(O14<18,'Personnel Roulant'!$G$28+'Personnel Roulant'!$G$42,IF(O14<19,'Personnel Roulant'!$G$30+'Personnel Roulant'!$G$42,IF(O14<20,'Personnel Roulant'!$G$32+'Personnel Roulant'!$G$42,IF(O14<21,'Personnel Roulant'!$G$34+'Personnel Roulant'!$G$42,IF(O14<22,'Personnel Roulant'!$G$36+'Personnel Roulant'!$G$42)))))))))))) -> 0 | P17: =IF(P14=0,0,IF(P14<12,'Personnel Roulant'!$G$16+'Personnel Roulant'!$G$42,IF(P14<13,'Personnel Roulant'!$G$18+'Personnel Roulant'!$G$42,IF(P14<14,'Personnel Roulant'!$G$20+'Personnel Roulant'!$G$42,IF(P14<15,'Personnel Roulant'!$G$22+'Personnel Roulant'!$G$42,IF(P14<16,'Personnel Roulant'!$G$24+'Personnel Roulant'!$G$42,IF(P14<17,'Personnel Roulant'!$G$26+'Personnel Roulant'!$G$42,IF(P14<18,'Personnel Roulant'!$G$28+'Personnel Roulant'!$G$42,IF(P14<19,'Personnel Roulant'!$G$30+'Personnel Roulant'!$G$42,IF(P14<20,'Personnel Roulant'!$G$32+'Personnel Roulant'!$G$42,IF(P14<21,'Personnel Roulant'!$G$34+'Personnel Roulant'!$G$42,IF(P14<22,'Personnel Roulant'!$G$36+'Personnel Roulant'!$G$42)))))))))))) -> 0 | Q17: =IF(Q14=0,0,IF(Q14<12,'Personnel Roulant'!$G$16+'Personnel Roulant'!$G$42,IF(Q14<13,'Personnel Roulant'!$G$18+'Personnel Roulant'!$G$42,IF(Q14<14,'Personnel Roulant'!$G$20+'Personnel Roulant'!$G$42,IF(Q14<15,'Personnel Roulant'!$G$22+'Personnel Roulant'!$G$42,IF(Q14<16,'Personnel Roulant'!$G$24+'Personnel Roulant'!$G$42,IF(Q14<17,'Personnel Roulant'!$G$26+'Personnel Roulant'!$G$42,IF(Q14<18,'Personnel Roulant'!$G$28+'Personnel Roulant'!$G$42,IF(Q14<19,'Personnel Roulant'!$G$30+'Personnel Roulant'!$G$42,IF(Q14<20,'Personnel Roulant'!$G$32+'Personnel Roulant'!$G$42,IF(Q14<21,'Personnel Roulant'!$G$34+'Personnel Roulant'!$G$42,IF(Q14<22,'Personnel Roulant'!$G$36+'Personnel Roulant'!$G$42)))))))))))) -> 0 | R17: =IF(R14=0,0,IF(R14<12,'Personnel Roulant'!$G$16+'Personnel Roulant'!$G$42,IF(R14<13,'Personnel Roulant'!$G$18+'Personnel Roulant'!$G$42,IF(R14<14,'Personnel Roulant'!$G$20+'Personnel Roulant'!$G$42,IF(R14<15,'Personnel Roulant'!$G$22+'Personnel Roulant'!$G$42,IF(R14<16,'Personnel Roulant'!$G$24+'Personnel Roulant'!$G$42,IF(R14<17,'Personnel Roulant'!$G$26+'Personnel Roulant'!$G$42,IF(R14<18,'Personnel Roulant'!$G$28+'Personnel Roulant'!$G$42,IF(R14<19,'Personnel Roulant'!$G$30+'Personnel Roulant'!$G$42,IF(R14<20,'Personnel Roulant'!$G$32+'Personnel Roulant'!$G$42,IF(R14<21,'Personnel Roulant'!$G$34+'Personnel Roulant'!$G$42,IF(R14<22,'Personnel Roulant'!$G$36+'Personnel Roulant'!$G$42)))))))))))) -> 0 | S17: =IF(S14=0,0,IF(S14<12,'Personnel Roulant'!$G$16+'Personnel Roulant'!$G$42,IF(S14<13,'Personnel Roulant'!$G$18+'Personnel Roulant'!$G$42,IF(S14<14,'Personnel Roulant'!$G$20+'Personnel Roulant'!$G$42,IF(S14<15,'Personnel Roulant'!$G$22+'Personnel Roulant'!$G$42,IF(S14<16,'Personnel Roulant'!$G$24+'Personnel Roulant'!$G$42,IF(S14<17,'Personnel Roulant'!$G$26+'Personnel Roulant'!$G$42,IF(S14<18,'Personnel Roulant'!$G$28+'Personnel Roulant'!$G$42,IF(S14<19,'Personnel Roulant'!$G$30+'Personnel Roulant'!$G$42,IF(S14<20,'Personnel Roulant'!$G$32+'Personnel Roulant'!$G$42,IF(S14<21,'Personnel Roulant'!$G$34+'Personnel Roulant'!$G$42,IF(S14<22,'Personnel Roulant'!$G$36+'Personnel Roulant'!$G$42)))))))))))) -> 0
C18: Compensation Dimanche tous CH | E18: =Trajet!F24*'Personnel Roulant'!$G$48 -> 0 | F18: =Trajet!G24*'Personnel Roulant'!$G$48 -> 0 | G18: =Trajet!H24*'Personnel Roulant'!$G$48 -> 0 | H18: =Trajet!I24*'Personnel Roulant'!$G$48 -> 0 | I18: =Trajet!J24*'Personnel Roulant'!$G$48 -> 0 | J18: =Trajet!K24*'Personnel Roulant'!$G$48 -> 0 | K18: =Trajet!L24*'Personnel Roulant'!$G$48 -> 0 | L18: =Trajet!M24*'Personnel Roulant'!$G$48 -> 0 | M18: =Trajet!N24*'Personnel Roulant'!$G$48 -> 0 | N18: =Trajet!O24*'Personnel Roulant'!$G$48 -> 0 | O18: =Trajet!P24*'Personnel Roulant'!$G$48 -> 0 | P18: =Trajet!Q24*'Personnel Roulant'!$G$48 -> 0 | Q18: =Trajet!R24*'Personnel Roulant'!$G$48 -> 0 | R18: =Trajet!S24*'Personnel Roulant'!$G$48 -> 0 | S18: =Trajet!T24*'Personnel Roulant'!$G$48 -> 0
C19: Inactivité à l'étranger tous CH | E19: =Trajet!F25*'Personnel Roulant'!$G$50 -> 0 | F19: =Trajet!G25*'Personnel Roulant'!$G$50 -> 0 | G19: =Trajet!H25*'Personnel Roulant'!$G$50 -> 0 | H19: =Trajet!I25*'Personnel Roulant'!$G$50 -> 0 | I19: =Trajet!J25*'Personnel Roulant'!$G$50 -> 0 | J19: =Trajet!K25*'Personnel Roulant'!$G$50 -> 0 | K19: =Trajet!L25*'Personnel Roulant'!$G$50 -> 0 | L19: =Trajet!M25*'Personnel Roulant'!$G$50 -> 0 | M19: =Trajet!N25*'Personnel Roulant'!$G$50 -> 0 | N19: =Trajet!O25*'Personnel Roulant'!$G$50 -> 0 | O19: =Trajet!P25*'Personnel Roulant'!$G$50 -> 0 | P19: =Trajet!Q25*'Personnel Roulant'!$G$50 -> 0 | Q19: =Trajet!R25*'Personnel Roulant'!$G$50 -> 0 | R19: =Trajet!S25*'Personnel Roulant'!$G$50 -> 0 | S19: =Trajet!T25*'Personnel Roulant'!$G$50 -> 0
C20: Prime fin d'année tous CH | E20: =IF(Trajet!F13<1,0,(('Personnel Roulant'!$G$46/'Personnel Roulant'!$G$68)*Trajet!F19)) ->  | F20: =IF(Trajet!G13<1,0,(('Personnel Roulant'!$G$46/'Personnel Roulant'!$G$68)*Trajet!G19)) ->  | G20: =IF(Trajet!H13<1,0,(('Personnel Roulant'!$G$46/'Personnel Roulant'!$G$68)*Trajet!H19)) ->  | H20: =IF(Trajet!I13<1,0,(('Personnel Roulant'!$G$46/'Personnel Roulant'!$G$68)*Trajet!I19)) ->  | I20: =IF(Trajet!J13<1,0,(('Personnel Roulant'!$G$46/'Personnel Roulant'!$G$68)*Trajet!J19)) ->  | J20: =IF(Trajet!K13<1,0,(('Personnel Roulant'!$G$46/'Personnel Roulant'!$G$68)*Trajet!K19)) ->  | K20: =IF(Trajet!L13<1,0,(('Personnel Roulant'!$G$46/'Personnel Roulant'!$G$68)*Trajet!L19)) -> 0 | L20: =IF(Trajet!M13<1,0,(('Personnel Roulant'!$G$46/'Personnel Roulant'!$G$68)*Trajet!M19)) -> 0 | M20: =IF(Trajet!N13<1,0,(('Personnel Roulant'!$G$46/'Personnel Roulant'!$G$68)*Trajet!N19)) -> 0 | N20: =IF(Trajet!O13<1,0,(('Personnel Roulant'!$G$46/'Personnel Roulant'!$G$68)*Trajet!O19)) -> 0 | O20: =IF(Trajet!P13<1,0,(('Personnel Roulant'!$G$46/'Personnel Roulant'!$G$68)*Trajet!P19)) -> 0 | P20: =IF(Trajet!Q13<1,0,(('Personnel Roulant'!$G$46/'Personnel Roulant'!$G$68)*Trajet!Q19)) -> 0 | Q20: =IF(Trajet!R13<1,0,(('Personnel Roulant'!$G$46/'Personnel Roulant'!$G$68)*Trajet!R19)) -> 0 | R20: =IF(Trajet!S13<1,0,(('Personnel Roulant'!$G$46/'Personnel Roulant'!$G$68)*Trajet!S19)) -> 0 | S20: =IF(Trajet!T13<1,0,(('Personnel Roulant'!$G$46/'Personnel Roulant'!$G$68)*Trajet!T19)) -> 0
C21: ONSS employeur tous CH | E21: =IF(Trajet!F13<1,0,((E15+E16+E17+E18+E19+E20)*1.08*'Personnel Roulant'!$G$52)) ->  | F21: =IF(Trajet!G13<1,0,((F15+F16+F17+F18+F19+F20)*1.08*'Personnel Roulant'!$G$52)) ->  | G21: =IF(Trajet!H13<1,0,((G15+G16+G17+G18+G19+G20)*1.08*'Personnel Roulant'!$G$52)) ->  | H21: =IF(Trajet!I13<1,0,((H15+H16+H17+H18+H19+H20)*1.08*'Personnel Roulant'!$G$52)) ->  | I21: =IF(Trajet!J13<1,0,((I15+I16+I17+I18+I19+I20)*1.08*'Personnel Roulant'!$G$52)) ->  | J21: =IF(Trajet!K13<1,0,((J15+J16+J17+J18+J19+J20)*1.08*'Personnel Roulant'!$G$52)) ->  | K21: =IF(Trajet!L13<1,0,((K15+K16+K17+K18+K19+K20)*1.08*'Personnel Roulant'!$G$52)) -> 0 | L21: =IF(Trajet!M13<1,0,((L15+L16+L17+L18+L19+L20)*1.08*'Personnel Roulant'!$G$52)) -> 0 | M21: =IF(Trajet!N13<1,0,((M15+M16+M17+M18+M19+M20)*1.08*'Personnel Roulant'!$G$52)) -> 0 | N21: =IF(Trajet!O13<1,0,((N15+N16+N17+N18+N19+N20)*1.08*'Personnel Roulant'!$G$52)) -> 0 | O21: =IF(Trajet!P13<1,0,((O15+O16+O17+O18+O19+O20)*1.08*'Personnel Roulant'!$G$52)) -> 0 | P21: =IF(Trajet!Q13<1,0,((P15+P16+P17+P18+P19+P20)*1.08*'Personnel Roulant'!$G$52)) -> 0 | Q21: =IF(Trajet!R13<1,0,((Q15+Q16+Q17+Q18+Q19+Q20)*1.08*'Personnel Roulant'!$G$52)) -> 0 | R21: =IF(Trajet!S13<1,0,((R15+R16+R17+R18+R19+R20)*1.08*'Personnel Roulant'!$G$52)) -> 0 | S21: =IF(Trajet!T13<1,0,((S15+S16+S17+S18+S19+S20)*1.08*'Personnel Roulant'!$G$52)) -> 0
C22: Eco-cheques tous CH | E22: =IF(Trajet!F13<1,0,(('Personnel Roulant'!$G$44/'Personnel Roulant'!$G$68)*Trajet!F19)) ->  | F22: =IF(Trajet!G13<1,0,(('Personnel Roulant'!$G$44/'Personnel Roulant'!$G$68)*Trajet!G19)) ->  | G22: =IF(Trajet!H13<1,0,(('Personnel Roulant'!$G$44/'Personnel Roulant'!$G$68)*Trajet!H19)) ->  | H22: =IF(Trajet!I13<1,0,(('Personnel Roulant'!$G$44/'Personnel Roulant'!$G$68)*Trajet!I19)) ->  | I22: =IF(Trajet!J13<1,0,(('Personnel Roulant'!$G$44/'Personnel Roulant'!$G$68)*Trajet!J19)) ->  | J22: =IF(Trajet!K13<1,0,(('Personnel Roulant'!$G$44/'Personnel Roulant'!$G$68)*Trajet!K19)) ->  | K22: =IF(Trajet!L13<1,0,(('Personnel Roulant'!$G$44/'Personnel Roulant'!$G$68)*Trajet!L19)) -> 0 | L22: =IF(Trajet!M13<1,0,(('Personnel Roulant'!$G$44/'Personnel Roulant'!$G$68)*Trajet!M19)) -> 0 | M22: =IF(Trajet!N13<1,0,(('Personnel Roulant'!$G$44/'Personnel Roulant'!$G$68)*Trajet!N19)) -> 0 | N22: =IF(Trajet!O13<1,0,(('Personnel Roulant'!$G$44/'Personnel Roulant'!$G$68)*Trajet!O19)) -> 0 | O22: =IF(Trajet!P13<1,0,(('Personnel Roulant'!$G$44/'Personnel Roulant'!$G$68)*Trajet!P19)) -> 0 | P22: =IF(Trajet!Q13<1,0,(('Personnel Roulant'!$G$44/'Personnel Roulant'!$G$68)*Trajet!Q19)) -> 0 | Q22: =IF(Trajet!R13<1,0,(('Personnel Roulant'!$G$44/'Personnel Roulant'!$G$68)*Trajet!R19)) -> 0 | R22: =IF(Trajet!S13<1,0,(('Personnel Roulant'!$G$44/'Personnel Roulant'!$G$68)*Trajet!S19)) -> 0 | S22: =IF(Trajet!T13<1,0,(('Personnel Roulant'!$G$44/'Personnel Roulant'!$G$68)*Trajet!T19)) -> 0
C23: RGTP CH SIMPLE | E23: =ROUNDUP(E12,0)*'Personnel Roulant'!$G$40 -> 10.55 | F23: =ROUNDUP(F12,0)*'Personnel Roulant'!$G$40 -> 0 | G23: =ROUNDUP(G12,0)*'Personnel Roulant'!$G$40 -> 0 | H23: =ROUNDUP(H12,0)*'Personnel Roulant'!$G$40 -> 0 | I23: =ROUNDUP(I12,0)*'Personnel Roulant'!$G$40 -> 0 | J23: =ROUNDUP(J12,0)*'Personnel Roulant'!$G$40 -> 0 | K23: =ROUNDUP(K12,0)*'Personnel Roulant'!$G$40 -> 0 | L23: =ROUNDUP(L12,0)*'Personnel Roulant'!$G$40 -> 0 | M23: =ROUNDUP(M12,0)*'Personnel Roulant'!$G$40 -> 0 | N23: =ROUNDUP(N12,0)*'Personnel Roulant'!$G$40 -> 0 | O23: =ROUNDUP(O12,0)*'Personnel Roulant'!$G$40 -> 0 | P23: =ROUNDUP(P12,0)*'Personnel Roulant'!$G$40 -> 0 | Q23: =ROUNDUP(Q12,0)*'Personnel Roulant'!$G$40 -> 0 | R23: =ROUNDUP(R12,0)*'Personnel Roulant'!$G$40 -> 0 | S23: =ROUNDUP(S12,0)*'Personnel Roulant'!$G$40 -> 0
C24: RGTP CH1 DOUBLE | E24: =ROUNDUP(E13,0)*'Personnel Roulant'!$G$40 -> 25.32 | F24: =ROUNDUP(F13,0)*'Personnel Roulant'!$G$40 -> 0 | G24: =ROUNDUP(G13,0)*'Personnel Roulant'!$G$40 -> 0 | H24: =ROUNDUP(H13,0)*'Personnel Roulant'!$G$40 -> 0 | I24: =ROUNDUP(I13,0)*'Personnel Roulant'!$G$40 -> 0 | J24: =ROUNDUP(J13,0)*'Personnel Roulant'!$G$40 -> 0 | K24: =ROUNDUP(K13,0)*'Personnel Roulant'!$G$40 -> 0 | L24: =ROUNDUP(L13,0)*'Personnel Roulant'!$G$40 -> 0 | M24: =ROUNDUP(M13,0)*'Personnel Roulant'!$G$40 -> 0 | N24: =ROUNDUP(N13,0)*'Personnel Roulant'!$G$40 -> 0 | O24: =ROUNDUP(O13,0)*'Personnel Roulant'!$G$40 -> 0 | P24: =ROUNDUP(P13,0)*'Personnel Roulant'!$G$40 -> 0 | Q24: =ROUNDUP(Q13,0)*'Personnel Roulant'!$G$40 -> 0 | R24: =ROUNDUP(R13,0)*'Personnel Roulant'!$G$40 -> 0 | S24: =ROUNDUP(S13,0)*'Personnel Roulant'!$G$40 -> 0
C25: RGTP CH2 DOUBLE | E25: =ROUNDUP(E14,0)*'Personnel Roulant'!$G$40 -> 29.54 | F25: =ROUNDUP(F14,0)*'Personnel Roulant'!$G$40 -> 0 | G25: =ROUNDUP(G14,0)*'Personnel Roulant'!$G$40 -> 0 | H25: =ROUNDUP(H14,0)*'Personnel Roulant'!$G$40 -> 0 | I25: =ROUNDUP(I14,0)*'Personnel Roulant'!$G$40 -> 0 | J25: =ROUNDUP(J14,0)*'Personnel Roulant'!$G$40 -> 0 | K25: =ROUNDUP(K14,0)*'Personnel Roulant'!$G$40 -> 0 | L25: =ROUNDUP(L14,0)*'Personnel Roulant'!$G$40 -> 0 | M25: =ROUNDUP(M14,0)*'Personnel Roulant'!$G$40 -> 0 | N25: =ROUNDUP(N14,0)*'Personnel Roulant'!$G$40 -> 0 | O25: =ROUNDUP(O14,0)*'Personnel Roulant'!$G$40 -> 0 | P25: =ROUNDUP(P14,0)*'Personnel Roulant'!$G$40 -> 0 | Q25: =ROUNDUP(Q14,0)*'Personnel Roulant'!$G$40 -> 0 | R25: =ROUNDUP(R14,0)*'Personnel Roulant'!$G$40 -> 0 | S25: =ROUNDUP(S14,0)*'Personnel Roulant'!$G$40 -> 0
C26: Autres coûts tous CH | E26: =IF(Trajet!F13<1,0,((('Personnel Roulant'!$G$54+'Personnel Roulant'!$G$56+'Personnel Roulant'!$G$58+'Personnel Roulant'!$G$60+'Personnel Roulant'!$G$62+'Personnel Roulant'!$G$64+'Personnel Roulant'!$G$66)/'Personnel Roulant'!$G$68)*Trajet!F19)) ->  | F26: =IF(Trajet!G13<1,0,((('Personnel Roulant'!$G$54+'Personnel Roulant'!$G$56+'Personnel Roulant'!$G$58+'Personnel Roulant'!$G$60+'Personnel Roulant'!$G$62+'Personnel Roulant'!$G$64+'Personnel Roulant'!$G$66)/'Personnel Roulant'!$G$68)*Trajet!G19)) ->  | G26: =IF(Trajet!H13<1,0,((('Personnel Roulant'!$G$54+'Personnel Roulant'!$G$56+'Personnel Roulant'!$G$58+'Personnel Roulant'!$G$60+'Personnel Roulant'!$G$62+'Personnel Roulant'!$G$64+'Personnel Roulant'!$G$66)/'Personnel Roulant'!$G$68)*Trajet!H19)) ->  | H26: =IF(Trajet!I13<1,0,((('Personnel Roulant'!$G$54+'Personnel Roulant'!$G$56+'Personnel Roulant'!$G$58+'Personnel Roulant'!$G$60+'Personnel Roulant'!$G$62+'Personnel Roulant'!$G$64+'Personnel Roulant'!$G$66)/'Personnel Roulant'!$G$68)*Trajet!I19)) ->  | I26: =IF(Trajet!J13<1,0,((('Personnel Roulant'!$G$54+'Personnel Roulant'!$G$56+'Personnel Roulant'!$G$58+'Personnel Roulant'!$G$60+'Personnel Roulant'!$G$62+'Personnel Roulant'!$G$64+'Personnel Roulant'!$G$66)/'Personnel Roulant'!$G$68)*Trajet!J19)) ->  | J26: =IF(Trajet!K13<1,0,((('Personnel Roulant'!$G$54+'Personnel Roulant'!$G$56+'Personnel Roulant'!$G$58+'Personnel Roulant'!$G$60+'Personnel Roulant'!$G$62+'Personnel Roulant'!$G$64+'Personnel Roulant'!$G$66)/'Personnel Roulant'!$G$68)*Trajet!K19)) ->  | K26: =IF(Trajet!L13<1,0,((('Personnel Roulant'!$G$54+'Personnel Roulant'!$G$56+'Personnel Roulant'!$G$58+'Personnel Roulant'!$G$60+'Personnel Roulant'!$G$62+'Personnel Roulant'!$G$64+'Personnel Roulant'!$G$66)/'Personnel Roulant'!$G$68)*Trajet!L19)) -> 0 | L26: =IF(Trajet!M13<1,0,((('Personnel Roulant'!$G$54+'Personnel Roulant'!$G$56+'Personnel Roulant'!$G$58+'Personnel Roulant'!$G$60+'Personnel Roulant'!$G$62+'Personnel Roulant'!$G$64+'Personnel Roulant'!$G$66)/'Personnel Roulant'!$G$68)*Trajet!M19)) -> 0 | M26: =IF(Trajet!N13<1,0,((('Personnel Roulant'!$G$54+'Personnel Roulant'!$G$56+'Personnel Roulant'!$G$58+'Personnel Roulant'!$G$60+'Personnel Roulant'!$G$62+'Personnel Roulant'!$G$64+'Personnel Roulant'!$G$66)/'Personnel Roulant'!$G$68)*Trajet!N19)) -> 0 | N26: =IF(Trajet!O13<1,0,((('Personnel Roulant'!$G$54+'Personnel Roulant'!$G$56+'Personnel Roulant'!$G$58+'Personnel Roulant'!$G$60+'Personnel Roulant'!$G$62+'Personnel Roulant'!$G$64+'Personnel Roulant'!$G$66)/'Personnel Roulant'!$G$68)*Trajet!O19)) -> 0 | O26: =IF(Trajet!P13<1,0,((('Personnel Roulant'!$G$54+'Personnel Roulant'!$G$56+'Personnel Roulant'!$G$58+'Personnel Roulant'!$G$60+'Personnel Roulant'!$G$62+'Personnel Roulant'!$G$64+'Personnel Roulant'!$G$66)/'Personnel Roulant'!$G$68)*Trajet!P19)) -> 0 | P26: =IF(Trajet!Q13<1,0,((('Personnel Roulant'!$G$54+'Personnel Roulant'!$G$56+'Personnel Roulant'!$G$58+'Personnel Roulant'!$G$60+'Personnel Roulant'!$G$62+'Personnel Roulant'!$G$64+'Personnel Roulant'!$G$66)/'Personnel Roulant'!$G$68)*Trajet!Q19)) -> 0 | Q26: =IF(Trajet!R13<1,0,((('Personnel Roulant'!$G$54+'Personnel Roulant'!$G$56+'Personnel Roulant'!$G$58+'Personnel Roulant'!$G$60+'Personnel Roulant'!$G$62+'Personnel Roulant'!$G$64+'Personnel Roulant'!$G$66)/'Personnel Roulant'!$G$68)*Trajet!R19)) -> 0 | R26: =IF(Trajet!S13<1,0,((('Personnel Roulant'!$G$54+'Personnel Roulant'!$G$56+'Personnel Roulant'!$G$58+'Personnel Roulant'!$G$60+'Personnel Roulant'!$G$62+'Personnel Roulant'!$G$64+'Personnel Roulant'!$G$66)/'Personnel Roulant'!$G$68)*Trajet!S19)) -> 0 | S26: =IF(Trajet!T13<1,0,((('Personnel Roulant'!$G$54+'Personnel Roulant'!$G$56+'Personnel Roulant'!$G$58+'Personnel Roulant'!$G$60+'Personnel Roulant'!$G$62+'Personnel Roulant'!$G$64+'Personnel Roulant'!$G$66)/'Personnel Roulant'!$G$68)*Trajet!T19)) -> 0
C27: Primes supp Dimanche + Jour férié | E27: =IF(Trajet!F19="","",IF(Trajet!F19=1,Trajet!AD17,IF(Trajet!F19=2,Trajet!AD18+Trajet!AD19,IF(Trajet!F19=3,Trajet!AD18+Trajet!AD19+Trajet!AD17)))) -> 130 | F27: =IF(Trajet!G19="","",IF(Trajet!G19=1,Trajet!AE17,IF(Trajet!G19=2,Trajet!AE18+Trajet!AE19,IF(Trajet!G19=3,Trajet!AE18+Trajet!AE19+Trajet!AE17)))) ->  | G27: =IF(Trajet!H19="","",IF(Trajet!H19=1,Trajet!AF17,IF(Trajet!H19=2,Trajet!AF18+Trajet!AF19,IF(Trajet!H19=3,Trajet!AF18+Trajet!AF19+Trajet!AF17)))) ->  | H27: =IF(Trajet!I19="","",IF(Trajet!I19=1,Trajet!AG17,IF(Trajet!I19=2,Trajet!AG18+Trajet!AG19,IF(Trajet!I19=3,Trajet!AG18+Trajet!AG19+Trajet!AG17)))) ->  | I27: =IF(Trajet!J19="","",IF(Trajet!J19=1,Trajet!AH17,IF(Trajet!J19=2,Trajet!AH18+Trajet!AH19,IF(Trajet!J19=3,Trajet!AH18+Trajet!AH19+Trajet!AH17)))) ->  | J27: =IF(Trajet!K19="","",IF(Trajet!K19=1,Trajet!AI17,IF(Trajet!K19=2,Trajet!AI18+Trajet!AI19,IF(Trajet!K19=3,Trajet!AI18+Trajet!AI19+Trajet!AI17)))) ->  | K27: =IF(Trajet!L19="","",IF(Trajet!L19=1,Trajet!AJ17,IF(Trajet!L19=2,Trajet!AJ18+Trajet!AJ19,IF(Trajet!L19=3,Trajet!AJ18+Trajet!AJ19+Trajet!AJ17)))) ->  | L27: =IF(Trajet!M19="","",IF(Trajet!M19=1,Trajet!AK17,IF(Trajet!M19=2,Trajet!AK18+Trajet!AK19,IF(Trajet!M19=3,Trajet!AK18+Trajet!AK19+Trajet!AK17)))) ->  | M27: =IF(Trajet!N19="","",IF(Trajet!N19=1,Trajet!AL17,IF(Trajet!N19=2,Trajet!AL18+Trajet!AL19,IF(Trajet!N19=3,Trajet!AL18+Trajet!AL19+Trajet!AL17)))) ->  | N27: =IF(Trajet!O19="","",IF(Trajet!O19=1,Trajet!AM17,IF(Trajet!O19=2,Trajet!AM18+Trajet!AM19,IF(Trajet!O19=3,Trajet!AM18+Trajet!AM19+Trajet!AM17)))) ->  | O27: =IF(Trajet!P19="","",IF(Trajet!P19=1,Trajet!AN17,IF(Trajet!P19=2,Trajet!AN18+Trajet!AN19,IF(Trajet!P19=3,Trajet!AN18+Trajet!AN19+Trajet!AN17)))) ->  | P27: =IF(Trajet!Q19="","",IF(Trajet!Q19=1,Trajet!AO17,IF(Trajet!Q19=2,Trajet!AO18+Trajet!AO19,IF(Trajet!Q19=3,Trajet!AO18+Trajet!AO19+Trajet!AO17)))) ->  | Q27: =IF(Trajet!R19="","",IF(Trajet!R19=1,Trajet!AP17,IF(Trajet!R19=2,Trajet!AP18+Trajet!AP19,IF(Trajet!R19=3,Trajet!AP18+Trajet!AP19+Trajet!AP17)))) ->  | R27: =IF(Trajet!S19="","",IF(Trajet!S19=1,Trajet!AQ17,IF(Trajet!S19=2,Trajet!AQ18+Trajet!AQ19,IF(Trajet!S19=3,Trajet!AQ18+Trajet!AQ19+Trajet!AQ17)))) ->  | S27: =IF(Trajet!T19="","",IF(Trajet!T19=1,Trajet!AR17,IF(Trajet!T19=2,Trajet!AR18+Trajet!AR19,IF(Trajet!T19=3,Trajet!AR18+Trajet!AR19+Trajet!AR17)))) -> 
C28: Coûts spécifiques tous CH | E28: =Trajet!F30 -> 0 | F28: =Trajet!G30 -> 0 | G28: =Trajet!H30 -> 0 | H28: =Trajet!I30 -> 0 | I28: =Trajet!J30 -> 0 | J28: =Trajet!K30 -> 0 | K28: =Trajet!L30 -> 0 | L28: =Trajet!M30 -> 0 | M28: =Trajet!N30 -> 0 | N28: =Trajet!O30 -> 0 | O28: =Trajet!P30 -> 0 | P28: =Trajet!Q30 -> 0 | Q28: =Trajet!R30 -> 0 | R28: =Trajet!S30 -> 0 | S28: =Trajet!T30 -> 0
C29: Coût personnel total tous CH | E29: =IF(Trajet!F13<1,0,(E15+E16+E17+E18+E19+E20+E22+E21+E23+E24+E25+E26+E28+E27)) ->  | F29: =IF(Trajet!G13<1,0,(F15+F16+F17+F18+F19+F20+F22+F21+F23+F24+F25+F26+F27+F28)) ->  | G29: =IF(Trajet!H13<1,0,(G15+G16+G17+G18+G19+G20+G22+G21+G23+G24+G25+G26+G27+G28)) ->  | H29: =IF(Trajet!I13<1,0,(H15+H16+H17+H18+H19+H20+H22+H21+H23+H24+H25+H26+H27+H28)) ->  | I29: =IF(Trajet!J13<1,0,(I15+I16+I17+I18+I19+I20+I22+I21+I23+I24+I25+I26+I27+I28)) ->  | J29: =IF(Trajet!K13<1,0,(J15+J16+J17+J18+J19+J20+J22+J21+J23+J24+J25+J26+J27+J28)) ->  | K29: =IF(Trajet!L13<1,0,(K15+K16+K17+K18+K19+K20+K22+K21+K23+K24+K25+K26+K27+K28)) -> 0 | L29: =IF(Trajet!M13<1,0,(L15+L16+L17+L18+L19+L20+L22+L21+L23+L24+L25+L26+L27+L28)) -> 0 | M29: =IF(Trajet!N13<1,0,(M15+M16+M17+M18+M19+M20+M22+M21+M23+M24+M25+M26+M27+M28)) -> 0 | N29: =IF(Trajet!O13<1,0,(N15+N16+N17+N18+N19+N20+N22+N21+N23+N24+N25+N26+N27+N28)) -> 0 | O29: =IF(Trajet!P13<1,0,(O15+O16+O17+O18+O19+O20+O22+O21+O23+O24+O25+O26+O27+O28)) -> 0 | P29: =IF(Trajet!Q13<1,0,(P15+P16+P17+P18+P19+P20+P22+P21+P23+P24+P25+P26+P27+P28)) -> 0 | Q29: =IF(Trajet!R13<1,0,(Q15+Q16+Q17+Q18+Q19+Q20+Q22+Q21+Q23+Q24+Q25+Q26+Q27+Q28)) -> 0 | R29: =IF(Trajet!S13<1,0,(R15+R16+R17+R18+R19+R20+R22+R21+R23+R24+R25+R26+R27+R28)) -> 0 | S29: =IF(Trajet!T13<1,0,(S15+S16+S17+S18+S19+S20+S22+S21+S23+S24+S25+S26+S27+S28)) -> 0
G32: Coût personnel roulant | J32: ='Vehicule utilise'!W10 ->  | L32: ='Vehicule utilise'!S10 -> Mercedes
E37: jour | F37: jour | G37: jour | H37: jour | I37: jour | J37: jour | K37: jour | L37: jour | M37: jour | N37: jour | O37: jour | P37: jour | Q37: jour | R37: jour | S37: jour
E38: 1 | F38: 2 | G38: 3 | H38: 4 | I38: 5 | J38: 6 | K38: 7 | L38: 8 | M38: 9 | N38: 10 | O38: 11 | P38: 12 | Q38: 13 | R38: 14 | S38: 15
C39: Temps de service CH SIMPLE | E39: =Trajet!F54*24 -> 11 | F39: =Trajet!G54*24 -> 0 | G39: =Trajet!H54*24 -> 0 | H39: =Trajet!I54*24 -> 0 | I39: =Trajet!J54*24 -> 0 | J39: =Trajet!K54*24 -> 0 | K39: =Trajet!L54*24 -> 0 | L39: =Trajet!M54*24 -> 0 | M39: =Trajet!N54*24 -> 0 | N39: =Trajet!O54*24 -> 0 | O39: =Trajet!P54*24 -> 0 | P39: =Trajet!Q54*24 -> 0 | Q39: =Trajet!R54*24 -> 0 | R39: =Trajet!S54*24 -> 0 | S39: =Trajet!T54*24 -> 0
C40: Temps de service CH1 DOUBLE | E40: =Trajet!F55*24 -> 6 | F40: =Trajet!G55*24 -> 0 | G40: =Trajet!H55*24 -> 0 | H40: =Trajet!I55*24 -> 0 | I40: =Trajet!J55*24 -> 0 | J40: =Trajet!K55*24 -> 0 | K40: =Trajet!L55*24 -> 0 | L40: =Trajet!M55*24 -> 0 | M40: =Trajet!N55*24 -> 0 | N40: =Trajet!O55*24 -> 0 | O40: =Trajet!P55*24 -> 0 | P40: =Trajet!Q55*24 -> 0 | Q40: =Trajet!R55*24 -> 0 | R40: =Trajet!S55*24 -> 0 | S40: =Trajet!T55*24 -> 0
C41: Temps de service CH2 DOUBLE | E41: =Trajet!F56*24 -> 5 | F41: =Trajet!G56*24 -> 0 | G41: =Trajet!H56*24 -> 0 | H41: =Trajet!I56*24 -> 0 | I41: =Trajet!J56*24 -> 0 | J41: =Trajet!K56*24 -> 0 | K41: =Trajet!L56*24 -> 0 | L41: =Trajet!M56*24 -> 0 | M41: =Trajet!N56*24 -> 0 | N41: =Trajet!O56*24 -> 0 | O41: =Trajet!P56*24 -> 0 | P41: =Trajet!Q56*24 -> 0 | Q41: =Trajet!R56*24 -> 0 | R41: =Trajet!S56*24 -> 0 | S41: =Trajet!T56*24 -> 0
C42: Bruto Sal CH SIMPLE | E42: =IF(AND(E39>0,E39<=6,Trajet!F53="Autre"),('Personnel Roulant'!$G$50+'Personnel Roulant'!$G$42),IF(AND(E39>0,E39<=6),('Personnel Roulant'!$G$9+'Personnel Roulant'!$G$42),IF(AND(E39>6,E39<=12),'Personnel Roulant'!$G$11+'Personnel Roulant'!$G$42,IF(E39>0,'Personnel Roulant'!$G$11+(ROUNDUP(E39,0)-12)*'Personnel Roulant'!$G$13+'Personnel Roulant'!$G$42,0)))) -> 132.29 | F42: =IF(AND(F39>0,F39<=6,Trajet!G53="Autre"),('Personnel Roulant'!$G$50+'Personnel Roulant'!$G$42),IF(AND(F39>0,F39<=6),('Personnel Roulant'!$G$9+'Personnel Roulant'!$G$42),IF(AND(F39>6,F39<=12),'Personnel Roulant'!$G$11+'Personnel Roulant'!$G$42,IF(F39>0,'Personnel Roulant'!$G$11+(ROUNDUP(F39,0)-12)*'Personnel Roulant'!$G$13+'Personnel Roulant'!$G$42,0)))) -> 0 | G42: =IF(AND(G39>0,G39<=6,Trajet!H53="Autre"),('Personnel Roulant'!$G$50+'Personnel Roulant'!$G$42),IF(AND(G39>0,G39<=6),('Personnel Roulant'!$G$9+'Personnel Roulant'!$G$42),IF(AND(G39>6,G39<=12),'Personnel Roulant'!$G$11+'Personnel Roulant'!$G$42,IF(G39>0,'Personnel Roulant'!$G$11+(ROUNDUP(G39,0)-12)*'Personnel Roulant'!$G$13+'Personnel Roulant'!$G$42,0)))) -> 0 | H42: =IF(AND(H39>0,H39<=6,Trajet!I53="Autre"),('Personnel Roulant'!$G$50+'Personnel Roulant'!$G$42),IF(AND(H39>0,H39<=6),('Personnel Roulant'!$G$9+'Personnel Roulant'!$G$42),IF(AND(H39>6,H39<=12),'Personnel Roulant'!$G$11+'Personnel Roulant'!$G$42,IF(H39>0,'Personnel Roulant'!$G$11+(ROUNDUP(H39,0)-12)*'Personnel Roulant'!$G$13+'Personnel Roulant'!$G$42,0)))) -> 0 | I42: =IF(AND(I39>0,I39<=6,Trajet!J53="Autre"),('Personnel Roulant'!$G$50+'Personnel Roulant'!$G$42),IF(AND(I39>0,I39<=6),('Personnel Roulant'!$G$9+'Personnel Roulant'!$G$42),IF(AND(I39>6,I39<=12),'Personnel Roulant'!$G$11+'Personnel Roulant'!$G$42,IF(I39>0,'Personnel Roulant'!$G$11+(ROUNDUP(I39,0)-12)*'Personnel Roulant'!$G$13+'Personnel Roulant'!$G$42,0)))) -> 0 | J42: =IF(AND(J39>0,J39<=6,Trajet!K53="Autre"),('Personnel Roulant'!$G$50+'Personnel Roulant'!$G$42),IF(AND(J39>0,J39<=6),('Personnel Roulant'!$G$9+'Personnel Roulant'!$G$42),IF(AND(J39>6,J39<=12),'Personnel Roulant'!$G$11+'Personnel Roulant'!$G$42,IF(J39>0,'Personnel Roulant'!$G$11+(ROUNDUP(J39,0)-12)*'Personnel Roulant'!$G$13+'Personnel Roulant'!$G$42,0)))) -> 0 | K42: =IF(AND(K39>0,K39<=6,Trajet!L53="Autre"),('Personnel Roulant'!$G$50+'Personnel Roulant'!$G$42),IF(AND(K39>0,K39<=6),('Personnel Roulant'!$G$9+'Personnel Roulant'!$G$42),IF(AND(K39>6,K39<=12),'Personnel Roulant'!$G$11+'Personnel Roulant'!$G$42,IF(K39>0,'Personnel Roulant'!$G$11+(ROUNDUP(K39,0)-12)*'Personnel Roulant'!$G$13+'Personnel Roulant'!$G$42,0)))) -> 0 | L42: =IF(AND(L39>0,L39<=6,Trajet!M53="Autre"),('Personnel Roulant'!$G$50+'Personnel Roulant'!$G$42),IF(AND(L39>0,L39<=6),('Personnel Roulant'!$G$9+'Personnel Roulant'!$G$42),IF(AND(L39>6,L39<=12),'Personnel Roulant'!$G$11+'Personnel Roulant'!$G$42,IF(L39>0,'Personnel Roulant'!$G$11+(ROUNDUP(L39,0)-12)*'Personnel Roulant'!$G$13+'Personnel Roulant'!$G$42,0)))) -> 0 | M42: =IF(AND(M39>0,M39<=6,Trajet!N53="Autre"),('Personnel Roulant'!$G$50+'Personnel Roulant'!$G$42),IF(AND(M39>0,M39<=6),('Personnel Roulant'!$G$9+'Personnel Roulant'!$G$42),IF(AND(M39>6,M39<=12),'Personnel Roulant'!$G$11+'Personnel Roulant'!$G$42,IF(M39>0,'Personnel Roulant'!$G$11+(ROUNDUP(M39,0)-12)*'Personnel Roulant'!$G$13+'Personnel Roulant'!$G$42,0)))) -> 0 | N42: =IF(AND(N39>0,N39<=6,Trajet!O53="Autre"),('Personnel Roulant'!$G$50+'Personnel Roulant'!$G$42),IF(AND(N39>0,N39<=6),('Personnel Roulant'!$G$9+'Personnel Roulant'!$G$42),IF(AND(N39>6,N39<=12),'Personnel Roulant'!$G$11+'Personnel Roulant'!$G$42,IF(N39>0,'Personnel Roulant'!$G$11+(ROUNDUP(N39,0)-12)*'Personnel Roulant'!$G$13+'Personnel Roulant'!$G$42,0)))) -> 0 | O42: =IF(AND(O39>0,O39<=6,Trajet!P53="Autre"),('Personnel Roulant'!$G$50+'Personnel Roulant'!$G$42),IF(AND(O39>0,O39<=6),('Personnel Roulant'!$G$9+'Personnel Roulant'!$G$42),IF(AND(O39>6,O39<=12),'Personnel Roulant'!$G$11+'Personnel Roulant'!$G$42,IF(O39>0,'Personnel Roulant'!$G$11+(ROUNDUP(O39,0)-12)*'Personnel Roulant'!$G$13+'Personnel Roulant'!$G$42,0)))) -> 0 | P42: =IF(AND(P39>0,P39<=6,Trajet!Q53="Autre"),('Personnel Roulant'!$G$50+'Personnel Roulant'!$G$42),IF(AND(P39>0,P39<=6),('Personnel Roulant'!$G$9+'Personnel Roulant'!$G$42),IF(AND(P39>6,P39<=12),'Personnel Roulant'!$G$11+'Personnel Roulant'!$G$42,IF(P39>0,'Personnel Roulant'!$G$11+(ROUNDUP(P39,0)-12)*'Personnel Roulant'!$G$13+'Personnel Roulant'!$G$42,0)))) -> 0 | Q42: =IF(AND(Q39>0,Q39<=6,Trajet!R53="Autre"),('Personnel Roulant'!$G$50+'Personnel Roulant'!$G$42),IF(AND(Q39>0,Q39<=6),('Personnel Roulant'!$G$9+'Personnel Roulant'!$G$42),IF(AND(Q39>6,Q39<=12),'Personnel Roulant'!$G$11+'Personnel Roulant'!$G$42,IF(Q39>0,'Personnel Roulant'!$G$11+(ROUNDUP(Q39,0)-12)*'Personnel Roulant'!$G$13+'Personnel Roulant'!$G$42,0)))) -> 0 | R42: =IF(AND(R39>0,R39<=6,Trajet!S53="Autre"),('Personnel Roulant'!$G$50+'Personnel Roulant'!$G$42),IF(AND(R39>0,R39<=6),('Personnel Roulant'!$G$9+'Personnel Roulant'!$G$42),IF(AND(R39>6,R39<=12),'Personnel Roulant'!$G$11+'Personnel Roulant'!$G$42,IF(R39>0,'Personnel Roulant'!$G$11+(ROUNDUP(R39,0)-12)*'Personnel Roulant'!$G$13+'Personnel Roulant'!$G$42,0)))) -> 0 | S42: =IF(AND(S39>0,S39<=6,Trajet!T53="Autre"),('Personnel Roulant'!$G$50+'Personnel Roulant'!$G$42),IF(AND(S39>0,S39<=6),('Personnel Roulant'!$G$9+'Personnel Roulant'!$G$42),IF(AND(S39>6,S39<=12),'Personnel Roulant'!$G$11+'Personnel Roulant'!$G$42,IF(S39>0,'Personnel Roulant'!$G$11+(ROUNDUP(S39,0)-12)*'Personnel Roulant'!$G$13+'Personnel Roulant'!$G$42,0)))) -> 0
C43: Salaire brut CH1 DOUBLE | E43: =IF(E40=0,0,IF(E40<12,'Personnel Roulant'!$G$16+'Personnel Roulant'!$G$42,IF(E40<13,'Personnel Roulant'!$G$18+'Personnel Roulant'!$G$42,IF(E40<14,'Personnel Roulant'!$G$20+'Personnel Roulant'!$G$42,IF(E40<15,'Personnel Roulant'!$G$22+'Personnel Roulant'!$G$42,IF(E40<16,'Personnel Roulant'!$G$24+'Personnel Roulant'!$G$42,IF(E40<17,'Personnel Roulant'!$G$26+'Personnel Roulant'!$G$42,IF(E40<18,'Personnel Roulant'!$G$28+'Personnel Roulant'!$G$42,IF(E40<19,'Personnel Roulant'!$G$30+'Personnel Roulant'!$G$42,IF(E40<20,'Personnel Roulant'!$G$32+'Personnel Roulant'!$G$42,IF(E40<21,'Personnel Roulant'!$G$34+'Personnel Roulant'!$G$42,IF(E40<22,'Personnel Roulant'!$G$36+'Personnel Roulant'!$G$42)))))))))))) -> 108.11 | F43: =IF(F40=0,0,IF(F40<12,'Personnel Roulant'!$G$16+'Personnel Roulant'!$G$42,IF(F40<13,'Personnel Roulant'!$G$18+'Personnel Roulant'!$G$42,IF(F40<14,'Personnel Roulant'!$G$20+'Personnel Roulant'!$G$42,IF(F40<15,'Personnel Roulant'!$G$22+'Personnel Roulant'!$G$42,IF(F40<16,'Personnel Roulant'!$G$24+'Personnel Roulant'!$G$42,IF(F40<17,'Personnel Roulant'!$G$26+'Personnel Roulant'!$G$42,IF(F40<18,'Personnel Roulant'!$G$28+'Personnel Roulant'!$G$42,IF(F40<19,'Personnel Roulant'!$G$30+'Personnel Roulant'!$G$42,IF(F40<20,'Personnel Roulant'!$G$32+'Personnel Roulant'!$G$42,IF(F40<21,'Personnel Roulant'!$G$34+'Personnel Roulant'!$G$42,IF(F40<22,'Personnel Roulant'!$G$36+'Personnel Roulant'!$G$42)))))))))))) -> 0 | G43: =IF(G40=0,0,IF(G40<12,'Personnel Roulant'!$G$16+'Personnel Roulant'!$G$42,IF(G40<13,'Personnel Roulant'!$G$18+'Personnel Roulant'!$G$42,IF(G40<14,'Personnel Roulant'!$G$20+'Personnel Roulant'!$G$42,IF(G40<15,'Personnel Roulant'!$G$22+'Personnel Roulant'!$G$42,IF(G40<16,'Personnel Roulant'!$G$24+'Personnel Roulant'!$G$42,IF(G40<17,'Personnel Roulant'!$G$26+'Personnel Roulant'!$G$42,IF(G40<18,'Personnel Roulant'!$G$28+'Personnel Roulant'!$G$42,IF(G40<19,'Personnel Roulant'!$G$30+'Personnel Roulant'!$G$42,IF(G40<20,'Personnel Roulant'!$G$32+'Personnel Roulant'!$G$42,IF(G40<21,'Personnel Roulant'!$G$34+'Personnel Roulant'!$G$42,IF(G40<22,'Personnel Roulant'!$G$36+'Personnel Roulant'!$G$42)))))))))))) -> 0 | H43: =IF(H40=0,0,IF(H40<12,'Personnel Roulant'!$G$16+'Personnel Roulant'!$G$42,IF(H40<13,'Personnel Roulant'!$G$18+'Personnel Roulant'!$G$42,IF(H40<14,'Personnel Roulant'!$G$20+'Personnel Roulant'!$G$42,IF(H40<15,'Personnel Roulant'!$G$22+'Personnel Roulant'!$G$42,IF(H40<16,'Personnel Roulant'!$G$24+'Personnel Roulant'!$G$42,IF(H40<17,'Personnel Roulant'!$G$26+'Personnel Roulant'!$G$42,IF(H40<18,'Personnel Roulant'!$G$28+'Personnel Roulant'!$G$42,IF(H40<19,'Personnel Roulant'!$G$30+'Personnel Roulant'!$G$42,IF(H40<20,'Personnel Roulant'!$G$32+'Personnel Roulant'!$G$42,IF(H40<21,'Personnel Roulant'!$G$34+'Personnel Roulant'!$G$42,IF(H40<22,'Personnel Roulant'!$G$36+'Personnel Roulant'!$G$42)))))))))))) -> 0 | I43: =IF(I40=0,0,IF(I40<12,'Personnel Roulant'!$G$16+'Personnel Roulant'!$G$42,IF(I40<13,'Personnel Roulant'!$G$18+'Personnel Roulant'!$G$42,IF(I40<14,'Personnel Roulant'!$G$20+'Personnel Roulant'!$G$42,IF(I40<15,'Personnel Roulant'!$G$22+'Personnel Roulant'!$G$42,IF(I40<16,'Personnel Roulant'!$G$24+'Personnel Roulant'!$G$42,IF(I40<17,'Personnel Roulant'!$G$26+'Personnel Roulant'!$G$42,IF(I40<18,'Personnel Roulant'!$G$28+'Personnel Roulant'!$G$42,IF(I40<19,'Personnel Roulant'!$G$30+'Personnel Roulant'!$G$42,IF(I40<20,'Personnel Roulant'!$G$32+'Personnel Roulant'!$G$42,IF(I40<21,'Personnel Roulant'!$G$34+'Personnel Roulant'!$G$42,IF(I40<22,'Personnel Roulant'!$G$36+'Personnel Roulant'!$G$42)))))))))))) -> 0 | J43: =IF(J40=0,0,IF(J40<12,'Personnel Roulant'!$G$16+'Personnel Roulant'!$G$42,IF(J40<13,'Personnel Roulant'!$G$18+'Personnel Roulant'!$G$42,IF(J40<14,'Personnel Roulant'!$G$20+'Personnel Roulant'!$G$42,IF(J40<15,'Personnel Roulant'!$G$22+'Personnel Roulant'!$G$42,IF(J40<16,'Personnel Roulant'!$G$24+'Personnel Roulant'!$G$42,IF(J40<17,'Personnel Roulant'!$G$26+'Personnel Roulant'!$G$42,IF(J40<18,'Personnel Roulant'!$G$28+'Personnel Roulant'!$G$42,IF(J40<19,'Personnel Roulant'!$G$30+'Personnel Roulant'!$G$42,IF(J40<20,'Personnel Roulant'!$G$32+'Personnel Roulant'!$G$42,IF(J40<21,'Personnel Roulant'!$G$34+'Personnel Roulant'!$G$42,IF(J40<22,'Personnel Roulant'!$G$36+'Personnel Roulant'!$G$42)))))))))))) -> 0 | K43: =IF(K40=0,0,IF(K40<12,'Personnel Roulant'!$G$16+'Personnel Roulant'!$G$42,IF(K40<13,'Personnel Roulant'!$G$18+'Personnel Roulant'!$G$42,IF(K40<14,'Personnel Roulant'!$G$20+'Personnel Roulant'!$G$42,IF(K40<15,'Personnel Roulant'!$G$22+'Personnel Roulant'!$G$42,IF(K40<16,'Personnel Roulant'!$G$24+'Personnel Roulant'!$G$42,IF(K40<17,'Personnel Roulant'!$G$26+'Personnel Roulant'!$G$42,IF(K40<18,'Personnel Roulant'!$G$28+'Personnel Roulant'!$G$42,IF(K40<19,'Personnel Roulant'!$G$30+'Personnel Roulant'!$G$42,IF(K40<20,'Personnel Roulant'!$G$32+'Personnel Roulant'!$G$42,IF(K40<21,'Personnel Roulant'!$G$34+'Personnel Roulant'!$G$42,IF(K40<22,'Personnel Roulant'!$G$36+'Personnel Roulant'!$G$42)))))))))))) -> 0 | L43: =IF(L40=0,0,IF(L40<12,'Personnel Roulant'!$G$16+'Personnel Roulant'!$G$42,IF(L40<13,'Personnel Roulant'!$G$18+'Personnel Roulant'!$G$42,IF(L40<14,'Personnel Roulant'!$G$20+'Personnel Roulant'!$G$42,IF(L40<15,'Personnel Roulant'!$G$22+'Personnel Roulant'!$G$42,IF(L40<16,'Personnel Roulant'!$G$24+'Personnel Roulant'!$G$42,IF(L40<17,'Personnel Roulant'!$G$26+'Personnel Roulant'!$G$42,IF(L40<18,'Personnel Roulant'!$G$28+'Personnel Roulant'!$G$42,IF(L40<19,'Personnel Roulant'!$G$30+'Personnel Roulant'!$G$42,IF(L40<20,'Personnel Roulant'!$G$32+'Personnel Roulant'!$G$42,IF(L40<21,'Personnel Roulant'!$G$34+'Personnel Roulant'!$G$42,IF(L40<22,'Personnel Roulant'!$G$36+'Personnel Roulant'!$G$42)))))))))))) -> 0 | M43: =IF(M40=0,0,IF(M40<12,'Personnel Roulant'!$G$16+'Personnel Roulant'!$G$42,IF(M40<13,'Personnel Roulant'!$G$18+'Personnel Roulant'!$G$42,IF(M40<14,'Personnel Roulant'!$G$20+'Personnel Roulant'!$G$42,IF(M40<15,'Personnel Roulant'!$G$22+'Personnel Roulant'!$G$42,IF(M40<16,'Personnel Roulant'!$G$24+'Personnel Roulant'!$G$42,IF(M40<17,'Personnel Roulant'!$G$26+'Personnel Roulant'!$G$42,IF(M40<18,'Personnel Roulant'!$G$28+'Personnel Roulant'!$G$42,IF(M40<19,'Personnel Roulant'!$G$30+'Personnel Roulant'!$G$42,IF(M40<20,'Personnel Roulant'!$G$32+'Personnel Roulant'!$G$42,IF(M40<21,'Personnel Roulant'!$G$34+'Personnel Roulant'!$G$42,IF(M40<22,'Personnel Roulant'!$G$36+'Personnel Roulant'!$G$42)))))))))))) -> 0 | N43: =IF(N40=0,0,IF(N40<12,'Personnel Roulant'!$G$16+'Personnel Roulant'!$G$42,IF(N40<13,'Personnel Roulant'!$G$18+'Personnel Roulant'!$G$42,IF(N40<14,'Personnel Roulant'!$G$20+'Personnel Roulant'!$G$42,IF(N40<15,'Personnel Roulant'!$G$22+'Personnel Roulant'!$G$42,IF(N40<16,'Personnel Roulant'!$G$24+'Personnel Roulant'!$G$42,IF(N40<17,'Personnel Roulant'!$G$26+'Personnel Roulant'!$G$42,IF(N40<18,'Personnel Roulant'!$G$28+'Personnel Roulant'!$G$42,IF(N40<19,'Personnel Roulant'!$G$30+'Personnel Roulant'!$G$42,IF(N40<20,'Personnel Roulant'!$G$32+'Personnel Roulant'!$G$42,IF(N40<21,'Personnel Roulant'!$G$34+'Personnel Roulant'!$G$42,IF(N40<22,'Personnel Roulant'!$G$36+'Personnel Roulant'!$G$42)))))))))))) -> 0 | O43: =IF(O40=0,0,IF(O40<12,'Personnel Roulant'!$G$16+'Personnel Roulant'!$G$42,IF(O40<13,'Personnel Roulant'!$G$18+'Personnel Roulant'!$G$42,IF(O40<14,'Personnel Roulant'!$G$20+'Personnel Roulant'!$G$42,IF(O40<15,'Personnel Roulant'!$G$22+'Personnel Roulant'!$G$42,IF(O40<16,'Personnel Roulant'!$G$24+'Personnel Roulant'!$G$42,IF(O40<17,'Personnel Roulant'!$G$26+'Personnel Roulant'!$G$42,IF(O40<18,'Personnel Roulant'!$G$28+'Personnel Roulant'!$G$42,IF(O40<19,'Personnel Roulant'!$G$30+'Personnel Roulant'!$G$42,IF(O40<20,'Personnel Roulant'!$G$32+'Personnel Roulant'!$G$42,IF(O40<21,'Personnel Roulant'!$G$34+'Personnel Roulant'!$G$42,IF(O40<22,'Personnel Roulant'!$G$36+'Personnel Roulant'!$G$42)))))))))))) -> 0 | P43: =IF(P40=0,0,IF(P40<12,'Personnel Roulant'!$G$16+'Personnel Roulant'!$G$42,IF(P40<13,'Personnel Roulant'!$G$18+'Personnel Roulant'!$G$42,IF(P40<14,'Personnel Roulant'!$G$20+'Personnel Roulant'!$G$42,IF(P40<15,'Personnel Roulant'!$G$22+'Personnel Roulant'!$G$42,IF(P40<16,'Personnel Roulant'!$G$24+'Personnel Roulant'!$G$42,IF(P40<17,'Personnel Roulant'!$G$26+'Personnel Roulant'!$G$42,IF(P40<18,'Personnel Roulant'!$G$28+'Personnel Roulant'!$G$42,IF(P40<19,'Personnel Roulant'!$G$30+'Personnel Roulant'!$G$42,IF(P40<20,'Personnel Roulant'!$G$32+'Personnel Roulant'!$G$42,IF(P40<21,'Personnel Roulant'!$G$34+'Personnel Roulant'!$G$42,IF(P40<22,'Personnel Roulant'!$G$36+'Personnel Roulant'!$G$42)))))))))))) -> 0 | Q43: =IF(Q40=0,0,IF(Q40<12,'Personnel Roulant'!$G$16+'Personnel Roulant'!$G$42,IF(Q40<13,'Personnel Roulant'!$G$18+'Personnel Roulant'!$G$42,IF(Q40<14,'Personnel Roulant'!$G$20+'Personnel Roulant'!$G$42,IF(Q40<15,'Personnel Roulant'!$G$22+'Personnel Roulant'!$G$42,IF(Q40<16,'Personnel Roulant'!$G$24+'Personnel Roulant'!$G$42,IF(Q40<17,'Personnel Roulant'!$G$26+'Personnel Roulant'!$G$42,IF(Q40<18,'Personnel Roulant'!$G$28+'Personnel Roulant'!$G$42,IF(Q40<19,'Personnel Roulant'!$G$30+'Personnel Roulant'!$G$42,IF(Q40<20,'Personnel Roulant'!$G$32+'Personnel Roulant'!$G$42,IF(Q40<21,'Personnel Roulant'!$G$34+'Personnel Roulant'!$G$42,IF(Q40<22,'Personnel Roulant'!$G$36+'Personnel Roulant'!$G$42)))))))))))) -> 0 | R43: =IF(R40=0,0,IF(R40<12,'Personnel Roulant'!$G$16+'Personnel Roulant'!$G$42,IF(R40<13,'Personnel Roulant'!$G$18+'Personnel Roulant'!$G$42,IF(R40<14,'Personnel Roulant'!$G$20+'Personnel Roulant'!$G$42,IF(R40<15,'Personnel Roulant'!$G$22+'Personnel Roulant'!$G$42,IF(R40<16,'Personnel Roulant'!$G$24+'Personnel Roulant'!$G$42,IF(R40<17,'Personnel Roulant'!$G$26+'Personnel Roulant'!$G$42,IF(R40<18,'Personnel Roulant'!$G$28+'Personnel Roulant'!$G$42,IF(R40<19,'Personnel Roulant'!$G$30+'Personnel Roulant'!$G$42,IF(R40<20,'Personnel Roulant'!$G$32+'Personnel Roulant'!$G$42,IF(R40<21,'Personnel Roulant'!$G$34+'Personnel Roulant'!$G$42,IF(R40<22,'Personnel Roulant'!$G$36+'Personnel Roulant'!$G$42)))))))))))) -> 0 | S43: =IF(S40=0,0,IF(S40<12,'Personnel Roulant'!$G$16+'Personnel Roulant'!$G$42,IF(S40<13,'Personnel Roulant'!$G$18+'Personnel Roulant'!$G$42,IF(S40<14,'Personnel Roulant'!$G$20+'Personnel Roulant'!$G$42,IF(S40<15,'Personnel Roulant'!$G$22+'Personnel Roulant'!$G$42,IF(S40<16,'Personnel Roulant'!$G$24+'Personnel Roulant'!$G$42,IF(S40<17,'Personnel Roulant'!$G$26+'Personnel Roulant'!$G$42,IF(S40<18,'Personnel Roulant'!$G$28+'Personnel Roulant'!$G$42,IF(S40<19,'Personnel Roulant'!$G$30+'Personnel Roulant'!$G$42,IF(S40<20,'Personnel Roulant'!$G$32+'Personnel Roulant'!$G$42,IF(S40<21,'Personnel Roulant'!$G$34+'Personnel Roulant'!$G$42,IF(S40<22,'Personnel Roulant'!$G$36+'Personnel Roulant'!$G$42)))))))))))) -> 0
C44: Salaire brut CH2 DOUBLE | E44: =IF(E41=0,0,IF(E41<12,'Personnel Roulant'!$G$16+'Personnel Roulant'!$G$42,IF(E41<13,'Personnel Roulant'!$G$18+'Personnel Roulant'!$G$42,IF(E41<14,'Personnel Roulant'!$G$20+'Personnel Roulant'!$G$42,IF(E41<15,'Personnel Roulant'!$G$22+'Personnel Roulant'!$G$42,IF(E41<16,'Personnel Roulant'!$G$24+'Personnel Roulant'!$G$42,IF(E41<17,'Personnel Roulant'!$G$26+'Personnel Roulant'!$G$42,IF(E41<18,'Personnel Roulant'!$G$28+'Personnel Roulant'!$G$42,IF(E41<19,'Personnel Roulant'!$G$30+'Personnel Roulant'!$G$42,IF(E41<20,'Personnel Roulant'!$G$32+'Personnel Roulant'!$G$42,IF(E41<21,'Personnel Roulant'!$G$34+'Personnel Roulant'!$G$42,IF(E41<22,'Personnel Roulant'!$G$36+'Personnel Roulant'!$G$42)))))))))))) -> 108.11 | F44: =IF(F41=0,0,IF(F41<12,'Personnel Roulant'!$G$16+'Personnel Roulant'!$G$42,IF(F41<13,'Personnel Roulant'!$G$18+'Personnel Roulant'!$G$42,IF(F41<14,'Personnel Roulant'!$G$20+'Personnel Roulant'!$G$42,IF(F41<15,'Personnel Roulant'!$G$22+'Personnel Roulant'!$G$42,IF(F41<16,'Personnel Roulant'!$G$24+'Personnel Roulant'!$G$42,IF(F41<17,'Personnel Roulant'!$G$26+'Personnel Roulant'!$G$42,IF(F41<18,'Personnel Roulant'!$G$28+'Personnel Roulant'!$G$42,IF(F41<19,'Personnel Roulant'!$G$30+'Personnel Roulant'!$G$42,IF(F41<20,'Personnel Roulant'!$G$32+'Personnel Roulant'!$G$42,IF(F41<21,'Personnel Roulant'!$G$34+'Personnel Roulant'!$G$42,IF(F41<22,'Personnel Roulant'!$G$36+'Personnel Roulant'!$G$42)))))))))))) -> 0 | G44: =IF(G41=0,0,IF(G41<12,'Personnel Roulant'!$G$16+'Personnel Roulant'!$G$42,IF(G41<13,'Personnel Roulant'!$G$18+'Personnel Roulant'!$G$42,IF(G41<14,'Personnel Roulant'!$G$20+'Personnel Roulant'!$G$42,IF(G41<15,'Personnel Roulant'!$G$22+'Personnel Roulant'!$G$42,IF(G41<16,'Personnel Roulant'!$G$24+'Personnel Roulant'!$G$42,IF(G41<17,'Personnel Roulant'!$G$26+'Personnel Roulant'!$G$42,IF(G41<18,'Personnel Roulant'!$G$28+'Personnel Roulant'!$G$42,IF(G41<19,'Personnel Roulant'!$G$30+'Personnel Roulant'!$G$42,IF(G41<20,'Personnel Roulant'!$G$32+'Personnel Roulant'!$G$42,IF(G41<21,'Personnel Roulant'!$G$34+'Personnel Roulant'!$G$42,IF(G41<22,'Personnel Roulant'!$G$36+'Personnel Roulant'!$G$42)))))))))))) -> 0 | H44: =IF(H41=0,0,IF(H41<12,'Personnel Roulant'!$G$16+'Personnel Roulant'!$G$42,IF(H41<13,'Personnel Roulant'!$G$18+'Personnel Roulant'!$G$42,IF(H41<14,'Personnel Roulant'!$G$20+'Personnel Roulant'!$G$42,IF(H41<15,'Personnel Roulant'!$G$22+'Personnel Roulant'!$G$42,IF(H41<16,'Personnel Roulant'!$G$24+'Personnel Roulant'!$G$42,IF(H41<17,'Personnel Roulant'!$G$26+'Personnel Roulant'!$G$42,IF(H41<18,'Personnel Roulant'!$G$28+'Personnel Roulant'!$G$42,IF(H41<19,'Personnel Roulant'!$G$30+'Personnel Roulant'!$G$42,IF(H41<20,'Personnel Roulant'!$G$32+'Personnel Roulant'!$G$42,IF(H41<21,'Personnel Roulant'!$G$34+'Personnel Roulant'!$G$42,IF(H41<22,'Personnel Roulant'!$G$36+'Personnel Roulant'!$G$42)))))))))))) -> 0 | I44: =IF(I41=0,0,IF(I41<12,'Personnel Roulant'!$G$16+'Personnel Roulant'!$G$42,IF(I41<13,'Personnel Roulant'!$G$18+'Personnel Roulant'!$G$42,IF(I41<14,'Personnel Roulant'!$G$20+'Personnel Roulant'!$G$42,IF(I41<15,'Personnel Roulant'!$G$22+'Personnel Roulant'!$G$42,IF(I41<16,'Personnel Roulant'!$G$24+'Personnel Roulant'!$G$42,IF(I41<17,'Personnel Roulant'!$G$26+'Personnel Roulant'!$G$42,IF(I41<18,'Personnel Roulant'!$G$28+'Personnel Roulant'!$G$42,IF(I41<19,'Personnel Roulant'!$G$30+'Personnel Roulant'!$G$42,IF(I41<20,'Personnel Roulant'!$G$32+'Personnel Roulant'!$G$42,IF(I41<21,'Personnel Roulant'!$G$34+'Personnel Roulant'!$G$42,IF(I41<22,'Personnel Roulant'!$G$36+'Personnel Roulant'!$G$42)))))))))))) -> 0 | J44: =IF(J41=0,0,IF(J41<12,'Personnel Roulant'!$G$16+'Personnel Roulant'!$G$42,IF(J41<13,'Personnel Roulant'!$G$18+'Personnel Roulant'!$G$42,IF(J41<14,'Personnel Roulant'!$G$20+'Personnel Roulant'!$G$42,IF(J41<15,'Personnel Roulant'!$G$22+'Personnel Roulant'!$G$42,IF(J41<16,'Personnel Roulant'!$G$24+'Personnel Roulant'!$G$42,IF(J41<17,'Personnel Roulant'!$G$26+'Personnel Roulant'!$G$42,IF(J41<18,'Personnel Roulant'!$G$28+'Personnel Roulant'!$G$42,IF(J41<19,'Personnel Roulant'!$G$30+'Personnel Roulant'!$G$42,IF(J41<20,'Personnel Roulant'!$G$32+'Personnel Roulant'!$G$42,IF(J41<21,'Personnel Roulant'!$G$34+'Personnel Roulant'!$G$42,IF(J41<22,'Personnel Roulant'!$G$36+'Personnel Roulant'!$G$42)))))))))))) -> 0 | K44: =IF(K41=0,0,IF(K41<12,'Personnel Roulant'!$G$16+'Personnel Roulant'!$G$42,IF(K41<13,'Personnel Roulant'!$G$18+'Personnel Roulant'!$G$42,IF(K41<14,'Personnel Roulant'!$G$20+'Personnel Roulant'!$G$42,IF(K41<15,'Personnel Roulant'!$G$22+'Personnel Roulant'!$G$42,IF(K41<16,'Personnel Roulant'!$G$24+'Personnel Roulant'!$G$42,IF(K41<17,'Personnel Roulant'!$G$26+'Personnel Roulant'!$G$42,IF(K41<18,'Personnel Roulant'!$G$28+'Personnel Roulant'!$G$42,IF(K41<19,'Personnel Roulant'!$G$30+'Personnel Roulant'!$G$42,IF(K41<20,'Personnel Roulant'!$G$32+'Personnel Roulant'!$G$42,IF(K41<21,'Personnel Roulant'!$G$34+'Personnel Roulant'!$G$42,IF(K41<22,'Personnel Roulant'!$G$36+'Personnel Roulant'!$G$42)))))))))))) -> 0 | L44: =IF(L41=0,0,IF(L41<12,'Personnel Roulant'!$G$16+'Personnel Roulant'!$G$42,IF(L41<13,'Personnel Roulant'!$G$18+'Personnel Roulant'!$G$42,IF(L41<14,'Personnel Roulant'!$G$20+'Personnel Roulant'!$G$42,IF(L41<15,'Personnel Roulant'!$G$22+'Personnel Roulant'!$G$42,IF(L41<16,'Personnel Roulant'!$G$24+'Personnel Roulant'!$G$42,IF(L41<17,'Personnel Roulant'!$G$26+'Personnel Roulant'!$G$42,IF(L41<18,'Personnel Roulant'!$G$28+'Personnel Roulant'!$G$42,IF(L41<19,'Personnel Roulant'!$G$30+'Personnel Roulant'!$G$42,IF(L41<20,'Personnel Roulant'!$G$32+'Personnel Roulant'!$G$42,IF(L41<21,'Personnel Roulant'!$G$34+'Personnel Roulant'!$G$42,IF(L41<22,'Personnel Roulant'!$G$36+'Personnel Roulant'!$G$42)))))))))))) -> 0 | M44: =IF(M41=0,0,IF(M41<12,'Personnel Roulant'!$G$16+'Personnel Roulant'!$G$42,IF(M41<13,'Personnel Roulant'!$G$18+'Personnel Roulant'!$G$42,IF(M41<14,'Personnel Roulant'!$G$20+'Personnel Roulant'!$G$42,IF(M41<15,'Personnel Roulant'!$G$22+'Personnel Roulant'!$G$42,IF(M41<16,'Personnel Roulant'!$G$24+'Personnel Roulant'!$G$42,IF(M41<17,'Personnel Roulant'!$G$26+'Personnel Roulant'!$G$42,IF(M41<18,'Personnel Roulant'!$G$28+'Personnel Roulant'!$G$42,IF(M41<19,'Personnel Roulant'!$G$30+'Personnel Roulant'!$G$42,IF(M41<20,'Personnel Roulant'!$G$32+'Personnel Roulant'!$G$42,IF(M41<21,'Personnel Roulant'!$G$34+'Personnel Roulant'!$G$42,IF(M41<22,'Personnel Roulant'!$G$36+'Personnel Roulant'!$G$42)))))))))))) -> 0 | N44: =IF(N41=0,0,IF(N41<12,'Personnel Roulant'!$G$16+'Personnel Roulant'!$G$42,IF(N41<13,'Personnel Roulant'!$G$18+'Personnel Roulant'!$G$42,IF(N41<14,'Personnel Roulant'!$G$20+'Personnel Roulant'!$G$42,IF(N41<15,'Personnel Roulant'!$G$22+'Personnel Roulant'!$G$42,IF(N41<16,'Personnel Roulant'!$G$24+'Personnel Roulant'!$G$42,IF(N41<17,'Personnel Roulant'!$G$26+'Personnel Roulant'!$G$42,IF(N41<18,'Personnel Roulant'!$G$28+'Personnel Roulant'!$G$42,IF(N41<19,'Personnel Roulant'!$G$30+'Personnel Roulant'!$G$42,IF(N41<20,'Personnel Roulant'!$G$32+'Personnel Roulant'!$G$42,IF(N41<21,'Personnel Roulant'!$G$34+'Personnel Roulant'!$G$42,IF(N41<22,'Personnel Roulant'!$G$36+'Personnel Roulant'!$G$42)))))))))))) -> 0 | O44: =IF(O41=0,0,IF(O41<12,'Personnel Roulant'!$G$16+'Personnel Roulant'!$G$42,IF(O41<13,'Personnel Roulant'!$G$18+'Personnel Roulant'!$G$42,IF(O41<14,'Personnel Roulant'!$G$20+'Personnel Roulant'!$G$42,IF(O41<15,'Personnel Roulant'!$G$22+'Personnel Roulant'!$G$42,IF(O41<16,'Personnel Roulant'!$G$24+'Personnel Roulant'!$G$42,IF(O41<17,'Personnel Roulant'!$G$26+'Personnel Roulant'!$G$42,IF(O41<18,'Personnel Roulant'!$G$28+'Personnel Roulant'!$G$42,IF(O41<19,'Personnel Roulant'!$G$30+'Personnel Roulant'!$G$42,IF(O41<20,'Personnel Roulant'!$G$32+'Personnel Roulant'!$G$42,IF(O41<21,'Personnel Roulant'!$G$34+'Personnel Roulant'!$G$42,IF(O41<22,'Personnel Roulant'!$G$36+'Personnel Roulant'!$G$42)))))))))))) -> 0 | P44: =IF(P41=0,0,IF(P41<12,'Personnel Roulant'!$G$16+'Personnel Roulant'!$G$42,IF(P41<13,'Personnel Roulant'!$G$18+'Personnel Roulant'!$G$42,IF(P41<14,'Personnel Roulant'!$G$20+'Personnel Roulant'!$G$42,IF(P41<15,'Personnel Roulant'!$G$22+'Personnel Roulant'!$G$42,IF(P41<16,'Personnel Roulant'!$G$24+'Personnel Roulant'!$G$42,IF(P41<17,'Personnel Roulant'!$G$26+'Personnel Roulant'!$G$42,IF(P41<18,'Personnel Roulant'!$G$28+'Personnel Roulant'!$G$42,IF(P41<19,'Personnel Roulant'!$G$30+'Personnel Roulant'!$G$42,IF(P41<20,'Personnel Roulant'!$G$32+'Personnel Roulant'!$G$42,IF(P41<21,'Personnel Roulant'!$G$34+'Personnel Roulant'!$G$42,IF(P41<22,'Personnel Roulant'!$G$36+'Personnel Roulant'!$G$42)))))))))))) -> 0 | Q44: =IF(Q41=0,0,IF(Q41<12,'Personnel Roulant'!$G$16+'Personnel Roulant'!$G$42,IF(Q41<13,'Personnel Roulant'!$G$18+'Personnel Roulant'!$G$42,IF(Q41<14,'Personnel Roulant'!$G$20+'Personnel Roulant'!$G$42,IF(Q41<15,'Personnel Roulant'!$G$22+'Personnel Roulant'!$G$42,IF(Q41<16,'Personnel Roulant'!$G$24+'Personnel Roulant'!$G$42,IF(Q41<17,'Personnel Roulant'!$G$26+'Personnel Roulant'!$G$42,IF(Q41<18,'Personnel Roulant'!$G$28+'Personnel Roulant'!$G$42,IF(Q41<19,'Personnel Roulant'!$G$30+'Personnel Roulant'!$G$42,IF(Q41<20,'Personnel Roulant'!$G$32+'Personnel Roulant'!$G$42,IF(Q41<21,'Personnel Roulant'!$G$34+'Personnel Roulant'!$G$42,IF(Q41<22,'Personnel Roulant'!$G$36+'Personnel Roulant'!$G$42)))))))))))) -> 0 | R44: =IF(R41=0,0,IF(R41<12,'Personnel Roulant'!$G$16+'Personnel Roulant'!$G$42,IF(R41<13,'Personnel Roulant'!$G$18+'Personnel Roulant'!$G$42,IF(R41<14,'Personnel Roulant'!$G$20+'Personnel Roulant'!$G$42,IF(R41<15,'Personnel Roulant'!$G$22+'Personnel Roulant'!$G$42,IF(R41<16,'Personnel Roulant'!$G$24+'Personnel Roulant'!$G$42,IF(R41<17,'Personnel Roulant'!$G$26+'Personnel Roulant'!$G$42,IF(R41<18,'Personnel Roulant'!$G$28+'Personnel Roulant'!$G$42,IF(R41<19,'Personnel Roulant'!$G$30+'Personnel Roulant'!$G$42,IF(R41<20,'Personnel Roulant'!$G$32+'Personnel Roulant'!$G$42,IF(R41<21,'Personnel Roulant'!$G$34+'Personnel Roulant'!$G$42,IF(R41<22,'Personnel Roulant'!$G$36+'Personnel Roulant'!$G$42)))))))))))) -> 0 | S44: =IF(S41=0,0,IF(S41<12,'Personnel Roulant'!$G$16+'Personnel Roulant'!$G$42,IF(S41<13,'Personnel Roulant'!$G$18+'Personnel Roulant'!$G$42,IF(S41<14,'Personnel Roulant'!$G$20+'Personnel Roulant'!$G$42,IF(S41<15,'Personnel Roulant'!$G$22+'Personnel Roulant'!$G$42,IF(S41<16,'Personnel Roulant'!$G$24+'Personnel Roulant'!$G$42,IF(S41<17,'Personnel Roulant'!$G$26+'Personnel Roulant'!$G$42,IF(S41<18,'Personnel Roulant'!$G$28+'Personnel Roulant'!$G$42,IF(S41<19,'Personnel Roulant'!$G$30+'Personnel Roulant'!$G$42,IF(S41<20,'Personnel Roulant'!$G$32+'Personnel Roulant'!$G$42,IF(S41<21,'Personnel Roulant'!$G$34+'Personnel Roulant'!$G$42,IF(S41<22,'Personnel Roulant'!$G$36+'Personnel Roulant'!$G$42)))))))))))) -> 0
C45: Compensation Dimanche tous CH | E45: =Trajet!F57*'Personnel Roulant'!$G$48 -> 0 | F45: =Trajet!G57*'Personnel Roulant'!$G$48 -> 0 | G45: =Trajet!H57*'Personnel Roulant'!$G$48 -> 0 | H45: =Trajet!I57*'Personnel Roulant'!$G$48 -> 0 | I45: =Trajet!J57*'Personnel Roulant'!$G$48 -> 0 | J45: =Trajet!K57*'Personnel Roulant'!$G$48 -> 0 | K45: =Trajet!L57*'Personnel Roulant'!$G$48 -> 0 | L45: =Trajet!M57*'Personnel Roulant'!$G$48 -> 0 | M45: =Trajet!N57*'Personnel Roulant'!$G$48 -> 0 | N45: =Trajet!O57*'Personnel Roulant'!$G$48 -> 0 | O45: =Trajet!P57*'Personnel Roulant'!$G$48 -> 0 | P45: =Trajet!Q57*'Personnel Roulant'!$G$48 -> 0 | Q45: =Trajet!R57*'Personnel Roulant'!$G$48 -> 0 | R45: =Trajet!S57*'Personnel Roulant'!$G$48 -> 0 | S45: =Trajet!T57*'Personnel Roulant'!$G$48 -> 0
C46: Inactivité à l'étranger tous CH | E46: =Trajet!F58*'Personnel Roulant'!$G$50 -> 0 | F46: =Trajet!G58*'Personnel Roulant'!$G$50 -> 0 | G46: =Trajet!H58*'Personnel Roulant'!$G$50 -> 0 | H46: =Trajet!I58*'Personnel Roulant'!$G$50 -> 0 | I46: =Trajet!J58*'Personnel Roulant'!$G$50 -> 0 | J46: =Trajet!K58*'Personnel Roulant'!$G$50 -> 0 | K46: =Trajet!L58*'Personnel Roulant'!$G$50 -> 0 | L46: =Trajet!M58*'Personnel Roulant'!$G$50 -> 0 | M46: =Trajet!N58*'Personnel Roulant'!$G$50 -> 0 | N46: =Trajet!O58*'Personnel Roulant'!$G$50 -> 0 | O46: =Trajet!P58*'Personnel Roulant'!$G$50 -> 0 | P46: =Trajet!Q58*'Personnel Roulant'!$G$50 -> 0 | Q46: =Trajet!R58*'Personnel Roulant'!$G$50 -> 0 | R46: =Trajet!S58*'Personnel Roulant'!$G$50 -> 0 | S46: =Trajet!T58*'Personnel Roulant'!$G$50 -> 0
C47: Prime fin d'année tous CH | E47: =IF(Trajet!F46<1,0,(('Personnel Roulant'!$G$46/'Personnel Roulant'!$G$68)*Trajet!F52)) ->  | F47: =IF(Trajet!G46<1,0,(('Personnel Roulant'!$G$46/'Personnel Roulant'!$G$68)*Trajet!G52)) ->  | G47: =IF(Trajet!H46<1,0,(('Personnel Roulant'!$G$46/'Personnel Roulant'!$G$68)*Trajet!H52)) ->  | H47: =IF(Trajet!I46<1,0,(('Personnel Roulant'!$G$46/'Personnel Roulant'!$G$68)*Trajet!I52)) ->  | I47: =IF(Trajet!J46<1,0,(('Personnel Roulant'!$G$46/'Personnel Roulant'!$G$68)*Trajet!J52)) ->  | J47: =IF(Trajet!K46<1,0,(('Personnel Roulant'!$G$46/'Personnel Roulant'!$G$68)*Trajet!K52)) ->  | K47: =IF(Trajet!L46<1,0,(('Personnel Roulant'!$G$46/'Personnel Roulant'!$G$68)*Trajet!L52)) -> 0 | L47: =IF(Trajet!M46<1,0,(('Personnel Roulant'!$G$46/'Personnel Roulant'!$G$68)*Trajet!M52)) -> 0 | M47: =IF(Trajet!N46<1,0,(('Personnel Roulant'!$G$46/'Personnel Roulant'!$G$68)*Trajet!N52)) -> 0 | N47: =IF(Trajet!O46<1,0,(('Personnel Roulant'!$G$46/'Personnel Roulant'!$G$68)*Trajet!O52)) -> 0 | O47: =IF(Trajet!P46<1,0,(('Personnel Roulant'!$G$46/'Personnel Roulant'!$G$68)*Trajet!P52)) -> 0 | P47: =IF(Trajet!Q46<1,0,(('Personnel Roulant'!$G$46/'Personnel Roulant'!$G$68)*Trajet!Q52)) -> 0 | Q47: =IF(Trajet!R46<1,0,(('Personnel Roulant'!$G$46/'Personnel Roulant'!$G$68)*Trajet!R52)) -> 0 | R47: =IF(Trajet!S46<1,0,(('Personnel Roulant'!$G$46/'Personnel Roulant'!$G$68)*Trajet!S52)) -> 0 | S47: =IF(Trajet!T46<1,0,(('Personnel Roulant'!$G$46/'Personnel Roulant'!$G$68)*Trajet!T52)) -> 0
C48: ONSS employeur tous CH | E48: =IF(Trajet!F46<1,0,((E42+E43+E44+E45+E46+E47)*1.08*'Personnel Roulant'!$G$52)) ->  | F48: =IF(Trajet!G46<1,0,((F42+F43+F44+F45+F46+F47)*1.08*'Personnel Roulant'!$G$52)) ->  | G48: =IF(Trajet!H46<1,0,((G42+G43+G44+G45+G46+G47)*1.08*'Personnel Roulant'!$G$52)) ->  | H48: =IF(Trajet!I46<1,0,((H42+H43+H44+H45+H46+H47)*1.08*'Personnel Roulant'!$G$52)) ->  | I48: =IF(Trajet!J46<1,0,((I42+I43+I44+I45+I46+I47)*1.08*'Personnel Roulant'!$G$52)) ->  | J48: =IF(Trajet!K46<1,0,((J42+J43+J44+J45+J46+J47)*1.08*'Personnel Roulant'!$G$52)) ->  | K48: =IF(Trajet!L46<1,0,((K42+K43+K44+K45+K46+K47)*1.08*'Personnel Roulant'!$G$52)) -> 0 | L48: =IF(Trajet!M46<1,0,((L42+L43+L44+L45+L46+L47)*1.08*'Personnel Roulant'!$G$52)) -> 0 | M48: =IF(Trajet!N46<1,0,((M42+M43+M44+M45+M46+M47)*1.08*'Personnel Roulant'!$G$52)) -> 0 | N48: =IF(Trajet!O46<1,0,((N42+N43+N44+N45+N46+N47)*1.08*'Personnel Roulant'!$G$52)) -> 0 | O48: =IF(Trajet!P46<1,0,((O42+O43+O44+O45+O46+O47)*1.08*'Personnel Roulant'!$G$52)) -> 0 | P48: =IF(Trajet!Q46<1,0,((P42+P43+P44+P45+P46+P47)*1.08*'Personnel Roulant'!$G$52)) -> 0 | Q48: =IF(Trajet!R46<1,0,((Q42+Q43+Q44+Q45+Q46+Q47)*1.08*'Personnel Roulant'!$G$52)) -> 0 | R48: =IF(Trajet!S46<1,0,((R42+R43+R44+R45+R46+R47)*1.08*'Personnel Roulant'!$G$52)) -> 0 | S48: =IF(Trajet!T46<1,0,((S42+S43+S44+S45+S46+S47)*1.08*'Personnel Roulant'!$G$52)) -> 0
C49: Eco-cheques tous CH | E49: =IF(Trajet!F46<1,0,(('Personnel Roulant'!$G$44/'Personnel Roulant'!$G$68)*Trajet!F52)) ->  | F49: =IF(Trajet!G46<1,0,(('Personnel Roulant'!$G$44/'Personnel Roulant'!$G$68)*Trajet!G52)) ->  | G49: =IF(Trajet!H46<1,0,(('Personnel Roulant'!$G$44/'Personnel Roulant'!$G$68)*Trajet!H52)) ->  | H49: =IF(Trajet!I46<1,0,(('Personnel Roulant'!$G$44/'Personnel Roulant'!$G$68)*Trajet!I52)) ->  | I49: =IF(Trajet!J46<1,0,(('Personnel Roulant'!$G$44/'Personnel Roulant'!$G$68)*Trajet!J52)) ->  | J49: =IF(Trajet!K46<1,0,(('Personnel Roulant'!$G$44/'Personnel Roulant'!$G$68)*Trajet!K52)) ->  | K49: =IF(Trajet!L46<1,0,(('Personnel Roulant'!$G$44/'Personnel Roulant'!$G$68)*Trajet!L52)) -> 0 | L49: =IF(Trajet!M46<1,0,(('Personnel Roulant'!$G$44/'Personnel Roulant'!$G$68)*Trajet!M52)) -> 0 | M49: =IF(Trajet!N46<1,0,(('Personnel Roulant'!$G$44/'Personnel Roulant'!$G$68)*Trajet!N52)) -> 0 | N49: =IF(Trajet!O46<1,0,(('Personnel Roulant'!$G$44/'Personnel Roulant'!$G$68)*Trajet!O52)) -> 0 | O49: =IF(Trajet!P46<1,0,(('Personnel Roulant'!$G$44/'Personnel Roulant'!$G$68)*Trajet!P52)) -> 0 | P49: =IF(Trajet!Q46<1,0,(('Personnel Roulant'!$G$44/'Personnel Roulant'!$G$68)*Trajet!Q52)) -> 0 | Q49: =IF(Trajet!R46<1,0,(('Personnel Roulant'!$G$44/'Personnel Roulant'!$G$68)*Trajet!R52)) -> 0 | R49: =IF(Trajet!S46<1,0,(('Personnel Roulant'!$G$44/'Personnel Roulant'!$G$68)*Trajet!S52)) -> 0 | S49: =IF(Trajet!T46<1,0,(('Personnel Roulant'!$G$44/'Personnel Roulant'!$G$68)*Trajet!T52)) -> 0
C50: RGTP CH SIMPLE | E50: =ROUNDUP(E39,0)*'Personnel Roulant'!$G$40 -> 23.21 | F50: =ROUNDUP(F39,0)*'Personnel Roulant'!$G$40 -> 0 | G50: =ROUNDUP(G39,0)*'Personnel Roulant'!$G$40 -> 0 | H50: =ROUNDUP(H39,0)*'Personnel Roulant'!$G$40 -> 0 | I50: =ROUNDUP(I39,0)*'Personnel Roulant'!$G$40 -> 0 | J50: =ROUNDUP(J39,0)*'Personnel Roulant'!$G$40 -> 0 | K50: =ROUNDUP(K39,0)*'Personnel Roulant'!$G$40 -> 0 | L50: =ROUNDUP(L39,0)*'Personnel Roulant'!$G$40 -> 0 | M50: =ROUNDUP(M39,0)*'Personnel Roulant'!$G$40 -> 0 | N50: =ROUNDUP(N39,0)*'Personnel Roulant'!$G$40 -> 0 | O50: =ROUNDUP(O39,0)*'Personnel Roulant'!$G$40 -> 0 | P50: =ROUNDUP(P39,0)*'Personnel Roulant'!$G$40 -> 0 | Q50: =ROUNDUP(Q39,0)*'Personnel Roulant'!$G$40 -> 0 | R50: =ROUNDUP(R39,0)*'Personnel Roulant'!$G$40 -> 0 | S50: =ROUNDUP(S39,0)*'Personnel Roulant'!$G$40 -> 0
C51: RGTP CH1 DOUBLE | E51: =ROUNDUP(E40,0)*'Personnel Roulant'!$G$40 -> 12.66 | F51: =ROUNDUP(F40,0)*'Personnel Roulant'!$G$40 -> 0 | G51: =ROUNDUP(G40,0)*'Personnel Roulant'!$G$40 -> 0 | H51: =ROUNDUP(H40,0)*'Personnel Roulant'!$G$40 -> 0 | I51: =ROUNDUP(I40,0)*'Personnel Roulant'!$G$40 -> 0 | J51: =ROUNDUP(J40,0)*'Personnel Roulant'!$G$40 -> 0 | K51: =ROUNDUP(K40,0)*'Personnel Roulant'!$G$40 -> 0 | L51: =ROUNDUP(L40,0)*'Personnel Roulant'!$G$40 -> 0 | M51: =ROUNDUP(M40,0)*'Personnel Roulant'!$G$40 -> 0 | N51: =ROUNDUP(N40,0)*'Personnel Roulant'!$G$40 -> 0 | O51: =ROUNDUP(O40,0)*'Personnel Roulant'!$G$40 -> 0 | P51: =ROUNDUP(P40,0)*'Personnel Roulant'!$G$40 -> 0 | Q51: =ROUNDUP(Q40,0)*'Personnel Roulant'!$G$40 -> 0 | R51: =ROUNDUP(R40,0)*'Personnel Roulant'!$G$40 -> 0 | S51: =ROUNDUP(S40,0)*'Personnel Roulant'!$G$40 -> 0
C52: RGTP CH2 DOUBLE | E52: =ROUNDUP(E41,0)*'Personnel Roulant'!$G$40 -> 10.55 | F52: =ROUNDUP(F41,0)*'Personnel Roulant'!$G$40 -> 0 | G52: =ROUNDUP(G41,0)*'Personnel Roulant'!$G$40 -> 0 | H52: =ROUNDUP(H41,0)*'Personnel Roulant'!$G$40 -> 0 | I52: =ROUNDUP(I41,0)*'Personnel Roulant'!$G$40 -> 0 | J52: =ROUNDUP(J41,0)*'Personnel Roulant'!$G$40 -> 0 | K52: =ROUNDUP(K41,0)*'Personnel Roulant'!$G$40 -> 0 | L52: =ROUNDUP(L41,0)*'Personnel Roulant'!$G$40 -> 0 | M52: =ROUNDUP(M41,0)*'Personnel Roulant'!$G$40 -> 0 | N52: =ROUNDUP(N41,0)*'Personnel Roulant'!$G$40 -> 0 | O52: =ROUNDUP(O41,0)*'Personnel Roulant'!$G$40 -> 0 | P52: =ROUNDUP(P41,0)*'Personnel Roulant'!$G$40 -> 0 | Q52: =ROUNDUP(Q41,0)*'Personnel Roulant'!$G$40 -> 0 | R52: =ROUNDUP(R41,0)*'Personnel Roulant'!$G$40 -> 0 | S52: =ROUNDUP(S41,0)*'Personnel Roulant'!$G$40 -> 0
C53: Autres coûts tous CH | E53: =IF(Trajet!F46<1,0,((('Personnel Roulant'!$G$54+'Personnel Roulant'!$G$56+'Personnel Roulant'!$G$58+'Personnel Roulant'!$G$60+'Personnel Roulant'!$G$62+'Personnel Roulant'!$G$64+'Personnel Roulant'!$G$66)/'Personnel Roulant'!$G$68)*Trajet!F52)) ->  | F53: =IF(Trajet!G46<1,0,((('Personnel Roulant'!$G$54+'Personnel Roulant'!$G$56+'Personnel Roulant'!$G$58+'Personnel Roulant'!$G$60+'Personnel Roulant'!$G$62+'Personnel Roulant'!$G$64+'Personnel Roulant'!$G$66)/'Personnel Roulant'!$G$68)*Trajet!G52)) ->  | G53: =IF(Trajet!H46<1,0,((('Personnel Roulant'!$G$54+'Personnel Roulant'!$G$56+'Personnel Roulant'!$G$58+'Personnel Roulant'!$G$60+'Personnel Roulant'!$G$62+'Personnel Roulant'!$G$64+'Personnel Roulant'!$G$66)/'Personnel Roulant'!$G$68)*Trajet!H52)) ->  | H53: =IF(Trajet!I46<1,0,((('Personnel Roulant'!$G$54+'Personnel Roulant'!$G$56+'Personnel Roulant'!$G$58+'Personnel Roulant'!$G$60+'Personnel Roulant'!$G$62+'Personnel Roulant'!$G$64+'Personnel Roulant'!$G$66)/'Personnel Roulant'!$G$68)*Trajet!I52)) ->  | I53: =IF(Trajet!J46<1,0,((('Personnel Roulant'!$G$54+'Personnel Roulant'!$G$56+'Personnel Roulant'!$G$58+'Personnel Roulant'!$G$60+'Personnel Roulant'!$G$62+'Personnel Roulant'!$G$64+'Personnel Roulant'!$G$66)/'Personnel Roulant'!$G$68)*Trajet!J52)) ->  | J53: =IF(Trajet!K46<1,0,((('Personnel Roulant'!$G$54+'Personnel Roulant'!$G$56+'Personnel Roulant'!$G$58+'Personnel Roulant'!$G$60+'Personnel Roulant'!$G$62+'Personnel Roulant'!$G$64+'Personnel Roulant'!$G$66)/'Personnel Roulant'!$G$68)*Trajet!K52)) ->  | K53: =IF(Trajet!L46<1,0,((('Personnel Roulant'!$G$54+'Personnel Roulant'!$G$56+'Personnel Roulant'!$G$58+'Personnel Roulant'!$G$60+'Personnel Roulant'!$G$62+'Personnel Roulant'!$G$64+'Personnel Roulant'!$G$66)/'Personnel Roulant'!$G$68)*Trajet!L52)) -> 0 | L53: =IF(Trajet!M46<1,0,((('Personnel Roulant'!$G$54+'Personnel Roulant'!$G$56+'Personnel Roulant'!$G$58+'Personnel Roulant'!$G$60+'Personnel Roulant'!$G$62+'Personnel Roulant'!$G$64+'Personnel Roulant'!$G$66)/'Personnel Roulant'!$G$68)*Trajet!M52)) -> 0 | M53: =IF(Trajet!N46<1,0,((('Personnel Roulant'!$G$54+'Personnel Roulant'!$G$56+'Personnel Roulant'!$G$58+'Personnel Roulant'!$G$60+'Personnel Roulant'!$G$62+'Personnel Roulant'!$G$64+'Personnel Roulant'!$G$66)/'Personnel Roulant'!$G$68)*Trajet!N52)) -> 0 | N53: =IF(Trajet!O46<1,0,((('Personnel Roulant'!$G$54+'Personnel Roulant'!$G$56+'Personnel Roulant'!$G$58+'Personnel Roulant'!$G$60+'Personnel Roulant'!$G$62+'Personnel Roulant'!$G$64+'Personnel Roulant'!$G$66)/'Personnel Roulant'!$G$68)*Trajet!O52)) -> 0 | O53: =IF(Trajet!P46<1,0,((('Personnel Roulant'!$G$54+'Personnel Roulant'!$G$56+'Personnel Roulant'!$G$58+'Personnel Roulant'!$G$60+'Personnel Roulant'!$G$62+'Personnel Roulant'!$G$64+'Personnel Roulant'!$G$66)/'Personnel Roulant'!$G$68)*Trajet!P52)) -> 0 | P53: =IF(Trajet!Q46<1,0,((('Personnel Roulant'!$G$54+'Personnel Roulant'!$G$56+'Personnel Roulant'!$G$58+'Personnel Roulant'!$G$60+'Personnel Roulant'!$G$62+'Personnel Roulant'!$G$64+'Personnel Roulant'!$G$66)/'Personnel Roulant'!$G$68)*Trajet!Q52)) -> 0 | Q53: =IF(Trajet!R46<1,0,((('Personnel Roulant'!$G$54+'Personnel Roulant'!$G$56+'Personnel Roulant'!$G$58+'Personnel Roulant'!$G$60+'Personnel Roulant'!$G$62+'Personnel Roulant'!$G$64+'Personnel Roulant'!$G$66)/'Personnel Roulant'!$G$68)*Trajet!R52)) -> 0 | R53: =IF(Trajet!S46<1,0,((('Personnel Roulant'!$G$54+'Personnel Roulant'!$G$56+'Personnel Roulant'!$G$58+'Personnel Roulant'!$G$60+'Personnel Roulant'!$G$62+'Personnel Roulant'!$G$64+'Personnel Roulant'!$G$66)/'Personnel Roulant'!$G$68)*Trajet!S52)) -> 0 | S53: =IF(Trajet!T46<1,0,((('Personnel Roulant'!$G$54+'Personnel Roulant'!$G$56+'Personnel Roulant'!$G$58+'Personnel Roulant'!$G$60+'Personnel Roulant'!$G$62+'Personnel Roulant'!$G$64+'Personnel Roulant'!$G$66)/'Personnel Roulant'!$G$68)*Trajet!T52)) -> 0
C54: Primes supp Dimanche + Jour férié | D54: =IF(Trajet!E57>0,"",IF(AND(Trajet!AB51=0,Trajet!AC51=1,Trajet!E54*24>=3,Trajet!E54*24+Trajet!D54*24>6),50,IF(AND(Trajet!AB51=0,Trajet!AC51=1,Trajet!E54*24>=3,Trajet!E54*24+Trajet!D54*24<=6),30,IF(AND(Trajet!AB51=0,Trajet!AC51=1,Trajet!E55*24>=3,Trajet!E55*24+Trajet!D55*24>6),50,IF(AND(Trajet!AB51=0,Trajet!AC51=1,Trajet!E55*24>=3,Trajet!E55*24+Trajet!D55*24<=6),30,IF(AND(Trajet!AB51=0,Trajet!AC51=1,Trajet!E56*24>=3,Trajet!E56*24+Trajet!D56*24>6),50,IF(AND(Trajet!AB51=0,Trajet!AC51=1,Trajet!E56*24>=3,Trajet!E56*24+Trajet!D56*24<=6),30,IF(AND(Trajet!AC51=1,Trajet!E54*24<=6,Trajet!E54*24>0),30,IF(AND(Trajet!AC51=1,Trajet!E54*24>6,Trajet!E54*24>0),50,IF(AND(Trajet!AC51=1,Trajet!E55*24<=6,Trajet!E55*24>0),30,IF(AND(Trajet!AC51=1,Trajet!E55*24>6,Trajet!E55*24>0),50,IF(AND(Trajet!AC51=1,Trajet!E56*24<=6,Trajet!E56*24>0),30,IF(AND(Trajet!AC51=1,Trajet!E56*24>6,Trajet!E56*24>0),50,""))))))))))))) ->  | E54: =IF(Trajet!F52="","",IF(Trajet!F52=1,Trajet!AD50,IF(Trajet!F52=2,Trajet!AD51+Trajet!AD52,IF(Trajet!F52=3,Trajet!AD50+Trajet!AD51+Trajet!AD52)))) -> 110 | F54: =IF(Trajet!G52="","",IF(Trajet!G52=1,Trajet!AE50,IF(Trajet!G52=2,Trajet!AE51+Trajet!AE52,IF(Trajet!G52=3,Trajet!AE50+Trajet!AE51+Trajet!AE52)))) ->  | G54: =IF(Trajet!H52="","",IF(Trajet!H52=1,Trajet!AF50,IF(Trajet!H52=2,Trajet!AF51+Trajet!AF52,IF(Trajet!H52=3,Trajet!AF50+Trajet!AF51+Trajet!AF52)))) ->  | H54: =IF(Trajet!I52="","",IF(Trajet!I52=1,Trajet!AG50,IF(Trajet!I52=2,Trajet!AG51+Trajet!AG52,IF(Trajet!I52=3,Trajet!AG50+Trajet!AG51+Trajet!AG52)))) ->  | I54: =IF(Trajet!J52="","",IF(Trajet!J52=1,Trajet!AH50,IF(Trajet!J52=2,Trajet!AH51+Trajet!AH52,IF(Trajet!J52=3,Trajet!AH50+Trajet!AH51+Trajet!AH52)))) ->  | J54: =IF(Trajet!K52="","",IF(Trajet!K52=1,Trajet!AI50,IF(Trajet!K52=2,Trajet!AI51+Trajet!AI52,IF(Trajet!K52=3,Trajet!AI50+Trajet!AI51+Trajet!AI52)))) ->  | K54: =IF(Trajet!L52="","",IF(Trajet!L52=1,Trajet!AJ50,IF(Trajet!L52=2,Trajet!AJ51+Trajet!AJ52,IF(Trajet!L52=3,Trajet!AJ50+Trajet!AJ51+Trajet!AJ52)))) ->  | L54: =IF(Trajet!M52="","",IF(Trajet!M52=1,Trajet!AK50,IF(Trajet!M52=2,Trajet!AK51+Trajet!AK52,IF(Trajet!M52=3,Trajet!AK50+Trajet!AK51+Trajet!AK52)))) ->  | M54: =IF(Trajet!N52="","",IF(Trajet!N52=1,Trajet!AL50,IF(Trajet!N52=2,Trajet!AL51+Trajet!AL52,IF(Trajet!N52=3,Trajet!AL50+Trajet!AL51+Trajet!AL52)))) ->  | N54: =IF(Trajet!O52="","",IF(Trajet!O52=1,Trajet!AM50,IF(Trajet!O52=2,Trajet!AM51+Trajet!AM52,IF(Trajet!O52=3,Trajet!AM50+Trajet!AM51+Trajet!AM52)))) ->  | O54: =IF(Trajet!P52="","",IF(Trajet!P52=1,Trajet!AN50,IF(Trajet!P52=2,Trajet!AN51+Trajet!AN52,IF(Trajet!P52=3,Trajet!AN50+Trajet!AN51+Trajet!AN52)))) ->  | P54: =IF(Trajet!Q52="","",IF(Trajet!Q52=1,Trajet!AO50,IF(Trajet!Q52=2,Trajet!AO51+Trajet!AO52,IF(Trajet!Q52=3,Trajet!AO50+Trajet!AO51+Trajet!AO52)))) ->  | Q54: =IF(Trajet!R52="","",IF(Trajet!R52=1,Trajet!AP50,IF(Trajet!R52=2,Trajet!AP51+Trajet!AP52,IF(Trajet!R52=3,Trajet!AP50+Trajet!AP51+Trajet!AP52)))) ->  | R54: =IF(Trajet!S52="","",IF(Trajet!S52=1,Trajet!AQ50,IF(Trajet!S52=2,Trajet!AQ51+Trajet!AQ52,IF(Trajet!S52=3,Trajet!AQ50+Trajet!AQ51+Trajet!AQ52)))) ->  | S54: =IF(Trajet!T52="","",IF(Trajet!T52=1,Trajet!AR50,IF(Trajet!T52=2,Trajet!AR51+Trajet!AR52,IF(Trajet!T52=3,Trajet!AR50+Trajet!AR51+Trajet!AR52)))) -> 
C55: Coûts spécifiques tous CH | E55: =Trajet!F63 -> 0 | F55: =Trajet!G63 -> 0 | G55: =Trajet!H63 -> 0 | H55: =Trajet!I63 -> 0 | I55: =Trajet!J63 -> 0 | J55: =Trajet!K63 -> 0 | K55: =Trajet!L63 -> 0 | L55: =Trajet!M63 -> 0 | M55: =Trajet!N63 -> 0 | N55: =Trajet!O63 -> 0 | O55: =Trajet!P63 -> 0 | P55: =Trajet!Q63 -> 0 | Q55: =Trajet!R63 -> 0 | R55: =Trajet!S63 -> 0 | S55: =Trajet!T63 -> 0
C56: Coût personnel total tous CH | E56: =IF(Trajet!F46<1,0,(E42+E43+E44+E45+E46+E47+E49+E48+E50+E51+E52+E53+E54+E55)) ->  | F56: =IF(Trajet!G46<1,0,(F42+F43+F44+F45+F46+F47+F49+F48+F50+F51+F52+F53+F54+F55)) ->  | G56: =IF(Trajet!H46<1,0,(G42+G43+G44+G45+G46+G47+G49+G48+G50+G51+G52+G53+G54+G55)) ->  | H56: =IF(Trajet!I46<1,0,(H42+H43+H44+H45+H46+H47+H49+H48+H50+H51+H52+H53+H54+H55)) ->  | I56: =IF(Trajet!J46<1,0,(I42+I43+I44+I45+I46+I47+I49+I48+I50+I51+I52+I53+I54+I55)) ->  | J56: =IF(Trajet!K46<1,0,(J42+J43+J44+J45+J46+J47+J49+J48+J50+J51+J52+J53+J54+J55)) ->  | K56: =IF(Trajet!L46<1,0,(K42+K43+K44+K45+K46+K47+K49+K48+K50+K51+K52+K53+K54+K55)) -> 0 | L56: =IF(Trajet!M46<1,0,(L42+L43+L44+L45+L46+L47+L49+L48+L50+L51+L52+L53+L54+L55)) -> 0 | M56: =IF(Trajet!N46<1,0,(M42+M43+M44+M45+M46+M47+M49+M48+M50+M51+M52+M53+M54+M55)) -> 0 | N56: =IF(Trajet!O46<1,0,(N42+N43+N44+N45+N46+N47+N49+N48+N50+N51+N52+N53+N54+N55)) -> 0 | O56: =IF(Trajet!P46<1,0,(O42+O43+O44+O45+O46+O47+O49+O48+O50+O51+O52+O53+O54+O55)) -> 0 | P56: =IF(Trajet!Q46<1,0,(P42+P43+P44+P45+P46+P47+P49+P48+P50+P51+P52+P53+P54+P55)) -> 0 | Q56: =IF(Trajet!R46<1,0,(Q42+Q43+Q44+Q45+Q46+Q47+Q49+Q48+Q50+Q51+Q52+Q53+Q54+Q55)) -> 0 | R56: =IF(Trajet!S46<1,0,(R42+R43+R44+R45+R46+R47+R49+R48+R50+R51+R52+R53+R54+R55)) -> 0 | S56: =IF(Trajet!T46<1,0,(S42+S43+S44+S45+S46+S47+S49+S48+S50+S51+S52+S53+S54+S55)) -> 0
G59: Coût personnel roulant | J59: ='Vehicule utilise'!W12 ->  | L59: ='Vehicule utilise'!S12 -> Mercedes
E64: jour | F64: jour | G64: jour | H64: jour | I64: jour | J64: jour | K64: jour | L64: jour | M64: jour | N64: jour | O64: jour | P64: jour | Q64: jour | R64: jour | S64: jour
E65: 1 | F65: 2 | G65: 3 | H65: 4 | I65: 5 | J65: 6 | K65: 7 | L65: 8 | M65: 9 | N65: 10 | O65: 11 | P65: 12 | Q65: 13 | R65: 14 | S65: 15
C66: Temps de service CH SIMPLE | E66: =Trajet!F85*24 -> 6 | F66: =Trajet!G85*24 -> 0 | G66: =Trajet!H85*24 -> 0 | H66: =Trajet!I85*24 -> 0 | I66: =Trajet!J85*24 -> 0 | J66: =Trajet!K85*24 -> 0 | K66: =Trajet!L85*24 -> 0 | L66: =Trajet!M85*24 -> 0 | M66: =Trajet!N85*24 -> 0 | N66: =Trajet!O85*24 -> 0 | O66: =Trajet!P85*24 -> 0 | P66: =Trajet!Q85*24 -> 0 | Q66: =Trajet!R85*24 -> 0 | R66: =Trajet!S85*24 -> 0 | S66: =Trajet!T85*24 -> 0
C67: Temps de service CH1 DOUBLE | E67: =Trajet!F86*24 -> 18 | F67: =Trajet!G86*24 -> 7.816666667 | G67: =Trajet!H86*24 -> 0 | H67: =Trajet!I86*24 -> 0 | I67: =Trajet!J86*24 -> 0 | J67: =Trajet!K86*24 -> 0 | K67: =Trajet!L86*24 -> 0 | L67: =Trajet!M86*24 -> 0 | M67: =Trajet!N86*24 -> 0 | N67: =Trajet!O86*24 -> 0 | O67: =Trajet!P86*24 -> 0 | P67: =Trajet!Q86*24 -> 0 | Q67: =Trajet!R86*24 -> 0 | R67: =Trajet!S86*24 -> 0 | S67: =Trajet!T86*24 -> 0
C68: Temps de service CH2 DOUBLE | E68: =Trajet!F87*24 -> 18 | F68: =Trajet!G87*24 -> 7.816666667 | G68: =Trajet!H87*24 -> 0 | H68: =Trajet!I87*24 -> 0 | I68: =Trajet!J87*24 -> 0 | J68: =Trajet!K87*24 -> 0 | K68: =Trajet!L87*24 -> 0 | L68: =Trajet!M87*24 -> 0 | M68: =Trajet!N87*24 -> 0 | N68: =Trajet!O87*24 -> 0 | O68: =Trajet!P87*24 -> 0 | P68: =Trajet!Q87*24 -> 0 | Q68: =Trajet!R87*24 -> 0 | R68: =Trajet!S87*24 -> 0 | S68: =Trajet!T87*24 -> 0
C69: Bruto Sal CH SIMPLE | E69: =IF(AND(E66>0,E66<=6,Trajet!F79="Autre"),('Personnel Roulant'!$G$50+'Personnel Roulant'!$G$42),IF(AND(E66>0,E66<=6),('Personnel Roulant'!$G$9+'Personnel Roulant'!$G$42),IF(AND(E66>6,E66<=12),'Personnel Roulant'!$G$11+'Personnel Roulant'!$G$42,IF(E66>0,'Personnel Roulant'!$G$11+(ROUNDUP(E66,0)-12)*'Personnel Roulant'!$G$13+'Personnel Roulant'!$G$42,0)))) -> 81.32 | F69: =IF(AND(F66>0,F66<=6,Trajet!G79="Autre"),('Personnel Roulant'!$G$50+'Personnel Roulant'!$G$42),IF(AND(F66>0,F66<=6),('Personnel Roulant'!$G$9+'Personnel Roulant'!$G$42),IF(AND(F66>6,F66<=12),'Personnel Roulant'!$G$11+'Personnel Roulant'!$G$42,IF(F66>0,'Personnel Roulant'!$G$11+(ROUNDUP(F66,0)-12)*'Personnel Roulant'!$G$13+'Personnel Roulant'!$G$42,0)))) -> 0 | G69: =IF(AND(G66>0,G66<=6,Trajet!H79="Autre"),('Personnel Roulant'!$G$50+'Personnel Roulant'!$G$42),IF(AND(G66>0,G66<=6),('Personnel Roulant'!$G$9+'Personnel Roulant'!$G$42),IF(AND(G66>6,G66<=12),'Personnel Roulant'!$G$11+'Personnel Roulant'!$G$42,IF(G66>0,'Personnel Roulant'!$G$11+(ROUNDUP(G66,0)-12)*'Personnel Roulant'!$G$13+'Personnel Roulant'!$G$42,0)))) -> 0 | H69: =IF(AND(H66>0,H66<=6,Trajet!I79="Autre"),('Personnel Roulant'!$G$50+'Personnel Roulant'!$G$42),IF(AND(H66>0,H66<=6),('Personnel Roulant'!$G$9+'Personnel Roulant'!$G$42),IF(AND(H66>6,H66<=12),'Personnel Roulant'!$G$11+'Personnel Roulant'!$G$42,IF(H66>0,'Personnel Roulant'!$G$11+(ROUNDUP(H66,0)-12)*'Personnel Roulant'!$G$13+'Personnel Roulant'!$G$42,0)))) -> 0 | I69: =IF(AND(I66>0,I66<=6,Trajet!J79="Autre"),('Personnel Roulant'!$G$50+'Personnel Roulant'!$G$42),IF(AND(I66>0,I66<=6),('Personnel Roulant'!$G$9+'Personnel Roulant'!$G$42),IF(AND(I66>6,I66<=12),'Personnel Roulant'!$G$11+'Personnel Roulant'!$G$42,IF(I66>0,'Personnel Roulant'!$G$11+(ROUNDUP(I66,0)-12)*'Personnel Roulant'!$G$13+'Personnel Roulant'!$G$42,0)))) -> 0 | J69: =IF(AND(J66>0,J66<=6,Trajet!K79="Autre"),('Personnel Roulant'!$G$50+'Personnel Roulant'!$G$42),IF(AND(J66>0,J66<=6),('Personnel Roulant'!$G$9+'Personnel Roulant'!$G$42),IF(AND(J66>6,J66<=12),'Personnel Roulant'!$G$11+'Personnel Roulant'!$G$42,IF(J66>0,'Personnel Roulant'!$G$11+(ROUNDUP(J66,0)-12)*'Personnel Roulant'!$G$13+'Personnel Roulant'!$G$42,0)))) -> 0 | K69: =IF(AND(K66>0,K66<=6,Trajet!L79="Autre"),('Personnel Roulant'!$G$50+'Personnel Roulant'!$G$42),IF(AND(K66>0,K66<=6),('Personnel Roulant'!$G$9+'Personnel Roulant'!$G$42),IF(AND(K66>6,K66<=12),'Personnel Roulant'!$G$11+'Personnel Roulant'!$G$42,IF(K66>0,'Personnel Roulant'!$G$11+(ROUNDUP(K66,0)-12)*'Personnel Roulant'!$G$13+'Personnel Roulant'!$G$42,0)))) -> 0 | L69: =IF(AND(L66>0,L66<=6,Trajet!M79="Autre"),('Personnel Roulant'!$G$50+'Personnel Roulant'!$G$42),IF(AND(L66>0,L66<=6),('Personnel Roulant'!$G$9+'Personnel Roulant'!$G$42),IF(AND(L66>6,L66<=12),'Personnel Roulant'!$G$11+'Personnel Roulant'!$G$42,IF(L66>0,'Personnel Roulant'!$G$11+(ROUNDUP(L66,0)-12)*'Personnel Roulant'!$G$13+'Personnel Roulant'!$G$42,0)))) -> 0 | M69: =IF(AND(M66>0,M66<=6,Trajet!N79="Autre"),('Personnel Roulant'!$G$50+'Personnel Roulant'!$G$42),IF(AND(M66>0,M66<=6),('Personnel Roulant'!$G$9+'Personnel Roulant'!$G$42),IF(AND(M66>6,M66<=12),'Personnel Roulant'!$G$11+'Personnel Roulant'!$G$42,IF(M66>0,'Personnel Roulant'!$G$11+(ROUNDUP(M66,0)-12)*'Personnel Roulant'!$G$13+'Personnel Roulant'!$G$42,0)))) -> 0 | N69: =IF(AND(N66>0,N66<=6,Trajet!O79="Autre"),('Personnel Roulant'!$G$50+'Personnel Roulant'!$G$42),IF(AND(N66>0,N66<=6),('Personnel Roulant'!$G$9+'Personnel Roulant'!$G$42),IF(AND(N66>6,N66<=12),'Personnel Roulant'!$G$11+'Personnel Roulant'!$G$42,IF(N66>0,'Personnel Roulant'!$G$11+(ROUNDUP(N66,0)-12)*'Personnel Roulant'!$G$13+'Personnel Roulant'!$G$42,0)))) -> 0 | O69: =IF(AND(O66>0,O66<=6,Trajet!P79="Autre"),('Personnel Roulant'!$G$50+'Personnel Roulant'!$G$42),IF(AND(O66>0,O66<=6),('Personnel Roulant'!$G$9+'Personnel Roulant'!$G$42),IF(AND(O66>6,O66<=12),'Personnel Roulant'!$G$11+'Personnel Roulant'!$G$42,IF(O66>0,'Personnel Roulant'!$G$11+(ROUNDUP(O66,0)-12)*'Personnel Roulant'!$G$13+'Personnel Roulant'!$G$42,0)))) -> 0 | P69: =IF(AND(P66>0,P66<=6,Trajet!Q79="Autre"),('Personnel Roulant'!$G$50+'Personnel Roulant'!$G$42),IF(AND(P66>0,P66<=6),('Personnel Roulant'!$G$9+'Personnel Roulant'!$G$42),IF(AND(P66>6,P66<=12),'Personnel Roulant'!$G$11+'Personnel Roulant'!$G$42,IF(P66>0,'Personnel Roulant'!$G$11+(ROUNDUP(P66,0)-12)*'Personnel Roulant'!$G$13+'Personnel Roulant'!$G$42,0)))) -> 0 | Q69: =IF(AND(Q66>0,Q66<=6,Trajet!R79="Autre"),('Personnel Roulant'!$G$50+'Personnel Roulant'!$G$42),IF(AND(Q66>0,Q66<=6),('Personnel Roulant'!$G$9+'Personnel Roulant'!$G$42),IF(AND(Q66>6,Q66<=12),'Personnel Roulant'!$G$11+'Personnel Roulant'!$G$42,IF(Q66>0,'Personnel Roulant'!$G$11+(ROUNDUP(Q66,0)-12)*'Personnel Roulant'!$G$13+'Personnel Roulant'!$G$42,0)))) -> 0 | R69: =IF(AND(R66>0,R66<=6,Trajet!S79="Autre"),('Personnel Roulant'!$G$50+'Personnel Roulant'!$G$42),IF(AND(R66>0,R66<=6),('Personnel Roulant'!$G$9+'Personnel Roulant'!$G$42),IF(AND(R66>6,R66<=12),'Personnel Roulant'!$G$11+'Personnel Roulant'!$G$42,IF(R66>0,'Personnel Roulant'!$G$11+(ROUNDUP(R66,0)-12)*'Personnel Roulant'!$G$13+'Personnel Roulant'!$G$42,0)))) -> 0 | S69: =IF(AND(S66>0,S66<=6,Trajet!T79="Autre"),('Personnel Roulant'!$G$50+'Personnel Roulant'!$G$42),IF(AND(S66>0,S66<=6),('Personnel Roulant'!$G$9+'Personnel Roulant'!$G$42),IF(AND(S66>6,S66<=12),'Personnel Roulant'!$G$11+'Personnel Roulant'!$G$42,IF(S66>0,'Personnel Roulant'!$G$11+(ROUNDUP(S66,0)-12)*'Personnel Roulant'!$G$13+'Personnel Roulant'!$G$42,0)))) -> 0
C70: Salaire brut CH1 DOUBLE | E70: =IF(E67=0,0,IF(E67<12,'Personnel Roulant'!$G$16+'Personnel Roulant'!$G$42,IF(E67<13,'Personnel Roulant'!$G$18+'Personnel Roulant'!$G$42,IF(E67<14,'Personnel Roulant'!$G$20+'Personnel Roulant'!$G$42,IF(E67<15,'Personnel Roulant'!$G$22+'Personnel Roulant'!$G$42,IF(E67<16,'Personnel Roulant'!$G$24+'Personnel Roulant'!$G$42,IF(E67<17,'Personnel Roulant'!$G$26+'Personnel Roulant'!$G$42,IF(E67<18,'Personnel Roulant'!$G$28+'Personnel Roulant'!$G$42,IF(E67<19,'Personnel Roulant'!$G$30+'Personnel Roulant'!$G$42,IF(E67<20,'Personnel Roulant'!$G$32+'Personnel Roulant'!$G$42,IF(E67<21,'Personnel Roulant'!$G$34+'Personnel Roulant'!$G$42,IF(E67<22,'Personnel Roulant'!$G$36+'Personnel Roulant'!$G$42)))))))))))) -> 184.58 | F70: =IF(F67=0,0,IF(F67<12,'Personnel Roulant'!$G$16+'Personnel Roulant'!$G$42,IF(F67<13,'Personnel Roulant'!$G$18+'Personnel Roulant'!$G$42,IF(F67<14,'Personnel Roulant'!$G$20+'Personnel Roulant'!$G$42,IF(F67<15,'Personnel Roulant'!$G$22+'Personnel Roulant'!$G$42,IF(F67<16,'Personnel Roulant'!$G$24+'Personnel Roulant'!$G$42,IF(F67<17,'Personnel Roulant'!$G$26+'Personnel Roulant'!$G$42,IF(F67<18,'Personnel Roulant'!$G$28+'Personnel Roulant'!$G$42,IF(F67<19,'Personnel Roulant'!$G$30+'Personnel Roulant'!$G$42,IF(F67<20,'Personnel Roulant'!$G$32+'Personnel Roulant'!$G$42,IF(F67<21,'Personnel Roulant'!$G$34+'Personnel Roulant'!$G$42,IF(F67<22,'Personnel Roulant'!$G$36+'Personnel Roulant'!$G$42)))))))))))) -> 108.11 | G70: =IF(G67=0,0,IF(G67<12,'Personnel Roulant'!$G$16+'Personnel Roulant'!$G$42,IF(G67<13,'Personnel Roulant'!$G$18+'Personnel Roulant'!$G$42,IF(G67<14,'Personnel Roulant'!$G$20+'Personnel Roulant'!$G$42,IF(G67<15,'Personnel Roulant'!$G$22+'Personnel Roulant'!$G$42,IF(G67<16,'Personnel Roulant'!$G$24+'Personnel Roulant'!$G$42,IF(G67<17,'Personnel Roulant'!$G$26+'Personnel Roulant'!$G$42,IF(G67<18,'Personnel Roulant'!$G$28+'Personnel Roulant'!$G$42,IF(G67<19,'Personnel Roulant'!$G$30+'Personnel Roulant'!$G$42,IF(G67<20,'Personnel Roulant'!$G$32+'Personnel Roulant'!$G$42,IF(G67<21,'Personnel Roulant'!$G$34+'Personnel Roulant'!$G$42,IF(G67<22,'Personnel Roulant'!$G$36+'Personnel Roulant'!$G$42)))))))))))) -> 0 | H70: =IF(H67=0,0,IF(H67<12,'Personnel Roulant'!$G$16+'Personnel Roulant'!$G$42,IF(H67<13,'Personnel Roulant'!$G$18+'Personnel Roulant'!$G$42,IF(H67<14,'Personnel Roulant'!$G$20+'Personnel Roulant'!$G$42,IF(H67<15,'Personnel Roulant'!$G$22+'Personnel Roulant'!$G$42,IF(H67<16,'Personnel Roulant'!$G$24+'Personnel Roulant'!$G$42,IF(H67<17,'Personnel Roulant'!$G$26+'Personnel Roulant'!$G$42,IF(H67<18,'Personnel Roulant'!$G$28+'Personnel Roulant'!$G$42,IF(H67<19,'Personnel Roulant'!$G$30+'Personnel Roulant'!$G$42,IF(H67<20,'Personnel Roulant'!$G$32+'Personnel Roulant'!$G$42,IF(H67<21,'Personnel Roulant'!$G$34+'Personnel Roulant'!$G$42,IF(H67<22,'Personnel Roulant'!$G$36+'Personnel Roulant'!$G$42)))))))))))) -> 0 | I70: =IF(I67=0,0,IF(I67<12,'Personnel Roulant'!$G$16+'Personnel Roulant'!$G$42,IF(I67<13,'Personnel Roulant'!$G$18+'Personnel Roulant'!$G$42,IF(I67<14,'Personnel Roulant'!$G$20+'Personnel Roulant'!$G$42,IF(I67<15,'Personnel Roulant'!$G$22+'Personnel Roulant'!$G$42,IF(I67<16,'Personnel Roulant'!$G$24+'Personnel Roulant'!$G$42,IF(I67<17,'Personnel Roulant'!$G$26+'Personnel Roulant'!$G$42,IF(I67<18,'Personnel Roulant'!$G$28+'Personnel Roulant'!$G$42,IF(I67<19,'Personnel Roulant'!$G$30+'Personnel Roulant'!$G$42,IF(I67<20,'Personnel Roulant'!$G$32+'Personnel Roulant'!$G$42,IF(I67<21,'Personnel Roulant'!$G$34+'Personnel Roulant'!$G$42,IF(I67<22,'Personnel Roulant'!$G$36+'Personnel Roulant'!$G$42)))))))))))) -> 0 | J70: =IF(J67=0,0,IF(J67<12,'Personnel Roulant'!$G$16+'Personnel Roulant'!$G$42,IF(J67<13,'Personnel Roulant'!$G$18+'Personnel Roulant'!$G$42,IF(J67<14,'Personnel Roulant'!$G$20+'Personnel Roulant'!$G$42,IF(J67<15,'Personnel Roulant'!$G$22+'Personnel Roulant'!$G$42,IF(J67<16,'Personnel Roulant'!$G$24+'Personnel Roulant'!$G$42,IF(J67<17,'Personnel Roulant'!$G$26+'Personnel Roulant'!$G$42,IF(J67<18,'Personnel Roulant'!$G$28+'Personnel Roulant'!$G$42,IF(J67<19,'Personnel Roulant'!$G$30+'Personnel Roulant'!$G$42,IF(J67<20,'Personnel Roulant'!$G$32+'Personnel Roulant'!$G$42,IF(J67<21,'Personnel Roulant'!$G$34+'Personnel Roulant'!$G$42,IF(J67<22,'Personnel Roulant'!$G$36+'Personnel Roulant'!$G$42)))))))))))) -> 0 | K70: =IF(K67=0,0,IF(K67<12,'Personnel Roulant'!$G$16+'Personnel Roulant'!$G$42,IF(K67<13,'Personnel Roulant'!$G$18+'Personnel Roulant'!$G$42,IF(K67<14,'Personnel Roulant'!$G$20+'Personnel Roulant'!$G$42,IF(K67<15,'Personnel Roulant'!$G$22+'Personnel Roulant'!$G$42,IF(K67<16,'Personnel Roulant'!$G$24+'Personnel Roulant'!$G$42,IF(K67<17,'Personnel Roulant'!$G$26+'Personnel Roulant'!$G$42,IF(K67<18,'Personnel Roulant'!$G$28+'Personnel Roulant'!$G$42,IF(K67<19,'Personnel Roulant'!$G$30+'Personnel Roulant'!$G$42,IF(K67<20,'Personnel Roulant'!$G$32+'Personnel Roulant'!$G$42,IF(K67<21,'Personnel Roulant'!$G$34+'Personnel Roulant'!$G$42,IF(K67<22,'Personnel Roulant'!$G$36+'Personnel Roulant'!$G$42)))))))))))) -> 0 | L70: =IF(L67=0,0,IF(L67<12,'Personnel Roulant'!$G$16+'Personnel Roulant'!$G$42,IF(L67<13,'Personnel Roulant'!$G$18+'Personnel Roulant'!$G$42,IF(L67<14,'Personnel Roulant'!$G$20+'Personnel Roulant'!$G$42,IF(L67<15,'Personnel Roulant'!$G$22+'Personnel Roulant'!$G$42,IF(L67<16,'Personnel Roulant'!$G$24+'Personnel Roulant'!$G$42,IF(L67<17,'Personnel Roulant'!$G$26+'Personnel Roulant'!$G$42,IF(L67<18,'Personnel Roulant'!$G$28+'Personnel Roulant'!$G$42,IF(L67<19,'Personnel Roulant'!$G$30+'Personnel Roulant'!$G$42,IF(L67<20,'Personnel Roulant'!$G$32+'Personnel Roulant'!$G$42,IF(L67<21,'Personnel Roulant'!$G$34+'Personnel Roulant'!$G$42,IF(L67<22,'Personnel Roulant'!$G$36+'Personnel Roulant'!$G$42)))))))))))) -> 0 | M70: =IF(M67=0,0,IF(M67<12,'Personnel Roulant'!$G$16+'Personnel Roulant'!$G$42,IF(M67<13,'Personnel Roulant'!$G$18+'Personnel Roulant'!$G$42,IF(M67<14,'Personnel Roulant'!$G$20+'Personnel Roulant'!$G$42,IF(M67<15,'Personnel Roulant'!$G$22+'Personnel Roulant'!$G$42,IF(M67<16,'Personnel Roulant'!$G$24+'Personnel Roulant'!$G$42,IF(M67<17,'Personnel Roulant'!$G$26+'Personnel Roulant'!$G$42,IF(M67<18,'Personnel Roulant'!$G$28+'Personnel Roulant'!$G$42,IF(M67<19,'Personnel Roulant'!$G$30+'Personnel Roulant'!$G$42,IF(M67<20,'Personnel Roulant'!$G$32+'Personnel Roulant'!$G$42,IF(M67<21,'Personnel Roulant'!$G$34+'Personnel Roulant'!$G$42,IF(M67<22,'Personnel Roulant'!$G$36+'Personnel Roulant'!$G$42)))))))))))) -> 0 | N70: =IF(N67=0,0,IF(N67<12,'Personnel Roulant'!$G$16+'Personnel Roulant'!$G$42,IF(N67<13,'Personnel Roulant'!$G$18+'Personnel Roulant'!$G$42,IF(N67<14,'Personnel Roulant'!$G$20+'Personnel Roulant'!$G$42,IF(N67<15,'Personnel Roulant'!$G$22+'Personnel Roulant'!$G$42,IF(N67<16,'Personnel Roulant'!$G$24+'Personnel Roulant'!$G$42,IF(N67<17,'Personnel Roulant'!$G$26+'Personnel Roulant'!$G$42,IF(N67<18,'Personnel Roulant'!$G$28+'Personnel Roulant'!$G$42,IF(N67<19,'Personnel Roulant'!$G$30+'Personnel Roulant'!$G$42,IF(N67<20,'Personnel Roulant'!$G$32+'Personnel Roulant'!$G$42,IF(N67<21,'Personnel Roulant'!$G$34+'Personnel Roulant'!$G$42,IF(N67<22,'Personnel Roulant'!$G$36+'Personnel Roulant'!$G$42)))))))))))) -> 0 | O70: =IF(O67=0,0,IF(O67<12,'Personnel Roulant'!$G$16+'Personnel Roulant'!$G$42,IF(O67<13,'Personnel Roulant'!$G$18+'Personnel Roulant'!$G$42,IF(O67<14,'Personnel Roulant'!$G$20+'Personnel Roulant'!$G$42,IF(O67<15,'Personnel Roulant'!$G$22+'Personnel Roulant'!$G$42,IF(O67<16,'Personnel Roulant'!$G$24+'Personnel Roulant'!$G$42,IF(O67<17,'Personnel Roulant'!$G$26+'Personnel Roulant'!$G$42,IF(O67<18,'Personnel Roulant'!$G$28+'Personnel Roulant'!$G$42,IF(O67<19,'Personnel Roulant'!$G$30+'Personnel Roulant'!$G$42,IF(O67<20,'Personnel Roulant'!$G$32+'Personnel Roulant'!$G$42,IF(O67<21,'Personnel Roulant'!$G$34+'Personnel Roulant'!$G$42,IF(O67<22,'Personnel Roulant'!$G$36+'Personnel Roulant'!$G$42)))))))))))) -> 0 | P70: =IF(P67=0,0,IF(P67<12,'Personnel Roulant'!$G$16+'Personnel Roulant'!$G$42,IF(P67<13,'Personnel Roulant'!$G$18+'Personnel Roulant'!$G$42,IF(P67<14,'Personnel Roulant'!$G$20+'Personnel Roulant'!$G$42,IF(P67<15,'Personnel Roulant'!$G$22+'Personnel Roulant'!$G$42,IF(P67<16,'Personnel Roulant'!$G$24+'Personnel Roulant'!$G$42,IF(P67<17,'Personnel Roulant'!$G$26+'Personnel Roulant'!$G$42,IF(P67<18,'Personnel Roulant'!$G$28+'Personnel Roulant'!$G$42,IF(P67<19,'Personnel Roulant'!$G$30+'Personnel Roulant'!$G$42,IF(P67<20,'Personnel Roulant'!$G$32+'Personnel Roulant'!$G$42,IF(P67<21,'Personnel Roulant'!$G$34+'Personnel Roulant'!$G$42,IF(P67<22,'Personnel Roulant'!$G$36+'Personnel Roulant'!$G$42)))))))))))) -> 0 | Q70: =IF(Q67=0,0,IF(Q67<12,'Personnel Roulant'!$G$16+'Personnel Roulant'!$G$42,IF(Q67<13,'Personnel Roulant'!$G$18+'Personnel Roulant'!$G$42,IF(Q67<14,'Personnel Roulant'!$G$20+'Personnel Roulant'!$G$42,IF(Q67<15,'Personnel Roulant'!$G$22+'Personnel Roulant'!$G$42,IF(Q67<16,'Personnel Roulant'!$G$24+'Personnel Roulant'!$G$42,IF(Q67<17,'Personnel Roulant'!$G$26+'Personnel Roulant'!$G$42,IF(Q67<18,'Personnel Roulant'!$G$28+'Personnel Roulant'!$G$42,IF(Q67<19,'Personnel Roulant'!$G$30+'Personnel Roulant'!$G$42,IF(Q67<20,'Personnel Roulant'!$G$32+'Personnel Roulant'!$G$42,IF(Q67<21,'Personnel Roulant'!$G$34+'Personnel Roulant'!$G$42,IF(Q67<22,'Personnel Roulant'!$G$36+'Personnel Roulant'!$G$42)))))))))))) -> 0 | R70: =IF(R67=0,0,IF(R67<12,'Personnel Roulant'!$G$16+'Personnel Roulant'!$G$42,IF(R67<13,'Personnel Roulant'!$G$18+'Personnel Roulant'!$G$42,IF(R67<14,'Personnel Roulant'!$G$20+'Personnel Roulant'!$G$42,IF(R67<15,'Personnel Roulant'!$G$22+'Personnel Roulant'!$G$42,IF(R67<16,'Personnel Roulant'!$G$24+'Personnel Roulant'!$G$42,IF(R67<17,'Personnel Roulant'!$G$26+'Personnel Roulant'!$G$42,IF(R67<18,'Personnel Roulant'!$G$28+'Personnel Roulant'!$G$42,IF(R67<19,'Personnel Roulant'!$G$30+'Personnel Roulant'!$G$42,IF(R67<20,'Personnel Roulant'!$G$32+'Personnel Roulant'!$G$42,IF(R67<21,'Personnel Roulant'!$G$34+'Personnel Roulant'!$G$42,IF(R67<22,'Personnel Roulant'!$G$36+'Personnel Roulant'!$G$42)))))))))))) -> 0 | S70: =IF(S67=0,0,IF(S67<12,'Personnel Roulant'!$G$16+'Personnel Roulant'!$G$42,IF(S67<13,'Personnel Roulant'!$G$18+'Personnel Roulant'!$G$42,IF(S67<14,'Personnel Roulant'!$G$20+'Personnel Roulant'!$G$42,IF(S67<15,'Personnel Roulant'!$G$22+'Personnel Roulant'!$G$42,IF(S67<16,'Personnel Roulant'!$G$24+'Personnel Roulant'!$G$42,IF(S67<17,'Personnel Roulant'!$G$26+'Personnel Roulant'!$G$42,IF(S67<18,'Personnel Roulant'!$G$28+'Personnel Roulant'!$G$42,IF(S67<19,'Personnel Roulant'!$G$30+'Personnel Roulant'!$G$42,IF(S67<20,'Personnel Roulant'!$G$32+'Personnel Roulant'!$G$42,IF(S67<21,'Personnel Roulant'!$G$34+'Personnel Roulant'!$G$42,IF(S67<22,'Personnel Roulant'!$G$36+'Personnel Roulant'!$G$42)))))))))))) -> 0
C71: Salaire brut CH2 DOUBLE | E71: =IF(E68=0,0,IF(E68<12,'Personnel Roulant'!$G$16+'Personnel Roulant'!$G$42,IF(E68<13,'Personnel Roulant'!$G$18+'Personnel Roulant'!$G$42,IF(E68<14,'Personnel Roulant'!$G$20+'Personnel Roulant'!$G$42,IF(E68<15,'Personnel Roulant'!$G$22+'Personnel Roulant'!$G$42,IF(E68<16,'Personnel Roulant'!$G$24+'Personnel Roulant'!$G$42,IF(E68<17,'Personnel Roulant'!$G$26+'Personnel Roulant'!$G$42,IF(E68<18,'Personnel Roulant'!$G$28+'Personnel Roulant'!$G$42,IF(E68<19,'Personnel Roulant'!$G$30+'Personnel Roulant'!$G$42,IF(E68<20,'Personnel Roulant'!$G$32+'Personnel Roulant'!$G$42,IF(E68<21,'Personnel Roulant'!$G$34+'Personnel Roulant'!$G$42,IF(E68<22,'Personnel Roulant'!$G$36+'Personnel Roulant'!$G$42)))))))))))) -> 184.58 | F71: =IF(F68=0,0,IF(F68<12,'Personnel Roulant'!$G$16+'Personnel Roulant'!$G$42,IF(F68<13,'Personnel Roulant'!$G$18+'Personnel Roulant'!$G$42,IF(F68<14,'Personnel Roulant'!$G$20+'Personnel Roulant'!$G$42,IF(F68<15,'Personnel Roulant'!$G$22+'Personnel Roulant'!$G$42,IF(F68<16,'Personnel Roulant'!$G$24+'Personnel Roulant'!$G$42,IF(F68<17,'Personnel Roulant'!$G$26+'Personnel Roulant'!$G$42,IF(F68<18,'Personnel Roulant'!$G$28+'Personnel Roulant'!$G$42,IF(F68<19,'Personnel Roulant'!$G$30+'Personnel Roulant'!$G$42,IF(F68<20,'Personnel Roulant'!$G$32+'Personnel Roulant'!$G$42,IF(F68<21,'Personnel Roulant'!$G$34+'Personnel Roulant'!$G$42,IF(F68<22,'Personnel Roulant'!$G$36+'Personnel Roulant'!$G$42)))))))))))) -> 108.11 | G71: =IF(G68=0,0,IF(G68<12,'Personnel Roulant'!$G$16+'Personnel Roulant'!$G$42,IF(G68<13,'Personnel Roulant'!$G$18+'Personnel Roulant'!$G$42,IF(G68<14,'Personnel Roulant'!$G$20+'Personnel Roulant'!$G$42,IF(G68<15,'Personnel Roulant'!$G$22+'Personnel Roulant'!$G$42,IF(G68<16,'Personnel Roulant'!$G$24+'Personnel Roulant'!$G$42,IF(G68<17,'Personnel Roulant'!$G$26+'Personnel Roulant'!$G$42,IF(G68<18,'Personnel Roulant'!$G$28+'Personnel Roulant'!$G$42,IF(G68<19,'Personnel Roulant'!$G$30+'Personnel Roulant'!$G$42,IF(G68<20,'Personnel Roulant'!$G$32+'Personnel Roulant'!$G$42,IF(G68<21,'Personnel Roulant'!$G$34+'Personnel Roulant'!$G$42,IF(G68<22,'Personnel Roulant'!$G$36+'Personnel Roulant'!$G$42)))))))))))) -> 0 | H71: =IF(H68=0,0,IF(H68<12,'Personnel Roulant'!$G$16+'Personnel Roulant'!$G$42,IF(H68<13,'Personnel Roulant'!$G$18+'Personnel Roulant'!$G$42,IF(H68<14,'Personnel Roulant'!$G$20+'Personnel Roulant'!$G$42,IF(H68<15,'Personnel Roulant'!$G$22+'Personnel Roulant'!$G$42,IF(H68<16,'Personnel Roulant'!$G$24+'Personnel Roulant'!$G$42,IF(H68<17,'Personnel Roulant'!$G$26+'Personnel Roulant'!$G$42,IF(H68<18,'Personnel Roulant'!$G$28+'Personnel Roulant'!$G$42,IF(H68<19,'Personnel Roulant'!$G$30+'Personnel Roulant'!$G$42,IF(H68<20,'Personnel Roulant'!$G$32+'Personnel Roulant'!$G$42,IF(H68<21,'Personnel Roulant'!$G$34+'Personnel Roulant'!$G$42,IF(H68<22,'Personnel Roulant'!$G$36+'Personnel Roulant'!$G$42)))))))))))) -> 0 | I71: =IF(I68=0,0,IF(I68<12,'Personnel Roulant'!$G$16+'Personnel Roulant'!$G$42,IF(I68<13,'Personnel Roulant'!$G$18+'Personnel Roulant'!$G$42,IF(I68<14,'Personnel Roulant'!$G$20+'Personnel Roulant'!$G$42,IF(I68<15,'Personnel Roulant'!$G$22+'Personnel Roulant'!$G$42,IF(I68<16,'Personnel Roulant'!$G$24+'Personnel Roulant'!$G$42,IF(I68<17,'Personnel Roulant'!$G$26+'Personnel Roulant'!$G$42,IF(I68<18,'Personnel Roulant'!$G$28+'Personnel Roulant'!$G$42,IF(I68<19,'Personnel Roulant'!$G$30+'Personnel Roulant'!$G$42,IF(I68<20,'Personnel Roulant'!$G$32+'Personnel Roulant'!$G$42,IF(I68<21,'Personnel Roulant'!$G$34+'Personnel Roulant'!$G$42,IF(I68<22,'Personnel Roulant'!$G$36+'Personnel Roulant'!$G$42)))))))))))) -> 0 | J71: =IF(J68=0,0,IF(J68<12,'Personnel Roulant'!$G$16+'Personnel Roulant'!$G$42,IF(J68<13,'Personnel Roulant'!$G$18+'Personnel Roulant'!$G$42,IF(J68<14,'Personnel Roulant'!$G$20+'Personnel Roulant'!$G$42,IF(J68<15,'Personnel Roulant'!$G$22+'Personnel Roulant'!$G$42,IF(J68<16,'Personnel Roulant'!$G$24+'Personnel Roulant'!$G$42,IF(J68<17,'Personnel Roulant'!$G$26+'Personnel Roulant'!$G$42,IF(J68<18,'Personnel Roulant'!$G$28+'Personnel Roulant'!$G$42,IF(J68<19,'Personnel Roulant'!$G$30+'Personnel Roulant'!$G$42,IF(J68<20,'Personnel Roulant'!$G$32+'Personnel Roulant'!$G$42,IF(J68<21,'Personnel Roulant'!$G$34+'Personnel Roulant'!$G$42,IF(J68<22,'Personnel Roulant'!$G$36+'Personnel Roulant'!$G$42)))))))))))) -> 0 | K71: =IF(K68=0,0,IF(K68<12,'Personnel Roulant'!$G$16+'Personnel Roulant'!$G$42,IF(K68<13,'Personnel Roulant'!$G$18+'Personnel Roulant'!$G$42,IF(K68<14,'Personnel Roulant'!$G$20+'Personnel Roulant'!$G$42,IF(K68<15,'Personnel Roulant'!$G$22+'Personnel Roulant'!$G$42,IF(K68<16,'Personnel Roulant'!$G$24+'Personnel Roulant'!$G$42,IF(K68<17,'Personnel Roulant'!$G$26+'Personnel Roulant'!$G$42,IF(K68<18,'Personnel Roulant'!$G$28+'Personnel Roulant'!$G$42,IF(K68<19,'Personnel Roulant'!$G$30+'Personnel Roulant'!$G$42,IF(K68<20,'Personnel Roulant'!$G$32+'Personnel Roulant'!$G$42,IF(K68<21,'Personnel Roulant'!$G$34+'Personnel Roulant'!$G$42,IF(K68<22,'Personnel Roulant'!$G$36+'Personnel Roulant'!$G$42)))))))))))) -> 0 | L71: =IF(L68=0,0,IF(L68<12,'Personnel Roulant'!$G$16+'Personnel Roulant'!$G$42,IF(L68<13,'Personnel Roulant'!$G$18+'Personnel Roulant'!$G$42,IF(L68<14,'Personnel Roulant'!$G$20+'Personnel Roulant'!$G$42,IF(L68<15,'Personnel Roulant'!$G$22+'Personnel Roulant'!$G$42,IF(L68<16,'Personnel Roulant'!$G$24+'Personnel Roulant'!$G$42,IF(L68<17,'Personnel Roulant'!$G$26+'Personnel Roulant'!$G$42,IF(L68<18,'Personnel Roulant'!$G$28+'Personnel Roulant'!$G$42,IF(L68<19,'Personnel Roulant'!$G$30+'Personnel Roulant'!$G$42,IF(L68<20,'Personnel Roulant'!$G$32+'Personnel Roulant'!$G$42,IF(L68<21,'Personnel Roulant'!$G$34+'Personnel Roulant'!$G$42,IF(L68<22,'Personnel Roulant'!$G$36+'Personnel Roulant'!$G$42)))))))))))) -> 0 | M71: =IF(M68=0,0,IF(M68<12,'Personnel Roulant'!$G$16+'Personnel Roulant'!$G$42,IF(M68<13,'Personnel Roulant'!$G$18+'Personnel Roulant'!$G$42,IF(M68<14,'Personnel Roulant'!$G$20+'Personnel Roulant'!$G$42,IF(M68<15,'Personnel Roulant'!$G$22+'Personnel Roulant'!$G$42,IF(M68<16,'Personnel Roulant'!$G$24+'Personnel Roulant'!$G$42,IF(M68<17,'Personnel Roulant'!$G$26+'Personnel Roulant'!$G$42,IF(M68<18,'Personnel Roulant'!$G$28+'Personnel Roulant'!$G$42,IF(M68<19,'Personnel Roulant'!$G$30+'Personnel Roulant'!$G$42,IF(M68<20,'Personnel Roulant'!$G$32+'Personnel Roulant'!$G$42,IF(M68<21,'Personnel Roulant'!$G$34+'Personnel Roulant'!$G$42,IF(M68<22,'Personnel Roulant'!$G$36+'Personnel Roulant'!$G$42)))))))))))) -> 0 | N71: =IF(N68=0,0,IF(N68<12,'Personnel Roulant'!$G$16+'Personnel Roulant'!$G$42,IF(N68<13,'Personnel Roulant'!$G$18+'Personnel Roulant'!$G$42,IF(N68<14,'Personnel Roulant'!$G$20+'Personnel Roulant'!$G$42,IF(N68<15,'Personnel Roulant'!$G$22+'Personnel Roulant'!$G$42,IF(N68<16,'Personnel Roulant'!$G$24+'Personnel Roulant'!$G$42,IF(N68<17,'Personnel Roulant'!$G$26+'Personnel Roulant'!$G$42,IF(N68<18,'Personnel Roulant'!$G$28+'Personnel Roulant'!$G$42,IF(N68<19,'Personnel Roulant'!$G$30+'Personnel Roulant'!$G$42,IF(N68<20,'Personnel Roulant'!$G$32+'Personnel Roulant'!$G$42,IF(N68<21,'Personnel Roulant'!$G$34+'Personnel Roulant'!$G$42,IF(N68<22,'Personnel Roulant'!$G$36+'Personnel Roulant'!$G$42)))))))))))) -> 0 | O71: =IF(O68=0,0,IF(O68<12,'Personnel Roulant'!$G$16+'Personnel Roulant'!$G$42,IF(O68<13,'Personnel Roulant'!$G$18+'Personnel Roulant'!$G$42,IF(O68<14,'Personnel Roulant'!$G$20+'Personnel Roulant'!$G$42,IF(O68<15,'Personnel Roulant'!$G$22+'Personnel Roulant'!$G$42,IF(O68<16,'Personnel Roulant'!$G$24+'Personnel Roulant'!$G$42,IF(O68<17,'Personnel Roulant'!$G$26+'Personnel Roulant'!$G$42,IF(O68<18,'Personnel Roulant'!$G$28+'Personnel Roulant'!$G$42,IF(O68<19,'Personnel Roulant'!$G$30+'Personnel Roulant'!$G$42,IF(O68<20,'Personnel Roulant'!$G$32+'Personnel Roulant'!$G$42,IF(O68<21,'Personnel Roulant'!$G$34+'Personnel Roulant'!$G$42,IF(O68<22,'Personnel Roulant'!$G$36+'Personnel Roulant'!$G$42)))))))))))) -> 0 | P71: =IF(P68=0,0,IF(P68<12,'Personnel Roulant'!$G$16+'Personnel Roulant'!$G$42,IF(P68<13,'Personnel Roulant'!$G$18+'Personnel Roulant'!$G$42,IF(P68<14,'Personnel Roulant'!$G$20+'Personnel Roulant'!$G$42,IF(P68<15,'Personnel Roulant'!$G$22+'Personnel Roulant'!$G$42,IF(P68<16,'Personnel Roulant'!$G$24+'Personnel Roulant'!$G$42,IF(P68<17,'Personnel Roulant'!$G$26+'Personnel Roulant'!$G$42,IF(P68<18,'Personnel Roulant'!$G$28+'Personnel Roulant'!$G$42,IF(P68<19,'Personnel Roulant'!$G$30+'Personnel Roulant'!$G$42,IF(P68<20,'Personnel Roulant'!$G$32+'Personnel Roulant'!$G$42,IF(P68<21,'Personnel Roulant'!$G$34+'Personnel Roulant'!$G$42,IF(P68<22,'Personnel Roulant'!$G$36+'Personnel Roulant'!$G$42)))))))))))) -> 0 | Q71: =IF(Q68=0,0,IF(Q68<12,'Personnel Roulant'!$G$16+'Personnel Roulant'!$G$42,IF(Q68<13,'Personnel Roulant'!$G$18+'Personnel Roulant'!$G$42,IF(Q68<14,'Personnel Roulant'!$G$20+'Personnel Roulant'!$G$42,IF(Q68<15,'Personnel Roulant'!$G$22+'Personnel Roulant'!$G$42,IF(Q68<16,'Personnel Roulant'!$G$24+'Personnel Roulant'!$G$42,IF(Q68<17,'Personnel Roulant'!$G$26+'Personnel Roulant'!$G$42,IF(Q68<18,'Personnel Roulant'!$G$28+'Personnel Roulant'!$G$42,IF(Q68<19,'Personnel Roulant'!$G$30+'Personnel Roulant'!$G$42,IF(Q68<20,'Personnel Roulant'!$G$32+'Personnel Roulant'!$G$42,IF(Q68<21,'Personnel Roulant'!$G$34+'Personnel Roulant'!$G$42,IF(Q68<22,'Personnel Roulant'!$G$36+'Personnel Roulant'!$G$42)))))))))))) -> 0 | R71: =IF(R68=0,0,IF(R68<12,'Personnel Roulant'!$G$16+'Personnel Roulant'!$G$42,IF(R68<13,'Personnel Roulant'!$G$18+'Personnel Roulant'!$G$42,IF(R68<14,'Personnel Roulant'!$G$20+'Personnel Roulant'!$G$42,IF(R68<15,'Personnel Roulant'!$G$22+'Personnel Roulant'!$G$42,IF(R68<16,'Personnel Roulant'!$G$24+'Personnel Roulant'!$G$42,IF(R68<17,'Personnel Roulant'!$G$26+'Personnel Roulant'!$G$42,IF(R68<18,'Personnel Roulant'!$G$28+'Personnel Roulant'!$G$42,IF(R68<19,'Personnel Roulant'!$G$30+'Personnel Roulant'!$G$42,IF(R68<20,'Personnel Roulant'!$G$32+'Personnel Roulant'!$G$42,IF(R68<21,'Personnel Roulant'!$G$34+'Personnel Roulant'!$G$42,IF(R68<22,'Personnel Roulant'!$G$36+'Personnel Roulant'!$G$42)))))))))))) -> 0 | S71: =IF(S68=0,0,IF(S68<12,'Personnel Roulant'!$G$16+'Personnel Roulant'!$G$42,IF(S68<13,'Personnel Roulant'!$G$18+'Personnel Roulant'!$G$42,IF(S68<14,'Personnel Roulant'!$G$20+'Personnel Roulant'!$G$42,IF(S68<15,'Personnel Roulant'!$G$22+'Personnel Roulant'!$G$42,IF(S68<16,'Personnel Roulant'!$G$24+'Personnel Roulant'!$G$42,IF(S68<17,'Personnel Roulant'!$G$26+'Personnel Roulant'!$G$42,IF(S68<18,'Personnel Roulant'!$G$28+'Personnel Roulant'!$G$42,IF(S68<19,'Personnel Roulant'!$G$30+'Personnel Roulant'!$G$42,IF(S68<20,'Personnel Roulant'!$G$32+'Personnel Roulant'!$G$42,IF(S68<21,'Personnel Roulant'!$G$34+'Personnel Roulant'!$G$42,IF(S68<22,'Personnel Roulant'!$G$36+'Personnel Roulant'!$G$42)))))))))))) -> 0
C72: Compensation Dimanche tous CH | E72: =Trajet!F88*'Personnel Roulant'!$G$48 -> 0 | F72: =Trajet!G88*'Personnel Roulant'!$G$48 -> 0 | G72: =Trajet!H88*'Personnel Roulant'!$G$48 -> 0 | H72: =Trajet!I88*'Personnel Roulant'!$G$48 -> 0 | I72: =Trajet!J88*'Personnel Roulant'!$G$48 -> 0 | J72: =Trajet!K88*'Personnel Roulant'!$G$48 -> 0 | K72: =Trajet!L88*'Personnel Roulant'!$G$48 -> 0 | L72: =Trajet!M88*'Personnel Roulant'!$G$48 -> 0 | M72: =Trajet!N88*'Personnel Roulant'!$G$48 -> 0 | N72: =Trajet!O88*'Personnel Roulant'!$G$48 -> 0 | O72: =Trajet!P88*'Personnel Roulant'!$G$48 -> 0 | P72: =Trajet!Q88*'Personnel Roulant'!$G$48 -> 0 | Q72: =Trajet!R88*'Personnel Roulant'!$G$48 -> 0 | R72: =Trajet!S88*'Personnel Roulant'!$G$48 -> 0 | S72: =Trajet!T88*'Personnel Roulant'!$G$48 -> 0
C73: Inactivité à l'étranger tous CH | E73: =Trajet!F89*'Personnel Roulant'!$G$50 -> 0 | F73: =Trajet!G89*'Personnel Roulant'!$G$50 -> 0 | G73: =Trajet!H89*'Personnel Roulant'!$G$50 -> 0 | H73: =Trajet!I89*'Personnel Roulant'!$G$50 -> 0 | I73: =Trajet!J89*'Personnel Roulant'!$G$50 -> 0 | J73: =Trajet!K89*'Personnel Roulant'!$G$50 -> 0 | K73: =Trajet!L89*'Personnel Roulant'!$G$50 -> 0 | L73: =Trajet!M89*'Personnel Roulant'!$G$50 -> 0 | M73: =Trajet!N89*'Personnel Roulant'!$G$50 -> 0 | N73: =Trajet!O89*'Personnel Roulant'!$G$50 -> 0 | O73: =Trajet!P89*'Personnel Roulant'!$G$50 -> 0 | P73: =Trajet!Q89*'Personnel Roulant'!$G$50 -> 0 | Q73: =Trajet!R89*'Personnel Roulant'!$G$50 -> 0 | R73: =Trajet!S89*'Personnel Roulant'!$G$50 -> 0 | S73: =Trajet!T89*'Personnel Roulant'!$G$50 -> 0
C74: Prime fin d'année tous CH | E74: =IF(Trajet!F77<1,0,(('Personnel Roulant'!$G$46/'Personnel Roulant'!$G$68)*Trajet!F83)) ->  | F74: =IF(Trajet!G77<1,0,(('Personnel Roulant'!$G$46/'Personnel Roulant'!$G$68)*Trajet!G83)) ->  | G74: =IF(Trajet!H77<1,0,(('Personnel Roulant'!$G$46/'Personnel Roulant'!$G$68)*Trajet!H83)) ->  | H74: =IF(Trajet!I77<1,0,(('Personnel Roulant'!$G$46/'Personnel Roulant'!$G$68)*Trajet!I83)) -> 0 | I74: =IF(Trajet!J77<1,0,(('Personnel Roulant'!$G$46/'Personnel Roulant'!$G$68)*Trajet!J83)) -> 0 | J74: =IF(Trajet!K77<1,0,(('Personnel Roulant'!$G$46/'Personnel Roulant'!$G$68)*Trajet!K83)) -> 0 | K74: =IF(Trajet!L77<1,0,(('Personnel Roulant'!$G$46/'Personnel Roulant'!$G$68)*Trajet!L83)) -> 0 | L74: =IF(Trajet!M77<1,0,(('Personnel Roulant'!$G$46/'Personnel Roulant'!$G$68)*Trajet!M83)) -> 0 | M74: =IF(Trajet!N77<1,0,(('Personnel Roulant'!$G$46/'Personnel Roulant'!$G$68)*Trajet!N83)) -> 0 | N74: =IF(Trajet!O77<1,0,(('Personnel Roulant'!$G$46/'Personnel Roulant'!$G$68)*Trajet!O83)) -> 0 | O74: =IF(Trajet!P77<1,0,(('Personnel Roulant'!$G$46/'Personnel Roulant'!$G$68)*Trajet!P83)) -> 0 | P74: =IF(Trajet!Q77<1,0,(('Personnel Roulant'!$G$46/'Personnel Roulant'!$G$68)*Trajet!Q83)) -> 0 | Q74: =IF(Trajet!R77<1,0,(('Personnel Roulant'!$G$46/'Personnel Roulant'!$G$68)*Trajet!R83)) -> 0 | R74: =IF(Trajet!S77<1,0,(('Personnel Roulant'!$G$46/'Personnel Roulant'!$G$68)*Trajet!S83)) -> 0 | S74: =IF(Trajet!T77<1,0,(('Personnel Roulant'!$G$46/'Personnel Roulant'!$G$68)*Trajet!T83)) -> 0
C75: ONSS employeur tous CH | E75: =IF(Trajet!F77<1,0,((E69+E70+E71+E72+E73+E74)*1.08*'Personnel Roulant'!$G$52)) ->  | F75: =IF(Trajet!G77<1,0,((F69+F70+F71+F72+F73+F74)*1.08*'Personnel Roulant'!$G$52)) ->  | G75: =IF(Trajet!H77<1,0,((G69+G70+G71+G72+G73+G74)*1.08*'Personnel Roulant'!$G$52)) ->  | H75: =IF(Trajet!I77<1,0,((H69+H70+H71+H72+H73+H74)*1.08*'Personnel Roulant'!$G$52)) -> 0 | I75: =IF(Trajet!J77<1,0,((I69+I70+I71+I72+I73+I74)*1.08*'Personnel Roulant'!$G$52)) -> 0 | J75: =IF(Trajet!K77<1,0,((J69+J70+J71+J72+J73+J74)*1.08*'Personnel Roulant'!$G$52)) -> 0 | K75: =IF(Trajet!L77<1,0,((K69+K70+K71+K72+K73+K74)*1.08*'Personnel Roulant'!$G$52)) -> 0 | L75: =IF(Trajet!M77<1,0,((L69+L70+L71+L72+L73+L74)*1.08*'Personnel Roulant'!$G$52)) -> 0 | M75: =IF(Trajet!N77<1,0,((M69+M70+M71+M72+M73+M74)*1.08*'Personnel Roulant'!$G$52)) -> 0 | N75: =IF(Trajet!O77<1,0,((N69+N70+N71+N72+N73+N74)*1.08*'Personnel Roulant'!$G$52)) -> 0 | O75: =IF(Trajet!P77<1,0,((O69+O70+O71+O72+O73+O74)*1.08*'Personnel Roulant'!$G$52)) -> 0 | P75: =IF(Trajet!Q77<1,0,((P69+P70+P71+P72+P73+P74)*1.08*'Personnel Roulant'!$G$52)) -> 0 | Q75: =IF(Trajet!R77<1,0,((Q69+Q70+Q71+Q72+Q73+Q74)*1.08*'Personnel Roulant'!$G$52)) -> 0 | R75: =IF(Trajet!S77<1,0,((R69+R70+R71+R72+R73+R74)*1.08*'Personnel Roulant'!$G$52)) -> 0 | S75: =IF(Trajet!T77<1,0,((S69+S70+S71+S72+S73+S74)*1.08*'Personnel Roulant'!$G$52)) -> 0
C76: Eco-cheques tous CH | E76: =IF(Trajet!F77<1,0,(('Personnel Roulant'!$G$44/'Personnel Roulant'!$G$68)*Trajet!F83)) ->  | F76: =IF(Trajet!G77<1,0,(('Personnel Roulant'!$G$44/'Personnel Roulant'!$G$68)*Trajet!G83)) ->  | G76: =IF(Trajet!H77<1,0,(('Personnel Roulant'!$G$44/'Personnel Roulant'!$G$68)*Trajet!H83)) ->  | H76: =IF(Trajet!I77<1,0,(('Personnel Roulant'!$G$44/'Personnel Roulant'!$G$68)*Trajet!I83)) -> 0 | I76: =IF(Trajet!J77<1,0,(('Personnel Roulant'!$G$44/'Personnel Roulant'!$G$68)*Trajet!J83)) -> 0 | J76: =IF(Trajet!K77<1,0,(('Personnel Roulant'!$G$44/'Personnel Roulant'!$G$68)*Trajet!K83)) -> 0 | K76: =IF(Trajet!L77<1,0,(('Personnel Roulant'!$G$44/'Personnel Roulant'!$G$68)*Trajet!L83)) -> 0 | L76: =IF(Trajet!M77<1,0,(('Personnel Roulant'!$G$44/'Personnel Roulant'!$G$68)*Trajet!M83)) -> 0 | M76: =IF(Trajet!N77<1,0,(('Personnel Roulant'!$G$44/'Personnel Roulant'!$G$68)*Trajet!N83)) -> 0 | N76: =IF(Trajet!O77<1,0,(('Personnel Roulant'!$G$44/'Personnel Roulant'!$G$68)*Trajet!O83)) -> 0 | O76: =IF(Trajet!P77<1,0,(('Personnel Roulant'!$G$44/'Personnel Roulant'!$G$68)*Trajet!P83)) -> 0 | P76: =IF(Trajet!Q77<1,0,(('Personnel Roulant'!$G$44/'Personnel Roulant'!$G$68)*Trajet!Q83)) -> 0 | Q76: =IF(Trajet!R77<1,0,(('Personnel Roulant'!$G$44/'Personnel Roulant'!$G$68)*Trajet!R83)) -> 0 | R76: =IF(Trajet!S77<1,0,(('Personnel Roulant'!$G$44/'Personnel Roulant'!$G$68)*Trajet!S83)) -> 0 | S76: =IF(Trajet!T77<1,0,(('Personnel Roulant'!$G$44/'Personnel Roulant'!$G$68)*Trajet!T83)) -> 0
C77: RGTP CH SIMPLE | E77: =ROUNDUP(E66,0)*'Personnel Roulant'!$G$40 -> 12.66 | F77: =ROUNDUP(F66,0)*'Personnel Roulant'!$G$40 -> 0 | G77: =ROUNDUP(G66,0)*'Personnel Roulant'!$G$40 -> 0 | H77: =ROUNDUP(H66,0)*'Personnel Roulant'!$G$40 -> 0 | I77: =ROUNDUP(I66,0)*'Personnel Roulant'!$G$40 -> 0 | J77: =ROUNDUP(J66,0)*'Personnel Roulant'!$G$40 -> 0 | K77: =ROUNDUP(K66,0)*'Personnel Roulant'!$G$40 -> 0 | L77: =ROUNDUP(L66,0)*'Personnel Roulant'!$G$40 -> 0 | M77: =ROUNDUP(M66,0)*'Personnel Roulant'!$G$40 -> 0 | N77: =ROUNDUP(N66,0)*'Personnel Roulant'!$G$40 -> 0 | O77: =ROUNDUP(O66,0)*'Personnel Roulant'!$G$40 -> 0 | P77: =ROUNDUP(P66,0)*'Personnel Roulant'!$G$40 -> 0 | Q77: =ROUNDUP(Q66,0)*'Personnel Roulant'!$G$40 -> 0 | R77: =ROUNDUP(R66,0)*'Personnel Roulant'!$G$40 -> 0 | S77: =ROUNDUP(S66,0)*'Personnel Roulant'!$G$40 -> 0
C78: RGTP CH1 DOUBLE | E78: =ROUNDUP(E67,0)*'Personnel Roulant'!$G$40 -> 37.98 | F78: =ROUNDUP(F67,0)*'Personnel Roulant'!$G$40 -> 16.88 | G78: =ROUNDUP(G67,0)*'Personnel Roulant'!$G$40 -> 0 | H78: =ROUNDUP(H67,0)*'Personnel Roulant'!$G$40 -> 0 | I78: =ROUNDUP(I67,0)*'Personnel Roulant'!$G$40 -> 0 | J78: =ROUNDUP(J67,0)*'Personnel Roulant'!$G$40 -> 0 | K78: =ROUNDUP(K67,0)*'Personnel Roulant'!$G$40 -> 0 | L78: =ROUNDUP(L67,0)*'Personnel Roulant'!$G$40 -> 0 | M78: =ROUNDUP(M67,0)*'Personnel Roulant'!$G$40 -> 0 | N78: =ROUNDUP(N67,0)*'Personnel Roulant'!$G$40 -> 0 | O78: =ROUNDUP(O67,0)*'Personnel Roulant'!$G$40 -> 0 | P78: =ROUNDUP(P67,0)*'Personnel Roulant'!$G$40 -> 0 | Q78: =ROUNDUP(Q67,0)*'Personnel Roulant'!$G$40 -> 0 | R78: =ROUNDUP(R67,0)*'Personnel Roulant'!$G$40 -> 0 | S78: =ROUNDUP(S67,0)*'Personnel Roulant'!$G$40 -> 0
C79: RGTP CH2 DOUBLE | E79: =ROUNDUP(E68,0)*'Personnel Roulant'!$G$40 -> 37.98 | F79: =ROUNDUP(F68,0)*'Personnel Roulant'!$G$40 -> 16.88 | G79: =ROUNDUP(G68,0)*'Personnel Roulant'!$G$40 -> 0 | H79: =ROUNDUP(H68,0)*'Personnel Roulant'!$G$40 -> 0 | I79: =ROUNDUP(I68,0)*'Personnel Roulant'!$G$40 -> 0 | J79: =ROUNDUP(J68,0)*'Personnel Roulant'!$G$40 -> 0 | K79: =ROUNDUP(K68,0)*'Personnel Roulant'!$G$40 -> 0 | L79: =ROUNDUP(L68,0)*'Personnel Roulant'!$G$40 -> 0 | M79: =ROUNDUP(M68,0)*'Personnel Roulant'!$G$40 -> 0 | N79: =ROUNDUP(N68,0)*'Personnel Roulant'!$G$40 -> 0 | O79: =ROUNDUP(O68,0)*'Personnel Roulant'!$G$40 -> 0 | P79: =ROUNDUP(P68,0)*'Personnel Roulant'!$G$40 -> 0 | Q79: =ROUNDUP(Q68,0)*'Personnel Roulant'!$G$40 -> 0 | R79: =ROUNDUP(R68,0)*'Personnel Roulant'!$G$40 -> 0 | S79: =ROUNDUP(S68,0)*'Personnel Roulant'!$G$40 -> 0
C80: Autres coûts tous CH | E80: =IF(Trajet!F77<1,0,((('Personnel Roulant'!$G$54+'Personnel Roulant'!$G$56+'Personnel Roulant'!$G$58+'Personnel Roulant'!$G$60+'Personnel Roulant'!$G$62+'Personnel Roulant'!$G$64+'Personnel Roulant'!$G$66)/'Personnel Roulant'!$G$68)*Trajet!F83)) ->  | F80: =IF(Trajet!G77<1,0,((('Personnel Roulant'!$G$54+'Personnel Roulant'!$G$56+'Personnel Roulant'!$G$58+'Personnel Roulant'!$G$60+'Personnel Roulant'!$G$62+'Personnel Roulant'!$G$64+'Personnel Roulant'!$G$66)/'Personnel Roulant'!$G$68)*Trajet!G83)) ->  | G80: =IF(Trajet!H77<1,0,((('Personnel Roulant'!$G$54+'Personnel Roulant'!$G$56+'Personnel Roulant'!$G$58+'Personnel Roulant'!$G$60+'Personnel Roulant'!$G$62+'Personnel Roulant'!$G$64+'Personnel Roulant'!$G$66)/'Personnel Roulant'!$G$68)*Trajet!H83)) ->  | H80: =IF(Trajet!I77<1,0,((('Personnel Roulant'!$G$54+'Personnel Roulant'!$G$56+'Personnel Roulant'!$G$58+'Personnel Roulant'!$G$60+'Personnel Roulant'!$G$62+'Personnel Roulant'!$G$64+'Personnel Roulant'!$G$66)/'Personnel Roulant'!$G$68)*Trajet!I83)) -> 0 | I80: =IF(Trajet!J77<1,0,((('Personnel Roulant'!$G$54+'Personnel Roulant'!$G$56+'Personnel Roulant'!$G$58+'Personnel Roulant'!$G$60+'Personnel Roulant'!$G$62+'Personnel Roulant'!$G$64+'Personnel Roulant'!$G$66)/'Personnel Roulant'!$G$68)*Trajet!J83)) -> 0 | J80: =IF(Trajet!K77<1,0,((('Personnel Roulant'!$G$54+'Personnel Roulant'!$G$56+'Personnel Roulant'!$G$58+'Personnel Roulant'!$G$60+'Personnel Roulant'!$G$62+'Personnel Roulant'!$G$64+'Personnel Roulant'!$G$66)/'Personnel Roulant'!$G$68)*Trajet!K83)) -> 0 | K80: =IF(Trajet!L77<1,0,((('Personnel Roulant'!$G$54+'Personnel Roulant'!$G$56+'Personnel Roulant'!$G$58+'Personnel Roulant'!$G$60+'Personnel Roulant'!$G$62+'Personnel Roulant'!$G$64+'Personnel Roulant'!$G$66)/'Personnel Roulant'!$G$68)*Trajet!L83)) -> 0 | L80: =IF(Trajet!M77<1,0,((('Personnel Roulant'!$G$54+'Personnel Roulant'!$G$56+'Personnel Roulant'!$G$58+'Personnel Roulant'!$G$60+'Personnel Roulant'!$G$62+'Personnel Roulant'!$G$64+'Personnel Roulant'!$G$66)/'Personnel Roulant'!$G$68)*Trajet!M83)) -> 0 | M80: =IF(Trajet!N77<1,0,((('Personnel Roulant'!$G$54+'Personnel Roulant'!$G$56+'Personnel Roulant'!$G$58+'Personnel Roulant'!$G$60+'Personnel Roulant'!$G$62+'Personnel Roulant'!$G$64+'Personnel Roulant'!$G$66)/'Personnel Roulant'!$G$68)*Trajet!N83)) -> 0 | N80: =IF(Trajet!O77<1,0,((('Personnel Roulant'!$G$54+'Personnel Roulant'!$G$56+'Personnel Roulant'!$G$58+'Personnel Roulant'!$G$60+'Personnel Roulant'!$G$62+'Personnel Roulant'!$G$64+'Personnel Roulant'!$G$66)/'Personnel Roulant'!$G$68)*Trajet!O83)) -> 0 | O80: =IF(Trajet!P77<1,0,((('Personnel Roulant'!$G$54+'Personnel Roulant'!$G$56+'Personnel Roulant'!$G$58+'Personnel Roulant'!$G$60+'Personnel Roulant'!$G$62+'Personnel Roulant'!$G$64+'Personnel Roulant'!$G$66)/'Personnel Roulant'!$G$68)*Trajet!P83)) -> 0 | P80: =IF(Trajet!Q77<1,0,((('Personnel Roulant'!$G$54+'Personnel Roulant'!$G$56+'Personnel Roulant'!$G$58+'Personnel Roulant'!$G$60+'Personnel Roulant'!$G$62+'Personnel Roulant'!$G$64+'Personnel Roulant'!$G$66)/'Personnel Roulant'!$G$68)*Trajet!Q83)) -> 0 | Q80: =IF(Trajet!R77<1,0,((('Personnel Roulant'!$G$54+'Personnel Roulant'!$G$56+'Personnel Roulant'!$G$58+'Personnel Roulant'!$G$60+'Personnel Roulant'!$G$62+'Personnel Roulant'!$G$64+'Personnel Roulant'!$G$66)/'Personnel Roulant'!$G$68)*Trajet!R83)) -> 0 | R80: =IF(Trajet!S77<1,0,((('Personnel Roulant'!$G$54+'Personnel Roulant'!$G$56+'Personnel Roulant'!$G$58+'Personnel Roulant'!$G$60+'Personnel Roulant'!$G$62+'Personnel Roulant'!$G$64+'Personnel Roulant'!$G$66)/'Personnel Roulant'!$G$68)*Trajet!S83)) -> 0 | S80: =IF(Trajet!T77<1,0,((('Personnel Roulant'!$G$54+'Personnel Roulant'!$G$56+'Personnel Roulant'!$G$58+'Personnel Roulant'!$G$60+'Personnel Roulant'!$G$62+'Personnel Roulant'!$G$64+'Personnel Roulant'!$G$66)/'Personnel Roulant'!$G$68)*Trajet!T83)) -> 0
C81: Primes supp Dimanche + Jour férié | E81: =IF(Trajet!F83="","",IF(Trajet!F83=1,Trajet!AD81,IF(Trajet!F83=2,Trajet!AD81+Trajet!AD82,IF(Trajet!F83=3,Trajet!AD81+Trajet!AD82+Trajet!AD83)))) -> 130 | F81: =IF(Trajet!G83="","",IF(Trajet!G83=1,Trajet!AE81,IF(Trajet!G83=2,Trajet!AE81+Trajet!AE82,IF(Trajet!G83=3,Trajet!AE81+Trajet!AE82+Trajet!AE83)))) -> 0 | G81: =IF(Trajet!H83="","",IF(Trajet!H83=1,Trajet!AF81,IF(Trajet!H83=2,Trajet!AF81+Trajet!AF82,IF(Trajet!H83=3,Trajet!AF81+Trajet!AF82+Trajet!AF83)))) ->  | H81: =IF(Trajet!I83="","",IF(Trajet!I83=1,Trajet!AG81,IF(Trajet!I83=2,Trajet!AG81+Trajet!AG82,IF(Trajet!I83=3,Trajet!AG81+Trajet!AG82+Trajet!AG83)))) ->  | I81: =IF(Trajet!J83="","",IF(Trajet!J83=1,Trajet!AH81,IF(Trajet!J83=2,Trajet!AH81+Trajet!AH82,IF(Trajet!J83=3,Trajet!AH81+Trajet!AH82+Trajet!AH83)))) ->  | J81: =IF(Trajet!K83="","",IF(Trajet!K83=1,Trajet!AI81,IF(Trajet!K83=2,Trajet!AI81+Trajet!AI82,IF(Trajet!K83=3,Trajet!AI81+Trajet!AI82+Trajet!AI83)))) ->  | K81: =IF(Trajet!L83="","",IF(Trajet!L83=1,Trajet!AJ81,IF(Trajet!L83=2,Trajet!AJ81+Trajet!AJ82,IF(Trajet!L83=3,Trajet!AJ81+Trajet!AJ82+Trajet!AJ83)))) ->  | L81: =IF(Trajet!M83="","",IF(Trajet!M83=1,Trajet!AK81,IF(Trajet!M83=2,Trajet!AK81+Trajet!AK82,IF(Trajet!M83=3,Trajet!AK81+Trajet!AK82+Trajet!AK83)))) ->  | M81: =IF(Trajet!N83="","",IF(Trajet!N83=1,Trajet!AL81,IF(Trajet!N83=2,Trajet!AL81+Trajet!AL82,IF(Trajet!N83=3,Trajet!AL81+Trajet!AL82+Trajet!AL83)))) ->  | N81: =IF(Trajet!O83="","",IF(Trajet!O83=1,Trajet!AM81,IF(Trajet!O83=2,Trajet!AM81+Trajet!AM82,IF(Trajet!O83=3,Trajet!AM81+Trajet!AM82+Trajet!AM83)))) ->  | O81: =IF(Trajet!P83="","",IF(Trajet!P83=1,Trajet!AN81,IF(Trajet!P83=2,Trajet!AN81+Trajet!AN82,IF(Trajet!P83=3,Trajet!AN81+Trajet!AN82+Trajet!AN83)))) ->  | P81: =IF(Trajet!Q83="","",IF(Trajet!Q83=1,Trajet!AO81,IF(Trajet!Q83=2,Trajet!AO81+Trajet!AO82,IF(Trajet!Q83=3,Trajet!AO81+Trajet!AO82+Trajet!AO83)))) ->  | Q81: =IF(Trajet!R83="","",IF(Trajet!R83=1,Trajet!AP81,IF(Trajet!R83=2,Trajet!AP81+Trajet!AP82,IF(Trajet!R83=3,Trajet!AP81+Trajet!AP82+Trajet!AP83)))) ->  | R81: =IF(Trajet!S83="","",IF(Trajet!S83=1,Trajet!AQ81,IF(Trajet!S83=2,Trajet!AQ81+Trajet!AQ82,IF(Trajet!S83=3,Trajet!AQ81+Trajet!AQ82+Trajet!AQ83)))) ->  | S81: =IF(Trajet!T83="","",IF(Trajet!T83=1,Trajet!AR81,IF(Trajet!T83=2,Trajet!AR81+Trajet!AR82,IF(Trajet!T83=3,Trajet!AR81+Trajet!AR82+Trajet!AR83)))) -> 
C82: Coûts spécifiques tous CH | E82: =Trajet!F94 -> 200 | F82: =Trajet!G94 -> 187 | G82: =Trajet!H94 -> 0 | H82: =Trajet!I94 -> 0 | I82: =Trajet!J94 -> 0 | J82: =Trajet!K94 -> 0 | K82: =Trajet!L94 -> 0 | L82: =Trajet!M94 -> 0 | M82: =Trajet!N94 -> 0 | N82: =Trajet!O94 -> 0 | O82: =Trajet!P94 -> 0 | P82: =Trajet!Q94 -> 0 | Q82: =Trajet!R94 -> 0 | R82: =Trajet!S94 -> 0 | S82: =Trajet!T94 -> 0
C83: Coût personnel total tous CH | E83: =IF(Trajet!F77<1,0,(E69+E70+E71+E72+E73+E74+E76+E75+E77+E78+E79+E80+E81+E82)) ->  | F83: =IF(Trajet!G77<1,0,(F69+F70+F71+F72+F73+F74+F76+F75+F77+F78+F79+F80+F81+F82)) ->  | G83: =IF(Trajet!H77<1,0,(G69+G70+G71+G72+G73+G74+G76+G75+G77+G78+G79+G80+G81+G82)) ->  | H83: =IF(Trajet!I77<1,0,(H69+H70+H71+H72+H73+H74+H76+H75+H77+H78+H79+H80+H81+H82)) -> 0 | I83: =IF(Trajet!J77<1,0,(I69+I70+I71+I72+I73+I74+I76+I75+I77+I78+I79+I80+I81+I82)) -> 0 | J83: =IF(Trajet!K77<1,0,(J69+J70+J71+J72+J73+J74+J76+J75+J77+J78+J79+J80+J81+J82)) -> 0 | K83: =IF(Trajet!L77<1,0,(K69+K70+K71+K72+K73+K74+K76+K75+K77+K78+K79+K80+K81+K82)) -> 0 | L83: =IF(Trajet!M77<1,0,(L69+L70+L71+L72+L73+L74+L76+L75+L77+L78+L79+L80+L81+L82)) -> 0 | M83: =IF(Trajet!N77<1,0,(M69+M70+M71+M72+M73+M74+M76+M75+M77+M78+M79+M80+M81+M82)) -> 0 | N83: =IF(Trajet!O77<1,0,(N69+N70+N71+N72+N73+N74+N76+N75+N77+N78+N79+N80+N81+N82)) -> 0 | O83: =IF(Trajet!P77<1,0,(O69+O70+O71+O72+O73+O74+O76+O75+O77+O78+O79+O80+O81+O82)) -> 0 | P83: =IF(Trajet!Q77<1,0,(P69+P70+P71+P72+P73+P74+P76+P75+P77+P78+P79+P80+P81+P82)) -> 0 | Q83: =IF(Trajet!R77<1,0,(Q69+Q70+Q71+Q72+Q73+Q74+Q76+Q75+Q77+Q78+Q79+Q80+Q81+Q82)) -> 0 | R83: =IF(Trajet!S77<1,0,(R69+R70+R71+R72+R73+R74+R76+R75+R77+R78+R79+R80+R81+R82)) -> 0 | S83: =IF(Trajet!T77<1,0,(S69+S70+S71+S72+S73+S74+S76+S75+S77+S78+S79+S80+S81+S82)) -> 0
G86: Coût personnel roulant | J86: ='Vehicule utilise'!W14 ->  | L86: ='Vehicule utilise'!S14 -> Mercedes
E91: jour | F91: jour | G91: jour | H91: jour | I91: jour | J91: jour | K91: jour | L91: jour | M91: jour | N91: jour | O91: jour | P91: jour | Q91: jour | R91: jour | S91: jour
E92: 1 | F92: 2 | G92: 3 | H92: 4 | I92: 5 | J92: 6 | K92: 7 | L92: 8 | M92: 9 | N92: 10 | O92: 11 | P92: 12 | Q92: 13 | R92: 14 | S92: 15
C93: Temps de service CH SIMPLE | E93: =Trajet!F116*24 -> 6 | F93: =Trajet!G116*24 -> 0 | G93: =Trajet!H116*24 -> 0 | H93: =Trajet!I116*24 -> 0 | I93: =Trajet!J116*24 -> 0 | J93: =Trajet!K116*24 -> 0 | K93: =Trajet!L116*24 -> 0 | L93: =Trajet!M116*24 -> 0 | M93: =Trajet!N116*24 -> 0 | N93: =Trajet!O116*24 -> 0 | O93: =Trajet!P116*24 -> 0 | P93: =Trajet!Q116*24 -> 0 | Q93: =Trajet!R116*24 -> 0 | R93: =Trajet!S116*24 -> 0 | S93: =Trajet!T116*24 -> 0
C94: Temps de service CH1 DOUBLE | E94: =Trajet!F117*24 -> 0 | F94: =Trajet!G117*24 -> 0 | G94: =Trajet!H117*24 -> 0 | H94: =Trajet!I117*24 -> 0 | I94: =Trajet!J117*24 -> 0 | J94: =Trajet!K117*24 -> 0 | K94: =Trajet!L117*24 -> 0 | L94: =Trajet!M117*24 -> 0 | M94: =Trajet!N117*24 -> 0 | N94: =Trajet!O117*24 -> 0 | O94: =Trajet!P117*24 -> 0 | P94: =Trajet!Q117*24 -> 0 | Q94: =Trajet!R117*24 -> 0 | R94: =Trajet!S117*24 -> 0 | S94: =Trajet!T117*24 -> 0
C95: Temps de service CH2 DOUBLE | E95: =Trajet!F118*24 -> 0 | F95: =Trajet!G118*24 -> 0 | G95: =Trajet!H118*24 -> 0 | H95: =Trajet!I118*24 -> 0 | I95: =Trajet!J118*24 -> 0 | J95: =Trajet!K118*24 -> 0 | K95: =Trajet!L118*24 -> 0 | L95: =Trajet!M118*24 -> 0 | M95: =Trajet!N118*24 -> 0 | N95: =Trajet!O118*24 -> 0 | O95: =Trajet!P118*24 -> 0 | P95: =Trajet!Q118*24 -> 0 | Q95: =Trajet!R118*24 -> 0 | R95: =Trajet!S118*24 -> 0 | S95: =Trajet!T118*24 -> 0
C96: Bruto Sal CH SIMPLE | E96: =IF(AND(E93>0,E93<=6,Trajet!F107="Autre"),('Personnel Roulant'!$G$50+'Personnel Roulant'!$G$42),IF(AND(E93>0,E93<=6),('Personnel Roulant'!$G$9+'Personnel Roulant'!$G$42),IF(AND(E93>6,E93<=12),'Personnel Roulant'!$G$11+'Personnel Roulant'!$G$42,IF(E93>0,'Personnel Roulant'!$G$11+(ROUNDUP(E93,0)-12)*'Personnel Roulant'!$G$13+'Personnel Roulant'!$G$42,0)))) -> 81.32 | F96: =IF(AND(F93>0,F93<=6,Trajet!G107="Autre"),('Personnel Roulant'!$G$50+'Personnel Roulant'!$G$42),IF(AND(F93>0,F93<=6),('Personnel Roulant'!$G$9+'Personnel Roulant'!$G$42),IF(AND(F93>6,F93<=12),'Personnel Roulant'!$G$11+'Personnel Roulant'!$G$42,IF(F93>0,'Personnel Roulant'!$G$11+(ROUNDUP(F93,0)-12)*'Personnel Roulant'!$G$13+'Personnel Roulant'!$G$42,0)))) -> 0 | G96: =IF(AND(G93>0,G93<=6,Trajet!H107="Autre"),('Personnel Roulant'!$G$50+'Personnel Roulant'!$G$42),IF(AND(G93>0,G93<=6),('Personnel Roulant'!$G$9+'Personnel Roulant'!$G$42),IF(AND(G93>6,G93<=12),'Personnel Roulant'!$G$11+'Personnel Roulant'!$G$42,IF(G93>0,'Personnel Roulant'!$G$11+(ROUNDUP(G93,0)-12)*'Personnel Roulant'!$G$13+'Personnel Roulant'!$G$42,0)))) -> 0 | H96: =IF(AND(H93>0,H93<=6,Trajet!I107="Autre"),('Personnel Roulant'!$G$50+'Personnel Roulant'!$G$42),IF(AND(H93>0,H93<=6),('Personnel Roulant'!$G$9+'Personnel Roulant'!$G$42),IF(AND(H93>6,H93<=12),'Personnel Roulant'!$G$11+'Personnel Roulant'!$G$42,IF(H93>0,'Personnel Roulant'!$G$11+(ROUNDUP(H93,0)-12)*'Personnel Roulant'!$G$13+'Personnel Roulant'!$G$42,0)))) -> 0 | I96: =IF(AND(I93>0,I93<=6,Trajet!J107="Autre"),('Personnel Roulant'!$G$50+'Personnel Roulant'!$G$42),IF(AND(I93>0,I93<=6),('Personnel Roulant'!$G$9+'Personnel Roulant'!$G$42),IF(AND(I93>6,I93<=12),'Personnel Roulant'!$G$11+'Personnel Roulant'!$G$42,IF(I93>0,'Personnel Roulant'!$G$11+(ROUNDUP(I93,0)-12)*'Personnel Roulant'!$G$13+'Personnel Roulant'!$G$42,0)))) -> 0 | J96: =IF(AND(J93>0,J93<=6,Trajet!K107="Autre"),('Personnel Roulant'!$G$50+'Personnel Roulant'!$G$42),IF(AND(J93>0,J93<=6),('Personnel Roulant'!$G$9+'Personnel Roulant'!$G$42),IF(AND(J93>6,J93<=12),'Personnel Roulant'!$G$11+'Personnel Roulant'!$G$42,IF(J93>0,'Personnel Roulant'!$G$11+(ROUNDUP(J93,0)-12)*'Personnel Roulant'!$G$13+'Personnel Roulant'!$G$42,0)))) -> 0 | K96: =IF(AND(K93>0,K93<=6,Trajet!L107="Autre"),('Personnel Roulant'!$G$50+'Personnel Roulant'!$G$42),IF(AND(K93>0,K93<=6),('Personnel Roulant'!$G$9+'Personnel Roulant'!$G$42),IF(AND(K93>6,K93<=12),'Personnel Roulant'!$G$11+'Personnel Roulant'!$G$42,IF(K93>0,'Personnel Roulant'!$G$11+(ROUNDUP(K93,0)-12)*'Personnel Roulant'!$G$13+'Personnel Roulant'!$G$42,0)))) -> 0 | L96: =IF(AND(L93>0,L93<=6,Trajet!M107="Autre"),('Personnel Roulant'!$G$50+'Personnel Roulant'!$G$42),IF(AND(L93>0,L93<=6),('Personnel Roulant'!$G$9+'Personnel Roulant'!$G$42),IF(AND(L93>6,L93<=12),'Personnel Roulant'!$G$11+'Personnel Roulant'!$G$42,IF(L93>0,'Personnel Roulant'!$G$11+(ROUNDUP(L93,0)-12)*'Personnel Roulant'!$G$13+'Personnel Roulant'!$G$42,0)))) -> 0 | M96: =IF(AND(M93>0,M93<=6,Trajet!N107="Autre"),('Personnel Roulant'!$G$50+'Personnel Roulant'!$G$42),IF(AND(M93>0,M93<=6),('Personnel Roulant'!$G$9+'Personnel Roulant'!$G$42),IF(AND(M93>6,M93<=12),'Personnel Roulant'!$G$11+'Personnel Roulant'!$G$42,IF(M93>0,'Personnel Roulant'!$G$11+(ROUNDUP(M93,0)-12)*'Personnel Roulant'!$G$13+'Personnel Roulant'!$G$42,0)))) -> 0 | N96: =IF(AND(N93>0,N93<=6,Trajet!O107="Autre"),('Personnel Roulant'!$G$50+'Personnel Roulant'!$G$42),IF(AND(N93>0,N93<=6),('Personnel Roulant'!$G$9+'Personnel Roulant'!$G$42),IF(AND(N93>6,N93<=12),'Personnel Roulant'!$G$11+'Personnel Roulant'!$G$42,IF(N93>0,'Personnel Roulant'!$G$11+(ROUNDUP(N93,0)-12)*'Personnel Roulant'!$G$13+'Personnel Roulant'!$G$42,0)))) -> 0 | O96: =IF(AND(O93>0,O93<=6,Trajet!P107="Autre"),('Personnel Roulant'!$G$50+'Personnel Roulant'!$G$42),IF(AND(O93>0,O93<=6),('Personnel Roulant'!$G$9+'Personnel Roulant'!$G$42),IF(AND(O93>6,O93<=12),'Personnel Roulant'!$G$11+'Personnel Roulant'!$G$42,IF(O93>0,'Personnel Roulant'!$G$11+(ROUNDUP(O93,0)-12)*'Personnel Roulant'!$G$13+'Personnel Roulant'!$G$42,0)))) -> 0 | P96: =IF(AND(P93>0,P93<=6,Trajet!Q107="Autre"),('Personnel Roulant'!$G$50+'Personnel Roulant'!$G$42),IF(AND(P93>0,P93<=6),('Personnel Roulant'!$G$9+'Personnel Roulant'!$G$42),IF(AND(P93>6,P93<=12),'Personnel Roulant'!$G$11+'Personnel Roulant'!$G$42,IF(P93>0,'Personnel Roulant'!$G$11+(ROUNDUP(P93,0)-12)*'Personnel Roulant'!$G$13+'Personnel Roulant'!$G$42,0)))) -> 0 | Q96: =IF(AND(Q93>0,Q93<=6,Trajet!R107="Autre"),('Personnel Roulant'!$G$50+'Personnel Roulant'!$G$42),IF(AND(Q93>0,Q93<=6),('Personnel Roulant'!$G$9+'Personnel Roulant'!$G$42),IF(AND(Q93>6,Q93<=12),'Personnel Roulant'!$G$11+'Personnel Roulant'!$G$42,IF(Q93>0,'Personnel Roulant'!$G$11+(ROUNDUP(Q93,0)-12)*'Personnel Roulant'!$G$13+'Personnel Roulant'!$G$42,0)))) -> 0 | R96: =IF(AND(R93>0,R93<=6,Trajet!S107="Autre"),('Personnel Roulant'!$G$50+'Personnel Roulant'!$G$42),IF(AND(R93>0,R93<=6),('Personnel Roulant'!$G$9+'Personnel Roulant'!$G$42),IF(AND(R93>6,R93<=12),'Personnel Roulant'!$G$11+'Personnel Roulant'!$G$42,IF(R93>0,'Personnel Roulant'!$G$11+(ROUNDUP(R93,0)-12)*'Personnel Roulant'!$G$13+'Personnel Roulant'!$G$42,0)))) -> 0 | S96: =IF(AND(S93>0,S93<=6,Trajet!T107="Autre"),('Personnel Roulant'!$G$50+'Personnel Roulant'!$G$42),IF(AND(S93>0,S93<=6),('Personnel Roulant'!$G$9+'Personnel Roulant'!$G$42),IF(AND(S93>6,S93<=12),'Personnel Roulant'!$G$11+'Personnel Roulant'!$G$42,IF(S93>0,'Personnel Roulant'!$G$11+(ROUNDUP(S93,0)-12)*'Personnel Roulant'!$G$13+'Personnel Roulant'!$G$42,0)))) -> 0
C97: Salaire brut CH1 DOUBLE | E97: =IF(E94=0,0,IF(E94<12,'Personnel Roulant'!$G$16+'Personnel Roulant'!$G$42,IF(E94<13,'Personnel Roulant'!$G$18+'Personnel Roulant'!$G$42,IF(E94<14,'Personnel Roulant'!$G$20+'Personnel Roulant'!$G$42,IF(E94<15,'Personnel Roulant'!$G$22+'Personnel Roulant'!$G$42,IF(E94<16,'Personnel Roulant'!$G$24+'Personnel Roulant'!$G$42,IF(E94<17,'Personnel Roulant'!$G$26+'Personnel Roulant'!$G$42,IF(E94<18,'Personnel Roulant'!$G$28+'Personnel Roulant'!$G$42,IF(E94<19,'Personnel Roulant'!$G$30+'Personnel Roulant'!$G$42,IF(E94<20,'Personnel Roulant'!$G$32+'Personnel Roulant'!$G$42,IF(E94<21,'Personnel Roulant'!$G$34+'Personnel Roulant'!$G$42,IF(E94<22,'Personnel Roulant'!$G$36+'Personnel Roulant'!$G$42)))))))))))) -> 0 | F97: =IF(F94=0,0,IF(F94<12,'Personnel Roulant'!$G$16+'Personnel Roulant'!$G$42,IF(F94<13,'Personnel Roulant'!$G$18+'Personnel Roulant'!$G$42,IF(F94<14,'Personnel Roulant'!$G$20+'Personnel Roulant'!$G$42,IF(F94<15,'Personnel Roulant'!$G$22+'Personnel Roulant'!$G$42,IF(F94<16,'Personnel Roulant'!$G$24+'Personnel Roulant'!$G$42,IF(F94<17,'Personnel Roulant'!$G$26+'Personnel Roulant'!$G$42,IF(F94<18,'Personnel Roulant'!$G$28+'Personnel Roulant'!$G$42,IF(F94<19,'Personnel Roulant'!$G$30+'Personnel Roulant'!$G$42,IF(F94<20,'Personnel Roulant'!$G$32+'Personnel Roulant'!$G$42,IF(F94<21,'Personnel Roulant'!$G$34+'Personnel Roulant'!$G$42,IF(F94<22,'Personnel Roulant'!$G$36+'Personnel Roulant'!$G$42)))))))))))) -> 0 | G97: =IF(G94=0,0,IF(G94<12,'Personnel Roulant'!$G$16+'Personnel Roulant'!$G$42,IF(G94<13,'Personnel Roulant'!$G$18+'Personnel Roulant'!$G$42,IF(G94<14,'Personnel Roulant'!$G$20+'Personnel Roulant'!$G$42,IF(G94<15,'Personnel Roulant'!$G$22+'Personnel Roulant'!$G$42,IF(G94<16,'Personnel Roulant'!$G$24+'Personnel Roulant'!$G$42,IF(G94<17,'Personnel Roulant'!$G$26+'Personnel Roulant'!$G$42,IF(G94<18,'Personnel Roulant'!$G$28+'Personnel Roulant'!$G$42,IF(G94<19,'Personnel Roulant'!$G$30+'Personnel Roulant'!$G$42,IF(G94<20,'Personnel Roulant'!$G$32+'Personnel Roulant'!$G$42,IF(G94<21,'Personnel Roulant'!$G$34+'Personnel Roulant'!$G$42,IF(G94<22,'Personnel Roulant'!$G$36+'Personnel Roulant'!$G$42)))))))))))) -> 0 | H97: =IF(H94=0,0,IF(H94<12,'Personnel Roulant'!$G$16+'Personnel Roulant'!$G$42,IF(H94<13,'Personnel Roulant'!$G$18+'Personnel Roulant'!$G$42,IF(H94<14,'Personnel Roulant'!$G$20+'Personnel Roulant'!$G$42,IF(H94<15,'Personnel Roulant'!$G$22+'Personnel Roulant'!$G$42,IF(H94<16,'Personnel Roulant'!$G$24+'Personnel Roulant'!$G$42,IF(H94<17,'Personnel Roulant'!$G$26+'Personnel Roulant'!$G$42,IF(H94<18,'Personnel Roulant'!$G$28+'Personnel Roulant'!$G$42,IF(H94<19,'Personnel Roulant'!$G$30+'Personnel Roulant'!$G$42,IF(H94<20,'Personnel Roulant'!$G$32+'Personnel Roulant'!$G$42,IF(H94<21,'Personnel Roulant'!$G$34+'Personnel Roulant'!$G$42,IF(H94<22,'Personnel Roulant'!$G$36+'Personnel Roulant'!$G$42)))))))))))) -> 0 | I97: =IF(I94=0,0,IF(I94<12,'Personnel Roulant'!$G$16+'Personnel Roulant'!$G$42,IF(I94<13,'Personnel Roulant'!$G$18+'Personnel Roulant'!$G$42,IF(I94<14,'Personnel Roulant'!$G$20+'Personnel Roulant'!$G$42,IF(I94<15,'Personnel Roulant'!$G$22+'Personnel Roulant'!$G$42,IF(I94<16,'Personnel Roulant'!$G$24+'Personnel Roulant'!$G$42,IF(I94<17,'Personnel Roulant'!$G$26+'Personnel Roulant'!$G$42,IF(I94<18,'Personnel Roulant'!$G$28+'Personnel Roulant'!$G$42,IF(I94<19,'Personnel Roulant'!$G$30+'Personnel Roulant'!$G$42,IF(I94<20,'Personnel Roulant'!$G$32+'Personnel Roulant'!$G$42,IF(I94<21,'Personnel Roulant'!$G$34+'Personnel Roulant'!$G$42,IF(I94<22,'Personnel Roulant'!$G$36+'Personnel Roulant'!$G$42)))))))))))) -> 0 | J97: =IF(J94=0,0,IF(J94<12,'Personnel Roulant'!$G$16+'Personnel Roulant'!$G$42,IF(J94<13,'Personnel Roulant'!$G$18+'Personnel Roulant'!$G$42,IF(J94<14,'Personnel Roulant'!$G$20+'Personnel Roulant'!$G$42,IF(J94<15,'Personnel Roulant'!$G$22+'Personnel Roulant'!$G$42,IF(J94<16,'Personnel Roulant'!$G$24+'Personnel Roulant'!$G$42,IF(J94<17,'Personnel Roulant'!$G$26+'Personnel Roulant'!$G$42,IF(J94<18,'Personnel Roulant'!$G$28+'Personnel Roulant'!$G$42,IF(J94<19,'Personnel Roulant'!$G$30+'Personnel Roulant'!$G$42,IF(J94<20,'Personnel Roulant'!$G$32+'Personnel Roulant'!$G$42,IF(J94<21,'Personnel Roulant'!$G$34+'Personnel Roulant'!$G$42,IF(J94<22,'Personnel Roulant'!$G$36+'Personnel Roulant'!$G$42)))))))))))) -> 0 | K97: =IF(K94=0,0,IF(K94<12,'Personnel Roulant'!$G$16+'Personnel Roulant'!$G$42,IF(K94<13,'Personnel Roulant'!$G$18+'Personnel Roulant'!$G$42,IF(K94<14,'Personnel Roulant'!$G$20+'Personnel Roulant'!$G$42,IF(K94<15,'Personnel Roulant'!$G$22+'Personnel Roulant'!$G$42,IF(K94<16,'Personnel Roulant'!$G$24+'Personnel Roulant'!$G$42,IF(K94<17,'Personnel Roulant'!$G$26+'Personnel Roulant'!$G$42,IF(K94<18,'Personnel Roulant'!$G$28+'Personnel Roulant'!$G$42,IF(K94<19,'Personnel Roulant'!$G$30+'Personnel Roulant'!$G$42,IF(K94<20,'Personnel Roulant'!$G$32+'Personnel Roulant'!$G$42,IF(K94<21,'Personnel Roulant'!$G$34+'Personnel Roulant'!$G$42,IF(K94<22,'Personnel Roulant'!$G$36+'Personnel Roulant'!$G$42)))))))))))) -> 0 | L97: =IF(L94=0,0,IF(L94<12,'Personnel Roulant'!$G$16+'Personnel Roulant'!$G$42,IF(L94<13,'Personnel Roulant'!$G$18+'Personnel Roulant'!$G$42,IF(L94<14,'Personnel Roulant'!$G$20+'Personnel Roulant'!$G$42,IF(L94<15,'Personnel Roulant'!$G$22+'Personnel Roulant'!$G$42,IF(L94<16,'Personnel Roulant'!$G$24+'Personnel Roulant'!$G$42,IF(L94<17,'Personnel Roulant'!$G$26+'Personnel Roulant'!$G$42,IF(L94<18,'Personnel Roulant'!$G$28+'Personnel Roulant'!$G$42,IF(L94<19,'Personnel Roulant'!$G$30+'Personnel Roulant'!$G$42,IF(L94<20,'Personnel Roulant'!$G$32+'Personnel Roulant'!$G$42,IF(L94<21,'Personnel Roulant'!$G$34+'Personnel Roulant'!$G$42,IF(L94<22,'Personnel Roulant'!$G$36+'Personnel Roulant'!$G$42)))))))))))) -> 0 | M97: =IF(M94=0,0,IF(M94<12,'Personnel Roulant'!$G$16+'Personnel Roulant'!$G$42,IF(M94<13,'Personnel Roulant'!$G$18+'Personnel Roulant'!$G$42,IF(M94<14,'Personnel Roulant'!$G$20+'Personnel Roulant'!$G$42,IF(M94<15,'Personnel Roulant'!$G$22+'Personnel Roulant'!$G$42,IF(M94<16,'Personnel Roulant'!$G$24+'Personnel Roulant'!$G$42,IF(M94<17,'Personnel Roulant'!$G$26+'Personnel Roulant'!$G$42,IF(M94<18,'Personnel Roulant'!$G$28+'Personnel Roulant'!$G$42,IF(M94<19,'Personnel Roulant'!$G$30+'Personnel Roulant'!$G$42,IF(M94<20,'Personnel Roulant'!$G$32+'Personnel Roulant'!$G$42,IF(M94<21,'Personnel Roulant'!$G$34+'Personnel Roulant'!$G$42,IF(M94<22,'Personnel Roulant'!$G$36+'Personnel Roulant'!$G$42)))))))))))) -> 0 | N97: =IF(N94=0,0,IF(N94<12,'Personnel Roulant'!$G$16+'Personnel Roulant'!$G$42,IF(N94<13,'Personnel Roulant'!$G$18+'Personnel Roulant'!$G$42,IF(N94<14,'Personnel Roulant'!$G$20+'Personnel Roulant'!$G$42,IF(N94<15,'Personnel Roulant'!$G$22+'Personnel Roulant'!$G$42,IF(N94<16,'Personnel Roulant'!$G$24+'Personnel Roulant'!$G$42,IF(N94<17,'Personnel Roulant'!$G$26+'Personnel Roulant'!$G$42,IF(N94<18,'Personnel Roulant'!$G$28+'Personnel Roulant'!$G$42,IF(N94<19,'Personnel Roulant'!$G$30+'Personnel Roulant'!$G$42,IF(N94<20,'Personnel Roulant'!$G$32+'Personnel Roulant'!$G$42,IF(N94<21,'Personnel Roulant'!$G$34+'Personnel Roulant'!$G$42,IF(N94<22,'Personnel Roulant'!$G$36+'Personnel Roulant'!$G$42)))))))))))) -> 0 | O97: =IF(O94=0,0,IF(O94<12,'Personnel Roulant'!$G$16+'Personnel Roulant'!$G$42,IF(O94<13,'Personnel Roulant'!$G$18+'Personnel Roulant'!$G$42,IF(O94<14,'Personnel Roulant'!$G$20+'Personnel Roulant'!$G$42,IF(O94<15,'Personnel Roulant'!$G$22+'Personnel Roulant'!$G$42,IF(O94<16,'Personnel Roulant'!$G$24+'Personnel Roulant'!$G$42,IF(O94<17,'Personnel Roulant'!$G$26+'Personnel Roulant'!$G$42,IF(O94<18,'Personnel Roulant'!$G$28+'Personnel Roulant'!$G$42,IF(O94<19,'Personnel Roulant'!$G$30+'Personnel Roulant'!$G$42,IF(O94<20,'Personnel Roulant'!$G$32+'Personnel Roulant'!$G$42,IF(O94<21,'Personnel Roulant'!$G$34+'Personnel Roulant'!$G$42,IF(O94<22,'Personnel Roulant'!$G$36+'Personnel Roulant'!$G$42)))))))))))) -> 0 | P97: =IF(P94=0,0,IF(P94<12,'Personnel Roulant'!$G$16+'Personnel Roulant'!$G$42,IF(P94<13,'Personnel Roulant'!$G$18+'Personnel Roulant'!$G$42,IF(P94<14,'Personnel Roulant'!$G$20+'Personnel Roulant'!$G$42,IF(P94<15,'Personnel Roulant'!$G$22+'Personnel Roulant'!$G$42,IF(P94<16,'Personnel Roulant'!$G$24+'Personnel Roulant'!$G$42,IF(P94<17,'Personnel Roulant'!$G$26+'Personnel Roulant'!$G$42,IF(P94<18,'Personnel Roulant'!$G$28+'Personnel Roulant'!$G$42,IF(P94<19,'Personnel Roulant'!$G$30+'Personnel Roulant'!$G$42,IF(P94<20,'Personnel Roulant'!$G$32+'Personnel Roulant'!$G$42,IF(P94<21,'Personnel Roulant'!$G$34+'Personnel Roulant'!$G$42,IF(P94<22,'Personnel Roulant'!$G$36+'Personnel Roulant'!$G$42)))))))))))) -> 0 | Q97: =IF(Q94=0,0,IF(Q94<12,'Personnel Roulant'!$G$16+'Personnel Roulant'!$G$42,IF(Q94<13,'Personnel Roulant'!$G$18+'Personnel Roulant'!$G$42,IF(Q94<14,'Personnel Roulant'!$G$20+'Personnel Roulant'!$G$42,IF(Q94<15,'Personnel Roulant'!$G$22+'Personnel Roulant'!$G$42,IF(Q94<16,'Personnel Roulant'!$G$24+'Personnel Roulant'!$G$42,IF(Q94<17,'Personnel Roulant'!$G$26+'Personnel Roulant'!$G$42,IF(Q94<18,'Personnel Roulant'!$G$28+'Personnel Roulant'!$G$42,IF(Q94<19,'Personnel Roulant'!$G$30+'Personnel Roulant'!$G$42,IF(Q94<20,'Personnel Roulant'!$G$32+'Personnel Roulant'!$G$42,IF(Q94<21,'Personnel Roulant'!$G$34+'Personnel Roulant'!$G$42,IF(Q94<22,'Personnel Roulant'!$G$36+'Personnel Roulant'!$G$42)))))))))))) -> 0 | R97: =IF(R94=0,0,IF(R94<12,'Personnel Roulant'!$G$16+'Personnel Roulant'!$G$42,IF(R94<13,'Personnel Roulant'!$G$18+'Personnel Roulant'!$G$42,IF(R94<14,'Personnel Roulant'!$G$20+'Personnel Roulant'!$G$42,IF(R94<15,'Personnel Roulant'!$G$22+'Personnel Roulant'!$G$42,IF(R94<16,'Personnel Roulant'!$G$24+'Personnel Roulant'!$G$42,IF(R94<17,'Personnel Roulant'!$G$26+'Personnel Roulant'!$G$42,IF(R94<18,'Personnel Roulant'!$G$28+'Personnel Roulant'!$G$42,IF(R94<19,'Personnel Roulant'!$G$30+'Personnel Roulant'!$G$42,IF(R94<20,'Personnel Roulant'!$G$32+'Personnel Roulant'!$G$42,IF(R94<21,'Personnel Roulant'!$G$34+'Personnel Roulant'!$G$42,IF(R94<22,'Personnel Roulant'!$G$36+'Personnel Roulant'!$G$42)))))))))))) -> 0 | S97: =IF(S94=0,0,IF(S94<12,'Personnel Roulant'!$G$16+'Personnel Roulant'!$G$42,IF(S94<13,'Personnel Roulant'!$G$18+'Personnel Roulant'!$G$42,IF(S94<14,'Personnel Roulant'!$G$20+'Personnel Roulant'!$G$42,IF(S94<15,'Personnel Roulant'!$G$22+'Personnel Roulant'!$G$42,IF(S94<16,'Personnel Roulant'!$G$24+'Personnel Roulant'!$G$42,IF(S94<17,'Personnel Roulant'!$G$26+'Personnel Roulant'!$G$42,IF(S94<18,'Personnel Roulant'!$G$28+'Personnel Roulant'!$G$42,IF(S94<19,'Personnel Roulant'!$G$30+'Personnel Roulant'!$G$42,IF(S94<20,'Personnel Roulant'!$G$32+'Personnel Roulant'!$G$42,IF(S94<21,'Personnel Roulant'!$G$34+'Personnel Roulant'!$G$42,IF(S94<22,'Personnel Roulant'!$G$36+'Personnel Roulant'!$G$42)))))))))))) -> 0
C98: Salaire brut CH2 DOUBLE | E98: =IF(E95=0,0,IF(E95<12,'Personnel Roulant'!$G$16+'Personnel Roulant'!$G$42,IF(E95<13,'Personnel Roulant'!$G$18+'Personnel Roulant'!$G$42,IF(E95<14,'Personnel Roulant'!$G$20+'Personnel Roulant'!$G$42,IF(E95<15,'Personnel Roulant'!$G$22+'Personnel Roulant'!$G$42,IF(E95<16,'Personnel Roulant'!$G$24+'Personnel Roulant'!$G$42,IF(E95<17,'Personnel Roulant'!$G$26+'Personnel Roulant'!$G$42,IF(E95<18,'Personnel Roulant'!$G$28+'Personnel Roulant'!$G$42,IF(E95<19,'Personnel Roulant'!$G$30+'Personnel Roulant'!$G$42,IF(E95<20,'Personnel Roulant'!$G$32+'Personnel Roulant'!$G$42,IF(E95<21,'Personnel Roulant'!$G$34+'Personnel Roulant'!$G$42,IF(E95<22,'Personnel Roulant'!$G$36+'Personnel Roulant'!$G$42)))))))))))) -> 0 | F98: =IF(F95=0,0,IF(F95<12,'Personnel Roulant'!$G$16+'Personnel Roulant'!$G$42,IF(F95<13,'Personnel Roulant'!$G$18+'Personnel Roulant'!$G$42,IF(F95<14,'Personnel Roulant'!$G$20+'Personnel Roulant'!$G$42,IF(F95<15,'Personnel Roulant'!$G$22+'Personnel Roulant'!$G$42,IF(F95<16,'Personnel Roulant'!$G$24+'Personnel Roulant'!$G$42,IF(F95<17,'Personnel Roulant'!$G$26+'Personnel Roulant'!$G$42,IF(F95<18,'Personnel Roulant'!$G$28+'Personnel Roulant'!$G$42,IF(F95<19,'Personnel Roulant'!$G$30+'Personnel Roulant'!$G$42,IF(F95<20,'Personnel Roulant'!$G$32+'Personnel Roulant'!$G$42,IF(F95<21,'Personnel Roulant'!$G$34+'Personnel Roulant'!$G$42,IF(F95<22,'Personnel Roulant'!$G$36+'Personnel Roulant'!$G$42)))))))))))) -> 0 | G98: =IF(G95=0,0,IF(G95<12,'Personnel Roulant'!$G$16+'Personnel Roulant'!$G$42,IF(G95<13,'Personnel Roulant'!$G$18+'Personnel Roulant'!$G$42,IF(G95<14,'Personnel Roulant'!$G$20+'Personnel Roulant'!$G$42,IF(G95<15,'Personnel Roulant'!$G$22+'Personnel Roulant'!$G$42,IF(G95<16,'Personnel Roulant'!$G$24+'Personnel Roulant'!$G$42,IF(G95<17,'Personnel Roulant'!$G$26+'Personnel Roulant'!$G$42,IF(G95<18,'Personnel Roulant'!$G$28+'Personnel Roulant'!$G$42,IF(G95<19,'Personnel Roulant'!$G$30+'Personnel Roulant'!$G$42,IF(G95<20,'Personnel Roulant'!$G$32+'Personnel Roulant'!$G$42,IF(G95<21,'Personnel Roulant'!$G$34+'Personnel Roulant'!$G$42,IF(G95<22,'Personnel Roulant'!$G$36+'Personnel Roulant'!$G$42)))))))))))) -> 0 | H98: =IF(H95=0,0,IF(H95<12,'Personnel Roulant'!$G$16+'Personnel Roulant'!$G$42,IF(H95<13,'Personnel Roulant'!$G$18+'Personnel Roulant'!$G$42,IF(H95<14,'Personnel Roulant'!$G$20+'Personnel Roulant'!$G$42,IF(H95<15,'Personnel Roulant'!$G$22+'Personnel Roulant'!$G$42,IF(H95<16,'Personnel Roulant'!$G$24+'Personnel Roulant'!$G$42,IF(H95<17,'Personnel Roulant'!$G$26+'Personnel Roulant'!$G$42,IF(H95<18,'Personnel Roulant'!$G$28+'Personnel Roulant'!$G$42,IF(H95<19,'Personnel Roulant'!$G$30+'Personnel Roulant'!$G$42,IF(H95<20,'Personnel Roulant'!$G$32+'Personnel Roulant'!$G$42,IF(H95<21,'Personnel Roulant'!$G$34+'Personnel Roulant'!$G$42,IF(H95<22,'Personnel Roulant'!$G$36+'Personnel Roulant'!$G$42)))))))))))) -> 0 | I98: =IF(I95=0,0,IF(I95<12,'Personnel Roulant'!$G$16+'Personnel Roulant'!$G$42,IF(I95<13,'Personnel Roulant'!$G$18+'Personnel Roulant'!$G$42,IF(I95<14,'Personnel Roulant'!$G$20+'Personnel Roulant'!$G$42,IF(I95<15,'Personnel Roulant'!$G$22+'Personnel Roulant'!$G$42,IF(I95<16,'Personnel Roulant'!$G$24+'Personnel Roulant'!$G$42,IF(I95<17,'Personnel Roulant'!$G$26+'Personnel Roulant'!$G$42,IF(I95<18,'Personnel Roulant'!$G$28+'Personnel Roulant'!$G$42,IF(I95<19,'Personnel Roulant'!$G$30+'Personnel Roulant'!$G$42,IF(I95<20,'Personnel Roulant'!$G$32+'Personnel Roulant'!$G$42,IF(I95<21,'Personnel Roulant'!$G$34+'Personnel Roulant'!$G$42,IF(I95<22,'Personnel Roulant'!$G$36+'Personnel Roulant'!$G$42)))))))))))) -> 0 | J98: =IF(J95=0,0,IF(J95<12,'Personnel Roulant'!$G$16+'Personnel Roulant'!$G$42,IF(J95<13,'Personnel Roulant'!$G$18+'Personnel Roulant'!$G$42,IF(J95<14,'Personnel Roulant'!$G$20+'Personnel Roulant'!$G$42,IF(J95<15,'Personnel Roulant'!$G$22+'Personnel Roulant'!$G$42,IF(J95<16,'Personnel Roulant'!$G$24+'Personnel Roulant'!$G$42,IF(J95<17,'Personnel Roulant'!$G$26+'Personnel Roulant'!$G$42,IF(J95<18,'Personnel Roulant'!$G$28+'Personnel Roulant'!$G$42,IF(J95<19,'Personnel Roulant'!$G$30+'Personnel Roulant'!$G$42,IF(J95<20,'Personnel Roulant'!$G$32+'Personnel Roulant'!$G$42,IF(J95<21,'Personnel Roulant'!$G$34+'Personnel Roulant'!$G$42,IF(J95<22,'Personnel Roulant'!$G$36+'Personnel Roulant'!$G$42)))))))))))) -> 0 | K98: =IF(K95=0,0,IF(K95<12,'Personnel Roulant'!$G$16+'Personnel Roulant'!$G$42,IF(K95<13,'Personnel Roulant'!$G$18+'Personnel Roulant'!$G$42,IF(K95<14,'Personnel Roulant'!$G$20+'Personnel Roulant'!$G$42,IF(K95<15,'Personnel Roulant'!$G$22+'Personnel Roulant'!$G$42,IF(K95<16,'Personnel Roulant'!$G$24+'Personnel Roulant'!$G$42,IF(K95<17,'Personnel Roulant'!$G$26+'Personnel Roulant'!$G$42,IF(K95<18,'Personnel Roulant'!$G$28+'Personnel Roulant'!$G$42,IF(K95<19,'Personnel Roulant'!$G$30+'Personnel Roulant'!$G$42,IF(K95<20,'Personnel Roulant'!$G$32+'Personnel Roulant'!$G$42,IF(K95<21,'Personnel Roulant'!$G$34+'Personnel Roulant'!$G$42,IF(K95<22,'Personnel Roulant'!$G$36+'Personnel Roulant'!$G$42)))))))))))) -> 0 | L98: =IF(L95=0,0,IF(L95<12,'Personnel Roulant'!$G$16+'Personnel Roulant'!$G$42,IF(L95<13,'Personnel Roulant'!$G$18+'Personnel Roulant'!$G$42,IF(L95<14,'Personnel Roulant'!$G$20+'Personnel Roulant'!$G$42,IF(L95<15,'Personnel Roulant'!$G$22+'Personnel Roulant'!$G$42,IF(L95<16,'Personnel Roulant'!$G$24+'Personnel Roulant'!$G$42,IF(L95<17,'Personnel Roulant'!$G$26+'Personnel Roulant'!$G$42,IF(L95<18,'Personnel Roulant'!$G$28+'Personnel Roulant'!$G$42,IF(L95<19,'Personnel Roulant'!$G$30+'Personnel Roulant'!$G$42,IF(L95<20,'Personnel Roulant'!$G$32+'Personnel Roulant'!$G$42,IF(L95<21,'Personnel Roulant'!$G$34+'Personnel Roulant'!$G$42,IF(L95<22,'Personnel Roulant'!$G$36+'Personnel Roulant'!$G$42)))))))))))) -> 0 | M98: =IF(M95=0,0,IF(M95<12,'Personnel Roulant'!$G$16+'Personnel Roulant'!$G$42,IF(M95<13,'Personnel Roulant'!$G$18+'Personnel Roulant'!$G$42,IF(M95<14,'Personnel Roulant'!$G$20+'Personnel Roulant'!$G$42,IF(M95<15,'Personnel Roulant'!$G$22+'Personnel Roulant'!$G$42,IF(M95<16,'Personnel Roulant'!$G$24+'Personnel Roulant'!$G$42,IF(M95<17,'Personnel Roulant'!$G$26+'Personnel Roulant'!$G$42,IF(M95<18,'Personnel Roulant'!$G$28+'Personnel Roulant'!$G$42,IF(M95<19,'Personnel Roulant'!$G$30+'Personnel Roulant'!$G$42,IF(M95<20,'Personnel Roulant'!$G$32+'Personnel Roulant'!$G$42,IF(M95<21,'Personnel Roulant'!$G$34+'Personnel Roulant'!$G$42,IF(M95<22,'Personnel Roulant'!$G$36+'Personnel Roulant'!$G$42)))))))))))) -> 0 | N98: =IF(N95=0,0,IF(N95<12,'Personnel Roulant'!$G$16+'Personnel Roulant'!$G$42,IF(N95<13,'Personnel Roulant'!$G$18+'Personnel Roulant'!$G$42,IF(N95<14,'Personnel Roulant'!$G$20+'Personnel Roulant'!$G$42,IF(N95<15,'Personnel Roulant'!$G$22+'Personnel Roulant'!$G$42,IF(N95<16,'Personnel Roulant'!$G$24+'Personnel Roulant'!$G$42,IF(N95<17,'Personnel Roulant'!$G$26+'Personnel Roulant'!$G$42,IF(N95<18,'Personnel Roulant'!$G$28+'Personnel Roulant'!$G$42,IF(N95<19,'Personnel Roulant'!$G$30+'Personnel Roulant'!$G$42,IF(N95<20,'Personnel Roulant'!$G$32+'Personnel Roulant'!$G$42,IF(N95<21,'Personnel Roulant'!$G$34+'Personnel Roulant'!$G$42,IF(N95<22,'Personnel Roulant'!$G$36+'Personnel Roulant'!$G$42)))))))))))) -> 0 | O98: =IF(O95=0,0,IF(O95<12,'Personnel Roulant'!$G$16+'Personnel Roulant'!$G$42,IF(O95<13,'Personnel Roulant'!$G$18+'Personnel Roulant'!$G$42,IF(O95<14,'Personnel Roulant'!$G$20+'Personnel Roulant'!$G$42,IF(O95<15,'Personnel Roulant'!$G$22+'Personnel Roulant'!$G$42,IF(O95<16,'Personnel Roulant'!$G$24+'Personnel Roulant'!$G$42,IF(O95<17,'Personnel Roulant'!$G$26+'Personnel Roulant'!$G$42,IF(O95<18,'Personnel Roulant'!$G$28+'Personnel Roulant'!$G$42,IF(O95<19,'Personnel Roulant'!$G$30+'Personnel Roulant'!$G$42,IF(O95<20,'Personnel Roulant'!$G$32+'Personnel Roulant'!$G$42,IF(O95<21,'Personnel Roulant'!$G$34+'Personnel Roulant'!$G$42,IF(O95<22,'Personnel Roulant'!$G$36+'Personnel Roulant'!$G$42)))))))))))) -> 0 | P98: =IF(P95=0,0,IF(P95<12,'Personnel Roulant'!$G$16+'Personnel Roulant'!$G$42,IF(P95<13,'Personnel Roulant'!$G$18+'Personnel Roulant'!$G$42,IF(P95<14,'Personnel Roulant'!$G$20+'Personnel Roulant'!$G$42,IF(P95<15,'Personnel Roulant'!$G$22+'Personnel Roulant'!$G$42,IF(P95<16,'Personnel Roulant'!$G$24+'Personnel Roulant'!$G$42,IF(P95<17,'Personnel Roulant'!$G$26+'Personnel Roulant'!$G$42,IF(P95<18,'Personnel Roulant'!$G$28+'Personnel Roulant'!$G$42,IF(P95<19,'Personnel Roulant'!$G$30+'Personnel Roulant'!$G$42,IF(P95<20,'Personnel Roulant'!$G$32+'Personnel Roulant'!$G$42,IF(P95<21,'Personnel Roulant'!$G$34+'Personnel Roulant'!$G$42,IF(P95<22,'Personnel Roulant'!$G$36+'Personnel Roulant'!$G$42)))))))))))) -> 0 | Q98: =IF(Q95=0,0,IF(Q95<12,'Personnel Roulant'!$G$16+'Personnel Roulant'!$G$42,IF(Q95<13,'Personnel Roulant'!$G$18+'Personnel Roulant'!$G$42,IF(Q95<14,'Personnel Roulant'!$G$20+'Personnel Roulant'!$G$42,IF(Q95<15,'Personnel Roulant'!$G$22+'Personnel Roulant'!$G$42,IF(Q95<16,'Personnel Roulant'!$G$24+'Personnel Roulant'!$G$42,IF(Q95<17,'Personnel Roulant'!$G$26+'Personnel Roulant'!$G$42,IF(Q95<18,'Personnel Roulant'!$G$28+'Personnel Roulant'!$G$42,IF(Q95<19,'Personnel Roulant'!$G$30+'Personnel Roulant'!$G$42,IF(Q95<20,'Personnel Roulant'!$G$32+'Personnel Roulant'!$G$42,IF(Q95<21,'Personnel Roulant'!$G$34+'Personnel Roulant'!$G$42,IF(Q95<22,'Personnel Roulant'!$G$36+'Personnel Roulant'!$G$42)))))))))))) -> 0 | R98: =IF(R95=0,0,IF(R95<12,'Personnel Roulant'!$G$16+'Personnel Roulant'!$G$42,IF(R95<13,'Personnel Roulant'!$G$18+'Personnel Roulant'!$G$42,IF(R95<14,'Personnel Roulant'!$G$20+'Personnel Roulant'!$G$42,IF(R95<15,'Personnel Roulant'!$G$22+'Personnel Roulant'!$G$42,IF(R95<16,'Personnel Roulant'!$G$24+'Personnel Roulant'!$G$42,IF(R95<17,'Personnel Roulant'!$G$26+'Personnel Roulant'!$G$42,IF(R95<18,'Personnel Roulant'!$G$28+'Personnel Roulant'!$G$42,IF(R95<19,'Personnel Roulant'!$G$30+'Personnel Roulant'!$G$42,IF(R95<20,'Personnel Roulant'!$G$32+'Personnel Roulant'!$G$42,IF(R95<21,'Personnel Roulant'!$G$34+'Personnel Roulant'!$G$42,IF(R95<22,'Personnel Roulant'!$G$36+'Personnel Roulant'!$G$42)))))))))))) -> 0 | S98: =IF(S95=0,0,IF(S95<12,'Personnel Roulant'!$G$16+'Personnel Roulant'!$G$42,IF(S95<13,'Personnel Roulant'!$G$18+'Personnel Roulant'!$G$42,IF(S95<14,'Personnel Roulant'!$G$20+'Personnel Roulant'!$G$42,IF(S95<15,'Personnel Roulant'!$G$22+'Personnel Roulant'!$G$42,IF(S95<16,'Personnel Roulant'!$G$24+'Personnel Roulant'!$G$42,IF(S95<17,'Personnel Roulant'!$G$26+'Personnel Roulant'!$G$42,IF(S95<18,'Personnel Roulant'!$G$28+'Personnel Roulant'!$G$42,IF(S95<19,'Personnel Roulant'!$G$30+'Personnel Roulant'!$G$42,IF(S95<20,'Personnel Roulant'!$G$32+'Personnel Roulant'!$G$42,IF(S95<21,'Personnel Roulant'!$G$34+'Personnel Roulant'!$G$42,IF(S95<22,'Personnel Roulant'!$G$36+'Personnel Roulant'!$G$42)))))))))))) -> 0
C99: Compensation Dimanche tous CH | E99: =Trajet!F119*'Personnel Roulant'!$G$48 -> 0 | F99: =Trajet!G119*'Personnel Roulant'!$G$48 -> 0 | G99: =Trajet!H119*'Personnel Roulant'!$G$48 -> 0 | H99: =Trajet!I119*'Personnel Roulant'!$G$48 -> 0 | I99: =Trajet!J119*'Personnel Roulant'!$G$48 -> 0 | J99: =Trajet!K119*'Personnel Roulant'!$G$48 -> 0 | K99: =Trajet!L119*'Personnel Roulant'!$G$48 -> 0 | L99: =Trajet!M119*'Personnel Roulant'!$G$48 -> 0 | M99: =Trajet!N119*'Personnel Roulant'!$G$48 -> 0 | N99: =Trajet!O119*'Personnel Roulant'!$G$48 -> 0 | O99: =Trajet!P119*'Personnel Roulant'!$G$48 -> 0 | P99: =Trajet!Q119*'Personnel Roulant'!$G$48 -> 0 | Q99: =Trajet!R119*'Personnel Roulant'!$G$48 -> 0 | R99: =Trajet!S119*'Personnel Roulant'!$G$48 -> 0 | S99: =Trajet!T119*'Personnel Roulant'!$G$48 -> 0
C100: Inactivité à l'étranger tous CH | E100: =Trajet!F120*'Personnel Roulant'!$G$50 -> 0 | F100: =Trajet!G120*'Personnel Roulant'!$G$50 -> 0 | G100: =Trajet!H120*'Personnel Roulant'!$G$50 -> 0 | H100: =Trajet!I120*'Personnel Roulant'!$G$50 -> 0 | I100: =Trajet!J120*'Personnel Roulant'!$G$50 -> 0 | J100: =Trajet!K120*'Personnel Roulant'!$G$50 -> 0 | K100: =Trajet!L120*'Personnel Roulant'!$G$50 -> 0 | L100: =Trajet!M120*'Personnel Roulant'!$G$50 -> 0 | M100: =Trajet!N120*'Personnel Roulant'!$G$50 -> 0 | N100: =Trajet!O120*'Personnel Roulant'!$G$50 -> 0 | O100: =Trajet!P120*'Personnel Roulant'!$G$50 -> 0 | P100: =Trajet!Q120*'Personnel Roulant'!$G$50 -> 0 | Q100: =Trajet!R120*'Personnel Roulant'!$G$50 -> 0 | R100: =Trajet!S120*'Personnel Roulant'!$G$50 -> 0 | S100: =Trajet!T120*'Personnel Roulant'!$G$50 -> 0
C101: Prime fin d'année tous CH | E101: =IF(Trajet!F108<1,0,(('Personnel Roulant'!$G$46/'Personnel Roulant'!$G$68)*Trajet!F114)) ->  | F101: =IF(Trajet!G108<1,0,(('Personnel Roulant'!$G$46/'Personnel Roulant'!$G$68)*Trajet!G114)) ->  | G101: =IF(Trajet!H108<1,0,(('Personnel Roulant'!$G$46/'Personnel Roulant'!$G$68)*Trajet!H114)) -> 0 | H101: =IF(Trajet!I108<1,0,(('Personnel Roulant'!$G$46/'Personnel Roulant'!$G$68)*Trajet!I114)) -> 0 | I101: =IF(Trajet!J108<1,0,(('Personnel Roulant'!$G$46/'Personnel Roulant'!$G$68)*Trajet!J114)) -> 0 | J101: =IF(Trajet!K108<1,0,(('Personnel Roulant'!$G$46/'Personnel Roulant'!$G$68)*Trajet!K114)) -> 0 | K101: =IF(Trajet!L108<1,0,(('Personnel Roulant'!$G$46/'Personnel Roulant'!$G$68)*Trajet!L114)) -> 0 | L101: =IF(Trajet!M108<1,0,(('Personnel Roulant'!$G$46/'Personnel Roulant'!$G$68)*Trajet!M114)) -> 0 | M101: =IF(Trajet!N108<1,0,(('Personnel Roulant'!$G$46/'Personnel Roulant'!$G$68)*Trajet!N114)) -> 0 | N101: =IF(Trajet!O108<1,0,(('Personnel Roulant'!$G$46/'Personnel Roulant'!$G$68)*Trajet!O114)) -> 0 | O101: =IF(Trajet!P108<1,0,(('Personnel Roulant'!$G$46/'Personnel Roulant'!$G$68)*Trajet!P114)) -> 0 | P101: =IF(Trajet!Q108<1,0,(('Personnel Roulant'!$G$46/'Personnel Roulant'!$G$68)*Trajet!Q114)) -> 0 | Q101: =IF(Trajet!R108<1,0,(('Personnel Roulant'!$G$46/'Personnel Roulant'!$G$68)*Trajet!R114)) -> 0 | R101: =IF(Trajet!S108<1,0,(('Personnel Roulant'!$G$46/'Personnel Roulant'!$G$68)*Trajet!S114)) -> 0 | S101: =IF(Trajet!T108<1,0,(('Personnel Roulant'!$G$46/'Personnel Roulant'!$G$68)*Trajet!T114)) -> 0
C102: ONSS employeur tous CH | E102: =IF(Trajet!F108<1,0,((E96+E97+E98+E99+E100+E101)*1.08*'Personnel Roulant'!$G$52)) ->  | F102: =IF(Trajet!G108<1,0,((F96+F97+F98+F99+F100+F101)*1.08*'Personnel Roulant'!$G$52)) ->  | G102: =IF(Trajet!H108<1,0,((G96+G97+G98+G99+G100+G101)*1.08*'Personnel Roulant'!$G$52)) -> 0 | H102: =IF(Trajet!I108<1,0,((H96+H97+H98+H99+H100+H101)*1.08*'Personnel Roulant'!$G$52)) -> 0 | I102: =IF(Trajet!J108<1,0,((I96+I97+I98+I99+I100+I101)*1.08*'Personnel Roulant'!$G$52)) -> 0 | J102: =IF(Trajet!K108<1,0,((J96+J97+J98+J99+J100+J101)*1.08*'Personnel Roulant'!$G$52)) -> 0 | K102: =IF(Trajet!L108<1,0,((K96+K97+K98+K99+K100+K101)*1.08*'Personnel Roulant'!$G$52)) -> 0 | L102: =IF(Trajet!M108<1,0,((L96+L97+L98+L99+L100+L101)*1.08*'Personnel Roulant'!$G$52)) -> 0 | M102: =IF(Trajet!N108<1,0,((M96+M97+M98+M99+M100+M101)*1.08*'Personnel Roulant'!$G$52)) -> 0 | N102: =IF(Trajet!O108<1,0,((N96+N97+N98+N99+N100+N101)*1.08*'Personnel Roulant'!$G$52)) -> 0 | O102: =IF(Trajet!P108<1,0,((O96+O97+O98+O99+O100+O101)*1.08*'Personnel Roulant'!$G$52)) -> 0 | P102: =IF(Trajet!Q108<1,0,((P96+P97+P98+P99+P100+P101)*1.08*'Personnel Roulant'!$G$52)) -> 0 | Q102: =IF(Trajet!R108<1,0,((Q96+Q97+Q98+Q99+Q100+Q101)*1.08*'Personnel Roulant'!$G$52)) -> 0 | R102: =IF(Trajet!S108<1,0,((R96+R97+R98+R99+R100+R101)*1.08*'Personnel Roulant'!$G$52)) -> 0 | S102: =IF(Trajet!T108<1,0,((S96+S97+S98+S99+S100+S101)*1.08*'Personnel Roulant'!$G$52)) -> 0
C103: Eco-cheques tous CH | E103: =IF(Trajet!F108<1,0,(('Personnel Roulant'!$G$44/'Personnel Roulant'!$G$68)*Trajet!F114)) ->  | F103: =IF(Trajet!G108<1,0,(('Personnel Roulant'!$G$44/'Personnel Roulant'!$G$68)*Trajet!G114)) ->  | G103: =IF(Trajet!H108<1,0,(('Personnel Roulant'!$G$44/'Personnel Roulant'!$G$68)*Trajet!H114)) -> 0 | H103: =IF(Trajet!I108<1,0,(('Personnel Roulant'!$G$44/'Personnel Roulant'!$G$68)*Trajet!I114)) -> 0 | I103: =IF(Trajet!J108<1,0,(('Personnel Roulant'!$G$44/'Personnel Roulant'!$G$68)*Trajet!J114)) -> 0 | J103: =IF(Trajet!K108<1,0,(('Personnel Roulant'!$G$44/'Personnel Roulant'!$G$68)*Trajet!K114)) -> 0 | K103: =IF(Trajet!L108<1,0,(('Personnel Roulant'!$G$44/'Personnel Roulant'!$G$68)*Trajet!L114)) -> 0 | L103: =IF(Trajet!M108<1,0,(('Personnel Roulant'!$G$44/'Personnel Roulant'!$G$68)*Trajet!M114)) -> 0 | M103: =IF(Trajet!N108<1,0,(('Personnel Roulant'!$G$44/'Personnel Roulant'!$G$68)*Trajet!N114)) -> 0 | N103: =IF(Trajet!O108<1,0,(('Personnel Roulant'!$G$44/'Personnel Roulant'!$G$68)*Trajet!O114)) -> 0 | O103: =IF(Trajet!P108<1,0,(('Personnel Roulant'!$G$44/'Personnel Roulant'!$G$68)*Trajet!P114)) -> 0 | P103: =IF(Trajet!Q108<1,0,(('Personnel Roulant'!$G$44/'Personnel Roulant'!$G$68)*Trajet!Q114)) -> 0 | Q103: =IF(Trajet!R108<1,0,(('Personnel Roulant'!$G$44/'Personnel Roulant'!$G$68)*Trajet!R114)) -> 0 | R103: =IF(Trajet!S108<1,0,(('Personnel Roulant'!$G$44/'Personnel Roulant'!$G$68)*Trajet!S114)) -> 0 | S103: =IF(Trajet!T108<1,0,(('Personnel Roulant'!$G$44/'Personnel Roulant'!$G$68)*Trajet!T114)) -> 0
C104: RGTP CH SIMPLE | E104: =ROUNDUP(E93,0)*'Personnel Roulant'!$G$40 -> 12.66 | F104: =ROUNDUP(F93,0)*'Personnel Roulant'!$G$40 -> 0 | G104: =ROUNDUP(G93,0)*'Personnel Roulant'!$G$40 -> 0 | H104: =ROUNDUP(H93,0)*'Personnel Roulant'!$G$40 -> 0 | I104: =ROUNDUP(I93,0)*'Personnel Roulant'!$G$40 -> 0 | J104: =ROUNDUP(J93,0)*'Personnel Roulant'!$G$40 -> 0 | K104: =ROUNDUP(K93,0)*'Personnel Roulant'!$G$40 -> 0 | L104: =ROUNDUP(L93,0)*'Personnel Roulant'!$G$40 -> 0 | M104: =ROUNDUP(M93,0)*'Personnel Roulant'!$G$40 -> 0 | N104: =ROUNDUP(N93,0)*'Personnel Roulant'!$G$40 -> 0 | O104: =ROUNDUP(O93,0)*'Personnel Roulant'!$G$40 -> 0 | P104: =ROUNDUP(P93,0)*'Personnel Roulant'!$G$40 -> 0 | Q104: =ROUNDUP(Q93,0)*'Personnel Roulant'!$G$40 -> 0 | R104: =ROUNDUP(R93,0)*'Personnel Roulant'!$G$40 -> 0 | S104: =ROUNDUP(S93,0)*'Personnel Roulant'!$G$40 -> 0
C105: RGTP CH1 DOUBLE | E105: =ROUNDUP(E94,0)*'Personnel Roulant'!$G$40 -> 0 | F105: =ROUNDUP(F94,0)*'Personnel Roulant'!$G$40 -> 0 | G105: =ROUNDUP(G94,0)*'Personnel Roulant'!$G$40 -> 0 | H105: =ROUNDUP(H94,0)*'Personnel Roulant'!$G$40 -> 0 | I105: =ROUNDUP(I94,0)*'Personnel Roulant'!$G$40 -> 0 | J105: =ROUNDUP(J94,0)*'Personnel Roulant'!$G$40 -> 0 | K105: =ROUNDUP(K94,0)*'Personnel Roulant'!$G$40 -> 0 | L105: =ROUNDUP(L94,0)*'Personnel Roulant'!$G$40 -> 0 | M105: =ROUNDUP(M94,0)*'Personnel Roulant'!$G$40 -> 0 | N105: =ROUNDUP(N94,0)*'Personnel Roulant'!$G$40 -> 0 | O105: =ROUNDUP(O94,0)*'Personnel Roulant'!$G$40 -> 0 | P105: =ROUNDUP(P94,0)*'Personnel Roulant'!$G$40 -> 0 | Q105: =ROUNDUP(Q94,0)*'Personnel Roulant'!$G$40 -> 0 | R105: =ROUNDUP(R94,0)*'Personnel Roulant'!$G$40 -> 0 | S105: =ROUNDUP(S94,0)*'Personnel Roulant'!$G$40 -> 0
C106: RGTP CH2 DOUBLE | E106: =ROUNDUP(E95,0)*'Personnel Roulant'!$G$40 -> 0 | F106: =ROUNDUP(F95,0)*'Personnel Roulant'!$G$40 -> 0 | G106: =ROUNDUP(G95,0)*'Personnel Roulant'!$G$40 -> 0 | H106: =ROUNDUP(H95,0)*'Personnel Roulant'!$G$40 -> 0 | I106: =ROUNDUP(I95,0)*'Personnel Roulant'!$G$40 -> 0 | J106: =ROUNDUP(J95,0)*'Personnel Roulant'!$G$40 -> 0 | K106: =ROUNDUP(K95,0)*'Personnel Roulant'!$G$40 -> 0 | L106: =ROUNDUP(L95,0)*'Personnel Roulant'!$G$40 -> 0 | M106: =ROUNDUP(M95,0)*'Personnel Roulant'!$G$40 -> 0 | N106: =ROUNDUP(N95,0)*'Personnel Roulant'!$G$40 -> 0 | O106: =ROUNDUP(O95,0)*'Personnel Roulant'!$G$40 -> 0 | P106: =ROUNDUP(P95,0)*'Personnel Roulant'!$G$40 -> 0 | Q106: =ROUNDUP(Q95,0)*'Personnel Roulant'!$G$40 -> 0 | R106: =ROUNDUP(R95,0)*'Personnel Roulant'!$G$40 -> 0 | S106: =ROUNDUP(S95,0)*'Personnel Roulant'!$G$40 -> 0
C107: Autres coûts tous CH | E107: =IF(Trajet!F108<1,0,((('Personnel Roulant'!$G$54+'Personnel Roulant'!$G$56+'Personnel Roulant'!$G$58+'Personnel Roulant'!$G$60+'Personnel Roulant'!$G$62+'Personnel Roulant'!$G$64+'Personnel Roulant'!$G$66)/'Personnel Roulant'!$G$68)*Trajet!F114)) ->  | F107: =IF(Trajet!G108<1,0,((('Personnel Roulant'!$G$54+'Personnel Roulant'!$G$56+'Personnel Roulant'!$G$58+'Personnel Roulant'!$G$60+'Personnel Roulant'!$G$62+'Personnel Roulant'!$G$64+'Personnel Roulant'!$G$66)/'Personnel Roulant'!$G$68)*Trajet!G114)) ->  | G107: =IF(Trajet!H108<1,0,((('Personnel Roulant'!$G$54+'Personnel Roulant'!$G$56+'Personnel Roulant'!$G$58+'Personnel Roulant'!$G$60+'Personnel Roulant'!$G$62+'Personnel Roulant'!$G$64+'Personnel Roulant'!$G$66)/'Personnel Roulant'!$G$68)*Trajet!H114)) -> 0 | H107: =IF(Trajet!I108<1,0,((('Personnel Roulant'!$G$54+'Personnel Roulant'!$G$56+'Personnel Roulant'!$G$58+'Personnel Roulant'!$G$60+'Personnel Roulant'!$G$62+'Personnel Roulant'!$G$64+'Personnel Roulant'!$G$66)/'Personnel Roulant'!$G$68)*Trajet!I114)) -> 0 | I107: =IF(Trajet!J108<1,0,((('Personnel Roulant'!$G$54+'Personnel Roulant'!$G$56+'Personnel Roulant'!$G$58+'Personnel Roulant'!$G$60+'Personnel Roulant'!$G$62+'Personnel Roulant'!$G$64+'Personnel Roulant'!$G$66)/'Personnel Roulant'!$G$68)*Trajet!J114)) -> 0 | J107: =IF(Trajet!K108<1,0,((('Personnel Roulant'!$G$54+'Personnel Roulant'!$G$56+'Personnel Roulant'!$G$58+'Personnel Roulant'!$G$60+'Personnel Roulant'!$G$62+'Personnel Roulant'!$G$64+'Personnel Roulant'!$G$66)/'Personnel Roulant'!$G$68)*Trajet!K114)) -> 0 | K107: =IF(Trajet!L108<1,0,((('Personnel Roulant'!$G$54+'Personnel Roulant'!$G$56+'Personnel Roulant'!$G$58+'Personnel Roulant'!$G$60+'Personnel Roulant'!$G$62+'Personnel Roulant'!$G$64+'Personnel Roulant'!$G$66)/'Personnel Roulant'!$G$68)*Trajet!L114)) -> 0 | L107: =IF(Trajet!M108<1,0,((('Personnel Roulant'!$G$54+'Personnel Roulant'!$G$56+'Personnel Roulant'!$G$58+'Personnel Roulant'!$G$60+'Personnel Roulant'!$G$62+'Personnel Roulant'!$G$64+'Personnel Roulant'!$G$66)/'Personnel Roulant'!$G$68)*Trajet!M114)) -> 0 | M107: =IF(Trajet!N108<1,0,((('Personnel Roulant'!$G$54+'Personnel Roulant'!$G$56+'Personnel Roulant'!$G$58+'Personnel Roulant'!$G$60+'Personnel Roulant'!$G$62+'Personnel Roulant'!$G$64+'Personnel Roulant'!$G$66)/'Personnel Roulant'!$G$68)*Trajet!N114)) -> 0 | N107: =IF(Trajet!O108<1,0,((('Personnel Roulant'!$G$54+'Personnel Roulant'!$G$56+'Personnel Roulant'!$G$58+'Personnel Roulant'!$G$60+'Personnel Roulant'!$G$62+'Personnel Roulant'!$G$64+'Personnel Roulant'!$G$66)/'Personnel Roulant'!$G$68)*Trajet!O114)) -> 0 | O107: =IF(Trajet!P108<1,0,((('Personnel Roulant'!$G$54+'Personnel Roulant'!$G$56+'Personnel Roulant'!$G$58+'Personnel Roulant'!$G$60+'Personnel Roulant'!$G$62+'Personnel Roulant'!$G$64+'Personnel Roulant'!$G$66)/'Personnel Roulant'!$G$68)*Trajet!P114)) -> 0 | P107: =IF(Trajet!Q108<1,0,((('Personnel Roulant'!$G$54+'Personnel Roulant'!$G$56+'Personnel Roulant'!$G$58+'Personnel Roulant'!$G$60+'Personnel Roulant'!$G$62+'Personnel Roulant'!$G$64+'Personnel Roulant'!$G$66)/'Personnel Roulant'!$G$68)*Trajet!Q114)) -> 0 | Q107: =IF(Trajet!R108<1,0,((('Personnel Roulant'!$G$54+'Personnel Roulant'!$G$56+'Personnel Roulant'!$G$58+'Personnel Roulant'!$G$60+'Personnel Roulant'!$G$62+'Personnel Roulant'!$G$64+'Personnel Roulant'!$G$66)/'Personnel Roulant'!$G$68)*Trajet!R114)) -> 0 | R107: =IF(Trajet!S108<1,0,((('Personnel Roulant'!$G$54+'Personnel Roulant'!$G$56+'Personnel Roulant'!$G$58+'Personnel Roulant'!$G$60+'Personnel Roulant'!$G$62+'Personnel Roulant'!$G$64+'Personnel Roulant'!$G$66)/'Personnel Roulant'!$G$68)*Trajet!S114)) -> 0 | S107: =IF(Trajet!T108<1,0,((('Personnel Roulant'!$G$54+'Personnel Roulant'!$G$56+'Personnel Roulant'!$G$58+'Personnel Roulant'!$G$60+'Personnel Roulant'!$G$62+'Personnel Roulant'!$G$64+'Personnel Roulant'!$G$66)/'Personnel Roulant'!$G$68)*Trajet!T114)) -> 0
C108: Primes supp Dimanche + Jour férié | E108: =IF(Trajet!F114="","",IF(Trajet!F114=1,Trajet!AD111,IF(Trajet!F114=2,Trajet!AD111+Trajet!AD112,IF(Trajet!F114=3,Trajet!AD111+Trajet!AD112+Trajet!AD113)))) ->  | F108: =IF(Trajet!G114="","",IF(Trajet!G114=1,Trajet!AE111,IF(Trajet!G114=2,Trajet!AE111+Trajet!AE112,IF(Trajet!G114=3,Trajet!AE111+Trajet!AE112+Trajet!AE113)))) ->  | G108: =IF(Trajet!H114="","",IF(Trajet!H114=1,Trajet!AF111,IF(Trajet!H114=2,Trajet!AF111+Trajet!AF112,IF(Trajet!H114=3,Trajet!AF111+Trajet!AF112+Trajet!AF113)))) ->  | H108: =IF(Trajet!I114="","",IF(Trajet!I114=1,Trajet!AG111,IF(Trajet!I114=2,Trajet!AG111+Trajet!AG112,IF(Trajet!I114=3,Trajet!AG111+Trajet!AG112+Trajet!AG113)))) ->  | I108: =IF(Trajet!J114="","",IF(Trajet!J114=1,Trajet!AH111,IF(Trajet!J114=2,Trajet!AH111+Trajet!AH112,IF(Trajet!J114=3,Trajet!AH111+Trajet!AH112+Trajet!AH113)))) ->  | J108: =IF(Trajet!K114="","",IF(Trajet!K114=1,Trajet!AI111,IF(Trajet!K114=2,Trajet!AI111+Trajet!AI112,IF(Trajet!K114=3,Trajet!AI111+Trajet!AI112+Trajet!AI113)))) ->  | K108: =IF(Trajet!L114="","",IF(Trajet!L114=1,Trajet!AJ111,IF(Trajet!L114=2,Trajet!AJ111+Trajet!AJ112,IF(Trajet!L114=3,Trajet!AJ111+Trajet!AJ112+Trajet!AJ113)))) ->  | L108: =IF(Trajet!M114="","",IF(Trajet!M114=1,Trajet!AK111,IF(Trajet!M114=2,Trajet!AK111+Trajet!AK112,IF(Trajet!M114=3,Trajet!AK111+Trajet!AK112+Trajet!AK113)))) ->  | M108: =IF(Trajet!N114="","",IF(Trajet!N114=1,Trajet!AL111,IF(Trajet!N114=2,Trajet!AL111+Trajet!AL112,IF(Trajet!N114=3,Trajet!AL111+Trajet!AL112+Trajet!AL113)))) ->  | N108: =IF(Trajet!O114="","",IF(Trajet!O114=1,Trajet!AM111,IF(Trajet!O114=2,Trajet!AM111+Trajet!AM112,IF(Trajet!O114=3,Trajet!AM111+Trajet!AM112+Trajet!AM113)))) ->  | O108: =IF(Trajet!P114="","",IF(Trajet!P114=1,Trajet!AN111,IF(Trajet!P114=2,Trajet!AN111+Trajet!AN112,IF(Trajet!P114=3,Trajet!AN111+Trajet!AN112+Trajet!AN113)))) ->  | P108: =IF(Trajet!Q114="","",IF(Trajet!Q114=1,Trajet!AO111,IF(Trajet!Q114=2,Trajet!AO111+Trajet!AO112,IF(Trajet!Q114=3,Trajet!AO111+Trajet!AO112+Trajet!AO113)))) ->  | Q108: =IF(Trajet!R114="","",IF(Trajet!R114=1,Trajet!AP111,IF(Trajet!R114=2,Trajet!AP111+Trajet!AP112,IF(Trajet!R114=3,Trajet!AP111+Trajet!AP112+Trajet!AP113)))) ->  | R108: =IF(Trajet!S114="","",IF(Trajet!S114=1,Trajet!AQ111,IF(Trajet!S114=2,Trajet!AQ111+Trajet!AQ112,IF(Trajet!S114=3,Trajet!AQ111+Trajet!AQ112+Trajet!AQ113)))) ->  | S108: =IF(Trajet!T114="","",IF(Trajet!T114=1,Trajet!AR111,IF(Trajet!T114=2,Trajet!AR111+Trajet!AR112,IF(Trajet!T114=3,Trajet!AR111+Trajet!AR112+Trajet!AR113)))) -> 
C109: Coûts spécifiques tous CH | E109: =Trajet!F125 -> 0 | F109: =Trajet!G125 -> 0 | G109: =Trajet!H125 -> 0 | H109: =Trajet!I125 -> 0 | I109: =Trajet!J125 -> 0 | J109: =Trajet!K125 -> 0 | K109: =Trajet!L125 -> 0 | L109: =Trajet!M125 -> 0 | M109: =Trajet!N125 -> 0 | N109: =Trajet!O125 -> 0 | O109: =Trajet!P125 -> 0 | P109: =Trajet!Q125 -> 0 | Q109: =Trajet!R125 -> 0 | R109: =Trajet!S125 -> 0 | S109: =Trajet!T125 -> 0
C110: Coût personnel total tous CH | E110: =IF(Trajet!F108<1,0,(E96+E97+E98+E99+E100+E101+E103+E102+E104+E105+E106+E107+E108+E109)) ->  | F110: =IF(Trajet!G108<1,0,(F96+F97+F98+F99+F100+F101+F103+F102+F104+F105+F106+F107+F108+F109)) ->  | G110: =IF(Trajet!H108<1,0,(G96+G97+G98+G99+G100+G101+G103+G102+G104+G105+G106+G107+G108+G109)) -> 0 | H110: =IF(Trajet!I108<1,0,(H96+H97+H98+H99+H100+H101+H103+H102+H104+H105+H106+H107+H108+H109)) -> 0 | I110: =IF(Trajet!J108<1,0,(I96+I97+I98+I99+I100+I101+I103+I102+I104+I105+I106+I107+I108+I109)) -> 0 | J110: =IF(Trajet!K108<1,0,(J96+J97+J98+J99+J100+J101+J103+J102+J104+J105+J106+J107+J108+J109)) -> 0 | K110: =IF(Trajet!L108<1,0,(K96+K97+K98+K99+K100+K101+K103+K102+K104+K105+K106+K107+K108+K109)) -> 0 | L110: =IF(Trajet!M108<1,0,(L96+L97+L98+L99+L100+L101+L103+L102+L104+L105+L106+L107+L108+L109)) -> 0 | M110: =IF(Trajet!N108<1,0,(M96+M97+M98+M99+M100+M101+M103+M102+M104+M105+M106+M107+M108+M109)) -> 0 | N110: =IF(Trajet!O108<1,0,(N96+N97+N98+N99+N100+N101+N103+N102+N104+N105+N106+N107+N108+N109)) -> 0 | O110: =IF(Trajet!P108<1,0,(O96+O97+O98+O99+O100+O101+O103+O102+O104+O105+O106+O107+O108+O109)) -> 0 | P110: =IF(Trajet!Q108<1,0,(P96+P97+P98+P99+P100+P101+P103+P102+P104+P105+P106+P107+P108+P109)) -> 0 | Q110: =IF(Trajet!R108<1,0,(Q96+Q97+Q98+Q99+Q100+Q101+Q103+Q102+Q104+Q105+Q106+Q107+Q108+Q109)) -> 0 | R110: =IF(Trajet!S108<1,0,(R96+R97+R98+R99+R100+R101+R103+R102+R104+R105+R106+R107+R108+R109)) -> 0 | S110: =IF(Trajet!T108<1,0,(S96+S97+S98+S99+S100+S101+S103+S102+S104+S105+S106+S107+S108+S109)) -> 0
G113: Coût personnel roulant | J113: ='Vehicule utilise'!W16 ->  | L113: ='Vehicule utilise'!S16 -> Mercedes
E119: jour | F119: jour | G119: jour | H119: jour | I119: jour | J119: jour | K119: jour | L119: jour | M119: jour | N119: jour | O119: jour | P119: jour | Q119: jour | R119: jour | S119: jour
E120: 1 | F120: 2 | G120: 3 | H120: 4 | I120: 5 | J120: 6 | K120: 7 | L120: 8 | M120: 9 | N120: 10 | O120: 11 | P120: 12 | Q120: 13 | R120: 14 | S120: 15
C121: Temps de service CH SIMPLE | E121: =Trajet!F147*24 -> 11 | F121: =Trajet!G147*24 -> 0 | G121: =Trajet!H147*24 -> 0 | H121: =Trajet!I147*24 -> 0 | I121: =Trajet!J147*24 -> 0 | J121: =Trajet!K147*24 -> 0 | K121: =Trajet!L147*24 -> 0 | L121: =Trajet!M147*24 -> 0 | M121: =Trajet!N147*24 -> 0 | N121: =Trajet!O147*24 -> 0 | O121: =Trajet!P147*24 -> 0 | P121: =Trajet!Q147*24 -> 0 | Q121: =Trajet!R147*24 -> 0 | R121: =Trajet!S147*24 -> 0 | S121: =Trajet!T147*24 -> 0
C122: Temps de service CH1 DOUBLE | E122: =Trajet!F148*24 -> 0 | F122: =Trajet!G148*24 -> 0 | G122: =Trajet!H148*24 -> 0 | H122: =Trajet!I148*24 -> 0 | I122: =Trajet!J148*24 -> 0 | J122: =Trajet!K148*24 -> 0 | K122: =Trajet!L148*24 -> 0 | L122: =Trajet!M148*24 -> 0 | M122: =Trajet!N148*24 -> 0 | N122: =Trajet!O148*24 -> 0 | O122: =Trajet!P148*24 -> 0 | P122: =Trajet!Q148*24 -> 0 | Q122: =Trajet!R148*24 -> 0 | R122: =Trajet!S148*24 -> 0 | S122: =Trajet!T148*24 -> 0
C123: Temps de service CH2 DOUBLE | E123: =Trajet!F149*24 -> 0 | F123: =Trajet!G149*24 -> 0 | G123: =Trajet!H149*24 -> 0 | H123: =Trajet!I149*24 -> 0 | I123: =Trajet!J149*24 -> 0 | J123: =Trajet!K149*24 -> 0 | K123: =Trajet!L149*24 -> 0 | L123: =Trajet!M149*24 -> 0 | M123: =Trajet!N149*24 -> 0 | N123: =Trajet!O149*24 -> 0 | O123: =Trajet!P149*24 -> 0 | P123: =Trajet!Q149*24 -> 0 | Q123: =Trajet!R149*24 -> 0 | R123: =Trajet!S149*24 -> 0 | S123: =Trajet!T149*24 -> 0
C124: Bruto Sal CH SIMPLE | E124: =IF(AND(E121>0,E121<=6,Trajet!F134="Autre"),('Personnel Roulant'!$G$50+'Personnel Roulant'!$G$42),IF(AND(E121>0,E121<=6),('Personnel Roulant'!$G$9+'Personnel Roulant'!$G$42),IF(AND(E121>6,E121<=12),'Personnel Roulant'!$G$11+'Personnel Roulant'!$G$42,IF(E121>0,'Personnel Roulant'!$G$11+(ROUNDUP(E121,0)-12)*'Personnel Roulant'!$G$13+'Personnel Roulant'!$G$42,0)))) -> 132.29 | F124: =IF(AND(F121>0,F121<=6,Trajet!G134="Autre"),('Personnel Roulant'!$G$50+'Personnel Roulant'!$G$42),IF(AND(F121>0,F121<=6),('Personnel Roulant'!$G$9+'Personnel Roulant'!$G$42),IF(AND(F121>6,F121<=12),'Personnel Roulant'!$G$11+'Personnel Roulant'!$G$42,IF(F121>0,'Personnel Roulant'!$G$11+(ROUNDUP(F121,0)-12)*'Personnel Roulant'!$G$13+'Personnel Roulant'!$G$42,0)))) -> 0 | G124: =IF(AND(G121>0,G121<=6,Trajet!H134="Autre"),('Personnel Roulant'!$G$50+'Personnel Roulant'!$G$42),IF(AND(G121>0,G121<=6),('Personnel Roulant'!$G$9+'Personnel Roulant'!$G$42),IF(AND(G121>6,G121<=12),'Personnel Roulant'!$G$11+'Personnel Roulant'!$G$42,IF(G121>0,'Personnel Roulant'!$G$11+(ROUNDUP(G121,0)-12)*'Personnel Roulant'!$G$13+'Personnel Roulant'!$G$42,0)))) -> 0 | H124: =IF(AND(H121>0,H121<=6,Trajet!I134="Autre"),('Personnel Roulant'!$G$50+'Personnel Roulant'!$G$42),IF(AND(H121>0,H121<=6),('Personnel Roulant'!$G$9+'Personnel Roulant'!$G$42),IF(AND(H121>6,H121<=12),'Personnel Roulant'!$G$11+'Personnel Roulant'!$G$42,IF(H121>0,'Personnel Roulant'!$G$11+(ROUNDUP(H121,0)-12)*'Personnel Roulant'!$G$13+'Personnel Roulant'!$G$42,0)))) -> 0 | I124: =IF(AND(I121>0,I121<=6,Trajet!J134="Autre"),('Personnel Roulant'!$G$50+'Personnel Roulant'!$G$42),IF(AND(I121>0,I121<=6),('Personnel Roulant'!$G$9+'Personnel Roulant'!$G$42),IF(AND(I121>6,I121<=12),'Personnel Roulant'!$G$11+'Personnel Roulant'!$G$42,IF(I121>0,'Personnel Roulant'!$G$11+(ROUNDUP(I121,0)-12)*'Personnel Roulant'!$G$13+'Personnel Roulant'!$G$42,0)))) -> 0 | J124: =IF(AND(J121>0,J121<=6,Trajet!K134="Autre"),('Personnel Roulant'!$G$50+'Personnel Roulant'!$G$42),IF(AND(J121>0,J121<=6),('Personnel Roulant'!$G$9+'Personnel Roulant'!$G$42),IF(AND(J121>6,J121<=12),'Personnel Roulant'!$G$11+'Personnel Roulant'!$G$42,IF(J121>0,'Personnel Roulant'!$G$11+(ROUNDUP(J121,0)-12)*'Personnel Roulant'!$G$13+'Personnel Roulant'!$G$42,0)))) -> 0 | K124: =IF(AND(K121>0,K121<=6,Trajet!L134="Autre"),('Personnel Roulant'!$G$50+'Personnel Roulant'!$G$42),IF(AND(K121>0,K121<=6),('Personnel Roulant'!$G$9+'Personnel Roulant'!$G$42),IF(AND(K121>6,K121<=12),'Personnel Roulant'!$G$11+'Personnel Roulant'!$G$42,IF(K121>0,'Personnel Roulant'!$G$11+(ROUNDUP(K121,0)-12)*'Personnel Roulant'!$G$13+'Personnel Roulant'!$G$42,0)))) -> 0 | L124: =IF(AND(L121>0,L121<=6,Trajet!M134="Autre"),('Personnel Roulant'!$G$50+'Personnel Roulant'!$G$42),IF(AND(L121>0,L121<=6),('Personnel Roulant'!$G$9+'Personnel Roulant'!$G$42),IF(AND(L121>6,L121<=12),'Personnel Roulant'!$G$11+'Personnel Roulant'!$G$42,IF(L121>0,'Personnel Roulant'!$G$11+(ROUNDUP(L121,0)-12)*'Personnel Roulant'!$G$13+'Personnel Roulant'!$G$42,0)))) -> 0 | M124: =IF(AND(M121>0,M121<=6,Trajet!N134="Autre"),('Personnel Roulant'!$G$50+'Personnel Roulant'!$G$42),IF(AND(M121>0,M121<=6),('Personnel Roulant'!$G$9+'Personnel Roulant'!$G$42),IF(AND(M121>6,M121<=12),'Personnel Roulant'!$G$11+'Personnel Roulant'!$G$42,IF(M121>0,'Personnel Roulant'!$G$11+(ROUNDUP(M121,0)-12)*'Personnel Roulant'!$G$13+'Personnel Roulant'!$G$42,0)))) -> 0 | N124: =IF(AND(N121>0,N121<=6,Trajet!O134="Autre"),('Personnel Roulant'!$G$50+'Personnel Roulant'!$G$42),IF(AND(N121>0,N121<=6),('Personnel Roulant'!$G$9+'Personnel Roulant'!$G$42),IF(AND(N121>6,N121<=12),'Personnel Roulant'!$G$11+'Personnel Roulant'!$G$42,IF(N121>0,'Personnel Roulant'!$G$11+(ROUNDUP(N121,0)-12)*'Personnel Roulant'!$G$13+'Personnel Roulant'!$G$42,0)))) -> 0 | O124: =IF(AND(O121>0,O121<=6,Trajet!P134="Autre"),('Personnel Roulant'!$G$50+'Personnel Roulant'!$G$42),IF(AND(O121>0,O121<=6),('Personnel Roulant'!$G$9+'Personnel Roulant'!$G$42),IF(AND(O121>6,O121<=12),'Personnel Roulant'!$G$11+'Personnel Roulant'!$G$42,IF(O121>0,'Personnel Roulant'!$G$11+(ROUNDUP(O121,0)-12)*'Personnel Roulant'!$G$13+'Personnel Roulant'!$G$42,0)))) -> 0 | P124: =IF(AND(P121>0,P121<=6,Trajet!Q134="Autre"),('Personnel Roulant'!$G$50+'Personnel Roulant'!$G$42),IF(AND(P121>0,P121<=6),('Personnel Roulant'!$G$9+'Personnel Roulant'!$G$42),IF(AND(P121>6,P121<=12),'Personnel Roulant'!$G$11+'Personnel Roulant'!$G$42,IF(P121>0,'Personnel Roulant'!$G$11+(ROUNDUP(P121,0)-12)*'Personnel Roulant'!$G$13+'Personnel Roulant'!$G$42,0)))) -> 0 | Q124: =IF(AND(Q121>0,Q121<=6,Trajet!R134="Autre"),('Personnel Roulant'!$G$50+'Personnel Roulant'!$G$42),IF(AND(Q121>0,Q121<=6),('Personnel Roulant'!$G$9+'Personnel Roulant'!$G$42),IF(AND(Q121>6,Q121<=12),'Personnel Roulant'!$G$11+'Personnel Roulant'!$G$42,IF(Q121>0,'Personnel Roulant'!$G$11+(ROUNDUP(Q121,0)-12)*'Personnel Roulant'!$G$13+'Personnel Roulant'!$G$42,0)))) -> 0 | R124: =IF(AND(R121>0,R121<=6,Trajet!S134="Autre"),('Personnel Roulant'!$G$50+'Personnel Roulant'!$G$42),IF(AND(R121>0,R121<=6),('Personnel Roulant'!$G$9+'Personnel Roulant'!$G$42),IF(AND(R121>6,R121<=12),'Personnel Roulant'!$G$11+'Personnel Roulant'!$G$42,IF(R121>0,'Personnel Roulant'!$G$11+(ROUNDUP(R121,0)-12)*'Personnel Roulant'!$G$13+'Personnel Roulant'!$G$42,0)))) -> 0 | S124: =IF(AND(S121>0,S121<=6,Trajet!T134="Autre"),('Personnel Roulant'!$G$50+'Personnel Roulant'!$G$42),IF(AND(S121>0,S121<=6),('Personnel Roulant'!$G$9+'Personnel Roulant'!$G$42),IF(AND(S121>6,S121<=12),'Personnel Roulant'!$G$11+'Personnel Roulant'!$G$42,IF(S121>0,'Personnel Roulant'!$G$11+(ROUNDUP(S121,0)-12)*'Personnel Roulant'!$G$13+'Personnel Roulant'!$G$42,0)))) -> 0
C125: Salaire brut CH1 DOUBLE | E125: =IF(E122=0,0,IF(E122<12,'Personnel Roulant'!$G$16+'Personnel Roulant'!$G$42,IF(E122<13,'Personnel Roulant'!$G$18+'Personnel Roulant'!$G$42,IF(E122<14,'Personnel Roulant'!$G$20+'Personnel Roulant'!$G$42,IF(E122<15,'Personnel Roulant'!$G$22+'Personnel Roulant'!$G$42,IF(E122<16,'Personnel Roulant'!$G$24+'Personnel Roulant'!$G$42,IF(E122<17,'Personnel Roulant'!$G$26+'Personnel Roulant'!$G$42,IF(E122<18,'Personnel Roulant'!$G$28+'Personnel Roulant'!$G$42,IF(E122<19,'Personnel Roulant'!$G$30+'Personnel Roulant'!$G$42,IF(E122<20,'Personnel Roulant'!$G$32+'Personnel Roulant'!$G$42,IF(E122<21,'Personnel Roulant'!$G$34+'Personnel Roulant'!$G$42,IF(E122<22,'Personnel Roulant'!$G$36+'Personnel Roulant'!$G$42)))))))))))) -> 0 | F125: =IF(F122=0,0,IF(F122<12,'Personnel Roulant'!$G$16+'Personnel Roulant'!$G$42,IF(F122<13,'Personnel Roulant'!$G$18+'Personnel Roulant'!$G$42,IF(F122<14,'Personnel Roulant'!$G$20+'Personnel Roulant'!$G$42,IF(F122<15,'Personnel Roulant'!$G$22+'Personnel Roulant'!$G$42,IF(F122<16,'Personnel Roulant'!$G$24+'Personnel Roulant'!$G$42,IF(F122<17,'Personnel Roulant'!$G$26+'Personnel Roulant'!$G$42,IF(F122<18,'Personnel Roulant'!$G$28+'Personnel Roulant'!$G$42,IF(F122<19,'Personnel Roulant'!$G$30+'Personnel Roulant'!$G$42,IF(F122<20,'Personnel Roulant'!$G$32+'Personnel Roulant'!$G$42,IF(F122<21,'Personnel Roulant'!$G$34+'Personnel Roulant'!$G$42,IF(F122<22,'Personnel Roulant'!$G$36+'Personnel Roulant'!$G$42)))))))))))) -> 0 | G125: =IF(G122=0,0,IF(G122<12,'Personnel Roulant'!$G$16+'Personnel Roulant'!$G$42,IF(G122<13,'Personnel Roulant'!$G$18+'Personnel Roulant'!$G$42,IF(G122<14,'Personnel Roulant'!$G$20+'Personnel Roulant'!$G$42,IF(G122<15,'Personnel Roulant'!$G$22+'Personnel Roulant'!$G$42,IF(G122<16,'Personnel Roulant'!$G$24+'Personnel Roulant'!$G$42,IF(G122<17,'Personnel Roulant'!$G$26+'Personnel Roulant'!$G$42,IF(G122<18,'Personnel Roulant'!$G$28+'Personnel Roulant'!$G$42,IF(G122<19,'Personnel Roulant'!$G$30+'Personnel Roulant'!$G$42,IF(G122<20,'Personnel Roulant'!$G$32+'Personnel Roulant'!$G$42,IF(G122<21,'Personnel Roulant'!$G$34+'Personnel Roulant'!$G$42,IF(G122<22,'Personnel Roulant'!$G$36+'Personnel Roulant'!$G$42)))))))))))) -> 0 | H125: =IF(H122=0,0,IF(H122<12,'Personnel Roulant'!$G$16+'Personnel Roulant'!$G$42,IF(H122<13,'Personnel Roulant'!$G$18+'Personnel Roulant'!$G$42,IF(H122<14,'Personnel Roulant'!$G$20+'Personnel Roulant'!$G$42,IF(H122<15,'Personnel Roulant'!$G$22+'Personnel Roulant'!$G$42,IF(H122<16,'Personnel Roulant'!$G$24+'Personnel Roulant'!$G$42,IF(H122<17,'Personnel Roulant'!$G$26+'Personnel Roulant'!$G$42,IF(H122<18,'Personnel Roulant'!$G$28+'Personnel Roulant'!$G$42,IF(H122<19,'Personnel Roulant'!$G$30+'Personnel Roulant'!$G$42,IF(H122<20,'Personnel Roulant'!$G$32+'Personnel Roulant'!$G$42,IF(H122<21,'Personnel Roulant'!$G$34+'Personnel Roulant'!$G$42,IF(H122<22,'Personnel Roulant'!$G$36+'Personnel Roulant'!$G$42)))))))))))) -> 0 | I125: =IF(I122=0,0,IF(I122<12,'Personnel Roulant'!$G$16+'Personnel Roulant'!$G$42,IF(I122<13,'Personnel Roulant'!$G$18+'Personnel Roulant'!$G$42,IF(I122<14,'Personnel Roulant'!$G$20+'Personnel Roulant'!$G$42,IF(I122<15,'Personnel Roulant'!$G$22+'Personnel Roulant'!$G$42,IF(I122<16,'Personnel Roulant'!$G$24+'Personnel Roulant'!$G$42,IF(I122<17,'Personnel Roulant'!$G$26+'Personnel Roulant'!$G$42,IF(I122<18,'Personnel Roulant'!$G$28+'Personnel Roulant'!$G$42,IF(I122<19,'Personnel Roulant'!$G$30+'Personnel Roulant'!$G$42,IF(I122<20,'Personnel Roulant'!$G$32+'Personnel Roulant'!$G$42,IF(I122<21,'Personnel Roulant'!$G$34+'Personnel Roulant'!$G$42,IF(I122<22,'Personnel Roulant'!$G$36+'Personnel Roulant'!$G$42)))))))))))) -> 0 | J125: =IF(J122=0,0,IF(J122<12,'Personnel Roulant'!$G$16+'Personnel Roulant'!$G$42,IF(J122<13,'Personnel Roulant'!$G$18+'Personnel Roulant'!$G$42,IF(J122<14,'Personnel Roulant'!$G$20+'Personnel Roulant'!$G$42,IF(J122<15,'Personnel Roulant'!$G$22+'Personnel Roulant'!$G$42,IF(J122<16,'Personnel Roulant'!$G$24+'Personnel Roulant'!$G$42,IF(J122<17,'Personnel Roulant'!$G$26+'Personnel Roulant'!$G$42,IF(J122<18,'Personnel Roulant'!$G$28+'Personnel Roulant'!$G$42,IF(J122<19,'Personnel Roulant'!$G$30+'Personnel Roulant'!$G$42,IF(J122<20,'Personnel Roulant'!$G$32+'Personnel Roulant'!$G$42,IF(J122<21,'Personnel Roulant'!$G$34+'Personnel Roulant'!$G$42,IF(J122<22,'Personnel Roulant'!$G$36+'Personnel Roulant'!$G$42)))))))))))) -> 0 | K125: =IF(K122=0,0,IF(K122<12,'Personnel Roulant'!$G$16+'Personnel Roulant'!$G$42,IF(K122<13,'Personnel Roulant'!$G$18+'Personnel Roulant'!$G$42,IF(K122<14,'Personnel Roulant'!$G$20+'Personnel Roulant'!$G$42,IF(K122<15,'Personnel Roulant'!$G$22+'Personnel Roulant'!$G$42,IF(K122<16,'Personnel Roulant'!$G$24+'Personnel Roulant'!$G$42,IF(K122<17,'Personnel Roulant'!$G$26+'Personnel Roulant'!$G$42,IF(K122<18,'Personnel Roulant'!$G$28+'Personnel Roulant'!$G$42,IF(K122<19,'Personnel Roulant'!$G$30+'Personnel Roulant'!$G$42,IF(K122<20,'Personnel Roulant'!$G$32+'Personnel Roulant'!$G$42,IF(K122<21,'Personnel Roulant'!$G$34+'Personnel Roulant'!$G$42,IF(K122<22,'Personnel Roulant'!$G$36+'Personnel Roulant'!$G$42)))))))))))) -> 0 | L125: =IF(L122=0,0,IF(L122<12,'Personnel Roulant'!$G$16+'Personnel Roulant'!$G$42,IF(L122<13,'Personnel Roulant'!$G$18+'Personnel Roulant'!$G$42,IF(L122<14,'Personnel Roulant'!$G$20+'Personnel Roulant'!$G$42,IF(L122<15,'Personnel Roulant'!$G$22+'Personnel Roulant'!$G$42,IF(L122<16,'Personnel Roulant'!$G$24+'Personnel Roulant'!$G$42,IF(L122<17,'Personnel Roulant'!$G$26+'Personnel Roulant'!$G$42,IF(L122<18,'Personnel Roulant'!$G$28+'Personnel Roulant'!$G$42,IF(L122<19,'Personnel Roulant'!$G$30+'Personnel Roulant'!$G$42,IF(L122<20,'Personnel Roulant'!$G$32+'Personnel Roulant'!$G$42,IF(L122<21,'Personnel Roulant'!$G$34+'Personnel Roulant'!$G$42,IF(L122<22,'Personnel Roulant'!$G$36+'Personnel Roulant'!$G$42)))))))))))) -> 0 | M125: =IF(M122=0,0,IF(M122<12,'Personnel Roulant'!$G$16+'Personnel Roulant'!$G$42,IF(M122<13,'Personnel Roulant'!$G$18+'Personnel Roulant'!$G$42,IF(M122<14,'Personnel Roulant'!$G$20+'Personnel Roulant'!$G$42,IF(M122<15,'Personnel Roulant'!$G$22+'Personnel Roulant'!$G$42,IF(M122<16,'Personnel Roulant'!$G$24+'Personnel Roulant'!$G$42,IF(M122<17,'Personnel Roulant'!$G$26+'Personnel Roulant'!$G$42,IF(M122<18,'Personnel Roulant'!$G$28+'Personnel Roulant'!$G$42,IF(M122<19,'Personnel Roulant'!$G$30+'Personnel Roulant'!$G$42,IF(M122<20,'Personnel Roulant'!$G$32+'Personnel Roulant'!$G$42,IF(M122<21,'Personnel Roulant'!$G$34+'Personnel Roulant'!$G$42,IF(M122<22,'Personnel Roulant'!$G$36+'Personnel Roulant'!$G$42)))))))))))) -> 0 | N125: =IF(N122=0,0,IF(N122<12,'Personnel Roulant'!$G$16+'Personnel Roulant'!$G$42,IF(N122<13,'Personnel Roulant'!$G$18+'Personnel Roulant'!$G$42,IF(N122<14,'Personnel Roulant'!$G$20+'Personnel Roulant'!$G$42,IF(N122<15,'Personnel Roulant'!$G$22+'Personnel Roulant'!$G$42,IF(N122<16,'Personnel Roulant'!$G$24+'Personnel Roulant'!$G$42,IF(N122<17,'Personnel Roulant'!$G$26+'Personnel Roulant'!$G$42,IF(N122<18,'Personnel Roulant'!$G$28+'Personnel Roulant'!$G$42,IF(N122<19,'Personnel Roulant'!$G$30+'Personnel Roulant'!$G$42,IF(N122<20,'Personnel Roulant'!$G$32+'Personnel Roulant'!$G$42,IF(N122<21,'Personnel Roulant'!$G$34+'Personnel Roulant'!$G$42,IF(N122<22,'Personnel Roulant'!$G$36+'Personnel Roulant'!$G$42)))))))))))) -> 0 | O125: =IF(O122=0,0,IF(O122<12,'Personnel Roulant'!$G$16+'Personnel Roulant'!$G$42,IF(O122<13,'Personnel Roulant'!$G$18+'Personnel Roulant'!$G$42,IF(O122<14,'Personnel Roulant'!$G$20+'Personnel Roulant'!$G$42,IF(O122<15,'Personnel Roulant'!$G$22+'Personnel Roulant'!$G$42,IF(O122<16,'Personnel Roulant'!$G$24+'Personnel Roulant'!$G$42,IF(O122<17,'Personnel Roulant'!$G$26+'Personnel Roulant'!$G$42,IF(O122<18,'Personnel Roulant'!$G$28+'Personnel Roulant'!$G$42,IF(O122<19,'Personnel Roulant'!$G$30+'Personnel Roulant'!$G$42,IF(O122<20,'Personnel Roulant'!$G$32+'Personnel Roulant'!$G$42,IF(O122<21,'Personnel Roulant'!$G$34+'Personnel Roulant'!$G$42,IF(O122<22,'Personnel Roulant'!$G$36+'Personnel Roulant'!$G$42)))))))))))) -> 0 | P125: =IF(P122=0,0,IF(P122<12,'Personnel Roulant'!$G$16+'Personnel Roulant'!$G$42,IF(P122<13,'Personnel Roulant'!$G$18+'Personnel Roulant'!$G$42,IF(P122<14,'Personnel Roulant'!$G$20+'Personnel Roulant'!$G$42,IF(P122<15,'Personnel Roulant'!$G$22+'Personnel Roulant'!$G$42,IF(P122<16,'Personnel Roulant'!$G$24+'Personnel Roulant'!$G$42,IF(P122<17,'Personnel Roulant'!$G$26+'Personnel Roulant'!$G$42,IF(P122<18,'Personnel Roulant'!$G$28+'Personnel Roulant'!$G$42,IF(P122<19,'Personnel Roulant'!$G$30+'Personnel Roulant'!$G$42,IF(P122<20,'Personnel Roulant'!$G$32+'Personnel Roulant'!$G$42,IF(P122<21,'Personnel Roulant'!$G$34+'Personnel Roulant'!$G$42,IF(P122<22,'Personnel Roulant'!$G$36+'Personnel Roulant'!$G$42)))))))))))) -> 0 | Q125: =IF(Q122=0,0,IF(Q122<12,'Personnel Roulant'!$G$16+'Personnel Roulant'!$G$42,IF(Q122<13,'Personnel Roulant'!$G$18+'Personnel Roulant'!$G$42,IF(Q122<14,'Personnel Roulant'!$G$20+'Personnel Roulant'!$G$42,IF(Q122<15,'Personnel Roulant'!$G$22+'Personnel Roulant'!$G$42,IF(Q122<16,'Personnel Roulant'!$G$24+'Personnel Roulant'!$G$42,IF(Q122<17,'Personnel Roulant'!$G$26+'Personnel Roulant'!$G$42,IF(Q122<18,'Personnel Roulant'!$G$28+'Personnel Roulant'!$G$42,IF(Q122<19,'Personnel Roulant'!$G$30+'Personnel Roulant'!$G$42,IF(Q122<20,'Personnel Roulant'!$G$32+'Personnel Roulant'!$G$42,IF(Q122<21,'Personnel Roulant'!$G$34+'Personnel Roulant'!$G$42,IF(Q122<22,'Personnel Roulant'!$G$36+'Personnel Roulant'!$G$42)))))))))))) -> 0 | R125: =IF(R122=0,0,IF(R122<12,'Personnel Roulant'!$G$16+'Personnel Roulant'!$G$42,IF(R122<13,'Personnel Roulant'!$G$18+'Personnel Roulant'!$G$42,IF(R122<14,'Personnel Roulant'!$G$20+'Personnel Roulant'!$G$42,IF(R122<15,'Personnel Roulant'!$G$22+'Personnel Roulant'!$G$42,IF(R122<16,'Personnel Roulant'!$G$24+'Personnel Roulant'!$G$42,IF(R122<17,'Personnel Roulant'!$G$26+'Personnel Roulant'!$G$42,IF(R122<18,'Personnel Roulant'!$G$28+'Personnel Roulant'!$G$42,IF(R122<19,'Personnel Roulant'!$G$30+'Personnel Roulant'!$G$42,IF(R122<20,'Personnel Roulant'!$G$32+'Personnel Roulant'!$G$42,IF(R122<21,'Personnel Roulant'!$G$34+'Personnel Roulant'!$G$42,IF(R122<22,'Personnel Roulant'!$G$36+'Personnel Roulant'!$G$42)))))))))))) -> 0 | S125: =IF(S122=0,0,IF(S122<12,'Personnel Roulant'!$G$16+'Personnel Roulant'!$G$42,IF(S122<13,'Personnel Roulant'!$G$18+'Personnel Roulant'!$G$42,IF(S122<14,'Personnel Roulant'!$G$20+'Personnel Roulant'!$G$42,IF(S122<15,'Personnel Roulant'!$G$22+'Personnel Roulant'!$G$42,IF(S122<16,'Personnel Roulant'!$G$24+'Personnel Roulant'!$G$42,IF(S122<17,'Personnel Roulant'!$G$26+'Personnel Roulant'!$G$42,IF(S122<18,'Personnel Roulant'!$G$28+'Personnel Roulant'!$G$42,IF(S122<19,'Personnel Roulant'!$G$30+'Personnel Roulant'!$G$42,IF(S122<20,'Personnel Roulant'!$G$32+'Personnel Roulant'!$G$42,IF(S122<21,'Personnel Roulant'!$G$34+'Personnel Roulant'!$G$42,IF(S122<22,'Personnel Roulant'!$G$36+'Personnel Roulant'!$G$42)))))))))))) -> 0
C126: Salaire brut CH2 DOUBLE | E126: =IF(E123=0,0,IF(E123<12,'Personnel Roulant'!$G$16+'Personnel Roulant'!$G$42,IF(E123<13,'Personnel Roulant'!$G$18+'Personnel Roulant'!$G$42,IF(E123<14,'Personnel Roulant'!$G$20+'Personnel Roulant'!$G$42,IF(E123<15,'Personnel Roulant'!$G$22+'Personnel Roulant'!$G$42,IF(E123<16,'Personnel Roulant'!$G$24+'Personnel Roulant'!$G$42,IF(E123<17,'Personnel Roulant'!$G$26+'Personnel Roulant'!$G$42,IF(E123<18,'Personnel Roulant'!$G$28+'Personnel Roulant'!$G$42,IF(E123<19,'Personnel Roulant'!$G$30+'Personnel Roulant'!$G$42,IF(E123<20,'Personnel Roulant'!$G$32+'Personnel Roulant'!$G$42,IF(E123<21,'Personnel Roulant'!$G$34+'Personnel Roulant'!$G$42,IF(E123<22,'Personnel Roulant'!$G$36+'Personnel Roulant'!$G$42)))))))))))) -> 0 | F126: =IF(F123=0,0,IF(F123<12,'Personnel Roulant'!$G$16+'Personnel Roulant'!$G$42,IF(F123<13,'Personnel Roulant'!$G$18+'Personnel Roulant'!$G$42,IF(F123<14,'Personnel Roulant'!$G$20+'Personnel Roulant'!$G$42,IF(F123<15,'Personnel Roulant'!$G$22+'Personnel Roulant'!$G$42,IF(F123<16,'Personnel Roulant'!$G$24+'Personnel Roulant'!$G$42,IF(F123<17,'Personnel Roulant'!$G$26+'Personnel Roulant'!$G$42,IF(F123<18,'Personnel Roulant'!$G$28+'Personnel Roulant'!$G$42,IF(F123<19,'Personnel Roulant'!$G$30+'Personnel Roulant'!$G$42,IF(F123<20,'Personnel Roulant'!$G$32+'Personnel Roulant'!$G$42,IF(F123<21,'Personnel Roulant'!$G$34+'Personnel Roulant'!$G$42,IF(F123<22,'Personnel Roulant'!$G$36+'Personnel Roulant'!$G$42)))))))))))) -> 0 | G126: =IF(G123=0,0,IF(G123<12,'Personnel Roulant'!$G$16+'Personnel Roulant'!$G$42,IF(G123<13,'Personnel Roulant'!$G$18+'Personnel Roulant'!$G$42,IF(G123<14,'Personnel Roulant'!$G$20+'Personnel Roulant'!$G$42,IF(G123<15,'Personnel Roulant'!$G$22+'Personnel Roulant'!$G$42,IF(G123<16,'Personnel Roulant'!$G$24+'Personnel Roulant'!$G$42,IF(G123<17,'Personnel Roulant'!$G$26+'Personnel Roulant'!$G$42,IF(G123<18,'Personnel Roulant'!$G$28+'Personnel Roulant'!$G$42,IF(G123<19,'Personnel Roulant'!$G$30+'Personnel Roulant'!$G$42,IF(G123<20,'Personnel Roulant'!$G$32+'Personnel Roulant'!$G$42,IF(G123<21,'Personnel Roulant'!$G$34+'Personnel Roulant'!$G$42,IF(G123<22,'Personnel Roulant'!$G$36+'Personnel Roulant'!$G$42)))))))))))) -> 0 | H126: =IF(H123=0,0,IF(H123<12,'Personnel Roulant'!$G$16+'Personnel Roulant'!$G$42,IF(H123<13,'Personnel Roulant'!$G$18+'Personnel Roulant'!$G$42,IF(H123<14,'Personnel Roulant'!$G$20+'Personnel Roulant'!$G$42,IF(H123<15,'Personnel Roulant'!$G$22+'Personnel Roulant'!$G$42,IF(H123<16,'Personnel Roulant'!$G$24+'Personnel Roulant'!$G$42,IF(H123<17,'Personnel Roulant'!$G$26+'Personnel Roulant'!$G$42,IF(H123<18,'Personnel Roulant'!$G$28+'Personnel Roulant'!$G$42,IF(H123<19,'Personnel Roulant'!$G$30+'Personnel Roulant'!$G$42,IF(H123<20,'Personnel Roulant'!$G$32+'Personnel Roulant'!$G$42,IF(H123<21,'Personnel Roulant'!$G$34+'Personnel Roulant'!$G$42,IF(H123<22,'Personnel Roulant'!$G$36+'Personnel Roulant'!$G$42)))))))))))) -> 0 | I126: =IF(I123=0,0,IF(I123<12,'Personnel Roulant'!$G$16+'Personnel Roulant'!$G$42,IF(I123<13,'Personnel Roulant'!$G$18+'Personnel Roulant'!$G$42,IF(I123<14,'Personnel Roulant'!$G$20+'Personnel Roulant'!$G$42,IF(I123<15,'Personnel Roulant'!$G$22+'Personnel Roulant'!$G$42,IF(I123<16,'Personnel Roulant'!$G$24+'Personnel Roulant'!$G$42,IF(I123<17,'Personnel Roulant'!$G$26+'Personnel Roulant'!$G$42,IF(I123<18,'Personnel Roulant'!$G$28+'Personnel Roulant'!$G$42,IF(I123<19,'Personnel Roulant'!$G$30+'Personnel Roulant'!$G$42,IF(I123<20,'Personnel Roulant'!$G$32+'Personnel Roulant'!$G$42,IF(I123<21,'Personnel Roulant'!$G$34+'Personnel Roulant'!$G$42,IF(I123<22,'Personnel Roulant'!$G$36+'Personnel Roulant'!$G$42)))))))))))) -> 0 | J126: =IF(J123=0,0,IF(J123<12,'Personnel Roulant'!$G$16+'Personnel Roulant'!$G$42,IF(J123<13,'Personnel Roulant'!$G$18+'Personnel Roulant'!$G$42,IF(J123<14,'Personnel Roulant'!$G$20+'Personnel Roulant'!$G$42,IF(J123<15,'Personnel Roulant'!$G$22+'Personnel Roulant'!$G$42,IF(J123<16,'Personnel Roulant'!$G$24+'Personnel Roulant'!$G$42,IF(J123<17,'Personnel Roulant'!$G$26+'Personnel Roulant'!$G$42,IF(J123<18,'Personnel Roulant'!$G$28+'Personnel Roulant'!$G$42,IF(J123<19,'Personnel Roulant'!$G$30+'Personnel Roulant'!$G$42,IF(J123<20,'Personnel Roulant'!$G$32+'Personnel Roulant'!$G$42,IF(J123<21,'Personnel Roulant'!$G$34+'Personnel Roulant'!$G$42,IF(J123<22,'Personnel Roulant'!$G$36+'Personnel Roulant'!$G$42)))))))))))) -> 0 | K126: =IF(K123=0,0,IF(K123<12,'Personnel Roulant'!$G$16+'Personnel Roulant'!$G$42,IF(K123<13,'Personnel Roulant'!$G$18+'Personnel Roulant'!$G$42,IF(K123<14,'Personnel Roulant'!$G$20+'Personnel Roulant'!$G$42,IF(K123<15,'Personnel Roulant'!$G$22+'Personnel Roulant'!$G$42,IF(K123<16,'Personnel Roulant'!$G$24+'Personnel Roulant'!$G$42,IF(K123<17,'Personnel Roulant'!$G$26+'Personnel Roulant'!$G$42,IF(K123<18,'Personnel Roulant'!$G$28+'Personnel Roulant'!$G$42,IF(K123<19,'Personnel Roulant'!$G$30+'Personnel Roulant'!$G$42,IF(K123<20,'Personnel Roulant'!$G$32+'Personnel Roulant'!$G$42,IF(K123<21,'Personnel Roulant'!$G$34+'Personnel Roulant'!$G$42,IF(K123<22,'Personnel Roulant'!$G$36+'Personnel Roulant'!$G$42)))))))))))) -> 0 | L126: =IF(L123=0,0,IF(L123<12,'Personnel Roulant'!$G$16+'Personnel Roulant'!$G$42,IF(L123<13,'Personnel Roulant'!$G$18+'Personnel Roulant'!$G$42,IF(L123<14,'Personnel Roulant'!$G$20+'Personnel Roulant'!$G$42,IF(L123<15,'Personnel Roulant'!$G$22+'Personnel Roulant'!$G$42,IF(L123<16,'Personnel Roulant'!$G$24+'Personnel Roulant'!$G$42,IF(L123<17,'Personnel Roulant'!$G$26+'Personnel Roulant'!$G$42,IF(L123<18,'Personnel Roulant'!$G$28+'Personnel Roulant'!$G$42,IF(L123<19,'Personnel Roulant'!$G$30+'Personnel Roulant'!$G$42,IF(L123<20,'Personnel Roulant'!$G$32+'Personnel Roulant'!$G$42,IF(L123<21,'Personnel Roulant'!$G$34+'Personnel Roulant'!$G$42,IF(L123<22,'Personnel Roulant'!$G$36+'Personnel Roulant'!$G$42)))))))))))) -> 0 | M126: =IF(M123=0,0,IF(M123<12,'Personnel Roulant'!$G$16+'Personnel Roulant'!$G$42,IF(M123<13,'Personnel Roulant'!$G$18+'Personnel Roulant'!$G$42,IF(M123<14,'Personnel Roulant'!$G$20+'Personnel Roulant'!$G$42,IF(M123<15,'Personnel Roulant'!$G$22+'Personnel Roulant'!$G$42,IF(M123<16,'Personnel Roulant'!$G$24+'Personnel Roulant'!$G$42,IF(M123<17,'Personnel Roulant'!$G$26+'Personnel Roulant'!$G$42,IF(M123<18,'Personnel Roulant'!$G$28+'Personnel Roulant'!$G$42,IF(M123<19,'Personnel Roulant'!$G$30+'Personnel Roulant'!$G$42,IF(M123<20,'Personnel Roulant'!$G$32+'Personnel Roulant'!$G$42,IF(M123<21,'Personnel Roulant'!$G$34+'Personnel Roulant'!$G$42,IF(M123<22,'Personnel Roulant'!$G$36+'Personnel Roulant'!$G$42)))))))))))) -> 0 | N126: =IF(N123=0,0,IF(N123<12,'Personnel Roulant'!$G$16+'Personnel Roulant'!$G$42,IF(N123<13,'Personnel Roulant'!$G$18+'Personnel Roulant'!$G$42,IF(N123<14,'Personnel Roulant'!$G$20+'Personnel Roulant'!$G$42,IF(N123<15,'Personnel Roulant'!$G$22+'Personnel Roulant'!$G$42,IF(N123<16,'Personnel Roulant'!$G$24+'Personnel Roulant'!$G$42,IF(N123<17,'Personnel Roulant'!$G$26+'Personnel Roulant'!$G$42,IF(N123<18,'Personnel Roulant'!$G$28+'Personnel Roulant'!$G$42,IF(N123<19,'Personnel Roulant'!$G$30+'Personnel Roulant'!$G$42,IF(N123<20,'Personnel Roulant'!$G$32+'Personnel Roulant'!$G$42,IF(N123<21,'Personnel Roulant'!$G$34+'Personnel Roulant'!$G$42,IF(N123<22,'Personnel Roulant'!$G$36+'Personnel Roulant'!$G$42)))))))))))) -> 0 | O126: =IF(O123=0,0,IF(O123<12,'Personnel Roulant'!$G$16+'Personnel Roulant'!$G$42,IF(O123<13,'Personnel Roulant'!$G$18+'Personnel Roulant'!$G$42,IF(O123<14,'Personnel Roulant'!$G$20+'Personnel Roulant'!$G$42,IF(O123<15,'Personnel Roulant'!$G$22+'Personnel Roulant'!$G$42,IF(O123<16,'Personnel Roulant'!$G$24+'Personnel Roulant'!$G$42,IF(O123<17,'Personnel Roulant'!$G$26+'Personnel Roulant'!$G$42,IF(O123<18,'Personnel Roulant'!$G$28+'Personnel Roulant'!$G$42,IF(O123<19,'Personnel Roulant'!$G$30+'Personnel Roulant'!$G$42,IF(O123<20,'Personnel Roulant'!$G$32+'Personnel Roulant'!$G$42,IF(O123<21,'Personnel Roulant'!$G$34+'Personnel Roulant'!$G$42,IF(O123<22,'Personnel Roulant'!$G$36+'Personnel Roulant'!$G$42)))))))))))) -> 0 | P126: =IF(P123=0,0,IF(P123<12,'Personnel Roulant'!$G$16+'Personnel Roulant'!$G$42,IF(P123<13,'Personnel Roulant'!$G$18+'Personnel Roulant'!$G$42,IF(P123<14,'Personnel Roulant'!$G$20+'Personnel Roulant'!$G$42,IF(P123<15,'Personnel Roulant'!$G$22+'Personnel Roulant'!$G$42,IF(P123<16,'Personnel Roulant'!$G$24+'Personnel Roulant'!$G$42,IF(P123<17,'Personnel Roulant'!$G$26+'Personnel Roulant'!$G$42,IF(P123<18,'Personnel Roulant'!$G$28+'Personnel Roulant'!$G$42,IF(P123<19,'Personnel Roulant'!$G$30+'Personnel Roulant'!$G$42,IF(P123<20,'Personnel Roulant'!$G$32+'Personnel Roulant'!$G$42,IF(P123<21,'Personnel Roulant'!$G$34+'Personnel Roulant'!$G$42,IF(P123<22,'Personnel Roulant'!$G$36+'Personnel Roulant'!$G$42)))))))))))) -> 0 | Q126: =IF(Q123=0,0,IF(Q123<12,'Personnel Roulant'!$G$16+'Personnel Roulant'!$G$42,IF(Q123<13,'Personnel Roulant'!$G$18+'Personnel Roulant'!$G$42,IF(Q123<14,'Personnel Roulant'!$G$20+'Personnel Roulant'!$G$42,IF(Q123<15,'Personnel Roulant'!$G$22+'Personnel Roulant'!$G$42,IF(Q123<16,'Personnel Roulant'!$G$24+'Personnel Roulant'!$G$42,IF(Q123<17,'Personnel Roulant'!$G$26+'Personnel Roulant'!$G$42,IF(Q123<18,'Personnel Roulant'!$G$28+'Personnel Roulant'!$G$42,IF(Q123<19,'Personnel Roulant'!$G$30+'Personnel Roulant'!$G$42,IF(Q123<20,'Personnel Roulant'!$G$32+'Personnel Roulant'!$G$42,IF(Q123<21,'Personnel Roulant'!$G$34+'Personnel Roulant'!$G$42,IF(Q123<22,'Personnel Roulant'!$G$36+'Personnel Roulant'!$G$42)))))))))))) -> 0 | R126: =IF(R123=0,0,IF(R123<12,'Personnel Roulant'!$G$16+'Personnel Roulant'!$G$42,IF(R123<13,'Personnel Roulant'!$G$18+'Personnel Roulant'!$G$42,IF(R123<14,'Personnel Roulant'!$G$20+'Personnel Roulant'!$G$42,IF(R123<15,'Personnel Roulant'!$G$22+'Personnel Roulant'!$G$42,IF(R123<16,'Personnel Roulant'!$G$24+'Personnel Roulant'!$G$42,IF(R123<17,'Personnel Roulant'!$G$26+'Personnel Roulant'!$G$42,IF(R123<18,'Personnel Roulant'!$G$28+'Personnel Roulant'!$G$42,IF(R123<19,'Personnel Roulant'!$G$30+'Personnel Roulant'!$G$42,IF(R123<20,'Personnel Roulant'!$G$32+'Personnel Roulant'!$G$42,IF(R123<21,'Personnel Roulant'!$G$34+'Personnel Roulant'!$G$42,IF(R123<22,'Personnel Roulant'!$G$36+'Personnel Roulant'!$G$42)))))))))))) -> 0 | S126: =IF(S123=0,0,IF(S123<12,'Personnel Roulant'!$G$16+'Personnel Roulant'!$G$42,IF(S123<13,'Personnel Roulant'!$G$18+'Personnel Roulant'!$G$42,IF(S123<14,'Personnel Roulant'!$G$20+'Personnel Roulant'!$G$42,IF(S123<15,'Personnel Roulant'!$G$22+'Personnel Roulant'!$G$42,IF(S123<16,'Personnel Roulant'!$G$24+'Personnel Roulant'!$G$42,IF(S123<17,'Personnel Roulant'!$G$26+'Personnel Roulant'!$G$42,IF(S123<18,'Personnel Roulant'!$G$28+'Personnel Roulant'!$G$42,IF(S123<19,'Personnel Roulant'!$G$30+'Personnel Roulant'!$G$42,IF(S123<20,'Personnel Roulant'!$G$32+'Personnel Roulant'!$G$42,IF(S123<21,'Personnel Roulant'!$G$34+'Personnel Roulant'!$G$42,IF(S123<22,'Personnel Roulant'!$G$36+'Personnel Roulant'!$G$42)))))))))))) -> 0
C127: Compensation Dimanche tous CH | E127: =Trajet!F150*'Personnel Roulant'!$G$48 -> 0 | F127: =Trajet!G150*'Personnel Roulant'!$G$48 -> 0 | G127: =Trajet!H150*'Personnel Roulant'!$G$48 -> 0 | H127: =Trajet!I150*'Personnel Roulant'!$G$48 -> 0 | I127: =Trajet!J150*'Personnel Roulant'!$G$48 -> 0 | J127: =Trajet!K150*'Personnel Roulant'!$G$48 -> 0 | K127: =Trajet!L150*'Personnel Roulant'!$G$48 -> 0 | L127: =Trajet!M150*'Personnel Roulant'!$G$48 -> 0 | M127: =Trajet!N150*'Personnel Roulant'!$G$48 -> 0 | N127: =Trajet!O150*'Personnel Roulant'!$G$48 -> 0 | O127: =Trajet!P150*'Personnel Roulant'!$G$48 -> 0 | P127: =Trajet!Q150*'Personnel Roulant'!$G$48 -> 0 | Q127: =Trajet!R150*'Personnel Roulant'!$G$48 -> 0 | R127: =Trajet!S150*'Personnel Roulant'!$G$48 -> 0 | S127: =Trajet!T150*'Personnel Roulant'!$G$48 -> 0
C128: Inactivité à l'étranger tous CH | E128: =Trajet!F151*'Personnel Roulant'!$G$50 -> 0 | F128: =Trajet!G151*'Personnel Roulant'!$G$50 -> 0 | G128: =Trajet!H151*'Personnel Roulant'!$G$50 -> 0 | H128: =Trajet!I151*'Personnel Roulant'!$G$50 -> 0 | I128: =Trajet!J151*'Personnel Roulant'!$G$50 -> 0 | J128: =Trajet!K151*'Personnel Roulant'!$G$50 -> 0 | K128: =Trajet!L151*'Personnel Roulant'!$G$50 -> 0 | L128: =Trajet!M151*'Personnel Roulant'!$G$50 -> 0 | M128: =Trajet!N151*'Personnel Roulant'!$G$50 -> 0 | N128: =Trajet!O151*'Personnel Roulant'!$G$50 -> 0 | O128: =Trajet!P151*'Personnel Roulant'!$G$50 -> 0 | P128: =Trajet!Q151*'Personnel Roulant'!$G$50 -> 0 | Q128: =Trajet!R151*'Personnel Roulant'!$G$50 -> 0 | R128: =Trajet!S151*'Personnel Roulant'!$G$50 -> 0 | S128: =Trajet!T151*'Personnel Roulant'!$G$50 -> 0
C129: Prime fin d'année tous CH | E129: =IF(Trajet!F139<1,0,(('Personnel Roulant'!$G$46/'Personnel Roulant'!$G$68)*Trajet!F145)) ->  | F129: =IF(Trajet!G139<1,0,(('Personnel Roulant'!$G$46/'Personnel Roulant'!$G$68)*Trajet!G145)) -> 0 | G129: =IF(Trajet!H139<1,0,(('Personnel Roulant'!$G$46/'Personnel Roulant'!$G$68)*Trajet!H145)) -> 0 | H129: =IF(Trajet!I139<1,0,(('Personnel Roulant'!$G$46/'Personnel Roulant'!$G$68)*Trajet!I145)) -> 0 | I129: =IF(Trajet!J139<1,0,(('Personnel Roulant'!$G$46/'Personnel Roulant'!$G$68)*Trajet!J145)) -> 0 | J129: =IF(Trajet!K139<1,0,(('Personnel Roulant'!$G$46/'Personnel Roulant'!$G$68)*Trajet!K145)) -> 0 | K129: =IF(Trajet!L139<1,0,(('Personnel Roulant'!$G$46/'Personnel Roulant'!$G$68)*Trajet!L145)) -> 0 | L129: =IF(Trajet!M139<1,0,(('Personnel Roulant'!$G$46/'Personnel Roulant'!$G$68)*Trajet!M145)) -> 0 | M129: =IF(Trajet!N139<1,0,(('Personnel Roulant'!$G$46/'Personnel Roulant'!$G$68)*Trajet!N145)) -> 0 | N129: =IF(Trajet!O139<1,0,(('Personnel Roulant'!$G$46/'Personnel Roulant'!$G$68)*Trajet!O145)) -> 0 | O129: =IF(Trajet!P139<1,0,(('Personnel Roulant'!$G$46/'Personnel Roulant'!$G$68)*Trajet!P145)) -> 0 | P129: =IF(Trajet!Q139<1,0,(('Personnel Roulant'!$G$46/'Personnel Roulant'!$G$68)*Trajet!Q145)) -> 0 | Q129: =IF(Trajet!R139<1,0,(('Personnel Roulant'!$G$46/'Personnel Roulant'!$G$68)*Trajet!R145)) -> 0 | R129: =IF(Trajet!S139<1,0,(('Personnel Roulant'!$G$46/'Personnel Roulant'!$G$68)*Trajet!S145)) -> 0 | S129: =IF(Trajet!T139<1,0,(('Personnel Roulant'!$G$46/'Personnel Roulant'!$G$68)*Trajet!T145)) -> 0
C130: ONSS employeur tous CH | E130: =IF(Trajet!F139<1,0,((E124+E125+E126+E127+E128+E129)*1.08*'Personnel Roulant'!$G$52)) ->  | F130: =IF(Trajet!G139<1,0,((F124+F125+F126+F127+F128+F129)*1.08*'Personnel Roulant'!$G$52)) -> 0 | G130: =IF(Trajet!H139<1,0,((G124+G125+G126+G127+G128+G129)*1.08*'Personnel Roulant'!$G$52)) -> 0 | H130: =IF(Trajet!I139<1,0,((H124+H125+H126+H127+H128+H129)*1.08*'Personnel Roulant'!$G$52)) -> 0 | I130: =IF(Trajet!J139<1,0,((I124+I125+I126+I127+I128+I129)*1.08*'Personnel Roulant'!$G$52)) -> 0 | J130: =IF(Trajet!K139<1,0,((J124+J125+J126+J127+J128+J129)*1.08*'Personnel Roulant'!$G$52)) -> 0 | K130: =IF(Trajet!L139<1,0,((K124+K125+K126+K127+K128+K129)*1.08*'Personnel Roulant'!$G$52)) -> 0 | L130: =IF(Trajet!M139<1,0,((L124+L125+L126+L127+L128+L129)*1.08*'Personnel Roulant'!$G$52)) -> 0 | M130: =IF(Trajet!N139<1,0,((M124+M125+M126+M127+M128+M129)*1.08*'Personnel Roulant'!$G$52)) -> 0 | N130: =IF(Trajet!O139<1,0,((N124+N125+N126+N127+N128+N129)*1.08*'Personnel Roulant'!$G$52)) -> 0 | O130: =IF(Trajet!P139<1,0,((O124+O125+O126+O127+O128+O129)*1.08*'Personnel Roulant'!$G$52)) -> 0 | P130: =IF(Trajet!Q139<1,0,((P124+P125+P126+P127+P128+P129)*1.08*'Personnel Roulant'!$G$52)) -> 0 | Q130: =IF(Trajet!R139<1,0,((Q124+Q125+Q126+Q127+Q128+Q129)*1.08*'Personnel Roulant'!$G$52)) -> 0 | R130: =IF(Trajet!S139<1,0,((R124+R125+R126+R127+R128+R129)*1.08*'Personnel Roulant'!$G$52)) -> 0 | S130: =IF(Trajet!T139<1,0,((S124+S125+S126+S127+S128+S129)*1.08*'Personnel Roulant'!$G$52)) -> 0
C131: Eco-cheques tous CH | E131: =IF(Trajet!F139<1,0,(('Personnel Roulant'!$G$44/'Personnel Roulant'!$G$68)*Trajet!F145)) ->  | F131: =IF(Trajet!G139<1,0,(('Personnel Roulant'!$G$44/'Personnel Roulant'!$G$68)*Trajet!G145)) -> 0 | G131: =IF(Trajet!H139<1,0,(('Personnel Roulant'!$G$44/'Personnel Roulant'!$G$68)*Trajet!H145)) -> 0 | H131: =IF(Trajet!I139<1,0,(('Personnel Roulant'!$G$44/'Personnel Roulant'!$G$68)*Trajet!I145)) -> 0 | I131: =IF(Trajet!J139<1,0,(('Personnel Roulant'!$G$44/'Personnel Roulant'!$G$68)*Trajet!J145)) -> 0 | J131: =IF(Trajet!K139<1,0,(('Personnel Roulant'!$G$44/'Personnel Roulant'!$G$68)*Trajet!K145)) -> 0 | K131: =IF(Trajet!L139<1,0,(('Personnel Roulant'!$G$44/'Personnel Roulant'!$G$68)*Trajet!L145)) -> 0 | L131: =IF(Trajet!M139<1,0,(('Personnel Roulant'!$G$44/'Personnel Roulant'!$G$68)*Trajet!M145)) -> 0 | M131: =IF(Trajet!N139<1,0,(('Personnel Roulant'!$G$44/'Personnel Roulant'!$G$68)*Trajet!N145)) -> 0 | N131: =IF(Trajet!O139<1,0,(('Personnel Roulant'!$G$44/'Personnel Roulant'!$G$68)*Trajet!O145)) -> 0 | O131: =IF(Trajet!P139<1,0,(('Personnel Roulant'!$G$44/'Personnel Roulant'!$G$68)*Trajet!P145)) -> 0 | P131: =IF(Trajet!Q139<1,0,(('Personnel Roulant'!$G$44/'Personnel Roulant'!$G$68)*Trajet!Q145)) -> 0 | Q131: =IF(Trajet!R139<1,0,(('Personnel Roulant'!$G$44/'Personnel Roulant'!$G$68)*Trajet!R145)) -> 0 | R131: =IF(Trajet!S139<1,0,(('Personnel Roulant'!$G$44/'Personnel Roulant'!$G$68)*Trajet!S145)) -> 0 | S131: =IF(Trajet!T139<1,0,(('Personnel Roulant'!$G$44/'Personnel Roulant'!$G$68)*Trajet!T145)) -> 0
C132: RGTP CH SIMPLE | E132: =ROUNDUP(E121,0)*'Personnel Roulant'!$G$40 -> 23.21 | F132: =ROUNDUP(F121,0)*'Personnel Roulant'!$G$40 -> 0 | G132: =ROUNDUP(G121,0)*'Personnel Roulant'!$G$40 -> 0 | H132: =ROUNDUP(H121,0)*'Personnel Roulant'!$G$40 -> 0 | I132: =ROUNDUP(I121,0)*'Personnel Roulant'!$G$40 -> 0 | J132: =ROUNDUP(J121,0)*'Personnel Roulant'!$G$40 -> 0 | K132: =ROUNDUP(K121,0)*'Personnel Roulant'!$G$40 -> 0 | L132: =ROUNDUP(L121,0)*'Personnel Roulant'!$G$40 -> 0 | M132: =ROUNDUP(M121,0)*'Personnel Roulant'!$G$40 -> 0 | N132: =ROUNDUP(N121,0)*'Personnel Roulant'!$G$40 -> 0 | O132: =ROUNDUP(O121,0)*'Personnel Roulant'!$G$40 -> 0 | P132: =ROUNDUP(P121,0)*'Personnel Roulant'!$G$40 -> 0 | Q132: =ROUNDUP(Q121,0)*'Personnel Roulant'!$G$40 -> 0 | R132: =ROUNDUP(R121,0)*'Personnel Roulant'!$G$40 -> 0 | S132: =ROUNDUP(S121,0)*'Personnel Roulant'!$G$40 -> 0
C133: RGTP CH1 DOUBLE | E133: =ROUNDUP(E122,0)*'Personnel Roulant'!$G$40 -> 0 | F133: =ROUNDUP(F122,0)*'Personnel Roulant'!$G$40 -> 0 | G133: =ROUNDUP(G122,0)*'Personnel Roulant'!$G$40 -> 0 | H133: =ROUNDUP(H122,0)*'Personnel Roulant'!$G$40 -> 0 | I133: =ROUNDUP(I122,0)*'Personnel Roulant'!$G$40 -> 0 | J133: =ROUNDUP(J122,0)*'Personnel Roulant'!$G$40 -> 0 | K133: =ROUNDUP(K122,0)*'Personnel Roulant'!$G$40 -> 0 | L133: =ROUNDUP(L122,0)*'Personnel Roulant'!$G$40 -> 0 | M133: =ROUNDUP(M122,0)*'Personnel Roulant'!$G$40 -> 0 | N133: =ROUNDUP(N122,0)*'Personnel Roulant'!$G$40 -> 0 | O133: =ROUNDUP(O122,0)*'Personnel Roulant'!$G$40 -> 0 | P133: =ROUNDUP(P122,0)*'Personnel Roulant'!$G$40 -> 0 | Q133: =ROUNDUP(Q122,0)*'Personnel Roulant'!$G$40 -> 0 | R133: =ROUNDUP(R122,0)*'Personnel Roulant'!$G$40 -> 0 | S133: =ROUNDUP(S122,0)*'Personnel Roulant'!$G$40 -> 0
C134: RGTP CH2 DOUBLE | E134: =ROUNDUP(E123,0)*'Personnel Roulant'!$G$40 -> 0 | F134: =ROUNDUP(F123,0)*'Personnel Roulant'!$G$40 -> 0 | G134: =ROUNDUP(G123,0)*'Personnel Roulant'!$G$40 -> 0 | H134: =ROUNDUP(H123,0)*'Personnel Roulant'!$G$40 -> 0 | I134: =ROUNDUP(I123,0)*'Personnel Roulant'!$G$40 -> 0 | J134: =ROUNDUP(J123,0)*'Personnel Roulant'!$G$40 -> 0 | K134: =ROUNDUP(K123,0)*'Personnel Roulant'!$G$40 -> 0 | L134: =ROUNDUP(L123,0)*'Personnel Roulant'!$G$40 -> 0 | M134: =ROUNDUP(M123,0)*'Personnel Roulant'!$G$40 -> 0 | N134: =ROUNDUP(N123,0)*'Personnel Roulant'!$G$40 -> 0 | O134: =ROUNDUP(O123,0)*'Personnel Roulant'!$G$40 -> 0 | P134: =ROUNDUP(P123,0)*'Personnel Roulant'!$G$40 -> 0 | Q134: =ROUNDUP(Q123,0)*'Personnel Roulant'!$G$40 -> 0 | R134: =ROUNDUP(R123,0)*'Personnel Roulant'!$G$40 -> 0 | S134: =ROUNDUP(S123,0)*'Personnel Roulant'!$G$40 -> 0
C135: Autres coûts tous CH | E135: =IF(Trajet!F139<1,0,((('Personnel Roulant'!$G$54+'Personnel Roulant'!$G$56+'Personnel Roulant'!$G$58+'Personnel Roulant'!$G$60+'Personnel Roulant'!$G$62+'Personnel Roulant'!$G$64+'Personnel Roulant'!$G$66)/'Personnel Roulant'!$G$68)*Trajet!F145)) ->  | F135: =IF(Trajet!G139<1,0,((('Personnel Roulant'!$G$54+'Personnel Roulant'!$G$56+'Personnel Roulant'!$G$58+'Personnel Roulant'!$G$60+'Personnel Roulant'!$G$62+'Personnel Roulant'!$G$64+'Personnel Roulant'!$G$66)/'Personnel Roulant'!$G$68)*Trajet!G145)) -> 0 | G135: =IF(Trajet!H139<1,0,((('Personnel Roulant'!$G$54+'Personnel Roulant'!$G$56+'Personnel Roulant'!$G$58+'Personnel Roulant'!$G$60+'Personnel Roulant'!$G$62+'Personnel Roulant'!$G$64+'Personnel Roulant'!$G$66)/'Personnel Roulant'!$G$68)*Trajet!H145)) -> 0 | H135: =IF(Trajet!I139<1,0,((('Personnel Roulant'!$G$54+'Personnel Roulant'!$G$56+'Personnel Roulant'!$G$58+'Personnel Roulant'!$G$60+'Personnel Roulant'!$G$62+'Personnel Roulant'!$G$64+'Personnel Roulant'!$G$66)/'Personnel Roulant'!$G$68)*Trajet!I145)) -> 0 | I135: =IF(Trajet!J139<1,0,((('Personnel Roulant'!$G$54+'Personnel Roulant'!$G$56+'Personnel Roulant'!$G$58+'Personnel Roulant'!$G$60+'Personnel Roulant'!$G$62+'Personnel Roulant'!$G$64+'Personnel Roulant'!$G$66)/'Personnel Roulant'!$G$68)*Trajet!J145)) -> 0 | J135: =IF(Trajet!K139<1,0,((('Personnel Roulant'!$G$54+'Personnel Roulant'!$G$56+'Personnel Roulant'!$G$58+'Personnel Roulant'!$G$60+'Personnel Roulant'!$G$62+'Personnel Roulant'!$G$64+'Personnel Roulant'!$G$66)/'Personnel Roulant'!$G$68)*Trajet!K145)) -> 0 | K135: =IF(Trajet!L139<1,0,((('Personnel Roulant'!$G$54+'Personnel Roulant'!$G$56+'Personnel Roulant'!$G$58+'Personnel Roulant'!$G$60+'Personnel Roulant'!$G$62+'Personnel Roulant'!$G$64+'Personnel Roulant'!$G$66)/'Personnel Roulant'!$G$68)*Trajet!L145)) -> 0 | L135: =IF(Trajet!M139<1,0,((('Personnel Roulant'!$G$54+'Personnel Roulant'!$G$56+'Personnel Roulant'!$G$58+'Personnel Roulant'!$G$60+'Personnel Roulant'!$G$62+'Personnel Roulant'!$G$64+'Personnel Roulant'!$G$66)/'Personnel Roulant'!$G$68)*Trajet!M145)) -> 0 | M135: =IF(Trajet!N139<1,0,((('Personnel Roulant'!$G$54+'Personnel Roulant'!$G$56+'Personnel Roulant'!$G$58+'Personnel Roulant'!$G$60+'Personnel Roulant'!$G$62+'Personnel Roulant'!$G$64+'Personnel Roulant'!$G$66)/'Personnel Roulant'!$G$68)*Trajet!N145)) -> 0 | N135: =IF(Trajet!O139<1,0,((('Personnel Roulant'!$G$54+'Personnel Roulant'!$G$56+'Personnel Roulant'!$G$58+'Personnel Roulant'!$G$60+'Personnel Roulant'!$G$62+'Personnel Roulant'!$G$64+'Personnel Roulant'!$G$66)/'Personnel Roulant'!$G$68)*Trajet!O145)) -> 0 | O135: =IF(Trajet!P139<1,0,((('Personnel Roulant'!$G$54+'Personnel Roulant'!$G$56+'Personnel Roulant'!$G$58+'Personnel Roulant'!$G$60+'Personnel Roulant'!$G$62+'Personnel Roulant'!$G$64+'Personnel Roulant'!$G$66)/'Personnel Roulant'!$G$68)*Trajet!P145)) -> 0 | P135: =IF(Trajet!Q139<1,0,((('Personnel Roulant'!$G$54+'Personnel Roulant'!$G$56+'Personnel Roulant'!$G$58+'Personnel Roulant'!$G$60+'Personnel Roulant'!$G$62+'Personnel Roulant'!$G$64+'Personnel Roulant'!$G$66)/'Personnel Roulant'!$G$68)*Trajet!Q145)) -> 0 | Q135: =IF(Trajet!R139<1,0,((('Personnel Roulant'!$G$54+'Personnel Roulant'!$G$56+'Personnel Roulant'!$G$58+'Personnel Roulant'!$G$60+'Personnel Roulant'!$G$62+'Personnel Roulant'!$G$64+'Personnel Roulant'!$G$66)/'Personnel Roulant'!$G$68)*Trajet!R145)) -> 0 | R135: =IF(Trajet!S139<1,0,((('Personnel Roulant'!$G$54+'Personnel Roulant'!$G$56+'Personnel Roulant'!$G$58+'Personnel Roulant'!$G$60+'Personnel Roulant'!$G$62+'Personnel Roulant'!$G$64+'Personnel Roulant'!$G$66)/'Personnel Roulant'!$G$68)*Trajet!S145)) -> 0 | S135: =IF(Trajet!T139<1,0,((('Personnel Roulant'!$G$54+'Personnel Roulant'!$G$56+'Personnel Roulant'!$G$58+'Personnel Roulant'!$G$60+'Personnel Roulant'!$G$62+'Personnel Roulant'!$G$64+'Personnel Roulant'!$G$66)/'Personnel Roulant'!$G$68)*Trajet!T145)) -> 0
C136: Primes supp Dimanche + Jour férié | E136: =IF(Trajet!F145="","",IF(Trajet!F145=1,Trajet!AD142,IF(Trajet!F145=2,Trajet!AD142+Trajet!AD143,IF(Trajet!F145=3,Trajet!AD142+Trajet!AD143+Trajet!AD144)))) -> 0 | F136: =IF(Trajet!G145="","",IF(Trajet!G145=1,Trajet!AE142,IF(Trajet!G145=2,Trajet!AE142+Trajet!AE143,IF(Trajet!G145=3,Trajet!AE142+Trajet!AE143+Trajet!AE144)))) ->  | G136: =IF(Trajet!H145="","",IF(Trajet!H145=1,Trajet!AF142,IF(Trajet!H145=2,Trajet!AF142+Trajet!AF143,IF(Trajet!H145=3,Trajet!AF142+Trajet!AF143+Trajet!AF144)))) ->  | H136: =IF(Trajet!I145="","",IF(Trajet!I145=1,Trajet!AG142,IF(Trajet!I145=2,Trajet!AG142+Trajet!AG143,IF(Trajet!I145=3,Trajet!AG142+Trajet!AG143+Trajet!AG144)))) ->  | I136: =IF(Trajet!J145="","",IF(Trajet!J145=1,Trajet!AH142,IF(Trajet!J145=2,Trajet!AH142+Trajet!AH143,IF(Trajet!J145=3,Trajet!AH142+Trajet!AH143+Trajet!AH144)))) ->  | J136: =IF(Trajet!K145="","",IF(Trajet!K145=1,Trajet!AI142,IF(Trajet!K145=2,Trajet!AI142+Trajet!AI143,IF(Trajet!K145=3,Trajet!AI142+Trajet!AI143+Trajet!AI144)))) ->  | K136: =IF(Trajet!L145="","",IF(Trajet!L145=1,Trajet!AJ142,IF(Trajet!L145=2,Trajet!AJ142+Trajet!AJ143,IF(Trajet!L145=3,Trajet!AJ142+Trajet!AJ143+Trajet!AJ144)))) ->  | L136: =IF(Trajet!M145="","",IF(Trajet!M145=1,Trajet!AK142,IF(Trajet!M145=2,Trajet!AK142+Trajet!AK143,IF(Trajet!M145=3,Trajet!AK142+Trajet!AK143+Trajet!AK144)))) ->  | M136: =IF(Trajet!N145="","",IF(Trajet!N145=1,Trajet!AL142,IF(Trajet!N145=2,Trajet!AL142+Trajet!AL143,IF(Trajet!N145=3,Trajet!AL142+Trajet!AL143+Trajet!AL144)))) ->  | N136: =IF(Trajet!O145="","",IF(Trajet!O145=1,Trajet!AM142,IF(Trajet!O145=2,Trajet!AM142+Trajet!AM143,IF(Trajet!O145=3,Trajet!AM142+Trajet!AM143+Trajet!AM144)))) ->  | O136: =IF(Trajet!P145="","",IF(Trajet!P145=1,Trajet!AN142,IF(Trajet!P145=2,Trajet!AN142+Trajet!AN143,IF(Trajet!P145=3,Trajet!AN142+Trajet!AN143+Trajet!AN144)))) ->  | P136: =IF(Trajet!Q145="","",IF(Trajet!Q145=1,Trajet!AO142,IF(Trajet!Q145=2,Trajet!AO142+Trajet!AO143,IF(Trajet!Q145=3,Trajet!AO142+Trajet!AO143+Trajet!AO144)))) ->  | Q136: =IF(Trajet!R145="","",IF(Trajet!R145=1,Trajet!AP142,IF(Trajet!R145=2,Trajet!AP142+Trajet!AP143,IF(Trajet!R145=3,Trajet!AP142+Trajet!AP143+Trajet!AP144)))) ->  | R136: =IF(Trajet!S145="","",IF(Trajet!S145=1,Trajet!AQ142,IF(Trajet!S145=2,Trajet!AQ142+Trajet!AQ143,IF(Trajet!S145=3,Trajet!AQ142+Trajet!AQ143+Trajet!AQ144)))) ->  | S136: =IF(Trajet!T145="","",IF(Trajet!T145=1,Trajet!AR142,IF(Trajet!T145=2,Trajet!AR142+Trajet!AR143,IF(Trajet!T145=3,Trajet!AR142+Trajet!AR143+Trajet!AR144)))) -> 
C137: Coûts spécifiques tous CH | E137: =Trajet!F156 -> 0 | F137: =Trajet!G156 -> 0 | G137: =Trajet!H156 -> 0 | H137: =Trajet!I156 -> 0 | I137: =Trajet!J156 -> 0 | J137: =Trajet!K156 -> 0 | K137: =Trajet!L156 -> 0 | L137: =Trajet!M156 -> 0 | M137: =Trajet!N156 -> 0 | N137: =Trajet!O156 -> 0 | O137: =Trajet!P156 -> 0 | P137: =Trajet!Q156 -> 0 | Q137: =Trajet!R156 -> 0 | R137: =Trajet!S156 -> 0 | S137: =Trajet!T156 -> 0
C138: Coût personnel total tous CH | E138: =IF(Trajet!F139<1,0,(E124+E125+E126+E127+E128+E129+E131+E130+E132+E133+E134+E135+E136+E137)) ->  | F138: =IF(Trajet!G139<1,0,(F124+F125+F126+F127+F128+F129+F131+F130+F132+F133+F134+F135+F136+F137)) -> 0 | G138: =IF(Trajet!H139<1,0,(G124+G125+G126+G127+G128+G129+G131+G130+G132+G133+G134+G135+G136+G137)) -> 0 | H138: =IF(Trajet!I139<1,0,(H124+H125+H126+H127+H128+H129+H131+H130+H132+H133+H134+H135+H136+H137)) -> 0 | I138: =IF(Trajet!J139<1,0,(I124+I125+I126+I127+I128+I129+I131+I130+I132+I133+I134+I135+I136+I137)) -> 0 | J138: =IF(Trajet!K139<1,0,(J124+J125+J126+J127+J128+J129+J131+J130+J132+J133+J134+J135+J136+J137)) -> 0 | K138: =IF(Trajet!L139<1,0,(K124+K125+K126+K127+K128+K129+K131+K130+K132+K133+K134+K135+K136+K137)) -> 0 | L138: =IF(Trajet!M139<1,0,(L124+L125+L126+L127+L128+L129+L131+L130+L132+L133+L134+L135+L136+L137)) -> 0 | M138: =IF(Trajet!N139<1,0,(M124+M125+M126+M127+M128+M129+M131+M130+M132+M133+M134+M135+M136+M137)) -> 0 | N138: =IF(Trajet!O139<1,0,(N124+N125+N126+N127+N128+N129+N131+N130+N132+N133+N134+N135+N136+N137)) -> 0 | O138: =IF(Trajet!P139<1,0,(O124+O125+O126+O127+O128+O129+O131+O130+O132+O133+O134+O135+O136+O137)) -> 0 | P138: =IF(Trajet!Q139<1,0,(P124+P125+P126+P127+P128+P129+P131+P130+P132+P133+P134+P135+P136+P137)) -> 0 | Q138: =IF(Trajet!R139<1,0,(Q124+Q125+Q126+Q127+Q128+Q129+Q131+Q130+Q132+Q133+Q134+Q135+Q136+Q137)) -> 0 | R138: =IF(Trajet!S139<1,0,(R124+R125+R126+R127+R128+R129+R131+R130+R132+R133+R134+R135+R136+R137)) -> 0 | S138: =IF(Trajet!T139<1,0,(S124+S125+S126+S127+S128+S129+S131+S130+S132+S133+S134+S135+S136+S137)) -> 0

Sheet Prix de revient et de vente
B2: Prix de revient et de vente
J4: ='Vehicule utilise'!I8 -> 0 | L4: ='Vehicule utilise'!S8 -> Mercedes | Y4: =J4&L4 -> 0Mercedes
E5: ='Vehicule utilise'!$Q$8 -> 1
E6: 7 | W6: =J4&L4 -> 0Mercedes
H7: jour | I7: jour | J7: jour | K7: jour | L7: jour | M7: jour | N7: jour | O7: jour | P7: jour | Q7: jour | R7: jour | S7: jour | T7: jour | U7: jour | V7: jour | W7: Total
H8: 1 | I8: 2 | J8: 3 | K8: 4 | L8: 5 | M8: 6 | N8: 7 | O8: 8 | P8: 9 | Q8: 10 | R8: 11 | S8: 12 | T8: 13 | U8: 14 | V8: 15
C10: FIXE | D10: Véhicule (amm. économique) | H10: =(IF(calculprv1!$G$15="économique", (calculprv1!$G$11*(1-calculprv1!$G$13))/(calculprv1!$G$19*calculprv1!$G$23)*Trajet!F35*Trajet!F13)) -> FALSE | I10: =(IF(calculprv1!$G$15="économique", (calculprv1!$G$11*(1-calculprv1!$G$13))/(calculprv1!$G$19*calculprv1!$G$23)*Trajet!G35*Trajet!G13)) -> FALSE | J10: =(IF(calculprv1!$G$15="économique", (calculprv1!$G$11*(1-calculprv1!$G$13))/(calculprv1!$G$19*calculprv1!$G$23)*Trajet!H35*Trajet!H13)) -> FALSE | K10: =(IF(calculprv1!$G$15="économique", (calculprv1!$G$11*(1-calculprv1!$G$13))/(calculprv1!$G$19*calculprv1!$G$23)*Trajet!I35*Trajet!I13)) -> FALSE | L10: =(IF(calculprv1!$G$15="économique", (calculprv1!$G$11*(1-calculprv1!$G$13))/(calculprv1!$G$19*calculprv1!$G$23)*Trajet!J35*Trajet!J13)) -> FALSE | M10: =(IF(calculprv1!$G$15="économique", (calculprv1!$G$11*(1-calculprv1!$G$13))/(calculprv1!$G$19*calculprv1!$G$23)*Trajet!K35*Trajet!K13)) -> FALSE | N10: =(IF(calculprv1!$G$15="économique", (calculprv1!$G$11*(1-calculprv1!$G$13))/(calculprv1!$G$19*calculprv1!$G$23)*Trajet!L35*Trajet!L13)) -> FALSE | O10: =(IF(calculprv1!$G$15="économique", (calculprv1!$G$11*(1-calculprv1!$G$13))/(calculprv1!$G$19*calculprv1!$G$23)*Trajet!M35*Trajet!M13)) -> FALSE | P10: =(IF(calculprv1!$G$15="économique", (calculprv1!$G$11*(1-calculprv1!$G$13))/(calculprv1!$G$19*calculprv1!$G$23)*Trajet!N35*Trajet!N13)) -> FALSE | Q10: =(IF(calculprv1!$G$15="économique", (calculprv1!$G$11*(1-calculprv1!$G$13))/(calculprv1!$G$19*calculprv1!$G$23)*Trajet!O35*Trajet!O13)) -> FALSE | R10: =(IF(calculprv1!$G$15="économique", (calculprv1!$G$11*(1-calculprv1!$G$13))/(calculprv1!$G$19*calculprv1!$G$23)*Trajet!P35*Trajet!P13)) -> FALSE | S10: =(IF(calculprv1!$G$15="économique", (calculprv1!$G$11*(1-calculprv1!$G$13))/(calculprv1!$G$19*calculprv1!$G$23)*Trajet!Q35*Trajet!Q13)) -> FALSE | T10: =(IF(calculprv1!$G$15="économique", (calculprv1!$G$11*(1-calculprv1!$G$13))/(calculprv1!$G$19*calculprv1!$G$23)*Trajet!R35*Trajet!R13)) -> FALSE | U10: =(IF(calculprv1!$G$15="économique", (calculprv1!$G$11*(1-calculprv1!$G$13))/(calculprv1!$G$19*calculprv1!$G$23)*Trajet!S35*Trajet!S13)) -> FALSE | V10: =(IF(calculprv1!$G$15="économique", (calculprv1!$G$11*(1-calculprv1!$G$13))/(calculprv1!$G$19*calculprv1!$G$23)*Trajet!T35*Trajet!T13)) -> FALSE | W10: =SUM(H10:V10) -> 0
